Workbook

Sheet AER only (hidden)
B1: Data in these columns used for data validation and database purposes.
B2: Date last modified: | C2: 2016-08-08 | D2: added new business names, improved column heading formatting
AC4: FOR ELECTRICITY BUSINESSES ONLY
AC5: Feeder Types | AG5: TasNetworks (D) | AH5: MAIFI flag | AI5: Feeder Names
AC6: CBD | AD6: Urban | AE6: Short rural | AF6: long rural | AG6: EXTRA
B7: dms_TradingName_List | C7: dms_TradingNameFull_List | D7: dms_ABN_List | E7: dms_JurisdictionList | F7: dms_Sector_List | G7: dms_Segment_List | H7: dms_FormControl_List | I7: dms_RPT_List | J7: dms_RPTMonth_List | K7: dms_CRCPlength_List | L7: dms_FRCPlength_List | M7: dms_663_List | N7: dms_DeterminationRef_List | O7: dms_Addr1_List | P7: dms_Addr2_List | Q7: dms_Suburb_List | R7: dms_State_List | S7: dms_PostCode_List | T7: dms_PAddr1_List | U7: dms_PAddr2_List | V7: dms_PSuburb_List | W7: dms_PState_List | X7: dms_PPostCode_List | Y7: dms_ContactName1_List | Z7: dms_ContactPh1_List | AA7: dms_ContactEmail_List | AC7: dms_CBD_flag | AD7: dms_Urban_flag | AE7: dms_ShortRural_flag | AF7: dms_LongRural_flag | AG7: dms_FeederType_5_flag | AH7: dms_MAIFI_flag_List | AI7: dms_FeederName_1 | AJ7: dms_FeederName_2 | AK7: dms_FeederName_3 | AL7: dms_FeederName_4 | AM7: dms_FeederName_5
B8: ActewAGL Distribution | C8: ActewAGL Distribution | D8: 76670568688 | E8: ACT | F8: Electricity | G8: Distribution | H8: Revenue cap | I8: Financial | J8: June | K8: 5 | L8: 5 | M8: 5 | N8: 2014-19 Distribution Determination | O8: 40 Bunda Street | Q8: CANBERRA | R8: ACT | S8: 2600 | T8: GPO BOX 366 | V8: CANBERRA | W8: ACT | X8: 2601 | Y8: Robert Walker | Z8: 02 6248 3847 | AA8: robert.walker@actewagle.com.au | AC8: NO | AD8: YES | AE8: YES | AF8: NO | AG8: NO | AI8: CBD | AJ8: Urban | AK8: Short rural | AL8: Long rural | AN8: ActewAGL Distribution
B9: ActewAGL Distribution (Tx Assets) | C9: ActewAGL Distribution (Tx Assets) | D9: 76670568688 | E9: ACT | F9: Electricity | G9: Distribution | H9: Revenue cap | I9: Financial | J9: June | K9: 5 | L9: 5 | M9: 5 | N9: distribution determination | O9: 40 Bunda Street | Q9: CANBERRA | R9: ACT | S9: 2600 | T9: GPO BOX 366 | V9: CANBERRA | W9: ACT | X9: 2601 | Y9: Robert Walker | Z9: 02 6248 3847 | AA9: robert.walker@actewagle.com.au | AI9: CBD | AJ9: Urban | AK9: Short rural | AL9: Long rural | AN9: ActewAGL Distribution (Tx Assets)
B10: ActewAGL Gas | C10: ActewAGL Gas | D10: 76670568688 | E10: ACT | F10: Gas | G10: Distribution | H10: Weighted average price cap | I10: Financial | J10: June | K10: 5 | L10: 5 | M10: x | O10: 40 Bunda Street | Q10: CANBERRA | R10: ACT | S10: 2600 | T10: GPO BOX 366 | V10: CANBERRA | W10: ACT | X10: 2601 | Y10: Philip Deamer | Z10: 02 6248 3438 | AA10: GasAAReview@actewagl.com.au | AN10: ActewAGL Gas
B11: AGN (Albury) | C11: Australian Gas Networks Limited (reporting data for Albury) | D11: 19078551685 | E11: Vic | F11: Gas | G11: Distribution | H11: Weighted average price cap | I11: Calendar | J11: December | K11: 5 | L11: 5 | M11: x | O11: Level 10 | P11: 81 Flinders Street | Q11: ADELAIDE | R11: SA | S11: 5000 | Z11: 08 8227 1500 | AI11: CBD | AJ11: Urban | AK11: Short rural | AL11: Long rural | AN11: AGN (SA)
B12: AGN (SA) | C12: AGN (SA) | D12: 78551685 | E12: SA | F12: Gas | G12: Distribution | H12: Revenue cap | I12: Financial | J12: June | K12: 5 | L12: 5 | M12: 5 | N12: distribution determination | R12: SA | AN12: AGN (Victoria)
B13: AGN (Victoria) | C13: Australian Gas Networks Limited (reporting data for Victoria) | D13: 19078551685 | E13: Vic | F13: Gas | G13: Distribution | H13: Weighted average price cap | I13: Calendar | J13: December | K13: 5 | L13: 5 | M13: x | O13: Level 10 | P13: 81 Flinders Street | Q13: ADELAIDE | R13: SA | S13: 5000 | Z13: 08 8227 1500 | AN13: AGN (Albury)
B14: Amadeus | C14: APT Pipelines (NT) Pty Ltd | D14: 39009737393 | E14: NT | F14: Gas | G14: Transmission | H14: Weighted average price cap | I14: Financial | J14: June | K14: 5 | L14: 5 | M14: x | N14: n/a | O14: Level 19, HSBC Building | P14: 580 George Street | Q14: SYDNEY | R14: NSW | S14: 2000 | T14: Level 19, HSBC Building | U14: 580 George Street | V14: SYDNEY | W14: NSW | X14: 2000 | Y14: Alexandra Curran | Z14: 02 9275 0020 | AA14: alexandra.curran@apa.com.au | AN14: Amadeus
B15: APA GasNet | C15: APA VTS Australia Limited | D15: 79096457868 | E15: Vic | F15: Gas | G15: Transmission | H15: Weighted average price cap | I15: Calendar | J15: December | K15: 5 | L15: 5 | M15: x | O15: Level 19, HSBC Building | P15: 580 George Street | Q15: SYDNEY | R15: NSW | S15: 2000 | T15: PO Box R41 | V15: ROYAL EXCHANGE | W15: NSW | X15: 1225 | Z15: 02 9693 0000 | AN15: APA GasNet
B16: Ausgrid | C16: Ausgrid | D16: 67505337385 | E16: NSW | F16: Electricity | G16: Distribution | H16: Revenue cap | I16: Financial | J16: June | K16: 5 | L16: 5 | M16: 5 | N16: 2014-19 Distribution Determination | O16: 570 George St | Q16: SYDNEY | R16: NSW | S16: 2000 | Y16: John Thomson | Z16: (02) 9269 2312 | AA16: john.thomson@ausgrid.com.au | AC16: YES | AD16: YES | AE16: YES | AF16: YES | AG16: NO | AI16: CBD | AJ16: Urban | AK16: Short rural | AL16: Long rural | AN16: Ausgrid
B17: Ausgrid (Tx Assets) | C17: Ausgrid (Tx Assets) | D17: 67505337385 | E17: NSW | F17: Electricity | G17: Distribution | H17: Revenue cap | I17: Financial | J17: June | K17: 5 | L17: 5 | M17: 5 | N17: distribution determination | R17: NSW | AI17: CBD | AJ17: Urban | AK17: Short rural | AL17: Long rural | AN17: Ausgrid (Tx Assets)
B18: AusNet (D) | C18: AusNet Services (D) | D18: 91064651118 | E18: Vic | F18: Electricity | G18: Distribution | H18: Revenue cap | I18: Calendar | J18: December | K18: 5 | L18: 5 | M18: 2 | N18: 2016-20 Distribution Determination | O18: Level 32 | P18: 2 Southbank Boulevard | Q18: SOUTHBANK | R18: Vic | S18: 3006 | T18: Locked Bag 14051 | V18: MELBOURNE CITY MAIL CENTRE | W18: VIC | X18: 8001 | Y18: Hannah Williams | Z18: 03 9683 4088 | AA18: hwilliams@powercor.com.au | AD18: YES | AE18: YES | AF18: YES | AG18: NO | AI18: CBD | AJ18: Urban | AK18: Short rural | AL18: Long rural | AN18: AusNet (D)
B19: AusNet (Gas) | C19: AusNet Gas Services | D19: 86015036 | E19: Vic | F19: Gas | G19: Distribution | H19: Weighted average price cap | I19: Calendar | J19: December | K19: 5 | L19: 5 | M19: X | AN19: AusNet (Gas)
B20: AusNet (T) | C20: AusNet (T) | D20: 78079798173 | E20: Vic | F20: Electricity | G20: Transmission | H20: Revenue cap | I20: Financial | J20: March | K20: 5 | L20: 5 | M20: 2 | N20: transmission determination | O20: Level 32 | P20: 2 Southbank Boulevard | Q20: SOUTHBANK | R20: Vic | S20: 3006 | T20: Locked Bag 14051 | V20: MELBOURNE CITY MAIL CENTRE | W20: Vic | X20: 8001 | Y20: Clare Thompson | Z20: 03 9695 6670 | AA20: clare.e.thompson@ausnetservices.com.au | AI20: CBD | AJ20: Urban | AK20: Short rural | AL20: Long rural | AN20: AusNet (T)
B21: Australian Distribution Co. | C21: Australian Distribution Co. | D21: 11222333444 | E21: - | F21: Electricity | G21: Distribution | H21: Revenue cap | I21: Financial | J21: June | K21: 5 | L21: 5 | M21: 2 | N21: distribution determination | O21: 123 Straight Street | Q21: SYDNEY | R21: NSW | S21: 2000 | T21: PO Box 123 | V21: SYDNEY | W21: NSW | X21: 2000 | Y21: Bob Smith | Z21: 02 1234 5678 | AA21: bob@auselec.net.au | AI21: CBD | AJ21: Urban | AK21: Short rural | AL21: Long rural | AN21: Australian Distribution Co.
B22: Australian Transmission Co. | C22: Australian Transmission Co. | D22: 11222333444 | E22: - | F22: Electricity | G22: Transmission | H22: Revenue cap | I22: Financial | J22: June | K22: 5 | L22: 5 | M22: 5 | N22: transmission determination | O22: 123 Straight Street | Q22: SYDNEY | R22: NSW | S22: 2000 | T22: PO Box 123 | V22: SYDNEY | W22: NSW | X22: 2000 | Y22: Bob Smith | Z22: 02 1234 5678 | AA22: bob@auselec.net.au | AI22: CBD | AJ22: Urban | AK22: Short rural | AL22: Long rural | AN22: Australian Transmission Co.
B23: CitiPower | C23: CitiPower | D23: 76064651056 | E23: Vic | F23: Electricity | G23: Distribution | H23: Revenue cap | I23: Calendar | J23: December | K23: 5 | L23: 5 | M23: 2 | N23: 2016-20 Distribution Determination | O23: 40 Market Street | Q23: MELBOURNE | R23: Vic | S23: 3000 | T23: Locked Bag 14090 | V23: MELBOURNE | W23: VIC | X23: 8001 | Y23: Hannah Williams | Z23: 03 9683 4088 | AA23: hwilliams@powercor.com.au | AC23: YES | AD23: YES | AE23: NO | AF23: NO | AG23: NO | AI23: CBD | AJ23: Urban | AK23: Short rural | AL23: Long rural | AN23: CitiPower
B24: Directlink | C24: Directlink | D24: 16779340889 | E24: Qld | F24: Electricity | G24: Transmission | H24: Revenue cap | I24: Financial | J24: June | K24: 9 | L24: 5 | M24: 5 | N24: transmission determination | R24: NSW | AI24: CBD | AJ24: Urban | AK24: Short rural | AL24: Long rural | AN24: Directlink
B25: ElectraNet | C25: ElectraNet | D25: 41094482416 | E25: SA | F25: Electricity | G25: Transmission | H25: Revenue cap | I25: Financial | J25: June | K25: 5 | L25: 5 | M25: 5 | N25: transmission determination | O25: 52-55 East Terrace | P25: Rymill Park | Q25: ADELAIDE | R25: SA | S25: 5000 | T25: PO Box 7096 | U25: Hutt Street Post Office | V25: ADELAIDE | W25: SA | X25: 5000 | Y25: Bill Jackson | Z25: 08 8404 7969 | AA25: jackson.bill@electranet.com.au | AI25: CBD | AJ25: Urban | AK25: Short rural | AL25: Long rural | AN25: ElectraNet
B26: Endeavour Energy | C26: Endeavour Energy | D26: 59253130878 | E26: NSW | F26: Electricity | G26: Distribution | H26: Revenue cap | I26: Financial | J26: June | K26: 5 | L26: 5 | M26: 5 | N26: 2014-19 Distribution Determination | O26: 51 Huntingwood Drive | Q26: HUNTINGWOOD | R26: NSW | S26: 2148 | T26: PO Box 811 | V26: SEVEN HILLS | W26: NSW | X26: 1730 | Y26: Jon Hocking | Z26: 02 9853 4386 / 0407 348 156 | AA26: Jon.Hocking@Endeavourenergy.com.au | AC26: NO | AD26: YES | AE26: YES | AF26: YES | AG26: NO | AI26: CBD | AJ26: Urban | AK26: Short rural | AL26: Long rural | AN26: Endeavour Energy
B27: Energex | C27: Energex | D27: 40078849055 | E27: Qld | F27: Electricity | G27: Distribution | H27: Revenue cap | I27: Financial | J27: June | K27: 5 | L27: 5 | M27: 5 | N27: 2015-20 Distribution Determination | O27: 26 Reddacliff Street | Q27: NEWSTEAD | R27: Qld | S27: 4006 | T27: 26 Reddacliff Street | V27: NEWSTEAD | W27: QLD | X27: 4006 | Y27: Nicola Roscoe | Z27: 07 3664 5891 | AA27: nicolaroscoe@energex.com.au | AC27: YES | AD27: YES | AE27: YES | AF27: NO | AG27: NO | AI27: CBD | AJ27: Urban | AK27: Short rural | AL27: Long rural | AN27: Energex
B28: Ergon Energy | C28: Ergon Energy | D28: 50087646062 | E28: Qld | F28: Electricity | G28: Distribution | H28: Revenue cap | I28: Financial | J28: June | K28: 5 | L28: 5 | M28: 5 | N28: 2015-20 Distribution Determination | O28: 22 Walker Street | Q28: TOWNSVILLE | R28: Qld | S28: 4810 | T28: Po Box 264 | V28: FORTITUDE VALLEY | W28: QLD | X28: 4006 | Y28: Jenny Doyle, Group Manager Regulatory Affairs | Z28: (07) 3851 6416 | AA28: jenny.doyle@ergon.com.au | AC28: NO | AD28: YES | AE28: YES | AF28: YES | AG28: NO | AI28: CBD | AJ28: Urban | AK28: Short rural | AL28: Long rural | AN28: Ergon Energy
B29: Essential Energy | C29: Essential Energy | D29: 37428185226 | E29: NSW | F29: Electricity | G29: Distribution | H29: Revenue cap | I29: Financial | J29: June | K29: 5 | L29: 5 | M29: 5 | N29: 2014-19 Distribution Determination | O29: 8 Buller Street | Q29: PORT MACQUARIE | R29: NSW | S29: 2444 | T29: PO Box 5730 | V29: PORT MACQUARIE | W29: NSW | X29: 2444 | Y29: Catherine Waddell | Z29: 02 6338 3553 | AA29: catherine.waddell@essentialenergy.com.au | AE29: YES | AF29: YES | AG29: NO | AI29: CBD | AJ29: Urban | AK29: Short rural | AL29: Long rural | AN29: Essential Energy
B30: Jemena Electricity | C30: Jemena Electricity | D30: 82064651083 | E30: Vic | F30: Electricity | G30: Distribution | H30: Revenue cap | I30: Calendar | J30: December | K30: 5 | L30: 5 | M30: 2 | N30: 2016-20 Distribution Determination | O30: Level 16 | P30: 567 Collins Street | Q30: MELBOURNE | R30: VIC | S30: 3000 | T30: PO Box 16182 | V30: MELBOURNE | W30: VIC | X30: 8001 | Y30: Robert McMillan | Z30: 03 9173 7000 | AA30: robert.mcmillan@jemena.com.au | AE30: YES | AF30: NO | AG30: NO | AI30: CBD | AJ30: Urban | AK30: Short rural | AL30: Long rural | AN30: Jemena Electricity
B31: JGN | C31: Jemena Gas Networks | E31: NSW | F31: Gas | G31: Distribution | H31: Weighted average price cap | I31: Financial | J31: June | K31: 5 | L31: 5 | AN31: JGN
B32: Multinet Gas | C32: Multinet Gas (DB No.1) Pty Ltd (ACN 086 026 986), Multinet Gas (DB No.2) Pty Ltd (ACN 086 230 122) | D32: 86026986 | E32: Vic | F32: Gas | G32: Distribution | H32: Weighted average price cap | I32: Calendar | J32: December | K32: 5 | L32: 5 | M32: x | AN32: Multinet Gas
B33: Murraylink | C33: Murraylink | D33: 79181207909 | E33: SA | F33: Electricity | G33: Transmission | H33: Revenue cap | I33: Financial | J33: June | K33: 5 | L33: 5 | M33: 5 | N33: transmission determination | AI33: CBD | AJ33: Urban | AK33: Short rural | AL33: Long rural | AN33: Murraylink
B34: Powercor Australia | C34: Powercor Australia | D34: 89064651109 | E34: Vic | F34: Electricity | G34: Distribution | H34: Revenue cap | I34: Calendar | J34: December | K34: 5 | L34: 5 | M34: 2 | N34: 2016-20 Distribution Determination | O34: 40 Market Street | Q34: MELBOURNE | R34: Vic | S34: 3000 | T34: Locked bag 14090 | V34: MELBOURNE | W34: VIC | X34: 8001 | Y34: Hannah Williams | Z34: 03 9683 4088 | AA34: hwilliams@powercor.com.au | AE34: YES | AF34: YES | AG34: NO | AI34: CBD | AJ34: Urban | AK34: Short rural | AL34: Long rural | AN34: Powercor Australia
B35: Powerlink | C35: Queensland Electricity Transmission Corporation Limited trading as Powerlink Queensland | D35: 82078849233 | E35: Qld | F35: Electricity | G35: Transmission | H35: Revenue cap | I35: Financial | J35: June | K35: 5 | L35: 5 | M35: 5 | N35: transmission determination | O35: 33 Harold St | Q35: VIRGINIA | R35: Qld | S35: 4014 | T35: PO Box 1193 | V35: VIRGINIA | W35: QLD | X35: 4014 | Y35: Jennifer Harris | Z35: 07 3860 2667 | AA35: jharris@powerlink.com.au | AI35: CBD | AJ35: Urban | AK35: Short rural | AL35: Long rural | AN35: Powerlink
B36: Roma to Brisbane Pipeline | C36: APT Petroleum Pipelines Limited t/a Roma to Brisbane Pipeline | D36: 009 737 393 | E36: Qld | F36: Gas | G36: Transmission | H36: Revenue cap | I36: Financial | J36: June | K36: 5 | L36: 5 | M36: x | N36: n/a | AI36: CBD | AJ36: Urban | AK36: Short rural | AL36: Long rural | AN36: Roma to Brisbane Pipeline
B37: SA Power Networks | C37: SA Power Networks | D37: 13332330749 | E37: SA | F37: Electricity | G37: Distribution | H37: Revenue cap | I37: Financial | J37: June | K37: 5 | L37: 5 | M37: 5 | N37: 2015-20 Distribution Determination | O37: 1 Anzac Highway | Q37: KESWICK | R37: SA | S37: 5035 | T37: GPO Box 77 | V37: ADELAIDE | W37: SA | X37: 5000 | Y37: Damien O'Connor | Z37: 08 8404 5066 | AA37: damien.oconnor@sapowernetworks.com.au | AE37: YES | AF37: YES | AG37: NO | AI37: CBD | AJ37: Urban | AK37: Short rural | AL37: Long rural | AN37: SA Power Networks
B38: TasNetworks (D) | C38: TasNetworks (D) | D38: 24167357299 | E38: Tas | F38: Electricity | G38: Distribution | H38: Revenue cap | I38: Financial | J38: June | K38: 5 | L38: 5 | M38: 5 | N38: distribution determination | O38: 21 Kirksway Place | Q38: HOBART | R38: Tas | S38: 7000 | T38: GPO Box 191 | V38: HOBART | W38: Tas | X38: 7000 | Y38: Leigh Mayne | Z38: 03 6270 3691 | AA38: rrp2012@auroraenergy.com.au | AE38: YES | AF38: YES | AG38: YES | AI38: Critical Infrastructure | AJ38: High density commercial | AK38: Urban | AL38: High density rural | AM38: Low density rural | AN38: TasNetworks (D)
B39: TasNetworks (T) | C39: TasNetworks (T) | D39: 24167357299 | E39: Tas | F39: Electricity | G39: Transmission | H39: Revenue cap | I39: Financial | J39: March | K39: 5 | L39: 5 | M39: 5 | N39: transmission determination | O39: 1-7 Maria Street | Q39: LENAH VALLEY | R39: Tas | S39: 7008 | T39: PO Box 606 | V39: MOONAH | W39: Tas | X39: 7009 | Y39: Heath Dillon | Z39: 03 6274 3664 | AA39: heath.dillon@transend.com.au | AI39: CBD | AJ39: Urban | AK39: Short rural | AL39: Long rural | AN39: TasNetworks (T)
B40: TransGrid | C40: TransGrid | D40: 19622755774 | E40: NSW | F40: Electricity | G40: Transmission | H40: Revenue cap | I40: Financial | J40: June | K40: 5 | L40: 4 | M40: 5 | N40: transmission determination | O40: 180 Thomas Street | Q40: HAYMARKET | R40: NSW | S40: 2000 | T40: PO Box A1000 | V40: SYDNEY SOUTH | W40: NSW | X40: 1235 | Y40: Andrew Kingsmill | Z40: 02 9284 3149 | AA40: andrew.kingsmill@transgrid.com.au | AI40: CBD | AJ40: Urban | AK40: Short rural | AL40: Long rural | AN40: TransGrid
B41: United Energy | C41: United Energy | D41: 70064651029 | E41: Vic | F41: Electricity | G41: Distribution | H41: Revenue cap | I41: Calendar | J41: December | K41: 5 | L41: 5 | M41: 2 | N41: 2016-20 Distribution Determination | O41: Level 3 | P41: 6 Nexus Court | Q41: MULGRAVE | R41: Vic | S41: 3149 | T41: PO Box 449 | V41: MOUNT WAVERLEY | W41: VIC | X41: 3170 | Y41: Mathew Abraham | Z41: 03 8846 9758 | AA41: mathew.abraham@ue.com.au | AE41: YES | AF41: NO | AG41: NO | AI41: CBD | AJ41: Urban | AK41: Short rural | AL41: Long rural | AN41: United Energy
B42: Western Power (D) | C42: Western Power (D) | D42: 18540492861 | E42: WA | F42: Electricity | G42: Distribution | H42: Revenue cap | I42: Financial | J42: June | K42: 12 | L42: 4 | M42: x | N42: distribution determination | O42: 363 Wellington Street | Q42: PERTH | R42: WA | S42: 6000 | T42: GPO Box L921 | V42: PERTH | W42: WA | X42: 6842 | Y42: Judy Hunter | Z42: 08 9326 6239 | AA42: judy.hunter@westernpower.com.au | AE42: YES | AF42: YES | AG42: NO | AH42: NO | AI42: CBD | AJ42: Urban | AK42: Short rural | AL42: Long rural | AN42: Western Power (D)
B43: Western Power (T) | C43: Western Power (T) | D43: 18540492861 | E43: WA | F43: Electricity | G43: Transmission | H43: Revenue cap | I43: Financial | J43: June | K43: 12 | L43: 4 | M43: x | N43: transmission determination | O43: 363 Wellington Street | Q43: PERTH | R43: WA | S43: 6000 | T43: GPO Box L921 | V43: PERTH | W43: WA | X43: 6842 | Y43: Judy Hunter | Z43: 08 9326 6239 | AA43: judy.hunter@westernpower.com.au | AE43: YES | AF43: YES | AG43: NO | AI43: CBD | AJ43: Urban | AK43: Short rural | AL43: Long rural | AN43: Western Power (T)
W46: For EB & Reset RINs only
B47: The Reg Year Ending (dms_RYE) must be set to the last year of the regulatory period. For forecast data is is usually (FRCP_y5) for actual it is a single year (CRY). For historical actual data the RYE will need to be set manually in the business details sheet by setting the dms_Multiyear_flag to 1 and putting the correct value in 'dms_Specified_FinalYear. See cells C67:C68 | G47: =IF(dms_RPT="financial",VALUE(LEFT(CRCP_y1,4)-1)&"-"&TEXT(VALUE(RIGHT(CRCP_y1,2)-1),"00"),VALUE(LEFT(CRCP_y1,4)-1)) -> 2012 | N47: Drop down selector box for CA & Reset RINs. | O47: For CA & Reset RINs only | W47: for DNSP only | AI47: Reason for interruption | AJ47: dms_Reason_Interruption_Detailed | AK47: dms_Reason_Interruption
B48: dms_Model_List | C48: DELETE NR 'CRY' IF NOT AN ANNUAL RIN (EB, CA , ARR) | E48: dms_RYE_Formula_Result | N48: dms_0203_ProjectType | O48: dms_020303_01_UOM | P48: dms_020501_01_UOM | Q48: dms_020501_02_UOM | R48: dms_020501_03_UOM | S48: dms_020501_04_UOM | T48: dms_020603_01_UOM | U48: dms_040102_01_UOM | V48: dms_040102_04_UOM | W48: dms_030601_01_UOM | X48: dms_030601_02_UOM | Y48: dms_030701_01_UOM | Z48: dms_030702_01_UOM | AA48: dms_030703_01_UOM | AI48: Animal | AJ48: Animal impact | AK48: Animal
B49: ARR | C49: ANNUAL REPORTING STATEMENT | E49: =LEFT(dms_SingleYear_FinalYear_Result,2)&RIGHT(dms_SingleYear_FinalYear_Result,2) ->  | F49: =LEFT(dms_SingleYear_FinalYear_Result,2)&RIGHT(dms_SingleYear_FinalYear_Result,2) | H49: Formula errors are OK | N49: New line on new route - single circuit | O49: Circuit line length in km | P49: 0's | Q49: 0's | R49: 0's | S49: 0's | T49: 0's | U49: 0's | V49: days | W49: minutes/customer | X49: minutes/customer | Y49: Customer / km | Z49: % | AA49: km | AJ49: Animal nesting/burrowing, etc and other | AK49: Asset failure
B50: CA | C50: CATEGORY ANALYSIS | E50: =LEFT(dms_SingleYear_FinalYear_Result,2)&RIGHT(dms_SingleYear_FinalYear_Result,2) ->  | F50: =LEFT(dms_SingleYear_FinalYear_Result,2)&RIGHT(dms_SingleYear_FinalYear_Result,2) | H50: Formula errors are OK | N50: New line on new route - dual circuit | O50: Circuit line length in km | P50: 0's | Q50: 0's | R50: 0's | S50: 0's | T50: 0's | U50: 0's | V50: 0's | W50: minutes/customer | X50: minutes/customer | Y50: MWh/customer | Z50: Number of spans | AJ50: Other | AK50: Other
B51: CPI | C51: CPI | N51: New line on new route - other | O51: Circuit line length in km | P51: MVA added | Q51: MVA added | R51: MVA added | S51: MVA added | T51: 0's | U51: 0's | V51: $0s | W51: interruptions/customer | X51: interruptions/customer | Y51: kVA / customer | Z51: Number of spans | AI51: Asset failure | AJ51: LV | AK51: Overloads
B52: EB | C52: ECONOMIC BENCHMARKING | E52: =LEFT(dms_SingleYear_FinalYear_Result,2)&RIGHT(dms_SingleYear_FinalYear_Result,2) ->  | F52: =LEFT(dms_SingleYear_FinalYear_Result,2)&RIGHT(dms_SingleYear_FinalYear_Result,2) | H52: Formula errors are OK | N52: Line rebuild over existing route - single circuit | O52: Circuit line length in km | P52: 0's | Q52: 0's | R52: 0's | S52: 0's | T52: 0's | U52: $0s | V52: 0's | W52: interruptions/customer | X52: interruptions/customer | Z52: Number of spans | AJ52: Distribution substation | AK52: Planned
B53: PTRM | C53: POST TAX REVENUE MODEL | E53: =LEFT(dms_MultiYear_FinalYear_Result,2)&RIGHT(dms_MultiYear_FinalYear_Result,2) -> 2022 | F53: =LEFT(dms_MultiYear_FinalYear_Result,2)&RIGHT(dms_MultiYear_FinalYear_Result,2) | N53: Line rebuild over existing route - dual circuit | O53: Number | P53: total spend $0s | Q53: total spend $0s | R53: total spend $0s | S53: total spend $0s | T53: (per cent) | Z53: Number of spans | AJ53: HV | AK53: Network business
B54: Reset | C54: REGULATORY REPORTING STATEMENT | E54: =LEFT(dms_MultiYear_FinalYear_Result,2)&RIGHT(dms_MultiYear_FinalYear_Result,2) -> 2022 | F54: =LEFT(dms_MultiYear_FinalYear_Result,2)&RIGHT(dms_MultiYear_FinalYear_Result,2) | H54: Formula errors are OK | N54: Reconductor - Single circuit | O54: Number | P54: net circuit km added | Q54: net circuit km added | R54: net circuit km added | S54: net circuit km added | Z54: Years | AJ54: Zone substation | AK54: Third party
B55: RFM | C55: ROLL FORWARD MODEL | E55: =LEFT(dms_CRCP_FinalYear_Result,2)&RIGHT(dms_CRCP_FinalYear_Result,2) -> 2017 | F55: =LEFT(dms_CRCP_FinalYear_Result,2)&RIGHT(dms_CRCP_FinalYear_Result,2) | N55: Reconductor - Dual circuit | O55: Number | P55: total spend $0s | Q55: total spend $0s | R55: total spend $0s | S55: total spend $0s | Z55: Years | AJ55: Subtransmission | AK55: Unknown
B56: WACC | C56: WEIGHTED AVERAGE COST OF CAPITAL | E56: =LEFT(dms_MultiYear_FinalYear_Result,2)&RIGHT(dms_MultiYear_FinalYear_Result,2) -> 2022 | F56: =LEFT(dms_MultiYear_FinalYear_Result,2)&RIGHT(dms_MultiYear_FinalYear_Result,2) | N56: Other | P56: net circuit km added | Q56: net circuit km added | R56: net circuit km added | S56: net circuit km added | Z56: Trees | AI56: Other | AJ56: insert description of 'other' | AK56: Vegetation
P57: total spend $0s | Q57: total spend $0s | R57: total spend $0s | S57: total spend $0s | Z57: Trees | AI57: Overloads | AJ57: - | AK57: Weather
P58: 0's | R58: $0s | Z58: Defects | AI58: Planned | AJ58: - | AK58: 2 - STPIS Exclusion (3.3)(a)
P59: 0's | Z59: Defects | AI59: Network business | AJ59: Network error | AK59: 3 - STPIS Exclusion (3.3)(a)
P60: 0's | Z60: Spans | AJ60: Switching and protection error | AK60: 4 - STPIS Exclusion (3.3)(a)
P61: $0s | Z61: km | AI61: Third party | AJ61: Fire | AK61: 5 - STPIS Exclusion (3.3)(a)
Z62: Spans | AJ62: Other | AK62: 6 - STPIS Exclusion (3.3)(a)
AJ63: Dig-in | AK63: 7 - STPIS Exclusion (3.3)(a)
AJ64: Unauthorised access
B65: For all files either AER or business needs to be able to specify the type of submission | C65: For PTRM & RFM templates we must provide a choice in case they change their form of control - otherwise it is drawn from the business specific lookup table above. | E65: These are indeces and lookup values for various dates. All step from the value placed in FRCP_y1 on the business and other details worksheet | W65: for TNSP only | AJ65: Vehicle impact
B66: dms_SourceList | C66: dms_FormControl_Choices | E66: dms_FRCPlength_Num_List | F66: dms_FinalYear_List | G66: dms_CRCPlength_Num_List | H66: dms_CFinalYear_List | I66: dms_FRCP_years | K66: dms_CRCP_years | M66: dms_CRCP_index | W66: dms_030601_01_UOM | Y66: dms_030701_01_UOM | Z66: dms_030702_01_UOM | AI66: Unknown | AJ66: Unknown
B67: After appeal | C67: Revenue cap | E67: 1 | F67: dms_FRCP_y1 | G67: 1 | H67: CRCP_y1 | I67: =FRCP_y1 -> 2018 | J67: dms_FRCP_y1 | K67: =IF(dms_RPT="financial",VALUE(LEFT(dms_FRCP_y1,4)-1)&"-"&TEXT(VALUE(MID(dms_FRCP_y1,3,2)),"00"),VALUE(LEFT(dms_FRCP_y1,4)-1)) -> 2017 | L67: dms_CRCP_yZ | M67: 1 | W67: % | Y67: Number of spans | Z67: km | AI67: Vegetation | AJ67: Blow-in/Fall-in - NSP responsibility
B68: Draft decision | C68: Revenue yield | E68: 2 | F68: dms_FRCP_y2 | G68: 2 | H68: CRCP_y2 | I68: =IF(dms_RPT="financial",VALUE(LEFT(dms_FRCP_y1,4)+1)&"-"&TEXT(VALUE(RIGHT(dms_FRCP_y1,2)+1),"00"),VALUE(LEFT(dms_FRCP_y1,4)+1)) -> 2019 | J68: dms_FRCP_y2 | K68: =IF(dms_RPT="financial",VALUE(LEFT(dms_CRCP_yZ,4)-1)&"-"&TEXT(VALUE(MID(dms_CRCP_yZ,3,2)),"00"),VALUE(LEFT(dms_CRCP_yZ,4)-1)) -> 2016 | L68: dms_CRCP_yY | M68: 2 | W68: number | Y68: Years | Z68: % | AJ68: Grow-in - NSP responsibility
B69: Final decision | C69: Weighted average price cap | E69: 3 | F69: dms_FRCP_y3 | G69: 3 | H69: CRCP_y3 | I69: =IF(dms_RPT="financial",VALUE(LEFT(dms_FRCP_y2,4)+1)&"-"&TEXT(VALUE(RIGHT(dms_FRCP_y2,2)+1),"00"),VALUE(LEFT(dms_FRCP_y2,4)+1)) -> 2020 | J69: dms_FRCP_y3 | K69: =IF(dms_RPT="financial",VALUE(LEFT(dms_CRCP_yY,4)-1)&"-"&TEXT(VALUE(MID(dms_CRCP_yY,3,2)),"00"),VALUE(LEFT(dms_CRCP_yY,4)-1)) -> 2015 | L69: dms_CRCP_yX | M69: 3 | W69: number | Y69: Trees | Z69: km | AJ69: Blow-in/Fall-in - Other responsible party
B70: PTRM update 1 | E70: 4 | F70: dms_FRCP_y4 | G70: 4 | H70: CRCP_y4 | I70: =IF(dms_RPT="financial",VALUE(LEFT(dms_FRCP_y3,4)+1)&"-"&TEXT(VALUE(RIGHT(dms_FRCP_y3,2)+1),"00"),VALUE(LEFT(dms_FRCP_y3,4)+1)) -> 2021 | J70: dms_FRCP_y4 | K70: =IF(dms_RPT="financial",VALUE(LEFT(dms_CRCP_yX,4)-1)&"-"&TEXT(VALUE(MID(dms_CRCP_yX,3,2)),"00"),VALUE(LEFT(dms_CRCP_yX,4)-1)) -> 2014 | L70: dms_CRCP_yW | M70: 4 | W70: % | Y70: Defects | Z70: number | AJ70: Grow-in - Other responsible party
B71: PTRM update 2 | E71: 5 | F71: dms_FRCP_y5 | G71: 5 | H71: CRCP_y5 | I71: =IF(dms_RPT="financial",VALUE(LEFT(dms_FRCP_y4,4)+1)&"-"&TEXT(VALUE(RIGHT(dms_FRCP_y4,2)+1),"00"),VALUE(LEFT(dms_FRCP_y4,4)+1)) -> 2022 | J71: dms_FRCP_y5 | K71: =IF(dms_RPT="financial",VALUE(LEFT(dms_CRCP_yW,4)-1)&"-"&TEXT(VALUE(MID(dms_CRCP_yW,3,2)),"00"),VALUE(LEFT(dms_CRCP_yW,4)-1)) -> 2013 | L71: dms_CRCP_yV | M71: 5 | W71: number | Y71: Number of spans | AI71: Weather
B72: PTRM update 3 | E72: 6 | F72: dms_FRCP_y6 | G72: 6 | H72: CRCP_y6 | I72: =IF(dms_RPT="financial",VALUE(LEFT(dms_FRCP_y5,4)+1)&"-"&TEXT(VALUE(RIGHT(dms_FRCP_y5,2)+1),"00"),VALUE(LEFT(dms_FRCP_y5,4)+1)) -> 2023 | J72: dms_FRCP_y6 | K72: =IF(dms_RPT="financial",VALUE(LEFT(dms_CRCP_yV,4)-1)&"-"&TEXT(VALUE(MID(dms_CRCP_yV,3,2)),"00"),VALUE(LEFT(dms_CRCP_yV,4)-1)) -> 2012 | L72: dms_CRCP_yU | M72: 6 | W72: number | Y72: km | AI72: 2 - STPIS Exclusion (3.3)(a)
B73: PTRM update 4 | E73: 7 | F73: dms_FRCP_y7 | G73: 7 | H73: CRCP_y7 | I73: =IF(dms_RPT="financial",VALUE(LEFT(dms_FRCP_y6,4)+1)&"-"&TEXT(VALUE(RIGHT(dms_FRCP_y6,2)+1),"00"),VALUE(LEFT(dms_FRCP_y6,4)+1)) -> 2024 | J73: dms_FRCP_y7 | K73: =IF(dms_RPT="financial",VALUE(LEFT(dms_CRCP_yU,4)-1)&"-"&TEXT(VALUE(MID(dms_CRCP_yU,3,2)),"00"),VALUE(LEFT(dms_CRCP_yU,4)-1)) -> 2011 | L73: dms_CRCP_yT | M73: 7 | W73: % | Y73: km | AI73: 3 - STPIS Exclusion (3.3)(a)
B74: PTRM update 5 | E74: 8 | F74: dms_FRCP_y8 | G74: 8 | H74: CRCP_y8 | I74: =IF(dms_RPT="financial",VALUE(LEFT(dms_FRCP_y7,4)+1)&"-"&TEXT(VALUE(RIGHT(dms_FRCP_y7,2)+1),"00"),VALUE(LEFT(dms_FRCP_y7,4)+1)) -> 2025 | J74: dms_FRCP_y8 | K74: =IF(dms_RPT="financial",VALUE(LEFT(dms_CRCP_yT,4)-1)&"-"&TEXT(VALUE(MID(dms_CRCP_yT,3,2)),"00"),VALUE(LEFT(dms_CRCP_yT,4)-1)) -> 2010 | L74: dms_CRCP_yS | M74: 8 | W74: number | Y74: Number of spans | AI74: 4 - STPIS Exclusion (3.3)(a)
B75: PTRM update 6 | E75: 9 | F75: dms_FRCP_y9 | G75: 9 | H75: CRCP_y9 | I75: =IF(dms_RPT="financial",VALUE(LEFT(dms_FRCP_y8,4)+1)&"-"&TEXT(VALUE(RIGHT(dms_FRCP_y8,2)+1),"00"),VALUE(LEFT(dms_FRCP_y8,4)+1)) -> 2026 | J75: dms_FRCP_y9 | K75: =IF(dms_RPT="financial",VALUE(LEFT(dms_CRCP_yS,4)-1)&"-"&TEXT(VALUE(MID(dms_CRCP_yS,3,2)),"00"),VALUE(LEFT(dms_CRCP_yS,4)-1)) -> 2009 | L75: dms_CRCP_yR | M75: 9 | W75: number | AI75: 5 - STPIS Exclusion (3.3)(a)
B76: PTRM update 7 | E76: 10 | F76: dms_FRCP_y10 | G76: 10 | H76: CRCP_y10 | I76: =IF(dms_RPT="financial",VALUE(LEFT(dms_FRCP_y9,4)+1)&"-"&TEXT(VALUE(RIGHT(dms_FRCP_y9,2)+1),"00"),VALUE(LEFT(dms_FRCP_y9,4)+1)) -> 2027 | J76: dms_FRCP_y10 | K76: =IF(dms_RPT="financial",VALUE(LEFT(dms_CRCP_yR,4)-1)&"-"&TEXT(VALUE(MID(dms_CRCP_yR,3,2)),"00"),VALUE(LEFT(dms_CRCP_yR,4)-1)) -> 2008 | L76: dms_CRCP_yQ | M76: 10 | W76: % | AI76: 6 - STPIS Exclusion (3.3)(a)
B77: Regulatory proposal | E77: 11 | F77: dms_FRCP_y11 | G77: 11 | H77: CRCP_y11 | I77: =IF(dms_RPT="financial",VALUE(LEFT(dms_FRCP_y10,4)+1)&"-"&TEXT(VALUE(RIGHT(dms_FRCP_y10,2)+1),"00"),VALUE(LEFT(dms_FRCP_y10,4)+1)) -> 2028 | J77: dms_FRCP_y11 | K77: =IF(dms_RPT="financial",VALUE(LEFT(dms_CRCP_yQ,4)-1)&"-"&TEXT(VALUE(MID(dms_CRCP_yQ,3,2)),"00"),VALUE(LEFT(dms_CRCP_yQ,4)-1)) -> 2007 | L77: dms_CRCP_yP | M77: 11 | W77: number | AI77: 7 - STPIS Exclusion (3.3)(a)
B78: Reporting | E78: 12 | F78: dms_FRCP_y12 | G78: 12 | H78: CRCP_y12 | I78: =IF(dms_RPT="financial",VALUE(LEFT(dms_FRCP_y11,4)+1)&"-"&TEXT(VALUE(RIGHT(dms_FRCP_y11,2)+1),"00"),VALUE(LEFT(dms_FRCP_y11,4)+1)) -> 2029 | J78: dms_FRCP_y12 | K78: =IF(dms_RPT="financial",VALUE(LEFT(dms_CRCP_yP,4)-1)&"-"&TEXT(VALUE(MID(dms_CRCP_yP,3,2)),"00"),VALUE(LEFT(dms_CRCP_yP,4)-1)) -> 2006 | L78: dms_CRCP_yO | M78: 12 | W78: %
B79: Revised regulatory proposal | E79: 13 | F79: dms_FRCP_y13 | G79: 13 | H79: CRCP_y13 | I79: =IF(dms_RPT="financial",VALUE(LEFT(dms_FRCP_y12,4)+1)&"-"&TEXT(VALUE(RIGHT(dms_FRCP_y12,2)+1),"00"),VALUE(LEFT(dms_FRCP_y12,4)+1)) -> 2030 | J79: dms_FRCP_y13 | K79: =IF(dms_RPT="financial",VALUE(LEFT(dms_CRCP_yO,4)-1)&"-"&TEXT(VALUE(MID(dms_CRCP_yO,3,2)),"00"),VALUE(LEFT(dms_CRCP_yO,4)-1)) -> 2005 | L79: dms_CRCP_yN | M79: 13 | W79: number
E80: 14 | F80: dms_FRCP_y14 | G80: 14 | H80: CRCP_y14 | I80: =IF(dms_RPT="financial",VALUE(LEFT(dms_FRCP_y13,4)+1)&"-"&TEXT(VALUE(RIGHT(dms_FRCP_y13,2)+1),"00"),VALUE(LEFT(dms_FRCP_y13,4)+1)) -> 2031 | J80: dms_FRCP_y14 | K80: =IF(dms_RPT="financial",VALUE(LEFT(dms_CRCP_yN,4)-1)&"-"&TEXT(VALUE(MID(dms_CRCP_yN,3,2)),"00"),VALUE(LEFT(dms_CRCP_yN,4)-1)) -> 2004 | L80: dms_CRCP_yM | M80: 14 | W80: %
E81: 15 | F81: dms_FRCP_y15 | G81: 15 | H81: CRCP_y15 | I81: =IF(dms_RPT="financial",VALUE(LEFT(dms_FRCP_y14,4)+1)&"-"&TEXT(VALUE(RIGHT(dms_FRCP_y14,2)+1),"00"),VALUE(LEFT(dms_FRCP_y14,4)+1)) -> 2032 | J81: dms_FRCP_y15 | K81: =IF(dms_RPT="financial",VALUE(LEFT(dms_CRCP_yM,4)-1)&"-"&TEXT(VALUE(MID(dms_CRCP_yM,3,2)),"00"),VALUE(LEFT(dms_CRCP_yM,4)-1)) -> 2003 | L81: dms_CRCP_yL | M81: 15 | W81: number
E83: These are drop down lists for businesses to select the correct FRCP_y1 on the business and other details worksheet. This also populates the column headings in the worksheets
B84: dms_DataQuality_List | E84: dms_RCP_fyear_list | F84: dms_CRY_ListF | G84: dms_CRY_ListC | H84: dms_RCP_cyear_list | I84: dms_FRCP_fyear_list | J84: dms_FRCP_ListF | K84: dms_FRCP_ListC | L84: dms_FRCP_cyear_list
B85: Actual | E85: dms_fy1 | F85: 2006-07 | G85: 2007 | H85: dms_cy1 | I85: dms_frcp_fy1 | J85: 2016-17 | K85: 2017 | L85: dms_crcp_cy1
B86: Estimate | E86: dms_fy2 | F86: 2007-08 | G86: 2008 | H86: dms_cy2 | I86: dms_frcp_fy2 | J86: 2017-18 | K86: 2018 | L86: dms_crcp_cy2
B87: Consolidated | E87: dms_fy3 | F87: 2008-09 | G87: 2009 | H87: dms_cy3 | I87: dms_frcp_fy3 | J87: 2018-19 | K87: 2019 | L87: dms_crcp_cy3
B88: Recast | E88: dms_fy4 | F88: 2009-10 | G88: 2010 | H88: dms_cy4 | I88: dms_frcp_fy4 | J88: 2019-20 | K88: 2020 | L88: dms_crcp_cy4
B89: Public | E89: dms_fy5 | F89: 2010-11 | G89: 2011 | H89: dms_cy5 | I89: dms_frcp_fy5 | J89: 2020-21 | K89: 2021 | L89: dms_crcp_cy5
E90: dms_fy6 | F90: 2011-12 | G90: 2012 | H90: dms_cy6 | I90: dms_frcp_fy6 | J90: 2021-22 | K90: 2022 | L90: dms_crcp_cy6
E91: dms_fy7 | F91: 2012-13 | G91: 2013 | H91: dms_cy7 | I91: dms_frcp_fy7 | J91: 2022-23 | K91: 2023 | L91: dms_crcp_cy7
E92: dms_fy8 | F92: 2013-14 | G92: 2014 | H92: dms_cy8 | I92: dms_frcp_fy8 | J92: 2023-24 | K92: 2024 | L92: dms_crcp_cy8
E93: dms_fy9 | F93: 2014-15 | G93: 2015 | H93: dms_cy9 | I93: dms_frcp_fy9 | J93: 2024-25 | K93: 2025 | L93: dms_crcp_cy9
E94: dms_fy10 | F94: 2015-16 | G94: 2016 | H94: dms_cy10 | I94: dms_frcp_fy10 | J94: 2025-26 | K94: 2026 | L94: dms_crcp_cy10
E95: dms_fy11 | F95: 2016-17 | G95: 2017 | H95: dms_cy11 | I95: dms_frcp_fy11 | J95: 2026-27 | K95: 2027 | L95: dms_crcp_cy11
E96: dms_fy12 | F96: 2017-18 | G96: 2018 | H96: dms_cy12 | I96: dms_frcp_fy12 | J96: 2027-28 | K96: 2028 | L96: dms_crcp_cy12
E97: dms_fy13 | F97: 2018-19 | G97: 2019 | H97: dms_cy13 | I97: dms_frcp_fy13 | J97: 2028-29 | K97: 2029 | L97: dms_crcp_cy13
E98: dms_fy14 | F98: 2019-20 | G98: 2020 | H98: dms_cy14 | I98: dms_frcp_fy14 | J98: 2029-30 | K98: 2030 | L98: dms_crcp_cy14
E99: dms_fy15 | F99: 2020-21 | G99: 2021 | H99: dms_cy15 | I99: dms_frcp_fy15 | J99: 2030-31 | K99: 2031 | L99: dms_crcp_cy15

Sheet Cover

Sheet Contents
A1: .
H4: Gas Distribution Regulatory Information Notice
H5: Regulatory templates
H7: =CONCATENATE("For ",dms_TradingName) -> For AGN (Victoria)
H8: for access arrangement period
H9: =CONCATENATE(FRCP_y1," to ",FRCP_y5) -> 2018 to 2022
H10: Table of Contents

Sheet Instructions
D7: INSTRUCTIONS
D10: The pro formas in this spreadsheet must be filled out as part of an access arrangement proposal
D12: Please follow the instructions below when completing the pro formas in this spreadsheet:
D13: 1 | E13: Complete the Business Details pro forma first.
D14: 2 | E14: Only input data into the yellow input cells.
D15: 3 | E15: Check all pre-entered formulas to ensure they are operating correctly and as intended.
D16: 4 | E16: Ensure all links within each worksheet and between worksheets are correct.
D17: 5 | E17: As stated in the notice, further information must be provided in the accompanying proposal.
D18: 6 | E18: The service provider is encouraged to add extra rows in a regulatory template if it considers that this is necessary to fully complete the regulatory template in question.

Sheet Business & other details
B1: =IF(dms_DataQuality="backcast",INDEX(dms_Worksheet_List,MATCH(dms_Model,dms_Model_List))&" BACKCAST",INDEX(dms_Worksheet_List,MATCH(dms_Model,dms_Model_List))) -> REGULATORY REPORTING STATEMENT
B2: =INDEX(dms_TradingNameFull_List,MATCH(dms_TradingName,dms_TradingName_List)) -> Australian Gas Networks Limited (reporting data for Victoria)
B3: =IF(SUM(dms_SingleYear_Model)>0,CRY,CONCATENATE(FRCP_y1," to ",dms_MultiYear_FinalYear_Result)) -> 2018 to 2022
B4: BUSINESS & OTHER DETAILS
B7: Instructions
B8: Complete the following business details regulatory template before entering data or values in any other regulatory template. This regulatory template is linked to other cells within the spreadsheet and automatically generates column headings and conditional formatting to distinguish business specific input and non-input cells.
B10: SUBMISSION PARTICULARS INPUT SHEETS
B12: ENTITY DETAILS
B14: Short name | C14: AGN (Victoria) | F14: Select business name from drop down list first
B15: ACN / ABN | C15: =INDEX(dms_ABN_List,MATCH(dms_TradingName,dms_TradingName_List)) -> 19078551685
B18: Business address | C18: Address 1 | E18: Level 6, 400 King William St
D19: Address 2
C20: Suburb | E20: ADELAIDE
D21: State | E21: =INDEX(dms_State_List,MATCH(dms_TradingName,dms_TradingName_List)) -> SA | F21: p/code | G21: =INDEX(dms_PostCode_List,MATCH(dms_TradingName,dms_TradingName_List)) -> 5000
B23: Postal address | C23: Address 1
D24: Address 2
C25: Suburb
D26: State | F26: p/code | G26: =INDEX(dms_PPostCode_List,MATCH(dms_TradingName,dms_TradingName_List)) -> 0
B29: Contact name/s | C29: Craig de Laine
B30: Contact phone/s | C30: 08 8418 1129
B31: Contact email address/s | C31: craig.delaine@agnl.com.au
B33: REGULATORY CONTROL PERIODS
B35: Forthcoming regulatory control period | C35: 2018 | D35: =dms_FRCP_y2 -> 2019 | E35: =dms_FRCP_y3 -> 2020 | F35: =dms_FRCP_y4 -> 2021 | G35: =dms_FRCP_y5 -> 2022 | H35: =dms_FRCP_y6 -> 2023 | I35: =dms_FRCP_y7 -> 2024 | J35: =dms_FRCP_y8 -> 2025 | K35: =dms_FRCP_y9 -> 2026 | L35: =dms_FRCP_y10 -> 2027
B38: Current regulatory control period | C38: =dms_CRCP_FirstYear_Result -> 2013 | D38: =IF(dms_RPT="financial",VALUE(LEFT(CRCP_y1,4)+1)&"-"&TEXT(MID(CRCP_y1,3,2)+2,"00"),VALUE(LEFT(CRCP_y1,4)+1)) -> 2014 | E38: =IF(dms_RPT="financial",VALUE(LEFT(CRCP_y2,4)+1)&"-"&TEXT(VALUE(MID(CRCP_y2,3,2)+2),"00"),VALUE(LEFT(CRCP_y2,4)+1)) -> 2015 | F38: =IF(dms_RPT="financial",VALUE(LEFT(CRCP_y3,4)+1)&"-"&TEXT(VALUE(MID(CRCP_y3,3,2)+2),"00"),VALUE(LEFT(CRCP_y3,4)+1)) -> 2016 | G38: =IF(dms_RPT="financial",VALUE(LEFT(CRCP_y4,4)+1)&"-"&TEXT(VALUE(MID(CRCP_y4,3,2)+2),"00"),VALUE(LEFT(CRCP_y4,4)+1)) -> 2017 | H38: =IF(dms_RPT="financial",VALUE(LEFT(CRCP_y5,4)+1)&"-"&TEXT(VALUE(MID(CRCP_y5,3,2)+2),"00"),VALUE(LEFT(CRCP_y5,4)+1)) -> 2018 | I38: =IF(dms_RPT="financial",VALUE(LEFT(CRCP_y6,4)+1)&"-"&TEXT(VALUE(MID(CRCP_y6,3,2)+2),"00"),VALUE(LEFT(CRCP_y6,4)+1)) -> 2019 | J38: =IF(dms_RPT="financial",VALUE(LEFT(CRCP_y7,4)+1)&"-"&TEXT(VALUE(MID(CRCP_y7,3,2)+2),"00"),VALUE(LEFT(CRCP_y7,4)+1)) -> 2020 | K38: =IF(dms_RPT="financial",VALUE(LEFT(CRCP_y8,4)+1)&"-"&TEXT(VALUE(MID(CRCP_y8,3,2)+2),"00"),VALUE(LEFT(CRCP_y8,4)+1)) -> 2021 | L38: =IF(dms_RPT="financial",VALUE(LEFT(CRCP_y9,4)+1)&"-"&TEXT(VALUE(MID(CRCP_y9,3,2)+2),"00"),VALUE(LEFT(CRCP_y9,4)+1)) -> 2022
B41: Previous regulatory control period | C41: =IF(dms_RPT="financial",VALUE(LEFT(PRCP_y2,4)-1)&"-"&TEXT(VALUE(MID(PRCP_y2,3,2)),"00"),VALUE(LEFT(PRCP_y2,4)-1)) -> 2008 | D41: =IF(dms_RPT="financial",VALUE(LEFT(PRCP_y3,4)-1)&"-"&TEXT(VALUE(MID(PRCP_y3,3,2)),"00"),VALUE(LEFT(PRCP_y3,4)-1)) -> 2009 | E41: =IF(dms_RPT="financial",VALUE(LEFT(PRCP_y4,4)-1)&"-"&TEXT(VALUE(MID(PRCP_y4,3,2)),"00"),VALUE(LEFT(PRCP_y4,4)-1)) -> 2010 | F41: =IF(dms_RPT="financial",VALUE(LEFT(PRCP_y5,4)-1)&"-"&TEXT(VALUE(RIGHT(PRCP_y5,2)-1),"00"),VALUE(LEFT(PRCP_y5,4)-1)) -> 2011 | G41: =IF(dms_RPT="financial",VALUE(LEFT(CRCP_y1,4)-1)&"-"&TEXT(VALUE(RIGHT(CRCP_y1,2)-1),"00"),VALUE(LEFT(CRCP_y1,4)-1)) -> 2012
B44: Current regulatory year | C44: 2016-17 | D44: CRY
C47: DELETE NR 'CRY' IF NOT AN ANNUAL RIN (EB, CA , ARR)
C48: APPLY NR 'CRY' IF AN ANNUAL RIN (EB, CA , ARR) - including multi year annual RINs eg. Recast CA. EB
B50: Source | C50: Regulatory proposal | E50: Please select the correct submission type from the dropdown list.
B51: Data quality (actual, estimate, public, consolidated) | C51: Consolidated
B52: Amended RIN submission - amendment reason
B53: Submission Date | C53: 2016-12-22 | D53: dms_SubmissionDate | E53: Please enter date this file submitted to AER (dd/mm/yyyy)
B54: EBSS - First application of scheme in forthcoming period? | C54: Yes
B55: Sector | C55: =INDEX(dms_Sector_List,MATCH(dms_TradingName,dms_TradingName_List)) -> Gas | D55: dms_Sector | E55: =INDEX(dms_Sector_List,MATCH(dms_TradingName,dms_TradingName_List))
B56: Segment | C56: =INDEX(dms_Segment_List,MATCH(dms_TradingName,dms_TradingName_List)) -> Distribution | D56: dms_Segment | E56: =INDEX(dms_Segment_List,MATCH(dms_TradingName,dms_TradingName_List))
B57: Regulatory Year Ending | C57: =IF(dms_MultiYear_Flag=1,LEFT(dms_Specified_FinalYear,2)&RIGHT(dms_Specified_FinalYear,2),INDEX(dms_RYE_Formula_Result,MATCH(dms_Model,dms_Model_List))) -> 2022 | D57: dms_RYE | E57: =IF(dms_MultiYear_Flag=1,LEFT(dms_Specified_FinalYear,2)&RIGHT(dms_Specified_FinalYear,2),INDEX(dms_RYE_Formula_Result,MATCH(dms_Model,dms_Model_List)))
B58: Reporting Period Type | C58: =INDEX(dms_RPT_List,MATCH(dms_TradingName,dms_TradingName_List)) -> Calendar | D58: dms_RPT | E58: =INDEX(dms_RPT_List,MATCH(dms_TradingName,dms_TradingName_List))
B59: Model or RIN Type | C59: Reset | D59: dms_Model | E59: Drop down selection
B60: Security Classification | C60: Public | D60: dms_Classification | E60: Always Public
B61: Template - version no. | C61: 5 | D61: dms_TemplateNumber
B62: Dollar $ real month | C62: =INDEX(dms_RPTMonth_List,MATCH(dms_TradingName,dms_TradingName_List)) -> December | D62: dms_RPTMonth | E62: =INDEX(dms_RPTMonth_List,MATCH(dms_TradingName,dms_TradingName_List))
B63: Dollar $ real (the last month before the FRCP_y1) | C63: =CONCATENATE(dms_RPTMonth)&" "&VALUE((LEFT(dms_CRCP_FinalYear_Result,2)&RIGHT(dms_CRCP_FinalYear_Result,2))) -> December 2017 | D63: dms_DollarReal | E63: =IF(SUM(dms_SingleYear_Model)>0,CONCATENATE(dms_RPTMonth)&" "&VALUE((LEFT(CRY,2))&RIGHT(CRY,2)),CONCATENATE(dms_RPTMonth)&" "&VALUE((LEFT(dms_CRCP_FinalYear_Result,2)&RIGHT(dms_CRCP_FinalYear_Result,2))))
B64: Form of control | C64: =INDEX(dms_FormControl_List,MATCH(dms_TradingName,dms_TradingName_List)) -> Weighted average price cap | D64: dms_FormControl | E64: =INDEX(dms_FormControl_List,MATCH(dms_TradingName,dms_TradingName_List))
B65: RIN response - version no. | C65: 1 | D65: dms_RINversion
B66: Jurisdiction | C66: =INDEX(dms_JurisdictionList,MATCH(dms_TradingName,dms_TradingName_List)) -> Vic | D66: dms_Jurisdiction | E66: =INDEX(dms_JurisdictionList,MATCH(dms_TradingName,dms_TradingName_List))
B67: Backcast Multiyear EB, CA or ARR? | C67: 0 | D67: dms_MultiYear_Flag | E67: 1=y, 0-n
C68: 2013 | D68: dms_Specified_FinalYear | E68: The result here is returned to dms_CRCP_FinalYear_Result if dms_MultiYear_Flag is set to 1
B69: Single Year Model T/F | C69: =IF(dms_Model="EB",1,0) -> 0 | D69: dms_EB
C70: =IF(dms_Model="CA",1,0) -> 0 | D70: dms_CA | E70: =dms_SingleYear_Model
C71: =IF(dms_Model="ARR",1,0) -> 0 | D71: dms_ARR
B72: Single Year Final Year Reference | C72: CRY | D72: dms_SingleYear_FinalYear_Ref | E72: This is the reference for EB, CA & ARR RINs
B73: Single Year Final Year Result | C73: =INDIRECT(dms_SingleYear_FinalYear_Ref) ->  | D73: dms_SingleYear_FinalYear_Result | E73: =INDIRECT(dms_SingleYear_FinalYear_Ref) | I73: Formula errors OK
B74: FRCP length in years | C74: =INDEX(dms_FRCPlength_List,MATCH(dms_TradingName,dms_TradingName_List)) -> 5 | D74: dms_FRCPlength_Num | E74: =INDEX(dms_FRCPlength_List,MATCH(dms_TradingName,dms_TradingName_List))
B75: Multi Year Final Year Reference | C75: =INDEX(dms_FinalYear_List,MATCH(dms_FRCPlength_Num,dms_FRCPlength_Num_List)) -> dms_FRCP_y5 | D75: dms_MultiYear_FinalYear_Ref | E75: =INDEX(dms_FinalYear_List,MATCH(dms_FRCPlength_Num,dms_FRCPlength_Num_List))
B76: Multi Year Final Year Result | C76: =IF(dms_MultiYear_Flag=0,INDIRECT(dms_MultiYear_FinalYear_Ref),dms_Specified_FinalYear) -> 2022 | D76: dms_MultiYear_FinalYear_Result | E76: =IF(dms_MultiYear_Flag=0,INDIRECT(dms_MultiYear_FinalYear_Ref),dms_Specified_FinalYear) | I76: Formula errors OK
B77: CRCP length in years | C77: =INDEX(dms_CRCPlength_List,MATCH(dms_TradingName,dms_TradingName_List)) -> 5 | D77: dms_CRCPlength_Num | E77: =INDEX(dms_CRCPlength_List,MATCH(dms_TradingName,dms_TradingName_List))
B78: CRCP Final Year Reference | C78: =INDEX(dms_CFinalYear_List,MATCH(dms_CRCPlength_Num,dms_CRCPlength_Num_List)) -> CRCP_y5 | D78: dms_CRCP_FinalYear_Ref | E78: =INDEX(dms_CFinalYear_List,MATCH(dms_CRCPlength_Num,dms_CRCPlength_Num_List))
B79: CRCP First Year Result | C79: =INDEX(dms_CRCP_years,MATCH(dms_CRCPlength_Num,dms_CRCP_index)) -> 2013 | D79: dms_CRCP_FirstYear_Result | E79: =INDEX(dms_CRCP_years,MATCH(dms_CRCPlength_Num,dms_CRCP_index))
B80: CRCP Final Year Result | C80: =IF(dms_MultiYear_Flag=0,(IF(SUM(dms_SingleYear_Model)>0,CRY,dms_CRCP_yZ)),dms_Specified_FinalYear) -> 2017 | D80: dms_CRCP_FinalYear_Result | E80: =IF(dms_MultiYear_Flag=0,(IF(SUM(dms_SingleYear_Model)>0,CRY,dms_CRCP_yZ)),dms_Specified_FinalYear)
B81: Table 6.6.3 - Public lighting repair - no. business days | C81: =INDEX(dms_663_List,MATCH(dms_TradingName,dms_TradingName_List)) -> x | D81: dms_663
B82: Distribution Determination Reference | C82: =INDEX(dms_DeterminationRef_List,MATCH(dms_TradingName,dms_TradingName_List)) -> 0
B83: Backcast templates only - unit of measure | C83: $0s | D83: dms_Backcast_UOM | E83: If the cover sheet is for Backcast data ensure to apply dms_Backcast_UOM named range to this field. Otherwise, do not apply this named range.
B84: EB/CA Unit of Measure for Monetary Values | C84: $0s | D84: dms_dollar_nom_UOM | E84: If the cover sheet is attached to an EB files make sure this field is set
B86: discard this record? | C86: NO | D86: dms_DISCARD | E86: If record is to be discarded from DB set this flag to YES
B88: USES NAMED RANGES FLAG | C88: yes | D88: dms_Defined_Names_Used

Sheet 1. CPI
C1: =IF(dms_DataQuality="backcast",INDEX(dms_Worksheet_List,MATCH(dms_Model,dms_Model_List))&" BACKCAST",INDEX(dms_Worksheet_List,MATCH(dms_Model,dms_Model_List))) -> REGULATORY REPORTING STATEMENT
C2: =INDEX(dms_TradingNameFull_List,MATCH(dms_TradingName,dms_TradingName_List)) -> Australian Gas Networks Limited (reporting data for Victoria)
C3: =IF(SUM(dms_SingleYear_Model)>0,CRY,CONCATENATE(FRCP_y1," to ",dms_MultiYear_FinalYear_Result)) -> 2018 to 2022
C4: 1. CPI ESCALATION
C7: Instructions
C8: SERVICE PROVIDERS ARE NOT TO MAKE ANY CHANGES TO THIS TEMPLATE EXCEPT AS INDICATED
C10: Service providers should insert inflation forecasts (yellow cells)
C12: Table 1.1 provides CPI index figures used to calculate CPI escalators to be used in the RIN
C14: Tables 1.2 provide the CPI escalators for converting nominal values to real values.
C17: Table 1 - CPI ESCALATION
C18: Table 1.1 - CPI (actual/estimated)
D21: CPI Index | E21: ABS series ID A2325846C, 25/1/12 release | F21: ABS series ID A2325846C, 22/1/14 release | G21: Annual CPI
C22: Actual | D22: 1997-12-01 | E22: 120 | F22: 66.8
C23: Actual | D23: 1998-12-01 | E23: 121.9 | F23: 67.8 | G23: =E23/E22-1 -> 0.01583333333
C24: Actual | D24: 1999-12-01 | E24: 124.1 | F24: 69.1 | G24: 0.01804757998
C25: Actual | D25: 2000-12-01 | E25: 131.3 | F25: 73.1 | G25: 0.05801772764
C26: Actual | D26: 2001-12-01 | E26: 135.4 | F26: 75.4 | G26: 0.03122619954
C27: Actual | D27: 2002-12-01 | E27: 139.5 | F27: 77.6 | G27: 0.03028064993
C28: Actual | D28: 2003-12-01 | E28: 142.8 | F28: 79.5 | G28: 0.02365591398
C29: Actual | D29: 2004-12-01 | E29: 146.5 | F29: 81.5 | G29: 0.02591036415
C30: Actual | D30: 2005-12-01 | E30: 150.6 | F30: 83.8 | G30: 0.02798634812
C31: Actual | D31: 2006-12-01 | E31: 155.5 | F31: 86.6 | G31: 0.03253652058
C32: Actual | D32: 2007-12-01 | E32: 160.1 | F32: 89.1 | G32: 0.02958199357
C33: Actual | D33: 2008-12-01 | E33: 166 | F33: 92.4 | G33: 0.03685196752
C34: Actual | D34: 2009-12-01 | E34: 169.5 | F34: 94.3 | G34: 0.02108433735
C35: Actual | D35: 2010-12-01 | E35: 174 | F35: 96.9 | G35: 0.02654867257
C36: Actual | D36: 2011-12-01 | E36: 179.4 | F36: 99.8 | G36: 0.03103448276
C37: Actual | D37: 2012-12-01 | F37: 102 | G37: =F37/F36-1 -> 0.02204408818
C38: Actual | D38: 2013-12-01 | F38: 104.8 | G38: =F38/F37-1 -> 0.02745098039
C39: Actual | D39: 2014-12-01 | F39: 106.6 | G39: =F39/F38-1 -> 0.01717557252
C40: Actual | D40: 2015-12-01 | F40: 108.4 | G40: =F40/F39-1 -> 0.01688555347
C41: Estimated | D41: 2016-12-01
C42: Estimated | D42: 2017-12-01
C43: Estimated | D43: 2018-12-01
C44: Estimated | D44: 2019-12-01
C45: Estimated | D45: 2020-12-01
C47: Table 1.2 - CPI p.a.
E48: 1999-00 | F48: 2000-01 | G48: 2001-02 | H48: 2002-03 | I48: 2003-04 | J48: 2004-05 | K48: 2005-06 | L48: 2006-07 | M48: 2007-08 | N48: 2008-09 | O48: 2009-10 | P48: 2010-11 | Q48: 2011-12 | R48: 2012-13 | S48: 2013-14 | T48: 2014-15 | U48: 2015-16 | V48: 2016-17 | W48: 2017-18 | X48: 2018-19 | Y48: 2019-20
E49: =$G24 -> 0.01804757998 | F49: =$G25 -> 0.05801772764 | G49: =$G26 -> 0.03122619954 | H49: =$G27 -> 0.03028064993 | I49: =$G28 -> 0.02365591398 | J49: =$G29 -> 0.02591036415 | K49: =$G30 -> 0.02798634812 | L49: =$G31 -> 0.03253652058 | M49: =$G32 -> 0.02958199357 | N49: =$G33 -> 0.03685196752 | O49: =$G34 -> 0.02108433735 | P49: =$G35 -> 0.02654867257 | Q49: =$G36 -> 0.03103448276 | R49: =$G37 -> 0.02204408818 | S49: =$G38 -> 0.02745098039 | T49: =$G39 -> 0.01717557252 | U49: =$G40 -> 0.01688555347 | V49: =$G41 -> 0 | W49: =$G42 -> 0 | X49: =$G43 -> 0 | Y49: =$G44 -> 0
C50: =CONCATENATE("Escalator : Nominal $ to Real $ ", dms_DollarReal) -> Escalator : Nominal $ to Real $ December 2017 | E50: =F50*(1+E49) -> 1.545430484 | F50: =G50*(1+F49) -> 1.51803365 | G50: 1.434790373 | H50: 1.391343988 | I50: 1.350451441 | J50: 1.319243529 | K50: 1.285924751 | L50: 1.250916175 | M50: 1.211498238 | N50: 1.176689419 | O50: 1.134867325 | P50: 1.111433486 | Q50: 1.082689517 | R50: 1.0501002 | S50: =T50*(1+S49) -> 1.02745098 | T50: 1 | U50: =T50/(1+T49) -> 0.9831144465 | V50: =U50/(1+U49) -> 0.9667896679 | W50: =V50/(1+V49) -> 0.9667896679 | X50: =W50/(1+W49) -> 0.9667896679 | Y50: =X50/(1+X49) -> 0.9667896679
C52: Example
C53: Costs ($nominal) | E53: 75 | F53: 76 | G53: 77 | H53: 78 | I53: 79 | J53: 80 | K53: 80 | L53: 80 | M53: 80 | N53: 80 | O53: 80 | P53: 80 | Q53: 123 | R53: 70 | S53: 120 | T53: 200 | U53: 145 | V53: 150 | W53: 100 | X53: 55 | Y53: 135
C54: Costs (real $2015) | E54: =E53*E$50 -> 115.9072863 | F54: =F53*F$50 -> 115.3705574 | G54: 110.4788587 | H54: 108.5248311 | I54: 106.6856638 | J54: 105.5394823 | K54: 102.87398 | L54: 100.073294 | M54: 96.91985901 | N54: 94.13515351 | O54: 90.789386 | P54: 88.91467892 | Q54: 133.1708106 | R54: 73.50701403 | S54: 123.2941176 | T54: 200 | U54: 142.5515947 | V54: 145.0184502 | W54: 96.67896679 | X54: 53.17343173 | Y54: 130.5166052

Sheet 2. Escalators
B1: =IF(dms_DataQuality="backcast",INDEX(dms_Worksheet_List,MATCH(dms_Model,dms_Model_List))&" BACKCAST",INDEX(dms_Worksheet_List,MATCH(dms_Model,dms_Model_List))) -> REGULATORY REPORTING STATEMENT
B2: =INDEX(dms_TradingNameFull_List,MATCH(dms_TradingName,dms_TradingName_List)) -> Australian Gas Networks Limited (reporting data for Victoria)
B3: =IF(SUM(dms_SingleYear_Model)>0,CRY,CONCATENATE(FRCP_y1," to ",dms_MultiYear_FinalYear_Result)) -> 2018 to 2022 | C3: 2016-2021
B4: 2. REAL COST ESCALATORS
B7: Instructions This template asks for real cost escalators used to escalate unit costs. Please identify the unit used in this sheet.
B8: =CONCATENATE("In Tables 2.1 and 2.2 enter the current access arrangement period data and, subject to cl.6.1 of the ", dms_TradingName, ", enter the next access arrangement period data via link from the ", dms_TradingName, " capex model.") -> In Tables 2.1 and 2.2 enter the current access arrangement period data and, subject to cl.6.1 of the AGN (Victoria), enter the next access arrangement period data via link from the AGN (Victoria) capex model.
B9: =CONCATENATE("If linked/adjustable escalation is not provided in the ", dms_TradingName, " capex model, ensure the escalation in table 2.2 is linked through to all capex categories/subcategories and projects.") -> If linked/adjustable escalation is not provided in the AGN (Victoria) capex model, ensure the escalation in table 2.2 is linked through to all capex categories/subcategories and projects.
B11: Table 2.1 - Real cost escalators ( % )
C12: Current access arrangement | H12: Next access arrangement
C13: 0
C14: Approved | H14: Forecast
C15: =CRCP_y1 -> 2013 | D15: =CRCP_y2 -> 2014 | E15: =CRCP_y3 -> 2015 | F15: =CRCP_y4 -> 2016 | G15: =CRCP_y5 -> 2017 | H15: =FRCP_y1 -> 2018 | I15: =FRCP_y2 -> 2019 | J15: =FRCP_y3 -> 2020 | K15: =FRCP_y4 -> 2021 | L15: =FRCP_y5 -> 2022
B16: Labour (Cumulative) | H16: 0.008049579634 | I16: 0.009181179485 | J16: 0.01130619052 | K16: 0.01382402704 | L16: 0.01540429647
B17: Materials (Cumulative) | H17: 0 | I17: 0 | J17: 0 | K17: 0 | L17: 0
B18: EGW Labour | C18: 0.009 | D18: 0.005 | E18: 0.01 | F18: 0.01 | G18: 0.009
B19: General Labour | C19: 0.009 | D19: 0.005 | E19: 0.01 | F19: 0.01 | G19: 0.009
B20: Network Materials | C20: 0 | D20: 0 | E20: 0 | F20: 0 | G20: 0
B21: General Materials | C21: 0 | D21: 0 | E21: 0 | F21: 0 | G21: 0 | X21: Variance (actual vs approved) % | AD21: Variance (actual vs approved) %
C25: =SUM(C16:C24) -> 0.018 | D25: 0.01 | E25: 0.02 | F25: 0.02 | G25: =SUM(G16:G24) -> 0.018 | H25: 0.008049579634 | I25: 0.009181179485 | J25: 0.01130619052 | K25: 0.01382402704 | L25: 0.01540429647
B26: Source(s) of data: | C26: Approved real cost escalators have been sourced from the AER's Final Decision models. Proposed real cost escalators have been sourced from Opex & Capex Models (Attachments 7.4 and 8.8 to our AA Proposal).
B28: Table 2.2 - Input / Cost Mix (Weights)
C29: Forecast | L29: Forecast
C30: 0 | L30: Cumulative Factor
C31: Labour | E31: Materials
L32: 2012-13 | M32: 2013-14 | N32: 2014-15 | O32: 2016-17 | P32: 2017-18 | Q32: 2018-19 | R32: 2019-20 | S32: 2020-21
B33: All Opex & Capex Categories | C33: 0.62 | E33: 0.38 | L33: 1 | M33: 1 | N33: 1.001727278 | O33: 1.006731921 | P33: 1.012486059 | Q33: 1.019637067 | R33: 1.028479427 | S33: 1.038468796
B58: Source(s) of data: | C58: Opex & Capex Models (Attachments 7.4 and 8.8 to our AA Proposal).

Sheet 4. Connections market expansn
B1: =IF(dms_DataQuality="backcast",INDEX(dms_Worksheet_List,MATCH(dms_Model,dms_Model_List))&" BACKCAST",INDEX(dms_Worksheet_List,MATCH(dms_Model,dms_Model_List))) -> REGULATORY REPORTING STATEMENT
B2: =INDEX(dms_TradingNameFull_List,MATCH(dms_TradingName,dms_TradingName_List)) -> Australian Gas Networks Limited (reporting data for Victoria)
B3: =IF(SUM(dms_SingleYear_Model)>0,CRY,CONCATENATE(FRCP_y1," to ",dms_MultiYear_FinalYear_Result)) -> 2018 to 2022 | C3: =CONCATENATE(LEFT(FRCP_y1,4),"-",LEFT(FRCP_y5,2),RIGHT(FRCP_y5,2)) -> 2018-2022
B4: 4. NEW CUSTOMER CONNECTIONS / GROWTH CAPTIAL EXPENDITURE
B7: Instructions This template asks for information relating to new connections/ market growth capital expenditure. This does not include expenditure relating to network capacity expansion, which should be included at tab 5 relating to augmentation.
B8: In table 4.1.1 AGN is to insert each residential and industrial and commerical type of new connection. This may require the insertion of new lines in the table.
B9: =CONCATENATE("As set out in cl.6.1 of the ",dms_TradingName," RIN, for tables 4.1 to 4.3, where the requested data is captured in the ", dms_TradingName," capex model it is not required to be reentered in the RIN template tables. If the requested data has not been provided in the ",dms_TradingName," RIN please enter into the tables. This may require the insertion of new lines in each table.") -> As set out in cl.6.1 of the AGN (Victoria) RIN, for tables 4.1 to 4.3, where the requested data is captured in the AGN (Victoria) capex model it is not required to be reentered in the RIN template tables. If the requested data has not been provided in the AGN (Victoria) RIN please enter into the tables. This may require the insertion of new lines in each table.
B10: Reported expenditure is to be entered EXCLUSIVE of any profit margins or management fees paid pursuant to arrangements or contracts with any related parties. Include any related party margins or management fees in the separate 'Related party margin' line item.
B11: =CONCATENATE("Subject to cl.6.1 of the ", dms_TradingName, " RIN, where linked/adjustable overhead expenditure and related party margin expenditure is not provided in the ", dms_TradingName, " capex model, overhead expenditure and related party margin expenditure should be linked to allocations derived in tabs '14. Overheads' and '15. Related party transactions'.") -> Subject to cl.6.1 of the AGN (Victoria) RIN, where linked/adjustable overhead expenditure and related party margin expenditure is not provided in the AGN (Victoria) capex model, overhead expenditure and related party margin expenditure should be linked to allocations derived in tabs '14. Overheads' and '15. Related party transactions'.
B12: Capital expenditure amounts entered should be GROSS of customer contributions. There is a separate line item for customer contributions from which net capital expenditure is derived.
B13: If the expenditure for the connection is not split by the line items specified, provide assumptions on how the expenditure is split between line items. This can be provided as a note to this template or in the written RIN submission.
B16: TABLE 4 - NEW CUSTOMER CONNECTIONS / MARKET EXPANSION CAPITAL EXPENDITURE
B17: TABLE 4.1 - NEW CUSTOMER CONNECTIONS
C18: Previous access arrangement period | H18: Current access arrangement period | M18: Next access arrangement period | S18: Previous access arrangement period | Y18: Current access arrangement period
C19: 0's | S19: 0's
C20: Actual | K20: Forecast | S20: Approved
C21: =PRCP -> 2008 | D21: 2009 | E21: 2010 | F21: 2011 | G21: 2012 | H21: =CRCP_y1 -> 2013 | I21: =CRCP_y2 -> 2014 | J21: =CRCP_y3 -> 2015 | K21: =CRCP_y4 -> 2016 | L21: =CRCP_y5 -> 2017 | M21: =FRCP -> 2018 | N21: 2019 | O21: 2020 | P21: 2021 | Q21: 2022 | S21: =PRCP -> 2008 | T21: 2009 | U21: 2010 | V21: 2011 | W21: 2012 | X21: Variance (actual vs approved) % | Y21: =CRCP_y1 -> 2013 | Z21: =CRCP_y2 -> 2014 | AA21: =CRCP_y3 -> 2015 | AB21: =CRCP_y4 -> 2016 | AC21: =CRCP_y5 -> 2017 | AD21: Variance (actual vs approved) %
B23: Table 4.1.1 - Number of new customer connections
B24: Electricity to gas | C24: 13657 | D24: 12364 | E24: 17233 | F24: 17401 | G24: 13706 | H24: 762 | I24: 551 | J24: 629 | K24: 832.1379425 | L24: 845.1154128 | M24: 806.4695133 | N24: 780.5223333 | O24: 790.206125 | P24: 803.8985276 | Q24: 817.5949489 | Y24: 1064.475417 | Z24: 1051.345682 | AA24: 1040.792397 | AB24: 1022.690384 | AC24: 1045.300369 | AD24: =SUM(H24:L24)/SUM(Y24:AC24)-1 -> -0.3072674633
B25: New homes | H25: 10038 | I25: 10950 | J25: 12915 | K25: 12247.13355 | L25: 12438.13171 | M25: 11869.35402 | N25: 11487.47193 | O25: 11629.9948 | P25: 11831.5151 | Q25: 12033.09454 | S25: 13247 | T25: 14084 | U25: 14459 | V25: 14334 | W25: 13122 | X25: =SUM(C25:G25)/SUM(S25:W25)-1 -> -1 | Y25: 12693.77887 | Z25: 12537.20791 | AA25: 12411.36087 | AB25: 12195.49591 | AC25: 12465.11806 | AD25: =SUM(H25:L25)/SUM(Y25:AC25)-1 -> -0.05962311061
B26: New medium density | H26: 2365 | I26: 2384 | J26: 1357 | K26: 2731.625796 | L26: 2774.226417 | M26: 2647.365075 | N26: 2562.189309 | O26: 2593.977903 | P26: 2638.925404 | Q26: 2683.886096 | X26: =SUM(C26:G26)/SUM(S26:W26)-1 -> 
B27: I&C tariff | C27: 361 | D27: 454 | E27: 319 | F27: 362 | G27: 379 | H27: 348 | I27: 264 | J27: 266 | K27: 327.6899271 | L27: 329.623489 | M27: 331.5702728 | N27: 333.5304105 | O27: 335.5040359 | P27: 337.4912848 | Q27: 339.4922951 | S27: 707 | T27: 704 | U27: 816 | V27: 869 | W27: 854 | X27: =SUM(C27:G27)/SUM(S27:W27)-1 -> -0.5253164557 | Y27: 228.6682491 | Z27: 437.1132091 | AA27: 434.3872461 | AB27: 371.3592695 | AC27: 449.5827271 | AD27: =SUM(H27:L27)/SUM(Y27:AC27)-1 -> -0.2008199135
B28: I&C contract | H28: 0 | I28: 0 | J28: 0 | K28: 0 | L28: 0 | M28: 0 | N28: 0 | O28: 0 | P28: 0 | Q28: 0
B29: Total number of new connections | C29: =SUM(C24:C28) -> 14018 | D29: =SUM(D24:D28) -> 12818 | E29: 17552 | F29: 17763 | G29: 14085 | H29: 13513 | I29: 14149 | J29: 15167 | K29: 16138.58722 | L29: 16387.09702 | M29: 15654.75888 | N29: 15163.71398 | O29: 15349.68286 | P29: 15611.83031 | Q29: 15874.06788 | S29: =SUM(S24:S28) -> 13954 | T29: =SUM(T24:T28) -> 14788 | U29: 15275 | V29: 15203 | W29: 13976 | X29: =SUM(C29:G29)/SUM(S29:W29)-1 -> 0.04153232417 | Y29: =SUM(Y24:Y28) -> 13986.92254 | Z29: =SUM(Z24:Z28) -> 14025.6668 | AA29: =SUM(AA24:AA28) -> 13886.54052 | AB29: =SUM(AB24:AB28) -> 13589.54557 | AC29: =SUM(AC24:AC28) -> 13960.00116 | AD29: 0.08504132767
B30: Total number of new connections (from tab 27 - Customer numbers)
B31: Difference | C31: =C29-C30 -> 14018 | D31: 12818 | E31: 17552 | F31: 17763 | G31: 14085 | H31: 13513 | I31: 14149 | J31: 15167 | K31: 16138.58722 | L31: 16387.09702 | M31: 15654.75888 | N31: 15163.71398 | O31: 15349.68286 | P31: 15611.83031 | Q31: 15874.06788 | S31: =S29-S30 -> 13954 | T31: 14788 | U31: 15275 | V31: 15203 | W31: 13976 | X31: 0.04153232417 | Y31: =Y29-Y30 -> 13986.92254 | Z31: =Z29-Z30 -> 14025.6668 | AA31: =AA29-AA30 -> 13886.54052 | AB31: =AB29-AB30 -> 13589.54557 | AC31: =AC29-AC30 -> 13960.00116 | AD31: 0.08504132767
B32: Source(s) of data: | C32: 2008-2012 ESC Regulatory Accounting Statements - Statement 4b "Residential Connections and Commercial/industrial connections" - Quantity | H32: 2013-2015 AER Annual Reporting Templates - Template 2.2 Connections - Residential Tariff V | K32: Historic data sourced from Oracle Financials BM17 report. Forecast data sourced from capex model submitted as Attachment 8.8 to the AAI. | S32: Review of Gas Access Arrangements 2008 - 2012 - Variations to the Access Arrangements of Envestra (Victoria) and Envestra (Albury): ESC Appeal Panel Decisions E1 and E2 of 2008 - 25 March 2009 | Y32: Source: Envestra final submission capex file 2013 - 2017 'Attachment E - Capital Expenditure Model'
B34: Table 4.1.2 - Volume of mains / services / meters per connection
B35: Number of mains metres per connection | C35: [C-I-C] | D35: [C-I-C] | E35: [C-I-C] | F35: [C-I-C] | G35: [C-I-C] | H35: [C-I-C] | I35: [C-I-C] | J35: [C-I-C] | K35: [C-I-C] | L35: [C-I-C] | M35: [C-I-C] | N35: [C-I-C] | O35: [C-I-C] | P35: [C-I-C] | Q35: [C-I-C]
B36: =B24 -> Electricity to gas | C36: [C-I-C] | D36: [C-I-C] | E36: [C-I-C] | F36: [C-I-C] | G36: [C-I-C] | H36: [C-I-C] | I36: [C-I-C] | J36: [C-I-C] | K36: [C-I-C] | L36: [C-I-C] | M36: [C-I-C] | N36: [C-I-C] | O36: [C-I-C] | P36: [C-I-C] | Q36: [C-I-C] | X36: =SUM(C36:G36)/SUM(S36:W36)-1 ->  | AD36: =SUM(H36:L36)/SUM(Y36:AC36)-1 -> 
B37: =B25 -> New homes | C37: [C-I-C] | D37: [C-I-C] | E37: [C-I-C] | F37: [C-I-C] | G37: [C-I-C] | H37: [C-I-C] | I37: [C-I-C] | J37: [C-I-C] | K37: [C-I-C] | L37: [C-I-C] | M37: [C-I-C] | N37: [C-I-C] | O37: [C-I-C] | P37: [C-I-C] | Q37: [C-I-C] | X37: =SUM(C37:G37)/SUM(S37:W37)-1 ->  | Y37: 14.20819792 | Z37: 12.64597434 | AA37: 11.03191415 | AB37: 6.799344327 | AC37: 6.661525729 | AD37: =SUM(H37:L37)/SUM(Y37:AC37)-1 -> -1
B38: New medium density | C38: [C-I-C] | D38: [C-I-C] | E38: [C-I-C] | F38: [C-I-C] | G38: [C-I-C] | H38: [C-I-C] | I38: [C-I-C] | J38: [C-I-C] | K38: [C-I-C] | L38: [C-I-C] | M38: [C-I-C] | N38: [C-I-C] | O38: [C-I-C] | P38: [C-I-C] | Q38: [C-I-C] | X38: =SUM(C38:G38)/SUM(S38:W38)-1 ->  | AD38: =SUM(H38:L38)/SUM(Y38:AC38)-1 -> 
B39: I&C tariff | C39: [C-I-C] | D39: [C-I-C] | E39: [C-I-C] | F39: [C-I-C] | G39: [C-I-C] | H39: [C-I-C] | I39: [C-I-C] | J39: [C-I-C] | K39: [C-I-C] | L39: [C-I-C] | M39: [C-I-C] | N39: [C-I-C] | O39: [C-I-C] | P39: [C-I-C] | Q39: [C-I-C] | X39: =SUM(C39:G39)/SUM(S39:W39)-1 ->  | AD39: =SUM(H39:L39)/SUM(Y39:AC39)-1 -> 
B40: I&C contract | C40: [C-I-C] | D40: [C-I-C] | E40: [C-I-C] | F40: [C-I-C] | G40: [C-I-C] | H40: [C-I-C] | I40: [C-I-C] | J40: [C-I-C] | K40: [C-I-C] | L40: [C-I-C] | M40: [C-I-C] | N40: [C-I-C] | O40: [C-I-C] | P40: [C-I-C] | Q40: [C-I-C] | X40: =SUM(C40:G40)/SUM(S40:W40)-1 ->  | AD40: =SUM(H40:L40)/SUM(Y40:AC40)-1 -> 
B41: Number of inlets/services per connection | C41: [C-I-C] | D41: [C-I-C] | E41: [C-I-C] | F41: [C-I-C] | G41: [C-I-C] | H41: [C-I-C] | I41: [C-I-C] | J41: [C-I-C] | K41: [C-I-C] | L41: [C-I-C] | M41: [C-I-C] | N41: [C-I-C] | O41: [C-I-C] | P41: [C-I-C] | Q41: [C-I-C]
B42: =B24 -> Electricity to gas | C42: [C-I-C] | D42: [C-I-C] | E42: [C-I-C] | F42: [C-I-C] | G42: [C-I-C] | H42: [C-I-C] | I42: [C-I-C] | J42: [C-I-C] | K42: [C-I-C] | L42: [C-I-C] | M42: [C-I-C] | N42: [C-I-C] | O42: [C-I-C] | P42: [C-I-C] | Q42: [C-I-C] | X42: =SUM(C42:G42)/SUM(S42:W42)-1 ->  | AD42: =SUM(H42:L42)/SUM(Y42:AC42)-1 -> 
B43: =B25 -> New homes | C43: [C-I-C] | D43: [C-I-C] | E43: [C-I-C] | F43: [C-I-C] | G43: [C-I-C] | H43: [C-I-C] | I43: [C-I-C] | J43: [C-I-C] | K43: [C-I-C] | L43: [C-I-C] | M43: [C-I-C] | N43: [C-I-C] | O43: [C-I-C] | P43: [C-I-C] | Q43: [C-I-C] | X43: =SUM(C43:G43)/SUM(S43:W43)-1 ->  | AD43: =SUM(H43:L43)/SUM(Y43:AC43)-1 -> 
B44: New medium density | C44: [C-I-C] | D44: [C-I-C] | E44: [C-I-C] | F44: [C-I-C] | G44: [C-I-C] | H44: [C-I-C] | I44: [C-I-C] | J44: [C-I-C] | K44: [C-I-C] | L44: [C-I-C] | M44: [C-I-C] | N44: [C-I-C] | O44: [C-I-C] | P44: [C-I-C] | Q44: [C-I-C] | X44: =SUM(C44:G44)/SUM(S44:W44)-1 ->  | AD44: =SUM(H44:L44)/SUM(Y44:AC44)-1 -> 
B45: I&C tariff | C45: [C-I-C] | D45: [C-I-C] | E45: [C-I-C] | F45: [C-I-C] | G45: [C-I-C] | H45: [C-I-C] | I45: [C-I-C] | J45: [C-I-C] | K45: [C-I-C] | L45: [C-I-C] | M45: [C-I-C] | N45: [C-I-C] | O45: [C-I-C] | P45: [C-I-C] | Q45: [C-I-C] | X45: =SUM(C45:G45)/SUM(S45:W45)-1 ->  | AD45: =SUM(H45:L45)/SUM(Y45:AC45)-1 -> 
B46: I&C contract | C46: [C-I-C] | D46: [C-I-C] | E46: [C-I-C] | F46: [C-I-C] | G46: [C-I-C] | H46: [C-I-C] | I46: [C-I-C] | J46: [C-I-C] | K46: [C-I-C] | L46: [C-I-C] | M46: [C-I-C] | N46: [C-I-C] | O46: [C-I-C] | P46: [C-I-C] | Q46: [C-I-C] | X46: =SUM(C46:G46)/SUM(S46:W46)-1 ->  | AD46: =SUM(H46:L46)/SUM(Y46:AC46)-1 -> 
B47: Number of meters per connection | C47: [C-I-C] | D47: [C-I-C] | E47: [C-I-C] | F47: [C-I-C] | G47: [C-I-C] | H47: [C-I-C] | I47: [C-I-C] | J47: [C-I-C] | K47: [C-I-C] | L47: [C-I-C] | M47: [C-I-C] | N47: [C-I-C] | O47: [C-I-C] | P47: [C-I-C] | Q47: [C-I-C]
B48: =B24 -> Electricity to gas | C48: [C-I-C] | D48: [C-I-C] | E48: [C-I-C] | F48: [C-I-C] | G48: [C-I-C] | H48: [C-I-C] | I48: [C-I-C] | J48: [C-I-C] | K48: [C-I-C] | L48: [C-I-C] | M48: [C-I-C] | N48: [C-I-C] | O48: [C-I-C] | P48: [C-I-C] | Q48: [C-I-C] | X48: =SUM(C48:G48)/SUM(S48:W48)-1 ->  | AD48: =SUM(H48:L48)/SUM(Y48:AC48)-1 -> 
B49: =B25 -> New homes | C49: [C-I-C] | D49: [C-I-C] | E49: [C-I-C] | F49: [C-I-C] | G49: [C-I-C] | H49: [C-I-C] | I49: [C-I-C] | J49: [C-I-C] | K49: [C-I-C] | L49: [C-I-C] | M49: [C-I-C] | N49: [C-I-C] | O49: [C-I-C] | P49: [C-I-C] | Q49: [C-I-C] | X49: =SUM(C49:G49)/SUM(S49:W49)-1 ->  | AD49: =SUM(H49:L49)/SUM(Y49:AC49)-1 -> 
B50: New medium density | C50: [C-I-C] | D50: [C-I-C] | E50: [C-I-C] | F50: [C-I-C] | G50: [C-I-C] | H50: [C-I-C] | I50: [C-I-C] | J50: [C-I-C] | K50: [C-I-C] | L50: [C-I-C] | M50: [C-I-C] | N50: [C-I-C] | O50: [C-I-C] | P50: [C-I-C] | Q50: [C-I-C] | X50: =SUM(C50:G50)/SUM(S50:W50)-1 ->  | AD50: =SUM(H50:L50)/SUM(Y50:AC50)-1 -> 
B51: I&C tariff | C51: [C-I-C] | D51: [C-I-C] | E51: [C-I-C] | F51: [C-I-C] | G51: [C-I-C] | H51: [C-I-C] | I51: [C-I-C] | J51: [C-I-C] | K51: [C-I-C] | L51: [C-I-C] | M51: [C-I-C] | N51: [C-I-C] | O51: [C-I-C] | P51: [C-I-C] | Q51: [C-I-C] | X51: =SUM(C51:G51)/SUM(S51:W51)-1 ->  | AD51: =SUM(H51:L51)/SUM(Y51:AC51)-1 -> 
B52: I&C contract | C52: [C-I-C] | D52: [C-I-C] | E52: [C-I-C] | F52: [C-I-C] | G52: [C-I-C] | H52: [C-I-C] | I52: [C-I-C] | J52: [C-I-C] | K52: [C-I-C] | L52: [C-I-C] | M52: [C-I-C] | N52: [C-I-C] | O52: [C-I-C] | P52: [C-I-C] | Q52: [C-I-C] | X52: =SUM(C52:G52)/SUM(S52:W52)-1 ->  | AD52: =SUM(H52:L52)/SUM(Y52:AC52)-1 -> 
B53: Source(s) of data: | H53: 2013-2015 AER Annual Reporting Templates - Template 2.2 Connections - Residential Tariff V | K53: Historic data sourced from Oracle Financials BM17 report. Forecast data sourced from capex model submitted as Attachment 8.8 to the AAI. | Y53: Source: Envestra final submission capex file 2013 - 2017 'Attachment E - Capital Expenditure Model'
B55: TABLE 4.2 - NEW CUSTOMER CONNECTION EXPENDITURE | AH55: REAL $ CONVERSION OF HISTORICAL DATA
C56: Previous access arrangement period | H56: Current access arrangement period | M56: Next access arrangement period | S56: Previous access arrangement period | Y56: Current access arrangement period | AH56: Previous access arrangement period | AM56: Current access arrangement period
C57: $0's, nominal | K57: =CONCATENATE("$0's, real ",dms_DollarReal) -> $0's, real December 2017 | S57: =CONCATENATE("$0's, real ",dms_DollarReal) -> $0's, real December 2017 | X57: Variance | Y57: =CONCATENATE("$0's, real ",dms_DollarReal) -> $0's, real December 2017 | AD57: Variance | AH57: =CONCATENATE("$0's, real ",dms_DollarReal) -> $0's, real December 2017
C58: Actual | K58: Forecast | S58: Approved | X58: Actual vs Approved | Y58: Approved | AD58: Actual vs Approved | AH58: Actual
C59: =PRCP -> 2008 | D59: 2009 | E59: 2010 | F59: 2011 | G59: 2012 | H59: =CRCP_y1 -> 2013 | I59: =CRCP_y2 -> 2014 | J59: =CRCP_y3 -> 2015 | K59: =CRCP_y4 -> 2016 | L59: =CRCP_y5 -> 2017 | M59: =FRCP -> 2018 | N59: 2019 | O59: 2020 | P59: 2021 | Q59: 2022 | S59: =PRCP -> 2008 | T59: 2009 | U59: 2010 | V59: 2011 | W59: 2012 | X59: % | Y59: =CRCP_y1 -> 2013 | Z59: =CRCP_y2 -> 2014 | AA59: =CRCP_y3 -> 2015 | AB59: =CRCP_y4 -> 2016 | AC59: =CRCP_y5 -> 2017 | AD59: % | AH59: =PRCP -> 2008 | AI59: 2009 | AJ59: 2010 | AK59: 2011 | AL59: 2012 | AM59: =CRCP_y1 -> 2013 | AN59: =CRCP_y2 -> 2014 | AO59: =CRCP_y3 -> 2015
B61: Table 4.2.1 - Unit rates - mains / services / meters
B62: Unit rates per metre of mains per connection | C62: [C-I-C] | D62: [C-I-C] | E62: [C-I-C] | F62: [C-I-C] | G62: [C-I-C] | H62: [C-I-C] | I62: [C-I-C] | J62: [C-I-C] | K62: [C-I-C] | L62: [C-I-C] | M62: [C-I-C] | N62: [C-I-C] | O62: [C-I-C] | P62: [C-I-C] | Q62: [C-I-C]
B63: =B24 -> Electricity to gas | C63: [C-I-C] | D63: [C-I-C] | E63: [C-I-C] | F63: [C-I-C] | G63: [C-I-C] | H63: [C-I-C] | I63: [C-I-C] | J63: [C-I-C] | K63: [C-I-C] | L63: [C-I-C] | M63: [C-I-C] | N63: [C-I-C] | O63: [C-I-C] | P63: [C-I-C] | Q63: [C-I-C] | X63: =SUM(C63:G63)/SUM(S63:W63)-1 ->  | AD63: =SUM(H63:L63)/SUM(Y63:AC63)-1 -> 
B64: =B25 -> New homes | C64: [C-I-C] | D64: [C-I-C] | E64: [C-I-C] | F64: [C-I-C] | G64: [C-I-C] | H64: [C-I-C] | I64: [C-I-C] | J64: [C-I-C] | K64: [C-I-C] | L64: [C-I-C] | M64: [C-I-C] | N64: [C-I-C] | O64: [C-I-C] | P64: [C-I-C] | Q64: [C-I-C] | X64: =SUM(C64:G64)/SUM(S64:W64)-1 ->  | AD64: =SUM(H64:L64)/SUM(Y64:AC64)-1 -> 
B65: =B26 -> New medium density | C65: [C-I-C] | D65: [C-I-C] | E65: [C-I-C] | F65: [C-I-C] | G65: [C-I-C] | H65: [C-I-C] | I65: [C-I-C] | J65: [C-I-C] | K65: [C-I-C] | L65: [C-I-C] | M65: [C-I-C] | N65: [C-I-C] | O65: [C-I-C] | P65: [C-I-C] | Q65: [C-I-C] | X65: =SUM(C65:G65)/SUM(S65:W65)-1 ->  | AD65: =SUM(H65:L65)/SUM(Y65:AC65)-1 -> 
B66: =B27 -> I&C tariff | C66: [C-I-C] | D66: [C-I-C] | E66: [C-I-C] | F66: [C-I-C] | G66: [C-I-C] | H66: [C-I-C] | I66: [C-I-C] | J66: [C-I-C] | K66: [C-I-C] | L66: [C-I-C] | M66: [C-I-C] | N66: [C-I-C] | O66: [C-I-C] | P66: [C-I-C] | Q66: [C-I-C] | X66: =SUM(C66:G66)/SUM(S66:W66)-1 ->  | AD66: =SUM(H66:L66)/SUM(Y66:AC66)-1 -> 
B67: =B28 -> I&C contract | C67: [C-I-C] | D67: [C-I-C] | E67: [C-I-C] | F67: [C-I-C] | G67: [C-I-C] | H67: [C-I-C] | I67: [C-I-C] | J67: [C-I-C] | K67: [C-I-C] | L67: [C-I-C] | M67: [C-I-C] | N67: [C-I-C] | O67: [C-I-C] | P67: [C-I-C] | Q67: [C-I-C] | X67: =SUM(C67:G67)/SUM(S67:W67)-1 ->  | AD67: =SUM(H67:L67)/SUM(Y67:AC67)-1 -> 
B68: Unit rates per service per connection | C68: [C-I-C] | D68: [C-I-C] | E68: [C-I-C] | F68: [C-I-C] | G68: [C-I-C] | H68: [C-I-C] | I68: [C-I-C] | J68: [C-I-C] | K68: [C-I-C] | L68: [C-I-C] | M68: [C-I-C] | N68: [C-I-C] | O68: [C-I-C] | P68: [C-I-C] | Q68: [C-I-C]
B69: =B24 -> Electricity to gas | C69: [C-I-C] | D69: [C-I-C] | E69: [C-I-C] | F69: [C-I-C] | G69: [C-I-C] | H69: [C-I-C] | I69: [C-I-C] | J69: [C-I-C] | K69: [C-I-C] | L69: [C-I-C] | M69: [C-I-C] | N69: [C-I-C] | O69: [C-I-C] | P69: [C-I-C] | Q69: [C-I-C] | X69: =SUM(C69:G69)/SUM(S69:W69)-1 ->  | Y69: 1739.214278 | Z69: 1750.730237 | AA69: 1764.716762 | AB69: 1771.105389 | AC69: 1782.714367 | AD69: =SUM(H69:L69)/SUM(Y69:AC69)-1 -> -1
B70: =B25 -> New homes | C70: [C-I-C] | D70: [C-I-C] | E70: [C-I-C] | F70: [C-I-C] | G70: [C-I-C] | H70: [C-I-C] | I70: [C-I-C] | J70: [C-I-C] | K70: [C-I-C] | L70: [C-I-C] | M70: [C-I-C] | N70: [C-I-C] | O70: [C-I-C] | P70: [C-I-C] | Q70: [C-I-C] | X70: =SUM(C70:G70)/SUM(S70:W70)-1 ->  | AD70: =SUM(H70:L70)/SUM(Y70:AC70)-1 -> 
B71: =B26 -> New medium density | C71: [C-I-C] | D71: [C-I-C] | E71: [C-I-C] | F71: [C-I-C] | G71: [C-I-C] | H71: [C-I-C] | I71: [C-I-C] | J71: [C-I-C] | K71: [C-I-C] | L71: [C-I-C] | M71: [C-I-C] | N71: [C-I-C] | O71: [C-I-C] | P71: [C-I-C] | Q71: [C-I-C] | X71: =SUM(C71:G71)/SUM(S71:W71)-1 ->  | AD71: =SUM(H71:L71)/SUM(Y71:AC71)-1 -> 
B72: =B27 -> I&C tariff | C72: [C-I-C] | D72: [C-I-C] | E72: [C-I-C] | F72: [C-I-C] | G72: [C-I-C] | H72: [C-I-C] | I72: [C-I-C] | J72: [C-I-C] | K72: [C-I-C] | L72: [C-I-C] | M72: [C-I-C] | N72: [C-I-C] | O72: [C-I-C] | P72: [C-I-C] | Q72: [C-I-C] | X72: =SUM(C72:G72)/SUM(S72:W72)-1 ->  | Y72: 15948.20257 | Z72: 16038.8216 | AA72: 16150.96649 | AB72: 16201.34526 | AC72: 16304.02678 | AD72: =SUM(H72:L72)/SUM(Y72:AC72)-1 -> -1
B73: =B28 -> I&C contract | C73: [C-I-C] | D73: [C-I-C] | E73: [C-I-C] | F73: [C-I-C] | G73: [C-I-C] | H73: [C-I-C] | I73: [C-I-C] | J73: [C-I-C] | K73: [C-I-C] | L73: [C-I-C] | M73: [C-I-C] | N73: [C-I-C] | O73: [C-I-C] | P73: [C-I-C] | Q73: [C-I-C] | X73: =SUM(C73:G73)/SUM(S73:W73)-1 ->  | AD73: =SUM(H73:L73)/SUM(Y73:AC73)-1 -> 
B74: Unit rates per meter per connection | C74: [C-I-C] | D74: [C-I-C] | E74: [C-I-C] | F74: [C-I-C] | G74: [C-I-C] | H74: [C-I-C] | I74: [C-I-C] | J74: [C-I-C] | K74: [C-I-C] | L74: [C-I-C] | M74: [C-I-C] | N74: [C-I-C] | O74: [C-I-C] | P74: [C-I-C] | Q74: [C-I-C]
B75: =B24 -> Electricity to gas | C75: [C-I-C] | D75: [C-I-C] | E75: [C-I-C] | F75: [C-I-C] | G75: [C-I-C] | H75: [C-I-C] | I75: [C-I-C] | J75: [C-I-C] | K75: [C-I-C] | L75: [C-I-C] | M75: [C-I-C] | N75: [C-I-C] | O75: [C-I-C] | P75: [C-I-C] | Q75: [C-I-C] | X75: =SUM(C75:G75)/SUM(S75:W75)-1 ->  | AD75: =SUM(H75:L75)/SUM(Y75:AC75)-1 -> 
B76: =B25 -> New homes | C76: [C-I-C] | D76: [C-I-C] | E76: [C-I-C] | F76: [C-I-C] | G76: [C-I-C] | H76: [C-I-C] | I76: [C-I-C] | J76: [C-I-C] | K76: [C-I-C] | L76: [C-I-C] | M76: [C-I-C] | N76: [C-I-C] | O76: [C-I-C] | P76: [C-I-C] | Q76: [C-I-C] | X76: =SUM(C76:G76)/SUM(S76:W76)-1 ->  | AD76: =SUM(H76:L76)/SUM(Y76:AC76)-1 -> 
B77: =B26 -> New medium density | C77: [C-I-C] | D77: [C-I-C] | E77: [C-I-C] | F77: [C-I-C] | G77: [C-I-C] | H77: [C-I-C] | I77: [C-I-C] | J77: [C-I-C] | K77: [C-I-C] | L77: [C-I-C] | M77: [C-I-C] | N77: [C-I-C] | O77: [C-I-C] | P77: [C-I-C] | Q77: [C-I-C] | X77: =SUM(C77:G77)/SUM(S77:W77)-1 ->  | AD77: =SUM(H77:L77)/SUM(Y77:AC77)-1 -> 
B78: =B27 -> I&C tariff | C78: [C-I-C] | D78: [C-I-C] | E78: [C-I-C] | F78: [C-I-C] | G78: [C-I-C] | H78: [C-I-C] | I78: [C-I-C] | J78: [C-I-C] | K78: [C-I-C] | L78: [C-I-C] | M78: [C-I-C] | N78: [C-I-C] | O78: [C-I-C] | P78: [C-I-C] | Q78: [C-I-C] | X78: =SUM(C78:G78)/SUM(S78:W78)-1 ->  | AD78: =SUM(H78:L78)/SUM(Y78:AC78)-1 -> 
B79: =B28 -> I&C contract | C79: [C-I-C] | D79: [C-I-C] | E79: [C-I-C] | F79: [C-I-C] | G79: [C-I-C] | H79: [C-I-C] | I79: [C-I-C] | J79: [C-I-C] | K79: [C-I-C] | L79: [C-I-C] | M79: [C-I-C] | N79: [C-I-C] | O79: [C-I-C] | P79: [C-I-C] | Q79: [C-I-C] | X79: =SUM(C79:G79)/SUM(S79:W79)-1 ->  | AD79: =SUM(H79:L79)/SUM(Y79:AC79)-1 -> 
B80: Source(s) of data: | H80: 2013-2015 AER Annual Reporting Templates - Template 2.2 Connections - Residential Tariff V | K80: Historic data sourced from Oracle Financials BM17 report. Forecast data sourced from capex model submitted as Attachment 8.8 to the AAI. | Y80: Source: Envestra final submission capex file 2013 - 2017 'Attachment E - Capital Expenditure Model'
B82: =CONCATENATE("Table 4.2.2 - ", B24) -> Table 4.2.2 - Electricity to gas
B83: =CONCATENATE("Number of new ", B24, " connections") -> Number of new Electricity to gas connections | C83: =C24 -> 13657 | D83: 12364 | E83: 17233 | F83: 17401 | G83: 13706 | H83: 762 | I83: 551 | J83: 629 | K83: 832.1379425 | L83: 845.1154128 | M83: 806.4695133 | N83: 780.5223333 | O83: 790.206125 | P83: 803.8985276 | Q83: 817.5949489 | S83: =S24 -> 0 | T83: =T24 -> 0 | U83: 0 | V83: 0 | W83: 0 | Y83: =Y24 -> 1064.475417 | Z83: 1051.345682 | AA83: 1040.792397 | AB83: 1022.690384 | AC83: 1045.300369 | AD83: =SUM(H83:L83)/SUM(Y83:AC83)-1 -> -0.3072674633 | AH83: =AH24 -> 0 | AI83: 0 | AJ83: 0 | AK83: 0 | AL83: 0 | AM83: 0 | AN83: 0 | AO83: 0
B84: Direct contractor expenditure
B85: Distribution mains | H85: 379360.465 | I85: 220441.5889 | J85: 666044.4638 | K85: 381686.7328 | L85: 387639.2654 | M85: 415053.8068 | N85: 401699.9531 | O85: 406683.7678 | P85: 413730.6354 | Q85: 420779.5712 | X85: =SUM(C85:G85)/SUM(S85:W85)-1 ->  | AD85: =SUM(H85:L85)/SUM(Y85:AC85)-1 -> 
B86: Inlet / service pipes | H86: 833243.43 | I86: 615029.38 | J86: 757862.98 | K86: 1046514.557 | L86: 1062835.303 | M86: 995672.8281 | N86: 963638.2606 | O86: 975593.9366 | P86: 992498.6715 | Q86: 1009408.368 | X86: =SUM(C86:G86)/SUM(S86:W86)-1 ->  | AD86: =SUM(H86:L86)/SUM(Y86:AC86)-1 -> 
B87: Meters | H87: 42628.97145 | I87: 32529.38323 | J87: 38601.28509 | K87: 51577.38268 | L87: 52381.74926 | M87: 49986.408 | N87: 48378.15586 | O87: 48978.37441 | P87: 49827.05376 | Q87: 50675.9822 | X87: =SUM(C87:G87)/SUM(S87:W87)-1 ->  | AD87: =SUM(H87:L87)/SUM(Y87:AC87)-1 -> 
B88: Total contractor expenditure | C88: =SUM(C85:C87) -> 0 | D88: =SUM(D85:D87) -> 0 | E88: 0 | F88: 0 | G88: 0 | H88: 1255232.866 | I88: 868000.3521 | J88: 1462508.729 | K88: 1479778.672 | L88: 1502856.317 | M88: 1460713.043 | N88: 1413716.37 | O88: 1431256.079 | P88: 1456056.361 | Q88: 1480863.921 | S88: =SUM(S85:S87) -> 0 | T88: 0 | U88: 0 | V88: 0 | W88: 0 | X88: =SUM(C88:G88)/SUM(S88:W88)-1 ->  | Y88: =SUM(Y85:Y87) -> 0 | Z88: =SUM(Z85:Z87) -> 0 | AA88: =SUM(AA85:AA87) -> 0 | AB88: =SUM(AB85:AB87) -> 0 | AC88: =SUM(AC85:AC87) -> 0 | AD88: =SUM(H88:L88)/SUM(Y88:AC88)-1 ->  | AH88: =SUM(AH85:AH87) -> 0 | AI88: =SUM(AI85:AI87) -> 0 | AJ88: 0 | AK88: 0 | AL88: 0 | AM88: 0 | AN88: 0 | AO88: 0
B89: Direct internal labour expenditure
B90: Distribution mains | H90: 16103.68739 | I90: 12159.5637 | J90: 37213.61621 | K90: 15506.96086 | L90: 15748.79712 | M90: 22658.55564 | N90: 21929.54405 | O90: 22201.61972 | P90: 22586.32126 | Q90: 22971.13572 | X90: =SUM(C90:G90)/SUM(S90:W90)-1 ->  | AD90: =SUM(H90:L90)/SUM(Y90:AC90)-1 -> 
B91: Inlet / service pipes | H91: 19919.78 | I91: 24286.11 | J91: 17581.53 | K91: 52597.4541 | L91: 53417.72903 | M91: 36505.07615 | N91: 35330.56953 | O91: 35768.90916 | P91: 36388.69974 | Q91: 37008.67221 | X91: =SUM(C91:G91)/SUM(S91:W91)-1 ->  | AD91: =SUM(H91:L91)/SUM(Y91:AC91)-1 -> 
B92: Meters | H92: 6554.564249 | I92: 6994.705512 | J92: 5783.449217 | K92: 10119.67764 | L92: 10277.49741 | M92: 10194.99907 | N92: 9866.987321 | O92: 9989.40515 | P92: 10162.49791 | Q92: 10335.64147 | X92: =SUM(C92:G92)/SUM(S92:W92)-1 ->  | AD92: =SUM(H92:L92)/SUM(Y92:AC92)-1 -> 
B93: Total labour expenditure | C93: =SUM(C90:C92) -> 0 | D93: =SUM(D90:D92) -> 0 | E93: 0 | F93: 0 | G93: 0 | H93: 42578.03163 | I93: 43440.37921 | J93: 60578.59543 | K93: 78224.09259 | L93: 79444.02356 | M93: 69358.63086 | N93: 67127.1009 | O93: 67959.93403 | P93: 69137.51891 | Q93: 70315.4494 | S93: =SUM(S90:S92) -> 0 | T93: 0 | U93: 0 | V93: 0 | W93: 0 | X93: =SUM(C93:G93)/SUM(S93:W93)-1 ->  | Y93: =SUM(Y90:Y92) -> 0 | Z93: =SUM(Z90:Z92) -> 0 | AA93: =SUM(AA90:AA92) -> 0 | AB93: =SUM(AB90:AB92) -> 0 | AC93: =SUM(AC90:AC92) -> 0 | AD93: =SUM(H93:L93)/SUM(Y93:AC93)-1 ->  | AH93: =SUM(AH90:AH92) -> 0 | AI93: =SUM(AI90:AI92) -> 0 | AJ93: 0 | AK93: 0 | AL93: 0 | AM93: 0 | AN93: 0 | AO93: 0
B94: Other internal direct expenditure
B95: Distribution mains | H95: 66026.72326 | I95: 11284.92889 | J95: 61484.37734 | K95: 46065.22526 | L95: 46783.6279 | M95: 37497.20043 | N95: 36290.77342 | O95: 36741.02612 | P95: 37377.66118 | Q95: 38014.48309 | X95: =SUM(C95:G95)/SUM(S95:W95)-1 ->  | AD95: =SUM(H95:L95)/SUM(Y95:AC95)-1 -> 
B96: Inlet / service pipes | H96: 117916.04 | I96: 176254.54 | J96: 79810.95 | K96: 433831.4247 | L96: 440597.1712 | M96: 204910.4651 | N96: 198317.719 | O96: 200778.2091 | P96: 204257.2205 | Q96: 207737.2529 | X96: =SUM(C96:G96)/SUM(S96:W96)-1 ->  | AD96: =SUM(H96:L96)/SUM(Y96:AC96)-1 -> 
B97: Meters | H97: 93535.11683 | I97: 71857.84535 | J97: 72120.95385 | K97: 134730.3754 | L97: 136831.5408 | M97: 130186.9566 | N97: 125998.349 | O97: 127561.5864 | P97: 129771.9269 | Q97: 131982.9162 | X97: =SUM(C97:G97)/SUM(S97:W97)-1 ->  | AD97: =SUM(H97:L97)/SUM(Y97:AC97)-1 -> 
B98: Total other direct expenditure | C98: =SUM(C95:C97) -> 0 | D98: =SUM(D95:D97) -> 0 | E98: 0 | F98: 0 | G98: 0 | H98: 277477.8801 | I98: 259397.3142 | J98: 213416.2812 | K98: 614627.0253 | L98: 624212.3399 | M98: 372594.6222 | N98: 360606.8414 | O98: 365080.8217 | P98: 371406.8086 | Q98: 377734.6522 | S98: =SUM(S95:S97) -> 0 | T98: 0 | U98: 0 | V98: 0 | W98: 0 | X98: =SUM(C98:G98)/SUM(S98:W98)-1 ->  | Y98: =SUM(Y95:Y97) -> 0 | Z98: =SUM(Z95:Z97) -> 0 | AA98: =SUM(AA95:AA97) -> 0 | AB98: =SUM(AB95:AB97) -> 0 | AC98: =SUM(AC95:AC97) -> 0 | AD98: =SUM(H98:L98)/SUM(Y98:AC98)-1 ->  | AH98: =SUM(AH95:AH97) -> 0 | AI98: =SUM(AI95:AI97) -> 0 | AJ98: 0 | AK98: 0 | AL98: 0 | AM98: 0 | AN98: 0 | AO98: 0
B99: Total direct expenditure
B100: Distribution mains | C100: =C90+C85+C95 -> 0 | D100: 0 | E100: 0 | F100: 0 | G100: 0 | H100: =H90+H85+H95 -> 461490.8756 | I100: 243886.0815 | J100: 764742.4573 | K100: =K90+K85+K95 -> 443258.9189 | L100: 450171.6905 | M100: 475209.5628 | N100: 459920.2706 | O100: 465626.4137 | P100: 473694.6178 | Q100: 481765.19 | S100: =S90+S85+S95 -> 0 | T100: =T90+T85+T95 -> 0 | U100: 0 | V100: 0 | W100: 0 | X100: =SUM(C100:G100)/SUM(S100:W100)-1 ->  | Y100: =Y90+Y85+Y95 -> 0 | Z100: 0 | AA100: 0 | AB100: 0 | AC100: 0 | AD100: =SUM(H100:L100)/SUM(Y100:AC100)-1 ->  | AH100: =AH90+AH85+AH95 -> 0 | AI100: 0 | AJ100: 0 | AK100: 0 | AL100: 0 | AM100: 0 | AN100: 0 | AO100: 0
B101: Inlet / service pipes | C101: 0 | D101: 0 | E101: 0 | F101: 0 | G101: 0 | H101: 971079.25 | I101: 815570.03 | J101: 855255.46 | K101: =K91+K86+K96 -> 1532943.436 | L101: 1556850.203 | M101: 1237088.369 | N101: 1197286.549 | O101: 1212141.055 | P101: 1233144.592 | Q101: 1254154.293 | S101: 0 | T101: 0 | U101: 0 | V101: 0 | W101: 0 | Y101: 0 | Z101: 0 | AA101: 0 | AB101: 0 | AC101: 0 | AH101: =AH91+AH86+AH96 -> 0 | AI101: 0 | AJ101: 0 | AK101: 0 | AL101: 0 | AM101: 0 | AN101: 0 | AO101: 0
B102: Meters | C102: 0 | D102: 0 | E102: 0 | F102: 0 | G102: 0 | H102: 142718.6525 | I102: 111381.9341 | J102: 116505.6881 | K102: =K92+K87+K97 -> 196427.4357 | L102: 199490.7875 | M102: 190368.3637 | N102: 184243.4921 | O102: 186529.366 | P102: 189761.4786 | Q102: 192994.5398 | S102: 0 | T102: 0 | U102: 0 | V102: 0 | W102: 0 | Y102: 0 | Z102: 0 | AA102: 0 | AB102: 0 | AC102: 0 | AH102: =AH92+AH87+AH97 -> 0 | AI102: 0 | AJ102: 0 | AK102: 0 | AL102: 0 | AM102: 0 | AN102: 0 | AO102: 0
B103: Total direct expenditure | C103: 14942460.26 | D103: 16189000 | E103: 17967000 | F103: 21413000 | G103: 19466440 | H103: =SUM(H100:H102) -> 1575288.778 | I103: 1170838.046 | J103: 1736503.605 | K103: =SUM(K100:K102) -> 2172629.79 | L103: 2206512.681 | M103: 1902666.296 | N103: 1841450.312 | O103: 1864296.835 | P103: 1896600.688 | Q103: 1928914.023 | Y103: 1858758.877 | Z103: 1851402.19 | AA103: 1847562.576 | AB103: 1825242.365 | AC103: 1863106.991 | AD103: -0.04156360215 | AH103: =SUM(AH100:AH102) -> 0 | AI103: =SUM(AI100:AI102) -> 0 | AJ103: 0 | AK103: 0 | AL103: 0 | AM103: 0 | AN103: 0 | AO103: 0
B104: Total overhead cost | H104: 139495.9938 | I104: 99592.25472 | J104: 129694.0516 | K104: 183957.5495 | L104: 169801.2228 | M104: 158355.8777 | N104: 134849.7005 | O104: 140328.6559 | P104: 169061.2287 | Q104: 239781.5957 | Y104: 371751.7755 | Z104: 370280.4381 | AA104: 369512.5153 | AB104: 365048.473 | AC104: 372621.3982 | AD104: -0.609271378
B105: Related party margin | H105: 47873.47004 | I105: 33803.52561 | J105: 50143.60973 | K105: 83251.38611 | L105: 75373.27356 | M105: 62194.40158 | N105: 50558.98404 | O105: 53032.79361 | P105: 67362.36056 | Q105: 103452.6385
B106: =CONCATENATE("Total gross expenditure on new ", B24, " connections") -> Total gross expenditure on new Electricity to gas connections | C106: =SUM(C103,C104,C105) -> 14942460.26 | D106: =SUM(D103,D104,D105) -> 16189000 | E106: 17967000 | F106: 21413000 | G106: 19466440 | H106: 1762658.242 | I106: 1304233.826 | J106: 1916341.267 | K106: =SUM(K103,K104,K105) -> 2439838.726 | L106: 2451687.177 | M106: 2123216.575 | N106: 2026858.996 | O106: 2057658.284 | P106: 2133024.277 | Q106: 2272148.257 | S106: =SUM(S103,S104,S105) -> 0 | T106: =SUM(T103,T104,T105) -> 0 | U106: =SUM(U103,U104,U105) -> 0 | V106: =SUM(V103,V104,V105) -> 0 | W106: =SUM(W103,W104,W105) -> 0 | Y106: =SUM(Y103,Y104,Y105) -> 2230510.653 | Z106: =SUM(Z103,Z104,Z105) -> 2221682.628 | AA106: =SUM(AA103,AA104,AA105) -> 2217075.092 | AB106: =SUM(AB103,AB104,AB105) -> 2190290.838 | AC106: =SUM(AC103,AC104,AC105) -> 2235728.389 | AD106: -0.1100042114 | AH106: =SUM(AH103,AH104,AH105) -> 0 | AI106: =SUM(AI103,AI104,AI105) -> 0 | AJ106: 0 | AK106: 0 | AL106: 0 | AM106: 0 | AN106: 0 | AO106: 0
B107: Less customer contributions
B108: =CONCATENATE("Total net expenditure on new ", B24, " connections") -> Total net expenditure on new Electricity to gas connections | C108: =C106-C107 -> 14942460.26 | D108: =D106-D107 -> 16189000 | E108: 17967000 | F108: 21413000 | G108: 19466440 | H108: 1762658.242 | I108: 1304233.826 | J108: 1916341.267 | K108: 2439838.726 | L108: 2451687.177 | M108: 2123216.575 | N108: 2026858.996 | O108: 2057658.284 | P108: 2133024.277 | Q108: 2272148.257 | S108: =S106-S107 -> 0 | T108: 0 | U108: 0 | V108: 0 | W108: =W106-W107 -> 0 | X108: =SUM(C108:G108)/SUM(S108:W108)-1 ->  | Y108: =Y106-Y107 -> 2230510.653 | Z108: =Z106-Z107 -> 2221682.628 | AA108: =AA106-AA107 -> 2217075.092 | AB108: =AB106-AB107 -> 2190290.838 | AC108: =AC106-AC107 -> 2235728.389 | AD108: =SUM(H108:L108)/SUM(Y108:AC108)-1 -> -0.1100042114 | AH108: =AH106-AH107 -> 0 | AI108: =AI106-AI107 -> 0 | AJ108: 0 | AK108: 0 | AL108: 0 | AM108: 0 | AN108: 0 | AO108: 0
B109: Source(s) of data: | C109: 2008-2012 ESC Regulatory Accounting Statements - Statement 4b "Residential Connections" - Total Cost | H109: 2013-2015 AER Annual Reporting Templates - Template 2.2 Connections - Residential Tariff V | K109: Historic data sourced from Oracle Financials BM17 report. Forecast data sourced from capex model submitted as Attachment 8.8 to the AAI. | Y109: Source: Envestra final submission capex file 2013 - 2017 'Attachment E - Capital Expenditure Model'
B111: =CONCATENATE("Table 4.2.3 - ", B25) -> Table 4.2.3 - New homes
B112: =CONCATENATE("Number of new ", B25, " connections") -> Number of new New homes connections | C112: =C25 -> 0 | D112: 0 | E112: 0 | F112: 0 | G112: 0 | H112: 10038 | I112: 10950 | J112: 12915 | K112: 12247.13355 | L112: 12438.13171 | M112: 11869.35402 | N112: 11487.47193 | O112: 11629.9948 | P112: 11831.5151 | Q112: 12033.09454 | S112: =S25 -> 13247 | T112: =T25 -> 14084 | U112: =U25 -> 14459 | V112: =V25 -> 14334 | W112: =W25 -> 13122 | X112: =SUM(C112:G112)/SUM(S112:W112)-1 -> -1 | AD112: =SUM(H112:L112)/SUM(Y112:AC112)-1 ->  | AH112: =AH25 -> 0 | AI112: 0 | AJ112: 0 | AK112: 0 | AL112: 0 | AM112: 0 | AN112: 0 | AO112: 0
B113: Direct contractor expenditure
B114: Distribution mains | H114: 3891113.01 | I114: 4722644.72 | J114: 5458586.99 | K114: 5087595.837 | L114: 5166938.6 | M114: 4939702.108 | N114: 4780773.174 | O114: 4840087.315 | P114: 4923954.577 | Q114: 5007846.454 | X114: =SUM(C114:G114)/SUM(S114:W114)-1 ->  | AD114: =SUM(H114:L114)/SUM(Y114:AC114)-1 -> 
B115: Inlet / service pipes | H115: 7517078.8 | I115: 8519815.08 | J115: 10676853.45 | K115: 9305990.968 | L115: 9451121.019 | M115: 9644889.694 | N115: 9334577.047 | O115: 9450389.364 | P115: 9614142.254 | Q115: 9777943.204 | X115: =SUM(C115:G115)/SUM(S115:W115)-1 ->  | AD115: =SUM(H115:L115)/SUM(Y115:AC115)-1 -> 
B116: Meters | H116: 561561.1751 | I116: 646455.0751 | J116: 792584.4148 | K116: 759099.0166 | L116: 770937.4204 | M116: 735683.5727 | N116: 712013.8446 | O116: 720847.6645 | P116: 733338.2492 | Q116: 745832.4997 | X116: =SUM(C116:G116)/SUM(S116:W116)-1 ->  | AD116: =SUM(H116:L116)/SUM(Y116:AC116)-1 -> 
B117: Total contractor expenditure | C117: =SUM(C114:C116) -> 0 | D117: 0 | E117: 0 | F117: 0 | G117: 0 | H117: 11969752.99 | I117: 13888914.88 | J117: 16928024.85 | K117: =SUM(K114:K116) -> 15152685.82 | L117: 15388997.04 | M117: 15320275.37 | N117: 14827364.07 | O117: 15011324.34 | P117: 15271435.08 | Q117: 15531622.16 | S117: =SUM(S114:S116) -> 0 | T117: 0 | U117: 0 | V117: 0 | W117: 0 | X117: =SUM(C117:G117)/SUM(S117:W117)-1 ->  | Y117: =SUM(Y114:Y116) -> 0 | Z117: =SUM(Z114:Z116) -> 0 | AA117: =SUM(AA114:AA116) -> 0 | AB117: =SUM(AB114:AB116) -> 0 | AC117: =SUM(AC114:AC116) -> 0 | AD117: =SUM(H117:L117)/SUM(Y117:AC117)-1 ->  | AH117: =SUM(AH114:AH116) -> 0 | AI117: 0 | AJ117: 0 | AK117: 0 | AL117: 0 | AM117: 0 | AN117: 0 | AO117: 0
B118: Direct internal labour expenditure
B119: Distribution mains | H119: 247622.14 | I119: 440056.58 | J119: 401036.19 | K119: 310043.9038 | L119: 314879.1425 | M119: 370643.9851 | N119: 358718.9638 | O119: 363169.5215 | P119: 369462.3901 | Q119: 375757.1056 | X119: =SUM(C119:G119)/SUM(S119:W119)-1 ->  | AD119: =SUM(H119:L119)/SUM(Y119:AC119)-1 -> 
B120: Inlet / service pipes | H120: 442072.68 | I120: 712666.04 | J120: 832733.95 | K120: 490175.0534 | L120: 497819.4977 | M120: 429396.9057 | N120: 415581.5803 | O120: 420737.6216 | P120: 428028.0092 | Q120: 435320.5365 | X120: =SUM(C120:G120)/SUM(S120:W120)-1 ->  | AD120: =SUM(H120:L120)/SUM(Y120:AC120)-1 -> 
B121: Meters | H121: 86344.77157 | I121: 139005.4907 | J121: 118749.1997 | K121: 148938.0993 | L121: 151260.8389 | M121: 150046.6555 | N121: 145219.086 | O121: 147020.7915 | P121: 149568.314 | Q121: 152116.5842 | X121: =SUM(C121:G121)/SUM(S121:W121)-1 ->  | AD121: =SUM(H121:L121)/SUM(Y121:AC121)-1 -> 
B122: Total labour expenditure | C122: =SUM(C119:C121) -> 0 | D122: 0 | E122: 0 | F122: 0 | G122: 0 | H122: 776039.5916 | I122: 1291728.111 | J122: 1352519.34 | K122: =SUM(K119:K121) -> 949157.0565 | L122: 963959.4791 | M122: 950087.5463 | N122: 919519.63 | O122: 930927.9347 | P122: 947058.7134 | Q122: 963194.2263 | S122: =SUM(S119:S121) -> 0 | T122: 0 | U122: 0 | V122: 0 | W122: 0 | X122: =SUM(C122:G122)/SUM(S122:W122)-1 ->  | Y122: =SUM(Y119:Y121) -> 0 | Z122: =SUM(Z119:Z121) -> 0 | AA122: =SUM(AA119:AA121) -> 0 | AB122: =SUM(AB119:AB121) -> 0 | AC122: =SUM(AC119:AC121) -> 0 | AD122: =SUM(H122:L122)/SUM(Y122:AC122)-1 ->  | AH122: =SUM(AH119:AH121) -> 0 | AI122: 0 | AJ122: 0 | AK122: 0 | AL122: 0 | AM122: 0 | AN122: 0 | AO122: 0
B123: Other internal direct expenditure
B124: Distribution mains | H124: 791717.99 | I124: 877976.45 | J124: 1351699.72 | K124: 939230.3746 | L124: 953877.9874 | M124: 1004621.065 | N124: 972298.5988 | O124: 984361.722 | P124: 1001418.382 | Q124: 1018480.048 | X124: =SUM(C124:G124)/SUM(S124:W124)-1 ->  | AD124: =SUM(H124:L124)/SUM(Y124:AC124)-1 -> 
B125: Inlet / service pipes | H125: 1258965.03 | I125: 1551866.99 | J125: 2008352.73 | K125: 1404775.675 | L125: 1426683.623 | M125: 1959977.715 | N125: 1896917.805 | O125: 1920452.503 | P125: 1953729.401 | Q125: 1987016.066 | X125: =SUM(C125:G125)/SUM(S125:W125)-1 ->  | AD125: =SUM(H125:L125)/SUM(Y125:AC125)-1 -> 
B126: Meters | H126: 1232159.452 | I126: 1428027.961 | J126: 1480830.078 | K126: 1982917.515 | L126: 2013841.779 | M126: 1916048.966 | N126: 1854402.411 | O126: 1877409.628 | P126: 1909940.695 | Q126: 1942481.31 | X126: =SUM(C126:G126)/SUM(S126:W126)-1 ->  | AD126: =SUM(H126:L126)/SUM(Y126:AC126)-1 -> 
B127: Total other direct expenditure | C127: =SUM(C124:C126) -> 0 | D127: 0 | E127: 0 | F127: 0 | G127: 0 | H127: 3282842.472 | I127: 3857871.401 | J127: 4840882.528 | K127: 4326923.565 | L127: 4394403.389 | M127: 4880647.746 | N127: 4723618.815 | O127: 4782223.852 | P127: 4865088.478 | Q127: 4947977.423 | S127: =SUM(S124:S126) -> 0 | T127: 0 | U127: 0 | V127: 0 | W127: 0 | X127: =SUM(C127:G127)/SUM(S127:W127)-1 ->  | Y127: =SUM(Y124:Y126) -> 0 | Z127: =SUM(Z124:Z126) -> 0 | AA127: =SUM(AA124:AA126) -> 0 | AB127: =SUM(AB124:AB126) -> 0 | AC127: =SUM(AC124:AC126) -> 0 | AD127: =SUM(H127:L127)/SUM(Y127:AC127)-1 ->  | AH127: =SUM(AH124:AH126) -> 0 | AI127: 0 | AJ127: 0 | AK127: 0 | AL127: 0 | AM127: 0 | AN127: 0 | AO127: 0
B128: Total direct expenditure
B129: Distribution mains | C129: =C119+C114+C124 -> 0 | D129: 0 | E129: 0 | F129: 0 | G129: 0 | H129: 4930453.14 | I129: 6040677.75 | J129: 7211322.9 | K129: 6336870.115 | L129: 6435695.73 | M129: 6314967.158 | N129: 6111790.737 | O129: 6187618.558 | P129: 6294835.349 | Q129: 6402083.608 | S129: =S119+S114+S124 -> 0 | T129: 0 | U129: 0 | V129: 0 | W129: 0 | X129: =SUM(C129:G129)/SUM(S129:W129)-1 ->  | Y129: =Y119+Y114+Y124 -> 0 | Z129: 0 | AA129: 0 | AB129: 0 | AC129: 0 | AD129: =SUM(H129:L129)/SUM(Y129:AC129)-1 ->  | AH129: =AH119+AH114+AH124 -> 0 | AI129: 0 | AJ129: 0 | AK129: 0 | AL129: 0 | AM129: 0 | AN129: 0 | AO129: 0
B130: Inlet / service pipes | C130: 0 | D130: 0 | E130: 0 | F130: 0 | G130: 0 | H130: 9218116.51 | I130: 10784348.11 | J130: 13517940.13 | K130: 11200941.7 | L130: 11375624.14 | M130: 12034264.31 | N130: 11647076.43 | O130: 11791579.49 | P130: 11995899.66 | Q130: 12200279.81 | S130: 0 | T130: 0 | U130: 0 | V130: 0 | W130: 0 | Y130: 0 | Z130: 0 | AA130: 0 | AB130: 0 | AC130: 0 | AH130: =AH120+AH115+AH125 -> 0 | AI130: 0 | AJ130: 0 | AK130: 0 | AL130: 0 | AM130: 0 | AN130: 0 | AO130: 0
B131: Meters | C131: 0 | D131: 0 | E131: 0 | F131: 0 | G131: 0 | H131: 1880065.399 | I131: 2213488.527 | J131: 2392163.692 | K131: 2890954.631 | L131: 2936040.038 | M131: 2801779.194 | N131: 2711635.342 | O131: 2745278.084 | P131: 2792847.258 | Q131: 2840430.394 | S131: 0 | T131: 0 | U131: 0 | V131: 0 | W131: 0 | Y131: 0 | Z131: 0 | AA131: 0 | AB131: 0 | AC131: 0 | AH131: =AH121+AH116+AH126 -> 0 | AI131: 0 | AJ131: 0 | AK131: 0 | AL131: 0 | AM131: 0 | AN131: 0 | AO131: 0
B132: Total direct expenditure | C132: =SUM(C129:C131) -> 0 | D132: =SUM(D129:D131) -> 0 | E132: 0 | F132: 0 | G132: 0 | H132: 16028635.05 | I132: 19038514.39 | J132: 23121426.72 | K132: 20428766.44 | L132: 20747359.91 | M132: 21151010.67 | N132: 20470502.51 | O132: 20724476.13 | P132: 21083582.27 | Q132: 21442793.81 | S132: =17.7*S334*1000000 -> 22915739.64 | T132: =19.2*S334*1000000 -> 24857751.48 | U132: =20.1*S334*1000000 -> 26022958.58 | V132: =20.3*S334*1000000 -> 26281893.49 | W132: =19*S334*1000000 -> 24598816.57 | X132: -1 | Y132: 19737279.89 | Z132: 19618678.69 | AA132: 19575247.8 | AB132: 19301180.67 | AC132: 19868960.89 | AD132: 0.01287805508 | AH132: =SUM(AH129:AH131) -> 0 | AI132: =SUM(AI129:AI131) -> 0 | AJ132: 0 | AK132: 0 | AL132: 0 | AM132: 0 | AN132: 0 | AO132: 0
B133: Total overhead cost | H133: 1419345.944 | I133: 1620009.231 | J133: 1726798.639 | K133: 1729712.918 | L133: 1596604.05 | M133: 1760364.845 | N133: 1499058.169 | O133: 1559965.037 | P133: 1879370.996 | Q133: 2665534.728 | Y133: 3947455.978 | Z133: 3923735.739 | AA133: 3915049.56 | AB133: 3860236.134 | AC133: 3973792.178 | AD133: -0.5875453829
B134: Related party margin | H134: 487103.7059 | I134: 549871.1313 | J134: 667632.1385 | K134: 782794.7175 | L134: 708718.5347 | M134: 691384.7447 | N134: 562039.4984 | O134: 589539.6296 | P134: 748834.4172 | Q134: 1150032.386
B135: =CONCATENATE("Tottal Gross expenditure on new ", B25, " connections") -> Tottal Gross expenditure on new New homes connections | C135: =SUM(C132,C133,C134) -> 0 | D135: =SUM(D132,D133,D134) -> 0 | E135: 0 | F135: 0 | G135: 0 | H135: 17935084.7 | I135: 21208394.75 | J135: 25515857.5 | K135: 22941274.08 | L135: 23052682.49 | M135: 23602760.26 | N135: 22531600.18 | O135: 22873980.8 | P135: 23711787.68 | Q135: 25258360.92 | S135: =SUM(S132,S133,S134) -> 22915739.64 | T135: =SUM(T132,T133,T134) -> 24857751.48 | U135: =SUM(U132,U133,U134) -> 26022958.58 | V135: =SUM(V132,V133,V134) -> 26281893.49 | W135: =SUM(W132,W133,W134) -> 24598816.57 | X135: -1 | Y135: =SUM(Y132,Y133,Y134) -> 23684735.87 | Z135: =SUM(Z132,Z133,Z134) -> 23542414.43 | AA135: =SUM(AA132,AA133,AA134) -> 23490297.36 | AB135: =SUM(AB132,AB133,AB134) -> 23161416.81 | AC135: =SUM(AC132,AC133,AC134) -> 23842753.07 | AD135: -0.06004270215 | AH135: =SUM(AH132,AH133,AH134) -> 0 | AI135: =SUM(AI132,AI133,AI134) -> 0 | AJ135: 0 | AK135: 0 | AL135: 0 | AM135: 0 | AN135: 0 | AO135: 0
B136: Less customer contributions | S136: 0 | T136: 0 | U136: 0 | V136: 0 | W136: 0
B137: =CONCATENATE("Total Net expenditure on new ", B25, " connections") -> Total Net expenditure on new New homes connections | C137: =C135-C136 -> 0 | D137: =D135-D136 -> 0 | E137: 0 | F137: 0 | G137: 0 | H137: 17935084.7 | I137: 21208394.75 | J137: 25515857.5 | K137: 22941274.08 | L137: 23052682.49 | M137: 23602760.26 | N137: 22531600.18 | O137: 22873980.8 | P137: 23711787.68 | Q137: 25258360.92 | S137: =S135-S136 -> 22915739.64 | T137: 24857751.48 | U137: 26022958.58 | V137: 26281893.49 | W137: =W135-W136 -> 24598816.57 | X137: =SUM(C137:G137)/SUM(S137:W137)-1 -> -1 | Y137: =Y135-Y136 -> 23684735.87 | Z137: =Z135-Z136 -> 23542414.43 | AA137: =AA135-AA136 -> 23490297.36 | AB137: =AB135-AB136 -> 23161416.81 | AC137: =AC135-AC136 -> 23842753.07 | AD137: =SUM(H137:L137)/SUM(Y137:AC137)-1 -> -0.06004270215 | AH137: =AH135-AH136 -> 0 | AI137: =AI135-AI136 -> 0 | AJ137: 0 | AK137: 0 | AL137: 0 | AM137: 0 | AN137: 0 | AO137: 0
B138: Source(s) of data: | H138: 2013-2015 AER Annual Reporting Templates - Template 2.2 Connections - Residential Tariff V | K138: Historic data sourced from Oracle Financials BM17 report. Forecast data sourced from capex model submitted as Attachment 8.8 to the AAI. | S138: Review of Gas Access Arrangements 2008 - 2012 - Variations to the Access Arrangements of Envestra (Victoria) and Envestra (Albury): ESC Appeal Panel Decisions E1 and E2 of 2008 - 25 March 2009 | Y138: Source: Envestra final submission capex file 2013 - 2017 'Attachment E - Capital Expenditure Model'
B140: =CONCATENATE("Table 4.2.4 - ", B26) -> Table 4.2.4 - New medium density
B141: =CONCATENATE("Number of new ", B26, " connections") -> Number of new New medium density connections | C141: =C26 -> 0 | D141: 0 | E141: 0 | F141: 0 | G141: 0 | H141: 2365 | I141: 2384 | J141: 1357 | K141: 2731.625796 | L141: 2774.226417 | M141: 2647.365075 | N141: 2562.189309 | O141: 2593.977903 | P141: 2638.925404 | Q141: 2683.886096 | S141: =S26 -> 0 | T141: 0 | U141: 0 | V141: 0 | W141: 0 | AD141: =SUM(H141:L141)/SUM(Y141:AC141)-1 ->  | AH141: =AH26 -> 0 | AI141: 0 | AJ141: 0 | AK141: 0 | AL141: 0 | AM141: 0 | AN141: 0 | AO141: 0
B142: Direct contractor expenditure
B143: Distribution mains | H143: 271825.215 | I143: 226442.7211 | J143: 513563.6962 | K143: 313236.9263 | L143: 318121.9612 | M143: 340620.1146 | N143: 329661.0749 | O143: 333751.117 | P143: 339534.2343 | Q143: 345319.0488 | X143: =SUM(C143:G143)/SUM(S143:W143)-1 ->  | AD143: =SUM(H143:L143)/SUM(Y143:AC143)-1 -> 
B144: Inlet / service pipes | H144: 2403669.1 | I144: 2210923.75 | J144: 2029708.98 | K144: 2579657.092 | L144: 2619887.709 | M144: 2688188.679 | N144: 2601699.464 | O144: 2633978.253 | P144: 2679618.864 | Q144: 2725272.871 | X144: =SUM(C144:G144)/SUM(S144:W144)-1 ->  | AD144: =SUM(H144:L144)/SUM(Y144:AC144)-1 -> 
B145: Meters | H145: 132306.4534 | I145: 140744.1917 | J145: 83278.13015 | K145: 169311.0022 | L145: 171951.4641 | M145: 164088.3736 | N145: 158809.0288 | O145: 160779.3422 | P145: 163565.2678 | Q145: 166352.0111 | X145: =SUM(C145:G145)/SUM(S145:W145)-1 ->  | AD145: =SUM(H145:L145)/SUM(Y145:AC145)-1 -> 
B146: Total contractor expenditure | C146: =SUM(C143:C145) -> 0 | D146: 0 | E146: 0 | F146: 0 | G146: 0 | H146: 2807800.768 | I146: 2578110.663 | J146: 2626550.806 | K146: 3062205.02 | L146: 3109961.135 | M146: 3192897.167 | N146: 3090169.567 | O146: 3128508.712 | P146: 3182718.366 | Q146: 3236943.931 | S146: =SUM(S143:S145) -> 0 | T146: 0 | U146: 0 | V146: 0 | W146: 0 | X146: =SUM(C146:G146)/SUM(S146:W146)-1 ->  | Y146: =SUM(Y143:Y145) -> 0 | Z146: =SUM(Z143:Z145) -> 0 | AA146: =SUM(AA143:AA145) -> 0 | AB146: =SUM(AB143:AB145) -> 0 | AC146: =SUM(AC143:AC145) -> 0 | AD146: =SUM(H146:L146)/SUM(Y146:AC146)-1 ->  | AH146: =SUM(AH143:AH145) -> 0 | AI146: 0 | AJ146: 0 | AK146: 0 | AL146: 0 | AM146: 0 | AN146: 0 | AO146: 0
B147: Direct internal labour expenditure
B148: Distribution mains | H148: 11538.86261 | I148: 12490.5863 | J148: 28694.12379 | K148: 12726.01937 | L148: 12924.48591 | M148: 18595.0826 | N148: 17996.80833 | O148: 18220.0913 | P148: 18535.80238 | Q148: 18851.60611 | X148: =SUM(C148:G148)/SUM(S148:W148)-1 ->  | AD148: =SUM(H148:L148)/SUM(Y148:AC148)-1 -> 
B149: Inlet / service pipes | H149: 135023.88 | I149: 189401.92 | J149: 177667.11 | K149: 198571.5365 | L149: 201668.3262 | M149: 226431.243 | N149: 219146.0919 | O149: 221864.9957 | P149: 225709.3912 | Q149: 229554.9149 | X149: =SUM(C149:G149)/SUM(S149:W149)-1 ->  | AD149: =SUM(H149:L149)/SUM(Y149:AC149)-1 -> 
B150: Meters | H150: 20343.23419 | I150: 30263.84381 | J150: 12477.17104 | K150: 33219.45927 | L150: 33737.52788 | M150: 33466.71391 | N150: 32389.96291 | O150: 32791.81901 | P150: 33360.02365 | Q150: 33928.39506 | X150: =SUM(C150:G150)/SUM(S150:W150)-1 ->  | AD150: =SUM(H150:L150)/SUM(Y150:AC150)-1 -> 
B151: Total labour expenditure | C151: =SUM(C148:C150) -> 0 | D151: 0 | E151: 0 | F151: 0 | G151: 0 | H151: 166905.9768 | I151: 232156.3501 | J151: 218838.4048 | K151: 244517.0151 | L151: 248330.34 | M151: 278493.0395 | N151: 269532.8632 | O151: 272876.906 | P151: 277605.2172 | Q151: 282334.9161 | S151: =SUM(S148:S150) -> 0 | T151: 0 | U151: 0 | V151: 0 | W151: 0 | X151: =SUM(C151:G151)/SUM(S151:W151)-1 ->  | Y151: =SUM(Y148:Y150) -> 0 | Z151: =SUM(Z148:Z150) -> 0 | AA151: =SUM(AA148:AA150) -> 0 | AB151: =SUM(AB148:AB150) -> 0 | AC151: =SUM(AC148:AC150) -> 0 | AD151: =SUM(H151:L151)/SUM(Y151:AC151)-1 ->  | AH151: =SUM(AH148:AH150) -> 0 | AI151: 0 | AJ151: 0 | AK151: 0 | AL151: 0 | AM151: 0 | AN151: 0 | AO151: 0
B152: Other internal direct expenditure
B153: Distribution mains | H153: 47310.48674 | I153: 11592.14111 | J153: 47408.46266 | K153: 37804.11612 | L153: 38393.68399 | M153: 30772.6384 | N153: 29782.56602 | O153: 30152.07263 | P153: 30674.53672 | Q153: 31197.15414 | X153: =SUM(C153:G153)/SUM(S153:W153)-1 ->  | AD153: =SUM(H153:L153)/SUM(Y153:AC153)-1 -> 
B154: Inlet / service pipes | H154: 110586.53 | I154: 155267.81 | J154: 181526.5 | K154: 817468.4989 | L154: 830217.1943 | M154: 422168.5125 | N154: 408585.7518 | O154: 413654.9973 | P154: 420822.6598 | Q154: 427992.4259 | X154: =SUM(C154:G154)/SUM(S154:W154)-1 ->  | AD154: =SUM(H154:L154)/SUM(Y154:AC154)-1 -> 
B155: Meters | H155: 290302.5608 | I155: 310905.8136 | J155: 155593.2184 | K155: 442273.9912 | L155: 449171.4024 | M155: 427359.4929 | N155: 413609.7187 | O155: 418741.2956 | P155: 425997.0916 | Q155: 433255.0171 | X155: =SUM(C155:G155)/SUM(S155:W155)-1 ->  | AD155: =SUM(H155:L155)/SUM(Y155:AC155)-1 -> 
B156: Total material expenditure | C156: =SUM(C153:C155) -> 0 | D156: 0 | E156: 0 | F156: 0 | G156: 0 | H156: 448199.5775 | I156: 477765.7647 | J156: 384528.181 | K156: 1297546.606 | L156: 1317782.281 | M156: 880300.6438 | N156: 851978.0366 | O156: 862548.3655 | P156: 877494.2881 | Q156: 892444.5971 | S156: =SUM(S153:S155) -> 0 | T156: 0 | U156: 0 | V156: 0 | W156: 0 | X156: =SUM(C156:G156)/SUM(S156:W156)-1 ->  | Y156: =SUM(Y153:Y155) -> 0 | Z156: =SUM(Z153:Z155) -> 0 | AA156: =SUM(AA153:AA155) -> 0 | AB156: =SUM(AB153:AB155) -> 0 | AC156: =SUM(AC153:AC155) -> 0 | AD156: =SUM(H156:L156)/SUM(Y156:AC156)-1 ->  | AH156: =SUM(AH153:AH155) -> 0 | AI156: 0 | AJ156: 0 | AK156: 0 | AL156: 0 | AM156: 0 | AN156: 0 | AO156: 0
B157: Total direct expenditure
B158: Distribution mains | C158: =C148+C143+C153 -> 0 | D158: 0 | E158: 0 | F158: 0 | G158: 0 | H158: 330674.5644 | I158: 250525.4485 | J158: 589666.2827 | K158: 363767.0618 | L158: 369440.1311 | M158: 389987.8356 | N158: 377440.4493 | O158: 382123.2809 | P158: 388744.5734 | Q158: 395367.8091 | S158: =S148+S143+S153 -> 0 | T158: 0 | U158: 0 | V158: 0 | W158: 0 | X158: =SUM(C158:G158)/SUM(S158:W158)-1 ->  | Y158: =Y148+Y143+Y153 -> 0 | Z158: 0 | AA158: 0 | AB158: 0 | AC158: 0 | AD158: =SUM(H158:L158)/SUM(Y158:AC158)-1 ->  | AH158: =AH148+AH143+AH153 -> 0 | AI158: 0 | AJ158: 0 | AK158: 0 | AL158: 0 | AM158: 0 | AN158: 0 | AO158: 0
B159: Inlet / service pipes | C159: 0 | D159: 0 | E159: 0 | F159: 0 | G159: 0 | H159: 2649279.51 | I159: 2555593.48 | J159: 2388902.59 | K159: 3595697.127 | L159: 3651773.23 | M159: 3336788.435 | N159: 3229431.307 | O159: 3269498.246 | P159: 3326150.915 | Q159: 3382820.212 | S159: 0 | T159: 0 | U159: 0 | V159: 0 | W159: 0 | Y159: 0 | Z159: 0 | AA159: 0 | AB159: 0 | AC159: 0 | AH159: =AH149+AH144+AH154 -> 0 | AI159: 0 | AJ159: 0 | AK159: 0 | AL159: 0 | AM159: 0 | AN159: 0 | AO159: 0
B160: Meters | C160: 0 | D160: 0 | E160: 0 | F160: 0 | G160: 0 | H160: 442952.2483 | I160: 481913.8491 | J160: 251348.5196 | K160: 644804.4527 | L160: 654860.3944 | M160: 624914.5803 | N160: 604808.7105 | O160: 612312.4567 | P160: 622922.383 | Q160: 633535.4232 | S160: 0 | T160: 0 | U160: 0 | V160: 0 | W160: 0 | Y160: 0 | Z160: 0 | AA160: 0 | AB160: 0 | AC160: 0 | AH160: =AH150+AH145+AH155 -> 0 | AI160: 0 | AJ160: 0 | AK160: 0 | AL160: 0 | AM160: 0 | AN160: 0 | AO160: 0
B161: Total direct expenditure | C161: =SUM(C158:C160) -> 0 | D161: =SUM(D158:D160) -> 0 | E161: 0 | F161: 0 | G161: 0 | H161: 3422906.323 | I161: 3288032.778 | J161: 3229917.392 | K161: 4604268.642 | L161: 4676073.755 | M161: 4351690.851 | N161: 4211680.467 | O161: 4263933.983 | P161: 4337817.872 | Q161: 4411723.444 | S161: =SUM(S158:S160) -> 0 | T161: 0 | U161: 0 | V161: 0 | W161: =SUM(W158:W160) -> 0 | Y161: 2332513.53 | Z161: 2319810.759 | AA161: 2316429.98 | AB161: 2284377.94 | AC161: 2353149.167 | AD161: 0.6561031278 | AH161: =SUM(AH158:AH160) -> 0 | AI161: =SUM(AI158:AI160) -> 0 | AJ161: 0 | AK161: 0 | AL161: 0 | AM161: 0 | AN161: 0 | AO161: 0
B162: Total overhead cost | H162: 303107.4212 | I162: 279682.232 | J162: 241232.4809 | K162: 389845.5135 | L162: 359845.2203 | M162: 362184.2809 | N162: 308422.0334 | O162: 320953.2483 | P162: 386669.0673 | Q162: 548417.4383 | Y162: 466502.7059 | Z162: 463962.1518 | AA162: 463285.9961 | AB162: 456875.5881 | AC162: 470629.8334 | AD162: -0.3220426005
B163: Related party margin | H163: 104023.0881 | I163: 94929.52557 | J163: 93267.71143 | K163: 176427.5479 | L163: 159732.1372 | M163: 142248.175 | N163: 115636.1831 | O163: 121294.1666 | P163: 154068.0932 | Q163: 236612.1171
B164: =CONCATENATE("Tottal Gross expenditure on new ", B26, " connections") -> Tottal Gross expenditure on new New medium density connections | C164: =SUM(C161,C162,C163) -> 0 | D164: =SUM(D161,D162,D163) -> 0 | E164: 0 | F164: 0 | G164: 0 | H164: 3830036.832 | I164: 3662644.535 | J164: 3564417.585 | K164: 5170541.703 | L164: 5195651.113 | M164: 4856123.307 | N164: 4635738.684 | O164: 4706181.398 | P164: 4878555.032 | Q164: 5196753 | S164: =SUM(S161,S162,S163) -> 0 | T164: =SUM(T161,T162,T163) -> 0 | U164: =SUM(U161,U162,U163) -> 0 | V164: =SUM(V161,V162,V163) -> 0 | W164: =SUM(W161,W162,W163) -> 0 | Y164: =SUM(Y161,Y162,Y163) -> 2799016.236 | Z164: =SUM(Z161,Z162,Z163) -> 2783772.911 | AA164: =SUM(AA161,AA162,AA163) -> 2779715.976 | AB164: =SUM(AB161,AB162,AB163) -> 2741253.528 | AC164: =SUM(AC161,AC162,AC163) -> 2823779 | AD164: 0.5381966507 | AH164: =SUM(AH161,AH162,AH163) -> 0 | AI164: =SUM(AI161,AI162,AI163) -> 0 | AJ164: 0 | AK164: 0 | AL164: 0 | AM164: 0 | AN164: 0 | AO164: 0
B165: Less customer contributions
B166: =CONCATENATE("Total Net expenditure on new ", B26, " connections") -> Total Net expenditure on new New medium density connections | C166: =C164-C165 -> 0 | D166: =D164-D165 -> 0 | E166: 0 | F166: 0 | G166: 0 | H166: 3830036.832 | I166: 3662644.535 | J166: 3564417.585 | K166: 5170541.703 | L166: 5195651.113 | M166: 4856123.307 | N166: 4635738.684 | O166: 4706181.398 | P166: 4878555.032 | Q166: 5196753 | S166: =S164-S165 -> 0 | T166: 0 | U166: 0 | V166: 0 | W166: =W164-W165 -> 0 | X166: =SUM(C166:G166)/SUM(S166:W166)-1 ->  | Y166: =Y164-Y165 -> 2799016.236 | Z166: =Z164-Z165 -> 2783772.911 | AA166: =AA164-AA165 -> 2779715.976 | AB166: =AB164-AB165 -> 2741253.528 | AC166: =AC164-AC165 -> 2823779 | AD166: =SUM(H166:L166)/SUM(Y166:AC166)-1 -> 0.5381966507 | AH166: =AH164-AH165 -> 0 | AI166: =AI164-AI165 -> 0 | AJ166: 0 | AK166: 0 | AL166: 0 | AM166: 0 | AN166: 0 | AO166: 0
B167: Source(s) of data: | H167: 2013-2015 AER Annual Reporting Templates - Template 2.2 Connections - Residential Tariff V | K167: Historic data sourced from Oracle Financials BM17 report. Forecast data sourced from capex model submitted as Attachment 8.8 to the AAI. | Y167: Source: Envestra final submission capex file 2013 - 2017 'Attachment E - Capital Expenditure Model'
B169: Table 4.2.5 - I&C volume
B170: Number of new I&C tariff connections | C170: =C27 -> 361 | D170: 454 | E170: 319 | F170: 362 | G170: 379 | H170: 348 | I170: 264 | J170: 266 | K170: 327.6899271 | L170: 329.623489 | M170: 331.5702728 | N170: 333.5304105 | O170: 335.5040359 | P170: 337.4912848 | Q170: 339.4922951 | S170: =S27 -> 707 | T170: 704 | U170: 816 | V170: 869 | W170: 854 | X170: -0.5253164557 | Y170: 228.6682491 | Z170: 437.1132091 | AA170: 434.3872461 | AB170: 371.3592695 | AC170: 449.5827271 | AD170: =SUM(H170:L170)/SUM(Y170:AC170)-1 -> -0.2008199135 | AH170: =AH27 -> 0 | AI170: 0 | AJ170: 0 | AK170: 0 | AL170: 0 | AM170: 0 | AN170: 0 | AO170: 0
B171: Direct contractor expenditure
B172: Distribution mains | H172: 543091.54 | I172: 530890.97 | J172: 1108980.57 | K172: 2749642.641 | L172: 2765867.139 | M172: 1783397.001 | N172: 1793939.875 | O172: 1804555.295 | P172: 1815243.991 | Q172: 1826006.704 | X172: =SUM(C172:G172)/SUM(S172:W172)-1 ->  | AD172: =SUM(H172:L172)/SUM(Y172:AC172)-1 -> 
B173: Service Pipes | H173: 822953.93 | I173: 666408.01 | J173: 860578.05 | K173: 1239426.895 | L173: 1246740.237 | M173: 1249008.689 | N173: 1256392.43 | O173: 1263826.978 | P173: 1271312.846 | Q173: 1278850.552 | X173: =SUM(C173:G173)/SUM(S173:W173)-1 ->  | AD173: =SUM(H173:L173)/SUM(Y173:AC173)-1 -> 
B174: Meters | H174: 567844.72 | I174: 950568.31 | J174: 1031553.36 | K174: 1600481.699 | L174: 1609925.476 | M174: 1395392.187 | N174: 1403641.3 | O174: 1411947.176 | P174: 1420310.385 | Q174: 1428731.509 | X174: =SUM(C174:G174)/SUM(S174:W174)-1 ->  | AD174: =SUM(H174:L174)/SUM(Y174:AC174)-1 -> 
B175: Total contractor expenditure | C175: =SUM(C172:C174) -> 0 | D175: 0 | E175: 0 | F175: 0 | G175: 0 | H175: 1933890.19 | I175: 2147867.29 | J175: 3001111.98 | K175: 5589551.235 | L175: 5622532.852 | M175: 4427797.877 | N175: 4453973.605 | O175: 4480329.449 | P175: 4506867.222 | Q175: 4533588.764 | S175: =SUM(S172:S174) -> 0 | T175: 0 | U175: 0 | V175: 0 | W175: 0 | X175: =SUM(C175:G175)/SUM(S175:W175)-1 ->  | Y175: =SUM(Y172:Y174) -> 0 | Z175: =SUM(Z172:Z174) -> 0 | AA175: =SUM(AA172:AA174) -> 0 | AB175: =SUM(AB172:AB174) -> 0 | AC175: =SUM(AC172:AC174) -> 0 | AD175: =SUM(H175:L175)/SUM(Y175:AC175)-1 ->  | AH175: =SUM(AH172:AH174) -> 0 | AI175: 0 | AJ175: 0 | AK175: 0 | AL175: 0 | AM175: 0 | AN175: 0 | AO175: 0
B176: Direct internal labour expenditure
B177: Distribution mains | H177: 22698.77 | I177: 70307.76 | J177: 102860.89 | K177: 180372.0663 | L177: 181436.3668 | M177: 159366.8897 | N177: 160309.0159 | O177: 161257.6248 | P177: 162212.7819 | Q177: 163174.5532 | X177: =SUM(C177:G177)/SUM(S177:W177)-1 ->  | AD177: =SUM(H177:L177)/SUM(Y177:AC177)-1 -> 
B178: Service Pipes | H178: 37164.24 | I178: 72109.09 | J178: 88432.83 | K178: 75484.72026 | L178: 75930.1242 | M178: 110356.8069 | N178: 111009.2011 | O178: 111666.0844 | P178: 112327.5021 | Q178: 112993.5 | X178: =SUM(C178:G178)/SUM(S178:W178)-1 ->  | AD178: =SUM(H178:L178)/SUM(Y178:AC178)-1 -> 
B179: Meters | H179: 103167.79 | I179: 129762.41 | J179: 111919.42 | K179: 125430.37 | L179: 126170.4824 | M179: 149006.6179 | N179: 149887.4974 | O179: 150774.4384 | P179: 151667.5017 | Q179: 152566.7493 | X179: =SUM(C179:G179)/SUM(S179:W179)-1 ->  | AD179: =SUM(H179:L179)/SUM(Y179:AC179)-1 -> 
B180: Total labour expenditure | C180: =SUM(C177:C179) -> 0 | D180: 0 | E180: 0 | F180: 0 | G180: 0 | H180: 163030.8 | I180: 272179.26 | J180: 303213.14 | K180: 381287.1565 | L180: 383536.9734 | M180: 418730.3144 | N180: 421205.7144 | O180: 423698.1476 | P180: 426207.7857 | Q180: 428734.8025 | S180: =SUM(S177:S179) -> 0 | T180: 0 | U180: 0 | V180: 0 | W180: 0 | X180: =SUM(C180:G180)/SUM(S180:W180)-1 ->  | Y180: =SUM(Y177:Y179) -> 0 | Z180: =SUM(Z177:Z179) -> 0 | AA180: =SUM(AA177:AA179) -> 0 | AB180: =SUM(AB177:AB179) -> 0 | AC180: =SUM(AC177:AC179) -> 0 | AD180: =SUM(H180:L180)/SUM(Y180:AC180)-1 ->  | AH180: =SUM(AH177:AH179) -> 0 | AI180: 0 | AJ180: 0 | AK180: 0 | AL180: 0 | AM180: 0 | AN180: 0 | AO180: 0
B181: Other internal direct expenditure
B182: Distribution mains | H182: 51723.15 | I182: 39734.57 | J182: 71228.22 | K182: 261785.5704 | L182: 263330.2581 | M182: 138827.4908 | N182: 139648.1946 | O182: 140474.5457 | P182: 141306.6009 | Q182: 142144.418 | X182: =SUM(C182:G182)/SUM(S182:W182)-1 ->  | AD182: =SUM(H182:L182)/SUM(Y182:AC182)-1 -> 
B183: Service Pipes | H183: 90158.41 | I183: 233657.51 | J183: 235723.69 | K183: 256206.469 | L183: 257718.2368 | M183: 319852.3045 | N183: 321743.1693 | O183: 323647.0451 | P183: 325564.063 | Q183: 327494.356 | X183: =SUM(C183:G183)/SUM(S183:W183)-1 ->  | AD183: =SUM(H183:L183)/SUM(Y183:AC183)-1 -> 
B184: Meters | H184: 934317.15 | I184: 973448.96 | J184: 603207.31 | K184: 684525.3558 | L184: 688564.4552 | M184: 907205.1276 | N184: 912568.2349 | O184: 917968.2457 | P184: 923405.5318 | Q184: 928880.4701 | X184: =SUM(C184:G184)/SUM(S184:W184)-1 ->  | AD184: =SUM(H184:L184)/SUM(Y184:AC184)-1 -> 
B185: Total material expenditure | C185: =SUM(C182:C184) -> 0 | D185: 0 | E185: 0 | F185: 0 | G185: 0 | H185: 1076198.71 | I185: 1246841.04 | J185: 910159.22 | K185: 1202517.395 | L185: 1209612.95 | M185: 1365884.923 | N185: 1373959.599 | O185: 1382089.837 | P185: 1390276.196 | Q185: 1398519.244 | S185: =SUM(S182:S184) -> 0 | T185: 0 | U185: 0 | V185: 0 | W185: 0 | X185: =SUM(C185:G185)/SUM(S185:W185)-1 ->  | Y185: =SUM(Y182:Y184) -> 0 | Z185: =SUM(Z182:Z184) -> 0 | AA185: =SUM(AA182:AA184) -> 0 | AB185: =SUM(AB182:AB184) -> 0 | AC185: =SUM(AC182:AC184) -> 0 | AD185: =SUM(H185:L185)/SUM(Y185:AC185)-1 ->  | AH185: =SUM(AH182:AH184) -> 0 | AI185: 0 | AJ185: 0 | AK185: 0 | AL185: 0 | AM185: 0 | AN185: 0 | AO185: 0
B186: Total direct expenditure
B187: Distribution mains | C187: =C177+C172+C182 -> 0 | D187: 0 | E187: 0 | F187: 0 | G187: 0 | H187: 617513.46 | I187: 640933.3 | J187: 1283069.68 | K187: 3191800.278 | L187: 3210633.764 | M187: 2081591.382 | N187: 2093897.086 | O187: 2106287.465 | P187: 2118763.373 | Q187: 2131325.675 | S187: =S177+S172+S182 -> 0 | T187: 0 | U187: 0 | V187: 0 | W187: 0 | X187: =SUM(C187:G187)/SUM(S187:W187)-1 ->  | Y187: =Y177+Y172+Y182 -> 0 | Z187: 0 | AA187: 0 | AB187: 0 | AC187: 0 | AD187: =SUM(H187:L187)/SUM(Y187:AC187)-1 ->  | AH187: =AH177+AH172+AH182 -> 0 | AI187: 0 | AJ187: 0 | AK187: 0 | AL187: 0 | AM187: 0 | AN187: 0 | AO187: 0
B188: Service Pipes | C188: 0 | D188: 0 | E188: 0 | F188: 0 | G188: 0 | H188: 950276.58 | I188: 972174.61 | J188: 1184734.57 | K188: 1571118.084 | L188: 1580388.599 | M188: 1679217.801 | N188: 1689144.8 | O188: 1699140.108 | P188: 1709204.411 | Q188: 1719338.408 | S188: 0 | T188: 0 | U188: 0 | V188: 0 | W188: 0 | Y188: 0 | Z188: 0 | AA188: 0 | AB188: 0 | AC188: 0 | AH188: =AH178+AH173+AH183 -> 0 | AI188: 0 | AJ188: 0 | AK188: 0 | AL188: 0 | AM188: 0 | AN188: 0 | AO188: 0
B189: Meters | C189: 0 | D189: 0 | E189: 0 | F189: 0 | G189: 0 | H189: 1605329.66 | I189: 2053779.68 | J189: 1746680.09 | K189: 2410437.425 | L189: 2424660.414 | M189: 2451603.932 | N189: 2466097.033 | O189: 2480689.86 | P189: 2495383.419 | Q189: 2510178.728 | S189: 0 | T189: 0 | U189: 0 | V189: 0 | W189: 0 | Y189: 0 | Z189: 0 | AA189: 0 | AB189: 0 | AC189: 0 | AH189: =AH179+AH174+AH184 -> 0 | AI189: 0 | AJ189: 0 | AK189: 0 | AL189: 0 | AM189: 0 | AN189: 0 | AO189: 0
B190: Total direct expenditure | C190: 3338000 | D190: 2882228 | E190: 2407000 | F190: 2611000 | G190: 3699820 | H190: =SUM(H187:H189) -> 3173119.7 | I190: 3666887.59 | J190: 4214484.34 | K190: 7173355.787 | L190: 7215682.776 | M190: 6212413.115 | N190: 6249138.919 | O190: 6286117.433 | P190: 6323351.204 | Q190: 6360842.811 | S190: =2.9*S334*1000000 -> 3754556.213 | T190: =3*T334*1000000 -> 3884023.669 | U190: =3.6*U334*1000000 -> 4660828.402 | V190: =3.9*V334*1000000 -> 5049230.769 | W190: =3.9*W334*1000000 -> 5049230.769 | X190: -0.333059433 | Y190: 3646847.558 | Z190: 7010780.78 | AA190: 7015773.856 | AB190: 6016519.741 | AC190: 7330008.821 | AD190: -0.1797683111 | AH190: =SUM(AH187:AH189) -> 0 | AI190: =SUM(AI187:AI189) -> 0 | AJ190: 0 | AK190: 0 | AL190: 0 | AM190: 0 | AN190: 0 | AO190: 0
B191: Total overhead cost | H191: 283052.986 | I191: 306674.9022 | J191: 322981.086 | K191: 607371.287 | L191: 555279.7269 | M191: 517049.2238 | N191: 457625.4413 | O191: 473166.2866 | P191: 563657.6695 | Q191: 790710.7425 | Y191: 550933.255 | Z191: 846691.8678 | AA191: 909684.1512 | AB191: 870022.5778 | AC191: 1187662.754 | AD191: -0.5245446614
B192: Related party margin | H192: 96485.26963 | I192: 105720.3732 | J192: 121917.4398 | K192: 274870.4887 | L192: 246483.8007 | M192: 203071.5091 | N192: 171576.7799 | O192: 178818.2881 | P192: 224589.1117 | Q192: 341148.4204
B193: Total gross expenditure on I&C volume connections | C193: =SUM(C190,C191,C192) -> 3338000 | D193: =SUM(D190,D191,D192) -> 2882228 | E193: 2407000 | F193: 2611000 | G193: 3699820 | H193: 3552657.956 | I193: 4079282.865 | J193: 4659382.866 | K193: 8055597.563 | L193: 8017446.303 | M193: 6932533.847 | N193: 6878341.14 | O193: 6938102.008 | P193: 7111597.985 | Q193: 7492701.974 | S193: =SUM(S190,S191,S192) -> 3754556.213 | T193: =SUM(T190,T191,T192) -> 3884023.669 | U193: =SUM(U190,U191,U192) -> 4660828.402 | V193: =SUM(V190,V191,V192) -> 5049230.769 | W193: =SUM(W190,W191,W192) -> 5049230.769 | X193: -0.333059433 | Y193: =SUM(Y190,Y191,Y192) -> 4197780.813 | Z193: =SUM(Z190,Z191,Z192) -> 7857472.647 | AA193: =SUM(AA190,AA191,AA192) -> 7925458.007 | AB193: =SUM(AB190,AB191,AB192) -> 6886542.319 | AC193: =SUM(AC190,AC191,AC192) -> 8517671.575 | AD193: -0.1984053304 | AH193: =SUM(AH190,AH191,AH192) -> 0 | AI193: =SUM(AI190,AI191,AI192) -> 0 | AJ193: 0 | AK193: 0 | AL193: 0 | AM193: 0 | AN193: 0 | AO193: 0
B194: Less customer contributions | S194: =(0.18+0.5)*S334*1000000 -> 880378.6982 | T194: =0.18*T334*1000000 -> 233041.4201 | U194: =0.18*U334*1000000 -> 233041.4201 | V194: =0.18*V334*1000000 -> 233041.4201 | W194: =0.18*W334*1000000 -> 233041.4201
B195: Total Net expenditure on I&C volume connections | C195: =C193-C194 -> 3338000 | D195: =D193-D194 -> 2882228 | E195: 2407000 | F195: 2611000 | G195: 3699820 | H195: 3552657.956 | I195: 4079282.865 | J195: 4659382.866 | K195: 8055597.563 | L195: 8017446.303 | M195: 6932533.847 | N195: 6878341.14 | O195: 6938102.008 | P195: 7111597.985 | Q195: 7492701.974 | S195: =S193-S194 -> 2874177.515 | T195: 3650982.249 | U195: 4427786.982 | V195: 4816189.349 | W195: =W193-W194 -> 4816189.349 | X195: =SUM(C195:G195)/SUM(S195:W195)-1 -> -0.2743351063 | Y195: =Y193-Y194 -> 4197780.813 | Z195: =Z193-Z194 -> 7857472.647 | AA195: =AA193-AA194 -> 7925458.007 | AB195: =AB193-AB194 -> 6886542.319 | AC195: =AC193-AC194 -> 8517671.575 | AD195: =SUM(H195:L195)/SUM(Y195:AC195)-1 -> -0.1984053304 | AH195: =AH193-AH194 -> 0 | AI195: =AI193-AI194 -> 0 | AJ195: 0 | AK195: 0 | AL195: 0 | AM195: 0 | AN195: 0 | AO195: 0
B196: Source(s) of data: | C196: 2008-2012 ESC Regulatory Accounting Statements - Statement 4b "Commercial/industrial Connections" - Total Cost | H196: 2013-2015 AER Annual Reporting Templates - Template 2.2 Connections - I&C Tariff V | K196: Historic data sourced from Oracle Financials BM17 report. Forecast data sourced from capex model submitted as Attachment 8.8 to the AAI. | S196: Review of Gas Access Arrangements 2008 - 2012 - Variations to the Access Arrangements of Envestra (Victoria) and Envestra (Albury): ESC Appeal Panel Decisions E1 and E2 of 2008 - 25 March 2009 | Y196: Source: Envestra final submission capex file 2013 - 2017 'Attachment E - Capital Expenditure Model'
H197: =SUM(H187:J188) -> 5648702.2 | I197: =SUM(H189:J189) -> 5405789.43 | J197: =SUM(H197:I197) -> 11054491.63 | K197: =H197/J197 -> 0.510987062 | L197: =1-K197 -> 0.489012938
B198: Table 4.2.6 - I&C contract
B199: Number of new I&C contract connections | S199: =S28 -> 0 | T199: 0 | U199: 0 | V199: 0 | W199: 0 | Y199: 0 | Z199: 0 | AA199: 0 | AB199: 0 | AC199: 0 | AD199: =SUM(H277:L277)/SUM(Y199:AC199)-1 ->  | AH199: =AH57 -> $0's, real December 2017 | AI199: 0 | AJ199: 0 | AK199: 0 | AL199: 0 | AM199: 0 | AN199: 0 | AO199: 0
B200: Direct contractor expenditure
B201: Distribution mains | X201: =SUM(C279:G279)/SUM(S201:W201)-1 ->  | AD201: =SUM(H279:L279)/SUM(Y201:AC201)-1 -> 
B202: Service Pipes | X202: =SUM(C280:G280)/SUM(S202:W202)-1 ->  | AD202: =SUM(H280:L280)/SUM(Y202:AC202)-1 -> 
B203: Meters | X203: =SUM(C281:G281)/SUM(S203:W203)-1 ->  | AD203: =SUM(H281:L281)/SUM(Y203:AC203)-1 -> 
B204: Total contractor expenditure | C204: =SUM(C201:C203) -> 0 | D204: 0 | E204: 0 | F204: 0 | G204: 0 | H204: 0 | I204: 0 | J204: 0 | K204: 0 | L204: 0 | M204: 0 | N204: 0 | O204: 0 | P204: 0 | Q204: 0 | S204: =SUM(S201:S203) -> 0 | T204: 0 | U204: 0 | V204: 0 | W204: 0 | X204: =SUM(C282:G282)/SUM(S204:W204)-1 ->  | Y204: =SUM(Y201:Y203) -> 0 | Z204: =SUM(Z201:Z203) -> 0 | AA204: =SUM(AA201:AA203) -> 0 | AB204: =SUM(AB201:AB203) -> 0 | AC204: =SUM(AC201:AC203) -> 0 | AD204: =SUM(H282:L282)/SUM(Y204:AC204)-1 ->  | AH204: =SUM(AH201:AH203) -> 0 | AI204: 0 | AJ204: 0 | AK204: 0 | AL204: 0 | AM204: 0 | AN204: 0 | AO204: 0
B205: Direct internal labour expenditure
B206: Distribution mains | X206: =SUM(C284:G284)/SUM(S206:W206)-1 ->  | AD206: =SUM(H284:L284)/SUM(Y206:AC206)-1 -> 
B207: Service Pipes | X207: =SUM(C285:G285)/SUM(S207:W207)-1 ->  | AD207: =SUM(H285:L285)/SUM(Y207:AC207)-1 -> 
B208: Meters | X208: =SUM(C286:G286)/SUM(S208:W208)-1 ->  | AD208: =SUM(H286:L286)/SUM(Y208:AC208)-1 -> 
B209: Total labour expenditure | C209: =SUM(C206:C208) -> 0 | D209: 0 | E209: 0 | F209: 0 | G209: 0 | H209: 0 | I209: 0 | J209: 0 | K209: 0 | L209: 0 | M209: 0 | N209: 0 | O209: 0 | P209: 0 | Q209: 0 | S209: =SUM(S206:S208) -> 0 | T209: 0 | U209: 0 | V209: 0 | W209: 0 | X209: =SUM(C287:G287)/SUM(S209:W209)-1 ->  | Y209: =SUM(Y206:Y208) -> 0 | Z209: =SUM(Z206:Z208) -> 0 | AA209: =SUM(AA206:AA208) -> 0 | AB209: =SUM(AB206:AB208) -> 0 | AC209: =SUM(AC206:AC208) -> 0 | AD209: =SUM(H287:L287)/SUM(Y209:AC209)-1 ->  | AH209: =SUM(AH206:AH208) -> 0 | AI209: 0 | AJ209: 0 | AK209: 0 | AL209: 0 | AM209: 0 | AN209: 0 | AO209: 0
B210: Other internal direct expenditure
B211: Distribution mains | X211: =SUM(C289:G289)/SUM(S211:W211)-1 ->  | AD211: =SUM(H289:L289)/SUM(Y211:AC211)-1 -> 
B212: Service Pipes | X212: =SUM(C290:G290)/SUM(S212:W212)-1 ->  | AD212: =SUM(H290:L290)/SUM(Y212:AC212)-1 -> 
... 115 more rows

Sheet 5. Mains augmentation
E1: =IF(dms_DataQuality="backcast",INDEX(dms_Worksheet_List,MATCH(dms_Model,dms_Model_List))&" BACKCAST",INDEX(dms_Worksheet_List,MATCH(dms_Model,dms_Model_List))) -> REGULATORY REPORTING STATEMENT
E2: =INDEX(dms_TradingNameFull_List,MATCH(dms_TradingName,dms_TradingName_List)) -> Australian Gas Networks Limited (reporting data for Victoria)
E3: =IF(SUM(dms_SingleYear_Model)>0,CRY,CONCATENATE(FRCP_y1," to ",dms_MultiYear_FinalYear_Result)) -> 2018 to 2022 | F3: =CONCATENATE(LEFT(FRCP_y1,4),"-",LEFT(FRCP_y5,2),RIGHT(FRCP_y5,2)) -> 2018-2022
E4: 5A. MAINS AUGMENTATION CAPITAL EXPENDITURE
A6: HPM | B6: HP mains | E6: Instructions
A7: HPS | B7: HP services | E7: This template asks for information relating to network augmentation capital expenditure
A8: MPS | B8: MP services | E8: =CONCATENATE("As set out in cl.6.1 of the ", dms_TradingName, " RIN, for tables 5.1 to 5.2, where the requested data is captured in the ", dms_TradingName, " capex model it is not required to be reentered in the RIN template tables. If the requested data has not been provided in the ", dms_TradingName, " RIN please enter into the tables. This may require the insertion of new lines in each table.") -> As set out in cl.6.1 of the AGN (Victoria) RIN, for tables 5.1 to 5.2, where the requested data is captured in the AGN (Victoria) capex model it is not required to be reentered in the RIN template tables. If the requested data has not been provided in the AGN (Victoria) RIN please enter into the tables. This may require the insertion of new lines in each table.
A9: TRS | B9: TRS & DRS - valves & regulators | E9: Reported expenditure is to be entered EXCLUSIVE of any profit margins or management fees paid pursuant to arrangements or contracts with any related parties. Include any Related party margin expenditure or management fees in the separate 'Related party margin expenditure' line item.
A10: TM | B10: Tariff meters | E10: =CONCATENATE("Subject to cl.6.1 of the ", dms_TradingName, " RIN, where linked/adjustable overhead expenditure and Related party margin expenditure is not provided in the ", dms_TradingName, " capex model, overhead expenditure and Related party margin expenditure should be linked to allocations derived in tabs '14. Overheads' and '15. Related party transactions'.") -> Subject to cl.6.1 of the AGN (Victoria) RIN, where linked/adjustable overhead expenditure and Related party margin expenditure is not provided in the AGN (Victoria) capex model, overhead expenditure and Related party margin expenditure should be linked to allocations derived in tabs '14. Overheads' and '15. Related party transactions'.
A11: RC | B11: Regulatory costs | E11: Capital expenditure amounts entered should be GROSS of customer contributions. There is a separate line item for customer contributions from which net capital expenditure is derived.
A12: ERC | B12: Equity raising costs
E14: Table 5 - MAINS AUGMENTATION CAPITAL EXPENDITURE | AA14: REAL $ CONVERSION OF HISTORICAL DATA
E15: Table 5.1 - Mains augmentation expenditure (actual/forecast)
G16: Previous access arrangement period | L16: Current access arrangement period | Q16: Variance | R16: Next access arrangement period | W16: Supporting documentation (business case, costing spreadsheet, contracts) | AA16: Previous access arrangement period | AF16: Current access arrangement period
G17: $0's, nominal | O17: =CONCATENATE("$0's, real ",dms_DollarReal) -> $0's, real December 2017 | R17: =CONCATENATE("$0's, real ",dms_DollarReal) -> $0's, real December 2017 | AA17: =CONCATENATE("$0's, real ",dms_DollarReal) -> $0's, real December 2017
A18: Internal identification code | B18: Asset category | C18: Percent allocation | G18: Actual | O18: Forecast | Q18: Actual vs Approved | R18: Forecast | AA18: Actual
G19: =PRCP -> 2008 | H19: 2009 | I19: 2010 | J19: 2011 | K19: 2012 | L19: =CRCP_y1 -> 2013 | M19: =CRCP_y2 -> 2014 | N19: =CRCP_y3 -> 2015 | O19: =CRCP_y4 -> 2016 | P19: =CRCP_y5 -> 2017 | Q19: % | R19: =FRCP -> 2018 | S19: 2019 | T19: 2020 | U19: 2021 | V19: 2022 | AA19: =PRCP -> 2008 | AB19: 2009 | AC19: 2010 | AD19: 2011 | AE19: 2012 | AF19: =CRCP_y1 -> 2013 | AG19: =CRCP_y2 -> 2014 | AH19: =CRCP_y3 -> 2015
E20: General | F20: Direct internal labour expenditure
F21: Direct contractor expenditure
F22: Other internal direct expenditure
F23: Total direct expenditure | R23: =SUM(R20:R22) -> 0 | S23: =SUM(S20:S22) -> 0 | T23: =SUM(T20:T22) -> 0 | U23: =SUM(U20:U22) -> 0 | V23: =SUM(V20:V22) -> 0
F24: Total overhead expenditure
F25: Related party margin expenditure
F26: Total gross expenditure | G26: 2249000 | H26: 6402000 | I26: 7449000 | J26: 3723000 | K26: 17095000 | L26: =SUM(L23:L25) -> 0 | M26: 0 | N26: 0 | O26: 0 | P26: 0 | Q26: 0 | R26: 0 | S26: 0 | T26: 0 | U26: 0 | V26: 0 | AA26: =SUM(AA23:AA25) -> 0 | AB26: =SUM(AB23:AB25) -> 0 | AC26: 0 | AD26: 0 | AE26: 0 | AF26: 0 | AG26: 0 | AH26: 0
F27: Less customer contributions
F28: Total net expenditure | G28: =G26-G27 -> 2249000 | H28: =H26-H27 -> 6402000 | I28: =I26-I27 -> 7449000 | J28: =J26-J27 -> 3723000 | K28: =K26-K27 -> 17095000 | L28: =L26-L27 -> 0 | M28: 0 | N28: =N26-N27 -> 0 | O28: 0 | P28: 0 | Q28: 0 | R28: =R26-R27 -> 0 | S28: 0 | T28: 0 | U28: 0 | V28: 0 | AA28: =AA26-AA27 -> 0 | AB28: 0 | AC28: 0 | AD28: 0 | AE28: 0 | AF28: 0 | AG28: 0 | AH28: 0
E29: HP UNSPECIFIED PROJECT | F29: Direct internal labour expenditure | L29: 110298.35 | M29: 39262.09 | N29: 16188.76 | O29: 0 | P29: 0 | Q29: 0 | R29: 0 | S29: 0 | T29: 0 | U29: 0 | V29: 0
F30: Direct contractor expenditure | L30: 1650642 | M30: 642427.89 | N30: 245619.17 | O30: 0 | P30: 0 | Q30: 0 | R30: 0 | S30: 0 | T30: 0 | U30: 0 | V30: 0
F31: Other internal direct expenditure | L31: 244596.96 | M31: 191090.74 | N31: 212625.71 | O31: 0 | P31: 0 | Q31: 0 | R31: 0 | S31: 0 | T31: 0 | U31: 0 | V31: 0
F32: Total direct expenditure | L32: =SUM(L29:L31) -> 2005537.31 | M32: =SUM(M29:M31) -> 872780.72 | N32: 474433.64 | O32: =SUM(O29:O31) -> 0 | P32: 0 | Q32: 0 | R32: 0 | S32: 0 | T32: 0 | U32: 0 | V32: 0
F33: Total overhead expenditure | L33: 208974.2976 | M33: 79979.30701 | N33: 36463.3027 | O33: 25894.51689 | P33: 23534.78923 | Q33: 0 | R33: 0 | S33: 0 | T33: 0 | U33: 0 | V33: 0
F34: Related party margin expenditure | L34: 61826.48736 | M34: 25348.63514 | N34: 13727.32163 | O34: 11718.76028 | P34: 10446.88652 | Q34: 0 | R34: 0 | S34: 0 | T34: 0 | U34: 0 | V34: 0
F35: Total gross expenditure | G35: =SUM(G32:G34) -> 0 | H35: =SUM(H32:H34) -> 0 | I35: 0 | J35: 0 | K35: 0 | L35: =SUM(L32:L34) -> 2276338.095 | M35: =SUM(M32:M34) -> 978108.6621 | N35: 524624.2643 | O35: 37613.27717 | P35: 33981.67575 | Q35: 0 | R35: 0 | S35: 0 | T35: 0 | U35: 0 | V35: 0 | AA35: =SUM(AA32:AA34) -> 0 | AB35: =SUM(AB32:AB34) -> 0 | AC35: 0 | AD35: 0 | AE35: 0 | AF35: 0 | AG35: 0 | AH35: 0
F36: Less customer contributions | L36: 0 | M36: 0 | N36: 0 | O36: 0 | P36: 0 | Q36: 0 | R36: 0 | S36: 0 | T36: 0 | U36: 0 | V36: 0
F37: Total net expenditure | G37: =G35-G36 -> 0 | H37: =H35-H36 -> 0 | I37: =I35-I36 -> 0 | J37: =J35-J36 -> 0 | K37: =K35-K36 -> 0 | L37: =+L35-L36 -> 2276338.095 | M37: =+M35-M36 -> 978108.6621 | N37: 524624.2643 | O37: 37613.27717 | P37: 33981.67575 | Q37: 0 | R37: 0 | S37: 0 | T37: 0 | U37: 0 | V37: 0 | AA37: =AA35-AA36 -> 0 | AB37: =AB35-AB36 -> 0 | AC37: =AC35-AC36 -> 0 | AD37: =AD35-AD36 -> 0 | AE37: =AE35-AE36 -> 0 | AF37: =AF35-AF36 -> 0 | AG37: 0 | AH37: 0
E38: EPPING NORTH IMPROVE SUPPLY | F38: Direct internal labour expenditure | L38: 8822.45 | M38: 346.07 | N38: 56403.12 | O38: 0 | P38: 0 | Q38: 0 | R38: 0 | S38: 0 | T38: 0 | U38: 0 | V38: 0
F39: Direct contractor expenditure | L39: 56011.03 | M39: 1.99 | N39: 1751456.51 | O39: 0 | P39: 0 | Q39: 0 | R39: 0 | S39: 0 | T39: 0 | U39: 0 | V39: 0
F40: Other internal direct expenditure | L40: 176280.76 | M40: 209.85 | N40: 127188.01 | O40: 0 | P40: 0 | Q40: 0 | R40: 0 | S40: 0 | T40: 0 | U40: 0 | V40: 0
F41: Total direct expenditure | L41: =SUM(L38:L40) -> 241114.24 | M41: =SUM(M38:M40) -> 557.91 | N41: =SUM(N38:N40) -> 1935047.64 | O41: =SUM(O38:O40) -> 0 | P41: =SUM(P38:P40) -> 0 | Q41: 0 | R41: 0 | S41: 0 | T41: 0 | U41: 0 | V41: 0
F42: Total overhead expenditure | L42: 25123.7804 | M42: 51.12539055 | N42: 148720.963 | O42: 0 | P42: 0 | Q42: 0 | R42: 0 | S42: 0 | T42: 0 | U42: 0 | V42: 0
F43: Related party margin expenditure | L43: 7433.043722 | M43: 16.20367718 | N43: 55988.90778 | O43: 0 | P43: 0 | Q43: 0 | R43: 0 | S43: 0 | T43: 0 | U43: 0 | V43: 0
F44: Total gross expenditure | G44: =SUM(G41:G43) -> 0 | H44: =SUM(H41:H43) -> 0 | I44: 0 | J44: 0 | K44: 0 | L44: =SUM(L41:L43) -> 273671.0641 | M44: =SUM(M41:M43) -> 625.2390677 | N44: =SUM(N41:N43) -> 2139757.511 | O44: 0 | P44: 0 | Q44: 0 | R44: 0 | S44: 0 | T44: 0 | U44: 0 | V44: 0 | AA44: =SUM(AA41:AA43) -> 0 | AB44: =SUM(AB41:AB43) -> 0 | AC44: 0 | AD44: 0 | AE44: 0 | AF44: 0 | AG44: 0 | AH44: 0
F45: Less customer contributions | L45: 0 | M45: 0 | N45: 0 | O45: 0 | P45: 0 | Q45: 0 | R45: 0 | S45: 0 | T45: 0 | U45: 0 | V45: 0
F46: Total net expenditure | G46: =G44-G45 -> 0 | H46: =H44-H45 -> 0 | I46: =I44-I45 -> 0 | J46: =J44-J45 -> 0 | K46: =K44-K45 -> 0 | L46: =+L44-L45 -> 273671.0641 | M46: =+M44-M45 -> 625.2390677 | N46: =+N44-N45 -> 2139757.511 | O46: =+O44-O45 -> 0 | P46: =+P44-P45 -> 0 | Q46: 0 | R46: 0 | S46: 0 | T46: 0 | U46: 0 | V46: 0 | AA46: =AA44-AA45 -> 0 | AB46: =AB44-AB45 -> 0 | AC46: =AC44-AC45 -> 0 | AD46: =AD44-AD45 -> 0 | AE46: =AE44-AE45 -> 0 | AF46: =AF44-AF45 -> 0 | AG46: 0 | AH46: 0
E47: DANDENONG CRIB POINT STAGE 2 | F47: Direct internal labour expenditure | L47: 4459.26 | M47: 1838.62 | N47: 4875.16 | O47: 0 | P47: 0 | Q47: 0 | R47: 0 | S47: 0 | T47: 0 | U47: 0 | V47: 0
F48: Direct contractor expenditure | L48: 5093.83 | M48: 12.15 | N48: 66865.99 | O48: 0 | P48: 0 | Q48: 0 | R48: 0 | S48: 0 | T48: 0 | U48: 0 | V48: 0
F49: Other internal direct expenditure | L49: 15531.1 | M49: 16110.3 | N49: 4808.84 | O49: 0 | P49: 0 | Q49: 0 | R49: 0 | S49: 0 | T49: 0 | U49: 0 | V49: 0
F50: Total direct expenditure | L50: =SUM(L47:L49) -> 25084.19 | M50: =SUM(M47:M49) -> 17961.07 | N50: =SUM(N47:N49) -> 76549.99 | O50: =SUM(O47:O49) -> 0 | P50: =SUM(P47:P49) -> 0 | Q50: 0 | R50: 0 | S50: 0 | T50: 0 | U50: 0 | V50: 0
F51: Total overhead expenditure | L51: 2613.738952 | M51: 1645.904749 | N51: 5883.363281 | O51: 0 | P51: 0 | Q51: 0 | R51: 0 | S51: 0 | T51: 0 | U51: 0 | V51: 0
F52: Related party margin expenditure | L52: 773.2926973 | M52: 521.6529189 | N52: 2214.90688 | O52: 0 | P52: 0 | Q52: 0 | R52: 0 | S52: 0 | T52: 0 | U52: 0 | V52: 0
F53: Total gross expenditure | G53: =SUM(G50:G52) -> 0 | H53: =SUM(H50:H52) -> 0 | I53: 0 | J53: 0 | K53: 0 | L53: =SUM(L50:L52) -> 28471.22165 | M53: =SUM(M50:M52) -> 20128.62767 | N53: =SUM(N50:N52) -> 84648.26016 | O53: 0 | P53: 0 | Q53: 0 | R53: 0 | S53: 0 | T53: 0 | U53: 0 | V53: 0 | AA53: =SUM(AA50:AA52) -> 0 | AB53: =SUM(AB50:AB52) -> 0 | AC53: 0 | AD53: 0 | AE53: 0 | AF53: 0 | AG53: 0 | AH53: 0
F54: Less customer contributions | L54: 0 | M54: 0 | N54: 0 | O54: 0 | P54: 0 | Q54: 0 | R54: 0 | S54: 0 | T54: 0 | U54: 0 | V54: 0
F55: Total net expenditure | G55: =G53-G54 -> 0 | H55: =H53-H54 -> 0 | I55: =I53-I54 -> 0 | J55: =J53-J54 -> 0 | K55: =K53-K54 -> 0 | L55: =+L53-L54 -> 28471.22165 | M55: =+M53-M54 -> 20128.62767 | N55: =+N53-N54 -> 84648.26016 | O55: =+O53-O54 -> 0 | P55: =+P53-P54 -> 0 | Q55: 0 | R55: 0 | S55: 0 | T55: 0 | U55: 0 | V55: 0 | AA55: =AA53-AA54 -> 0 | AB55: =AB53-AB54 -> 0 | AC55: =AC53-AC54 -> 0 | AD55: =AD53-AD54 -> 0 | AE55: =AE53-AE54 -> 0 | AF55: =AF53-AF54 -> 0 | AG55: 0 | AH55: 0
E56: DANDENONG-CRIB POINT STAGE 3 | F56: Direct internal labour expenditure | L56: 72821.61 | M56: -14.07 | N56: -683.69 | O56: 0 | P56: 0 | Q56: 0 | R56: 0 | S56: 0 | T56: 0 | U56: 0 | V56: 0
F57: Direct contractor expenditure | L57: 202200.03 | M57: 1455.81 | N57: -11330.86 | O57: 0 | P57: 0 | Q57: 0 | R57: 0 | S57: 0 | T57: 0 | U57: 0 | V57: 0
F58: Other internal direct expenditure | L58: 70743.21 | M58: -4.18 | N58: -1494.46 | O58: 0 | P58: 0 | Q58: 0 | R58: 0 | S58: 0 | T58: 0 | U58: 0 | V58: 0
F59: Total direct expenditure | L59: =SUM(L56:L58) -> 345764.85 | M59: =SUM(M56:M58) -> 1437.56 | N59: =SUM(N56:N58) -> -13509.01 | O59: =SUM(O56:O58) -> 0 | P59: =SUM(P56:P58) -> 0 | Q59: 0 | R59: 0 | S59: 0 | T59: 0 | U59: 0 | V59: 0
F60: Total overhead expenditure | L60: 36028.23359 | M60: 131.7341801 | N60: -1038.255046 | O60: 0 | P60: 0 | Q60: 0 | R60: 0 | S60: 0 | T60: 0 | U60: 0 | V60: 0
F61: Related party margin expenditure | L61: 10659.20141 | M61: 41.75182047 | N61: -390.8713664 | O61: 0 | P61: 0 | Q61: 0 | R61: 0 | S61: 0 | T61: 0 | U61: 0 | V61: 0
F62: Total gross expenditure | G62: =SUM(G59:G61) -> 0 | H62: =SUM(H59:H61) -> 0 | I62: 0 | J62: 0 | K62: 0 | L62: =SUM(L59:L61) -> 392452.285 | M62: =SUM(M59:M61) -> 1611.046001 | N62: =SUM(N59:N61) -> -14938.13641 | O62: 0 | P62: 0 | Q62: 0 | R62: 0 | S62: 0 | T62: 0 | U62: 0 | V62: 0 | AA62: =SUM(AA59:AA61) -> 0 | AB62: =SUM(AB59:AB61) -> 0 | AC62: 0 | AD62: 0 | AE62: 0 | AF62: 0 | AG62: 0 | AH62: 0
F63: Less customer contributions | L63: 0 | M63: 0 | N63: 0 | O63: 0 | P63: 0 | Q63: 0 | R63: 0 | S63: 0 | T63: 0 | U63: 0 | V63: 0
F64: Total net expenditure | G64: =G62-G63 -> 0 | H64: =H62-H63 -> 0 | I64: =I62-I63 -> 0 | J64: =J62-J63 -> 0 | K64: =K62-K63 -> 0 | L64: =+L62-L63 -> 392452.285 | M64: =+M62-M63 -> 1611.046001 | N64: =+N62-N63 -> -14938.13641 | O64: =+O62-O63 -> 0 | P64: =+P62-P63 -> 0 | Q64: 0 | R64: 0 | S64: 0 | T64: 0 | U64: 0 | V64: 0 | AA64: =AA62-AA63 -> 0 | AB64: =AB62-AB63 -> 0 | AC64: =AC62-AC63 -> 0 | AD64: =AD62-AD63 -> 0 | AE64: =AE62-AE63 -> 0 | AF64: =AF62-AF63 -> 0 | AG64: 0 | AH64: 0
E65: PAKENHAM (INCL CITY GATE) | F65: Direct internal labour expenditure | L65: 0 | M65: 3653.81 | N65: 23156.96 | O65: 0 | P65: 0 | Q65: 0 | R65: 0 | S65: 0 | T65: 0 | U65: 0 | V65: 0
F66: Direct contractor expenditure | L66: 0 | M66: 8002.88 | N66: 46071.5 | O66: 0 | P66: 0 | Q66: 0 | R66: 0 | S66: 0 | T66: 0 | U66: 0 | V66: 0
F67: Other internal direct expenditure | L67: 0 | M67: 2394.69 | N67: 353802.44 | O67: 0 | P67: 0 | Q67: 0 | R67: 0 | S67: 0 | T67: 0 | U67: 0 | V67: 0
F68: Total direct expenditure | L68: =SUM(L65:L67) -> 0 | M68: =SUM(M65:M67) -> 14051.38 | N68: =SUM(N65:N67) -> 423030.9 | O68: 1475105.913 | P68: 715635.3494 | Q68: 0 | R68: 0 | S68: 0 | T68: 0 | U68: 0 | V68: 0
F69: Total overhead expenditure | L69: 0 | M69: 1287.631142 | N69: 32512.6687 | O69: 124897.8865 | P69: 55071.40679 | Q69: 0 | R69: 0 | S69: 0 | T69: 0 | U69: 0 | V69: 0
F70: Related party margin expenditure | L70: 0 | M70: 408.1017107 | N70: 12240.02839 | O70: 56523.48708 | P70: 24445.71447 | Q70: 0 | R70: 0 | S70: 0 | T70: 0 | U70: 0 | V70: 0
F71: Total gross expenditure | G71: =SUM(G68:G70) -> 0 | H71: =SUM(H68:H70) -> 0 | I71: 0 | J71: 0 | K71: 0 | L71: =SUM(L68:L70) -> 0 | M71: =SUM(M68:M70) -> 15747.11285 | N71: =SUM(N68:N70) -> 467783.5971 | O71: 1656527.286 | P71: 795152.4707 | Q71: 0 | R71: 0 | S71: 0 | T71: 0 | U71: 0 | V71: 0 | AA71: =SUM(AA68:AA70) -> 0 | AB71: =SUM(AB68:AB70) -> 0 | AC71: 0 | AD71: 0 | AE71: 0 | AF71: 0 | AG71: 0 | AH71: 0
F72: Less customer contributions | L72: 0 | M72: 0 | N72: 0 | O72: 0 | P72: 0 | Q72: 0 | R72: 0 | S72: 0 | T72: 0 | U72: 0 | V72: 0
F73: Total net expenditure | G73: =G71-G72 -> 0 | H73: =H71-H72 -> 0 | I73: =I71-I72 -> 0 | J73: =J71-J72 -> 0 | K73: =K71-K72 -> 0 | L73: =+L71-L72 -> 0 | M73: =+M71-M72 -> 15747.11285 | N73: =+N71-N72 -> 467783.5971 | O73: =+O71-O72 -> 1656527.286 | P73: =+P71-P72 -> 795152.4707 | Q73: 0 | R73: 0 | S73: 0 | T73: 0 | U73: 0 | V73: 0 | AA73: =AA71-AA72 -> 0 | AB73: =AB71-AB72 -> 0 | AC73: =AC71-AC72 -> 0 | AD73: =AD71-AD72 -> 0 | AE73: =AE71-AE72 -> 0 | AF73: =AF71-AF72 -> 0 | AG73: 0 | AH73: 0
E74: CITY GATE AND CTM UPGRADES | F74: Direct internal labour expenditure | L74: 0 | M74: 0 | N74: 0 | O74: 0 | P74: 0 | Q74: 0 | R74: 0 | S74: 0 | T74: 0 | U74: 0 | V74: 0
F75: Direct contractor expenditure | L75: 0 | M75: 0 | N75: 0 | O75: 0 | P75: 0 | Q75: 0 | R75: 0 | S75: 0 | T75: 0 | U75: 0 | V75: 0
F76: Other internal direct expenditure | L76: 0 | M76: 0 | N76: 0 | O76: 0 | P76: 0 | Q76: 0 | R76: 0 | S76: 0 | T76: 0 | U76: 0 | V76: 0
F77: Total direct expenditure | L77: 0 | M77: 0 | N77: 0 | O77: 0 | P77: 0 | Q77: 0 | R77: 457721.185 | S77: 457721.185 | T77: 350681.7097 | U77: 757431.716 | V77: 406750.0063
F78: Total overhead expenditure | L78: 0 | M78: 0 | N78: 0 | O78: 0 | P78: 0 | Q78: 0 | R78: 38095.40336 | S78: 33518.9955 | T78: 26396.38284 | U78: 67516.76162 | V78: 50562.73344
F79: Related party margin expenditure | L79: 0 | M79: 0 | N79: 0 | O79: 0 | P79: 0 | Q79: 0 | R79: 14962.00109 | S79: 12567.22375 | T79: 9975.68112 | U79: 26902.01932 | V79: 21815.05286
F80: Total gross expenditure | G80: =SUM(G77:G79) -> 0 | H80: =SUM(H77:H79) -> 0 | I80: 0 | J80: 0 | K80: 0 | L80: 0 | M80: 0 | N80: 0 | O80: 0 | P80: 0 | Q80: 0 | R80: 510778.5895 | S80: 503807.4043 | T80: 387053.7737 | U80: 851850.4969 | V80: 479127.7926 | AA80: =SUM(AA77:AA79) -> 0 | AB80: =SUM(AB77:AB79) -> 0 | AC80: 0 | AD80: 0 | AE80: 0 | AF80: 0 | AG80: 0 | AH80: 0
F81: Less customer contributions | L81: 0 | M81: 0 | N81: 0 | O81: 0 | P81: 0 | Q81: 0 | R81: 0 | S81: 0 | T81: 0 | U81: 0 | V81: 0
F82: Total net expenditure | G82: =G80-G81 -> 0 | H82: 0 | I82: 0 | J82: 0 | K82: 0 | L82: 0 | M82: 0 | N82: 0 | O82: 0 | P82: 0 | Q82: 0 | R82: 510778.5895 | S82: 503807.4043 | T82: 387053.7737 | U82: 851850.4969 | V82: 479127.7926 | AA82: =AA80-AA81 -> 0 | AB82: 0 | AC82: 0 | AD82: 0 | AE82: 0 | AF82: 0 | AG82: 0 | AH82: 0
E83: H85 ECHUCA HP AUGMENTATION | F83: Direct internal labour expenditure | L83: 0 | M83: 0 | N83: 0 | O83: 0 | P83: 0 | Q83: 0 | R83: 0 | S83: 0 | T83: 0 | U83: 0 | V83: 0
F84: Direct contractor expenditure | L84: 0 | M84: 0 | N84: 0 | O84: 0 | P84: 0 | Q84: 0 | R84: 0 | S84: 0 | T84: 0 | U84: 0 | V84: 0
F85: Other internal direct expenditure | L85: 0 | M85: 0 | N85: 0 | O85: 0 | P85: 0 | Q85: 0 | R85: 0 | S85: 0 | T85: 0 | U85: 0 | V85: 0
F86: Total direct expenditure | L86: 0 | M86: 0 | N86: 0 | O86: 0 | P86: 0 | Q86: 0 | R86: 0 | S86: 0 | T86: 48932.33159 | U86: 451604.6436 | V86: 0
F87: Total overhead expenditure | L87: 0 | M87: 0 | N87: 0 | O87: 0 | P87: 0 | Q87: 0 | R87: 0 | S87: 0 | T87: 3683.216211 | U87: 40255.61965 | V87: 0
F88: Related party margin expenditure | L88: 0 | M88: 0 | N88: 0 | O88: 0 | P88: 0 | Q88: 0 | R88: 0 | S88: 0 | T88: 1391.955505 | U88: 16039.83117 | V88: 0
F89: Total gross expenditure | G89: =SUM(G86:G88) -> 0 | H89: =SUM(H86:H88) -> 0 | I89: 0 | J89: 0 | K89: 0 | L89: 0 | M89: 0 | N89: 0 | O89: 0 | P89: 0 | Q89: 0 | R89: 0 | S89: 0 | T89: 54007.5033 | U89: 507900.0944 | V89: 0 | AA89: =SUM(AA86:AA88) -> 0 | AB89: =SUM(AB86:AB88) -> 0 | AC89: 0 | AD89: 0 | AE89: 0 | AF89: 0 | AG89: 0 | AH89: 0
F90: Less customer contributions | L90: 0 | M90: 0 | N90: 0 | O90: 0 | P90: 0 | Q90: 0 | R90: 0 | S90: 0 | T90: 0 | U90: 0 | V90: 0
F91: Total net expenditure | G91: =G89-G90 -> 0 | H91: 0 | I91: 0 | J91: 0 | K91: 0 | L91: 0 | M91: 0 | N91: 0 | O91: 0 | P91: 0 | Q91: 0 | R91: 0 | S91: 0 | T91: 54007.5033 | U91: 507900.0944 | V91: 0 | AA91: =AA89-AA90 -> 0 | AB91: 0 | AC91: 0 | AD91: 0 | AE91: 0 | AF91: 0 | AG91: 0 | AH91: 0
E92: TP44 – DANDENONG – CRIB POINT (3.9 KM DN450 ) | F92: Direct internal labour expenditure | L92: 0 | M92: 0 | N92: 0 | O92: 0 | P92: 0 | Q92: 0 | R92: 0 | S92: 0 | T92: 0 | U92: 0 | V92: 0
F93: Direct contractor expenditure | L93: 0 | M93: 0 | N93: 0 | O93: 0 | P93: 0 | Q93: 0 | R93: 0 | S93: 0 | T93: 0 | U93: 0 | V93: 0
F94: Other internal direct expenditure | L94: 0 | M94: 0 | N94: 0 | O94: 0 | P94: 0 | Q94: 0 | R94: 0 | S94: 0 | T94: 0 | U94: 0 | V94: 0
F95: Total direct expenditure | L95: 0 | M95: 0 | N95: 0 | O95: 214078.9507 | P95: 894034.475 | Q95: 0 | R95: 3664827.751 | S95: 6915769.531 | T95: 3457884.765 | U95: 0 | V95: 0
F96: Total overhead expenditure | L96: 0 | M96: 0 | N96: 0 | O96: 18126.16182 | P96: 68800.03384 | Q96: 0 | R96: 305017.7619 | S96: 506442.9075 | T96: 260280.6122 | U96: 0 | V96: 0
F97: Related party margin expenditure | L97: 0 | M97: 0 | N97: 0 | O97: 8203.132195 | P97: 30539.73161 | Q97: 0 | R97: 119795.9775 | S97: 189879.835 | T97: 98364.85569 | U97: 0 | V97: 0
F98: Total gross expenditure | G98: =SUM(G95:G97) -> 0 | H98: =SUM(H95:H97) -> 0 | I98: 0 | J98: 0 | K98: 0 | L98: 0 | M98: 0 | N98: 0 | O98: 240408.2447 | P98: 993374.2405 | Q98: 0 | R98: 4089641.49 | S98: 7612092.273 | T98: 3816530.233 | U98: 0 | V98: 0 | AA98: =SUM(AA95:AA97) -> 0 | AB98: =SUM(AB95:AB97) -> 0 | AC98: 0 | AD98: 0 | AE98: 0 | AF98: 0 | AG98: 0 | AH98: 0
F99: Less customer contributions | L99: 0 | M99: 0 | N99: 0 | O99: 0 | P99: 0 | Q99: 0 | R99: 0 | S99: 0 | T99: 0 | U99: 0 | V99: 0
F100: Total net expenditure | G100: =G98-G99 -> 0 | H100: 0 | I100: 0 | J100: 0 | K100: 0 | L100: 0 | M100: 0 | N100: 0 | O100: 240408.2447 | P100: 993374.2405 | Q100: 0 | R100: 4089641.49 | S100: 7612092.273 | T100: 3816530.233 | U100: 0 | V100: 0 | AA100: =AA98-AA99 -> 0 | AB100: 0 | AC100: 0 | AD100: 0 | AE100: 0 | AF100: 0 | AG100: 0 | AH100: 0
E101: H07 CRANBOURNE HP AUGMENTATION | F101: Direct internal labour expenditure | L101: 0 | M101: 0 | N101: 0 | O101: 0 | P101: 0 | Q101: 0 | R101: 0 | S101: 0 | T101: 0 | U101: 0 | V101: 0
F102: Direct contractor expenditure | L102: 0 | M102: 0 | N102: 0 | O102: 0 | P102: 0 | Q102: 0 | R102: 0 | S102: 0 | T102: 0 | U102: 0 | V102: 0
F103: Other internal direct expenditure | L103: 0 | M103: 0 | N103: 0 | O103: 0 | P103: 0 | Q103: 0 | R103: 0 | S103: 0 | T103: 0 | U103: 0 | V103: 0
F104: Total direct expenditure | L104: 0 | M104: 0 | N104: 0 | O104: 1223308.29 | P104: 203884.7149 | Q104: 0 | R104: 912384.0993 | S104: 1157045.757 | T104: 3316184.888 | U104: 1677971.204 | V104: 1733020.077
F105: Total overhead expenditure | L105: 0 | M105: 0 | N105: 0 | O105: 103578.0676 | P105: 15689.85948 | Q105: 0 | R105: 75936.27173 | S105: 84730.64563 | T105: 249614.6319 | U105: 149572.799 | V105: 215430.1926
F106: Related party margin expenditure | L106: 0 | M106: 0 | N106: 0 | O106: 46875.04112 | P106: 6964.591016 | Q106: 0 | R106: 29824.03335 | S106: 31767.9264 | T106: 94333.98454 | U106: 59597.20565 | V106: 92946.3405
F107: Total gross expenditure | G107: =SUM(G104:G106) -> 0 | H107: =SUM(H104:H106) -> 0 | I107: 0 | J107: 0 | K107: 0 | L107: 0 | M107: 0 | N107: 0 | O107: 1373761.398 | P107: 226539.1654 | Q107: 0 | R107: 1018144.404 | S107: 1273544.329 | T107: 3660133.505 | U107: 1887141.209 | V107: 2041396.61 | AA107: =SUM(AA104:AA106) -> 0 | AB107: =SUM(AB104:AB106) -> 0 | AC107: 0 | AD107: 0 | AE107: 0 | AF107: 0 | AG107: 0 | AH107: 0
F108: Less customer contributions | L108: 0 | M108: 0 | N108: 0 | O108: 0 | P108: 0 | Q108: 0 | R108: 0 | S108: 0 | T108: 0 | U108: 0 | V108: 0
F109: Total net expenditure | G109: =G107-G108 -> 0 | H109: 0 | I109: 0 | J109: 0 | K109: 0 | L109: 0 | M109: 0 | N109: 0 | O109: 1373761.398 | P109: 226539.1654 | Q109: 0 | R109: 1018144.404 | S109: 1273544.329 | T109: 3660133.505 | U109: 1887141.209 | V109: 2041396.61 | AA109: =AA107-AA108 -> 0 | AB109: 0 | AC109: 0 | AD109: 0 | AE109: 0 | AF109: 0 | AG109: 0 | AH109: 0
E110: REFURBISH DANDENONG-CRIBB POINT PIPELINE | F110: Direct internal labour expenditure | L110: 0 | M110: 0 | N110: 0 | O110: 0 | P110: 0 | Q110: 0 | R110: 0 | S110: 0 | T110: 0 | U110: 0 | V110: 0
F111: Direct contractor expenditure | L111: 0 | M111: 0 | N111: 0 | O111: 0 | P111: 0 | Q111: 0 | R111: 0 | S111: 0 | T111: 0 | U111: 0 | V111: 0
F112: Other internal direct expenditure | L112: 0 | M112: 0 | N112: 0 | O112: 0 | P112: 0 | Q112: 0 | R112: 0 | S112: 0 | T112: 0 | U112: 0 | V112: 0
F113: Total direct expenditure | L113: 0 | M113: 0 | N113: 0 | O113: 0 | P113: 0 | Q113: 0 | R113: 454662.9143 | S113: 663644.7471 | T113: 0 | U113: 565780.084 | V113: 0
F114: Total overhead expenditure | L114: 0 | M114: 0 | N114: 0 | O114: 0 | P114: 0 | Q114: 0 | R114: 37840.86837 | S114: 48598.81084 | T114: 0 | U114: 50433.11265 | V114: 0
F115: Related party margin expenditure | L115: 0 | M115: 0 | N115: 0 | O115: 0 | P115: 0 | Q115: 0 | R115: 14862.03226 | S115: 18221.07496 | T115: 0 | U115: 20095.04808 | V115: 0
F116: Total gross expenditure | G116: =SUM(G113:G115) -> 0 | H116: =SUM(H113:H115) -> 0 | I116: 0 | J116: 0 | K116: 0 | L116: 0 | M116: 0 | N116: 0 | O116: 0 | P116: 0 | Q116: 0 | R116: 507365.8149 | S116: 730464.6329 | T116: 0 | U116: 636308.2447 | V116: 0 | AA116: =SUM(AA113:AA115) -> 0 | AB116: =SUM(AB113:AB115) -> 0 | AC116: 0 | AD116: 0 | AE116: 0 | AF116: 0 | AG116: 0 | AH116: 0
F117: Less customer contributions | L117: 0 | M117: 0 | N117: 0 | O117: 0 | P117: 0 | Q117: 0 | R117: 0 | S117: 0 | T117: 0 | U117: 0 | V117: 0
F118: Total net expenditure | G118: =G116-G117 -> 0 | H118: 0 | I118: 0 | J118: 0 | K118: 0 | L118: 0 | M118: 0 | N118: 0 | O118: 0 | P118: 0 | Q118: 0 | R118: 507365.8149 | S118: 730464.6329 | T118: 0 | U118: 636308.2447 | V118: 0 | AA118: =AA116-AA117 -> 0 | AB118: 0 | AC118: 0 | AD118: 0 | AE118: 0 | AF118: 0 | AG118: 0 | AH118: 0
E119: MORWLL TRAMWAY ROAD TP MAIN | F119: Direct internal labour expenditure | L119: 0 | M119: 0 | N119: 0 | O119: 0 | P119: 0 | Q119: 0 | R119: 0 | S119: 0 | T119: 0 | U119: 0 | V119: 0
F120: Direct contractor expenditure | L120: 0 | M120: 0 | N120: 0 | O120: 0 | P120: 0 | Q120: 0 | R120: 0 | S120: 0 | T120: 0 | U120: 0 | V120: 0
F121: Other internal direct expenditure | L121: 0 | M121: 0 | N121: 0 | O121: 0 | P121: 0 | Q121: 0 | R121: 0 | S121: 0 | T121: 0 | U121: 0 | V121: 0
F122: Total direct expenditure | L122: 0 | M122: 0 | N122: 0 | O122: 0 | P122: 0 | Q122: 0 | R122: 0 | S122: 0 | T122: 0 | U122: 0 | V122: 0
F123: Total overhead expenditure | L123: 0 | M123: 0 | N123: 0 | O123: 0 | P123: 0 | Q123: 0 | R123: 0 | S123: 0 | T123: 0 | U123: 0 | V123: 0
F124: Related party margin expenditure | L124: 0 | M124: 0 | N124: 0 | O124: 0 | P124: 0 | Q124: 0 | R124: 0 | S124: 0 | T124: 0 | U124: 0 | V124: 0
F125: Total gross expenditure | G125: =SUM(G122:G124) -> 0 | H125: =SUM(H122:H124) -> 0 | I125: 0 | J125: 0 | K125: 0 | L125: 0 | M125: 0 | N125: 0 | O125: 0 | P125: 0 | Q125: 0 | R125: 0 | S125: 0 | T125: 0 | U125: 0 | V125: 0 | AA125: =SUM(AA122:AA124) -> 0 | AB125: =SUM(AB122:AB124) -> 0 | AC125: 0 | AD125: 0 | AE125: 0 | AF125: 0 | AG125: 0 | AH125: 0
F126: Less customer contributions | L126: 0 | M126: 0 | N126: 0 | O126: 0 | P126: 0 | Q126: 0 | R126: 0 | S126: 0 | T126: 0 | U126: 0 | V126: 0
F127: Total net expenditure | G127: =G125-G126 -> 0 | H127: 0 | I127: 0 | J127: 0 | K127: 0 | L127: 0 | M127: 0 | N127: 0 | O127: 0 | P127: 0 | Q127: 0 | R127: 0 | S127: 0 | T127: 0 | U127: 0 | V127: 0 | AA127: =AA125-AA126 -> 0 | AB127: 0 | AC127: 0 | AD127: 0 | AE127: 0 | AF127: 0 | AG127: 0 | AH127: 0
E128: MOE | F128: Direct internal labour expenditure | L128: 0 | M128: 0 | N128: 0 | O128: 0 | P128: 0 | Q128: 0 | R128: 0 | S128: 0 | T128: 0 | U128: 0 | V128: 0
F129: Direct contractor expenditure | L129: 0 | M129: 0 | N129: 0 | O129: 0 | P129: 0 | Q129: 0 | R129: 0 | S129: 0 | T129: 0 | U129: 0 | V129: 0
F130: Other internal direct expenditure | L130: 0 | M130: 0 | N130: 0 | O130: 0 | P130: 0 | Q130: 0 | R130: 0 | S130: 0 | T130: 0 | U130: 0 | V130: 0
F131: Total direct expenditure | L131: 0 | M131: 0 | N131: 0 | O131: 0 | P131: 0 | Q131: 0 | R131: 231918.8632 | S131: 0 | T131: 0 | U131: 0 | V131: 0
F132: Total overhead expenditure | L132: 0 | M132: 0 | N132: 0 | O132: 0 | P132: 0 | Q132: 0 | R132: 19302.23667 | S132: 0 | T132: 0 | U132: 0 | V132: 0
F133: Related party margin expenditure | L133: 0 | M133: 0 | N133: 0 | O133: 0 | P133: 0 | Q133: 0 | R133: 7580.969372 | S133: 0 | T133: 0 | U133: 0 | V133: 0
F134: Total gross expenditure | G134: =SUM(G131:G133) -> 0 | H134: =SUM(H131:H133) -> 0 | I134: 0 | J134: 0 | K134: 0 | L134: 0 | M134: 0 | N134: 0 | O134: 0 | P134: 0 | Q134: 0 | R134: 258802.0693 | S134: 0 | T134: 0 | U134: 0 | V134: 0 | AA134: =SUM(AA131:AA133) -> 0 | AB134: =SUM(AB131:AB133) -> 0 | AC134: 0 | AD134: 0 | AE134: 0 | AF134: 0 | AG134: 0 | AH134: 0
F135: Less customer contributions | L135: 0 | M135: 0 | N135: 0 | O135: 0 | P135: 0 | Q135: 0 | R135: 0 | S135: 0 | T135: 0 | U135: 0 | V135: 0
F136: Total net expenditure | G136: =G134-G135 -> 0 | H136: 0 | I136: 0 | J136: 0 | K136: 0 | L136: 0 | M136: 0 | N136: 0 | O136: 0 | P136: 0 | Q136: 0 | R136: 258802.0693 | S136: 0 | T136: 0 | U136: 0 | V136: 0 | AA136: =AA134-AA135 -> 0 | AB136: 0 | AC136: 0 | AD136: 0 | AE136: 0 | AF136: 0 | AG136: 0 | AH136: 0
E137: WALLAN | F137: Direct internal labour expenditure | L137: 0 | M137: 0 | N137: 0 | O137: 0 | P137: 0 | Q137: 0 | R137: 0 | S137: 0 | T137: 0 | U137: 0 | V137: 0
F138: Direct contractor expenditure | L138: 0 | M138: 0 | N138: 0 | O138: 0 | P138: 0 | Q138: 0 | R138: 0 | S138: 0 | T138: 0 | U138: 0 | V138: 0
F139: Other internal direct expenditure | L139: 0 | M139: 0 | N139: 0 | O139: 0 | P139: 0 | Q139: 0 | R139: 0 | S139: 0 | T139: 0 | U139: 0 | V139: 0
F140: Total direct expenditure | L140: 0 | M140: 0 | N140: 0 | O140: 0 | P140: 0 | Q140: 0 | R140: 0 | S140: 152913.5362 | T140: 206942.9857 | U140: 0 | V140: 0
F141: Total overhead expenditure | L141: 0 | M141: 0 | N141: 0 | O141: 0 | P141: 0 | Q141: 0 | R141: 0 | S141: 11197.88268 | T141: 15576.93522 | U141: 0 | V141: 0
F142: Related party margin expenditure | L142: 0 | M142: 0 | N142: 0 | O142: 0 | P142: 0 | Q142: 0 | R142: 0 | S142: 4198.40437 | T142: 5886.811824 | U142: 0 | V142: 0
F143: Total gross expenditure | G143: =SUM(G140:G142) -> 0 | H143: =SUM(H140:H142) -> 0 | I143: 0 | J143: 0 | K143: 0 | L143: 0 | M143: 0 | N143: 0 | O143: 0 | P143: 0 | Q143: 0 | R143: 0 | S143: 168309.8233 | T143: 228406.7327 | U143: 0 | V143: 0 | AA143: =SUM(AA140:AA142) -> 0 | AB143: =SUM(AB140:AB142) -> 0 | AC143: 0 | AD143: 0 | AE143: 0 | AF143: 0 | AG143: 0 | AH143: 0
F144: Less customer contributions | L144: 0 | M144: 0 | N144: 0 | O144: 0 | P144: 0 | Q144: 0 | R144: 0 | S144: 0 | T144: 0 | U144: 0 | V144: 0
F145: Total net expenditure | G145: =G143-G144 -> 0 | H145: 0 | I145: 0 | J145: 0 | K145: 0 | L145: 0 | M145: 0 | N145: 0 | O145: 0 | P145: 0 | Q145: 0 | R145: 0 | S145: 168309.8233 | T145: 228406.7327 | U145: 0 | V145: 0 | AA145: =AA143-AA144 -> 0 | AB145: 0 | AC145: 0 | AD145: 0 | AE145: 0 | AF145: 0 | AG145: 0 | AH145: 0
E146: MELROSE DRIVE, REG RELOCATION | F146: Direct internal labour expenditure | L146: 0 | M146: 0 | N146: 855.33 | O146: 0 | P146: 0 | Q146: 0 | R146: 0 | S146: 0 | T146: 0 | U146: 0 | V146: 0
F147: Direct contractor expenditure | L147: 0 | M147: 0 | N147: 188203.47 | O147: 0 | P147: 0 | Q147: 0 | R147: 0 | S147: 0 | T147: 0 | U147: 0 | V147: 0
F148: Other internal direct expenditure | L148: 0 | M148: 0 | N148: 36350.99 | O148: 0 | P148: 0 | Q148: 0 | R148: 0 | S148: 0 | T148: 0 | U148: 0 | V148: 0
F149: Total direct expenditure | L149: =SUM(L146:L148) -> 0 | M149: =SUM(M146:M148) -> 0 | N149: 225409.79 | O149: 0 | P149: 0 | Q149: 0 | R149: 0 | S149: 0 | T149: 0 | U149: 0 | V149: 0
F150: Total overhead expenditure | L150: 0 | M150: 0 | N150: 17324.20451 | O150: 0 | P150: 0 | Q150: 0 | R150: 0 | S150: 0 | T150: 0 | U150: 0 | V150: 0
F151: Related party margin expenditure | L151: 0 | M151: 0 | N151: 6522.034747 | O151: 0 | P151: 0 | Q151: 0 | R151: 0 | S151: 0 | T151: 0 | U151: 0 | V151: 0
F152: Total gross expenditure | G152: =SUM(G149:G151) -> 0 | H152: =SUM(H149:H151) -> 0 | I152: 0 | J152: 0 | K152: 0 | L152: =SUM(L149:L151) -> 0 | M152: =SUM(M149:M151) -> 0 | N152: =SUM(N149:N151) -> 249256.0293 | O152: =SUM(O149:O151) -> 0 | P152: =SUM(P149:P151) -> 0 | Q152: 0 | R152: 0 | S152: 0 | T152: 0 | U152: 0 | V152: 0 | AA152: =SUM(AA149:AA151) -> 0 | AB152: =SUM(AB149:AB151) -> 0 | AC152: 0 | AD152: 0 | AE152: 0 | AF152: 0 | AG152: 0 | AH152: 0
F153: Less customer contributions | L153: 0 | M153: 0 | N153: 0 | O153: 0 | P153: 0 | Q153: 0 | R153: 0 | S153: 0 | T153: 0 | U153: 0 | V153: 0
F154: Total net expenditure | G154: =G152-G153 -> 0 | H154: 0 | I154: 0 | J154: 0 | K154: 0 | L154: =+L152-L153 -> 0 | M154: =+M152-M153 -> 0 | N154: =+N152-N153 -> 249256.0293 | O154: =+O152-O153 -> 0 | P154: =+P152-P153 -> 0 | Q154: 0 | R154: 0 | S154: 0 | T154: 0 | U154: 0 | V154: 0 | AA154: =AA152-AA153 -> 0 | AB154: 0 | AC154: 0 | AD154: 0 | AE154: 0 | AF154: 0 | AG154: 0 | AH154: 0
E155: H15 MORNINGTON PENINSULA HP AUGMENTATION | F155: Direct internal labour expenditure | L155: 0 | M155: 0 | N155: 0 | O155: 0 | P155: 0 | Q155: 0 | R155: 0 | S155: 0 | T155: 0 | U155: 0 | V155: 0
F156: Direct contractor expenditure | L156: 0 | M156: 0 | N156: 0 | O156: 0 | P156: 0 | Q156: 0 | R156: 0 | S156: 0 | T156: 0 | U156: 0 | V156: 0
F157: Other internal direct expenditure | L157: 0 | M157: 0 | N157: 0 | O157: 0 | P157: 0 | Q157: 0 | R157: 0 | S157: 0 | T157: 0 | U157: 0 | V157: 0
F158: Total direct expenditure | L158: 0 | M158: 0 | N158: 0 | O158: 323157.2732 | P158: 0 | Q158: 0 | R158: 0 | S158: 0 | T158: 0 | U158: 0 | V158: 0
F159: Total overhead expenditure | L159: 0 | M159: 0 | N159: 0 | O159: 27361.87285 | P159: 0 | Q159: 0 | R159: 0 | S159: 0 | T159: 0 | U159: 0 | V159: 0
F160: Related party margin expenditure | L160: 0 | M160: 0 | N160: 0 | O160: 12382.82336 | P160: 0 | Q160: 0 | R160: 0 | S160: 0 | T160: 0 | U160: 0 | V160: 0
F161: Total gross expenditure | G161: =SUM(G158:G160) -> 0 | H161: =SUM(H158:H160) -> 0 | I161: 0 | J161: 0 | K161: 0 | L161: 0 | M161: 0 | N161: 0 | O161: 362901.9694 | P161: 0 | Q161: 0 | R161: 0 | S161: 0 | T161: 0 | U161: 0 | V161: 0 | AA161: =SUM(AA158:AA160) -> 0 | AB161: =SUM(AB158:AB160) -> 0 | AC161: 0 | AD161: 0 | AE161: 0 | AF161: 0 | AG161: 0 | AH161: 0
F162: Less customer contributions | L162: 0 | M162: 0 | N162: 0 | O162: 0 | P162: 0 | Q162: 0 | R162: 0 | S162: 0 | T162: 0 | U162: 0 | V162: 0
F163: Total net expenditure | G163: =G161-G162 -> 0 | H163: 0 | I163: 0 | J163: 0 | K163: 0 | L163: 0 | M163: 0 | N163: 0 | O163: 362901.9694 | P163: 0 | Q163: 0 | R163: 0 | S163: 0 | T163: 0 | U163: 0 | V163: 0 | AA163: =AA161-AA162 -> 0 | AB163: 0 | AC163: 0 | AD163: 0 | AE163: 0 | AF163: 0 | AG163: 0 | AH163: 0
E164: H20 PLENTY VALLEY HP AUGMENTATION | F164: Direct internal labour expenditure | L164: 0 | M164: 0 | N164: 0 | O164: 0 | P164: 0 | Q164: 0 | R164: 0 | S164: 0 | T164: 0 | U164: 0 | V164: 0
F165: Direct contractor expenditure | L165: 0 | M165: 0 | N165: 0 | O165: 0 | P165: 0 | Q165: 0 | R165: 0 | S165: 0 | T165: 0 | U165: 0 | V165: 0
F166: Other internal direct expenditure | L166: 0 | M166: 0 | N166: 0 | O166: 0 | P166: 0 | Q166: 0 | R166: 0 | S166: 0 | T166: 0 | U166: 0 | V166: 0
F167: Total direct expenditure | L167: 0 | M167: 0 | N167: 0 | O167: 203884.7149 | P167: 1019423.575 | Q167: 0 | R167: 0 | S167: 0 | T167: 0 | U167: 0 | V167: 0
F168: Total overhead expenditure | L168: 0 | M168: 0 | N168: 0 | O168: 17263.01126 | P168: 78449.29742 | Q168: 0 | R168: 0 | S168: 0 | T168: 0 | U168: 0 | V168: 0
F169: Related party margin expenditure | L169: 0 | M169: 0 | N169: 0 | O169: 7812.506853 | P169: 34822.95508 | Q169: 0 | R169: 0 | S169: 0 | T169: 0 | U169: 0 | V169: 0
F170: Total gross expenditure | G170: =SUM(G167:G169) -> 0 | H170: =SUM(H167:H169) -> 0 | I170: 0 | J170: 0 | K170: 0 | L170: 0 | M170: 0 | N170: 0 | O170: 228960.2331 | P170: 1132695.827 | Q170: 0 | R170: 0 | S170: 0 | T170: 0 | U170: 0 | V170: 0 | AA170: =SUM(AA167:AA169) -> 0 | AB170: =SUM(AB167:AB169) -> 0 | AC170: 0 | AD170: 0 | AE170: 0 | AF170: 0 | AG170: 0 | AH170: 0
F171: Less customer contributions | L171: 0 | M171: 0 | N171: 0 | O171: 0 | P171: 0 | Q171: 0 | R171: 0 | S171: 0 | T171: 0 | U171: 0 | V171: 0
F172: Total net expenditure | G172: =G170-G171 -> 0 | H172: 0 | I172: 0 | J172: 0 | K172: 0 | L172: 0 | M172: 0 | N172: 0 | O172: 228960.2331 | P172: 1132695.827 | Q172: 0 | R172: 0 | S172: 0 | T172: 0 | U172: 0 | V172: 0 | AA172: =AA170-AA171 -> 0 | AB172: 0 | AC172: 0 | AD172: 0 | AE172: 0 | AF172: 0 | AG172: 0 | AH172: 0
E173: RAILWAY CROSSING AUGMENTATIONS | F173: Direct internal labour expenditure | L173: 0 | M173: 0 | N173: 0 | O173: 0 | P173: 0 | Q173: 0 | R173: 0 | S173: 0 | T173: 0 | U173: 0 | V173: 0
F174: Direct contractor expenditure | L174: 0 | M174: 0 | N174: 0 | O174: 0 | P174: 0 | Q174: 0 | R174: 0 | S174: 0 | T174: 0 | U174: 0 | V174: 0
F175: Other internal direct expenditure | L175: 0 | M175: 0 | N175: 0 | O175: 0 | P175: 0 | Q175: 0 | R175: 0 | S175: 0 | T175: 0 | U175: 0 | V175: 0
F176: Total direct expenditure | L176: 0 | M176: 0 | N176: 0 | O176: 254855.8937 | P176: 254855.8937 | Q176: 0 | R176: 0 | S176: 0 | T176: 0 | U176: 0 | V176: 0
F177: Total overhead expenditure | L177: 0 | M177: 0 | N177: 0 | O177: 21578.76407 | P177: 19612.32436 | Q177: 0 | R177: 0 | S177: 0 | T177: 0 | U177: 0 | V177: 0
F178: Related party margin expenditure | L178: 0 | M178: 0 | N178: 0 | O178: 9765.633566 | P178: 8705.73877 | Q178: 0 | R178: 0 | S178: 0 | T178: 0 | U178: 0 | V178: 0
F179: Total gross expenditure | G179: =SUM(G176:G178) -> 0 | H179: =SUM(H176:H178) -> 0 | I179: 0 | J179: 0 | K179: 0 | L179: 0 | M179: 0 | N179: 0 | O179: 286200.2913 | P179: 283173.9568 | Q179: 0 | R179: 0 | S179: 0 | T179: 0 | U179: 0 | V179: 0 | AA179: =SUM(AA176:AA178) -> 0 | AB179: =SUM(AB176:AB178) -> 0 | AC179: 0 | AD179: 0 | AE179: 0 | AF179: 0 | AG179: 0 | AH179: 0
F180: Less customer contributions | L180: 0 | M180: 0 | N180: 0 | O180: 0 | P180: 0 | Q180: 0 | R180: 0 | S180: 0 | T180: 0 | U180: 0 | V180: 0
F181: Total net expenditure | G181: =G179-G180 -> 0 | H181: 0 | I181: 0 | J181: 0 | K181: 0 | L181: 0 | M181: 0 | N181: 0 | O181: 286200.2913 | P181: 283173.9568 | Q181: 0 | R181: 0 | S181: 0 | T181: 0 | U181: 0 | V181: 0 | AA181: =AA179-AA180 -> 0 | AB181: 0 | AC181: 0 | AD181: 0 | AE181: 0 | AF181: 0 | AG181: 0 | AH181: 0
E182: NEW ESTATE SUPPLY CLOVERDALE | F182: Direct internal labour expenditure | L182: 0 | M182: 0 | N182: 0 | O182: 0 | P182: 0 | Q182: 0 | R182: 0 | S182: 0 | T182: 0 | U182: 0 | V182: 0
F183: Direct contractor expenditure | L183: 0 | M183: 0 | N183: 0 | O183: 0 | P183: 0 | Q183: 0 | R183: 0 | S183: 0 | T183: 0 | U183: 0 | V183: 0
F184: Other internal direct expenditure | L184: 0 | M184: 0 | N184: 0 | O184: 0 | P184: 0 | Q184: 0 | R184: 0 | S184: 0 | T184: 0 | U184: 0 | V184: 0
F185: Total direct expenditure | L185: 0 | M185: 0 | N185: 0 | O185: 235486.8458 | P185: 0 | Q185: 0 | R185: 0 | S185: 0 | T185: 0 | U185: 0 | V185: 0
F186: Total overhead expenditure | L186: 0 | M186: 0 | N186: 0 | O186: 19938.778 | P186: 0 | Q186: 0 | R186: 0 | S186: 0 | T186: 0 | U186: 0 | V186: 0
F187: Related party margin expenditure | L187: 0 | M187: 0 | N187: 0 | O187: 9023.445415 | P187: 0 | Q187: 0 | R187: 0 | S187: 0 | T187: 0 | U187: 0 | V187: 0
F188: Total gross expenditure | G188: =SUM(G185:G187) -> 0 | H188: =SUM(H185:H187) -> 0 | I188: 0 | J188: 0 | K188: 0 | L188: 0 | M188: 0 | N188: 0 | O188: 264449.0692 | P188: 0 | Q188: 0 | R188: 0 | S188: 0 | T188: 0 | U188: 0 | V188: 0 | AA188: =SUM(AA185:AA187) -> 0 | AB188: =SUM(AB185:AB187) -> 0 | AC188: 0 | AD188: 0 | AE188: 0 | AF188: 0 | AG188: 0 | AH188: 0
F189: Less customer contributions | L189: 0 | M189: 0 | N189: 0 | O189: 0 | P189: 0 | Q189: 0 | R189: 0 | S189: 0 | T189: 0 | U189: 0 | V189: 0
F190: Total net expenditure | G190: =G188-G189 -> 0 | H190: 0 | I190: 0 | J190: 0 | K190: 0 | L190: 0 | M190: 0 | N190: 0 | O190: 264449.0692 | P190: 0 | Q190: 0 | R190: 0 | S190: 0 | T190: 0 | U190: 0 | V190: 0 | AA190: =AA188-AA189 -> 0 | AB190: 0 | AC190: 0 | AD190: 0 | AE190: 0 | AF190: 0 | AG190: 0 | AH190: 0
E191: NEW ESTATE SUPPLY CLYDE NTH | F191: Direct internal labour expenditure | L191: 0 | M191: 0 | N191: 0 | O191: 0 | P191: 0 | Q191: 0 | R191: 0 | S191: 0 | T191: 0 | U191: 0 | V191: 0
F192: Direct contractor expenditure | L192: 0 | M192: 0 | N192: 0 | O192: 0 | P192: 0 | Q192: 0 | R192: 0 | S192: 0 | T192: 0 | U192: 0 | V192: 0
F193: Other internal direct expenditure | L193: 0 | M193: 0 | N193: 0 | O193: 0 | P193: 0 | Q193: 0 | R193: 0 | S193: 0 | T193: 0 | U193: 0 | V193: 0
F194: Total direct expenditure | L194: 0 | M194: 0 | N194: 0 | O194: 589226.8262 | P194: 381264.4169 | Q194: 0 | R194: 0 | S194: 0 | T194: 0 | U194: 0 | V194: 0
F195: Total overhead expenditure | L195: 0 | M195: 0 | N195: 0 | O195: 49890.10254 | P195: 29340.03724 | Q195: 0 | R195: 0 | S195: 0 | T195: 0 | U195: 0 | V195: 0
F196: Related party margin expenditure | L196: 0 | M196: 0 | N196: 0 | O196: 22578.1448 | P196: 13023.7852 | Q196: 0 | R196: 0 | S196: 0 | T196: 0 | U196: 0 | V196: 0
F197: Total gross expenditure | G197: =SUM(G194:G196) -> 0 | H197: =SUM(H194:H196) -> 0 | I197: 0 | J197: 0 | K197: 0 | L197: 0 | M197: 0 | N197: 0 | O197: 661695.0735 | P197: 423628.2394 | Q197: 0 | R197: 0 | S197: 0 | T197: 0 | U197: 0 | V197: 0 | AA197: =SUM(AA194:AA196) -> 0 | AB197: =SUM(AB194:AB196) -> 0 | AC197: 0 | AD197: 0 | AE197: 0 | AF197: 0 | AG197: 0 | AH197: 0
F198: Less customer contributions | L198: 0 | M198: 0 | N198: 0 | O198: 0 | P198: 0 | Q198: 0 | R198: 0 | S198: 0 | T198: 0 | U198: 0 | V198: 0
F199: Total net expenditure | G199: =G197-G198 -> 0 | H199: 0 | I199: 0 | J199: 0 | K199: 0 | L199: 0 | M199: 0 | N199: 0 | O199: 661695.0735 | P199: 423628.2394 | Q199: 0 | R199: 0 | S199: 0 | T199: 0 | U199: 0 | V199: 0 | AA199: =AA197-AA198 -> 0 | AB199: 0 | AC199: 0 | AD199: 0 | AE199: 0 | AF199: 0 | AG199: 0 | AH199: 0
E200: NEW ESTATE SUPPLY PATTERSONS RD | F200: Direct internal labour expenditure | L200: 0 | M200: 0 | N200: 0 | O200: 0 | P200: 0 | Q200: 0 | R200: 0 | S200: 0 | T200: 0 | U200: 0 | V200: 0
F201: Direct contractor expenditure | L201: 0 | M201: 0 | N201: 0 | O201: 0 | P201: 0 | Q201: 0 | R201: 0 | S201: 0 | T201: 0 | U201: 0 | V201: 0
F202: Other internal direct expenditure | L202: 0 | M202: 0 | N202: 0 | O202: 0 | P202: 0 | Q202: 0 | R202: 0 | S202: 0 | T202: 0 | U202: 0 | V202: 0
... 190 more rows

Sheet 6. Mains replacement
E1: REGULATORY REPORTING STATEMENT
E2: Australian Gas Networks Limited (reporting data for Victoria)
E3: 2018 to 2022 | F3: =CONCATENATE(LEFT(FRCP_y1,4),"-",LEFT(FRCP_y5,2),RIGHT(FRCP_y5,2)) -> 2018-2022
E4: 6. MAINS REPLACEMENT CAPITAL EXPENDITURE
A6: Asset category | E6: Instructions
A7: HPM | B7: HP mains | E7: This template asks for information relating to mains replacement capital expenditure.
A8: TRS | B8: TRS & DRS - valves & regulators | E8: As set out in cl.6.1 of the AGN (Victoria) RIN, for tables 6.1.1 to 6.1.3, where the requested data is captured in the AGN (Victoria) capex model it is not required to be reentered in the RIN template tables. If the requested data has not been provided in the AGN (Victoria) capex model please enter into the tables below. This may require the insertion of new lines in each table.
A9: CM | B9: Contract meters | E9: Reported expenditure is to be entered EXCLUSIVE of any profit margins or management fees paid pursuant to arrangements or contracts with any related parties. Include any related party margins or management fees in the separate 'Related party margin' line item.
A10: ITS | B10: IT System | E10: Subject to cl.7.1 of the AGN (Victoria) RIN, where linked/adjustable overhead expenditure and related party margin expenditure is not provided in the AGN (Victoria) capex model, overhead expenditure and related party margin expenditure should be linked to allocations derived in tabs '14. Overheads' and '15. Related party transactions'.
A11: ERC | B11: Equity raising expenditure | E11: Capital expenditure amounts entered should be GROSS of customer contributions. There is a separate line item for customer contributions from which net capital expenditure is derived.
E15: Table 6 - MAINS REPLACEMENT CAPITAL EXPENDITURE | AL15: REAL $ CONVERSION OF HISTORICAL DATA
E16: Table 6.1 - Mains replacement expenditure (actual/forecast)
E17: Table 6.1.1 - Proactive mains replacement expenditure
G18: Previous access arrangement period | L18: Current access arrangement period | Q18: Next access arrangement period | W18: Previous access arrangement period | AC18: Current access arrangement period | AL18: Previous access arrangement period | AQ18: Current access arrangement period
G19: $0's, nominal | O19: =CONCATENATE("$0's, real ",dms_DollarReal) -> $0's, real December 2017 | W19: =CONCATENATE("$0's, real ",dms_DollarReal) -> $0's, real December 2017 | AB19: Variance | AC19: =CONCATENATE("$0's, real ",dms_DollarReal) -> $0's, real December 2017 | AH19: Variance | AL19: =CONCATENATE("$0's, real ",dms_DollarReal) -> $0's, real December 2017
G20: Actual | O20: Forecast | W20: Approved | AB20: Actual v approved | AC20: Approved | AH20: Actual v approved | AL20: Actual
G21: =PRCP -> 2008 | H21: 2009 | I21: 2010 | J21: 2011 | K21: 2012 | L21: =CRCP_y1 -> 2013 | M21: =CRCP_y2 -> 2014 | N21: =CRCP_y3 -> 2015 | O21: =CRCP_y4 -> 2016 | P21: =CRCP_y5 -> 2017 | Q21: =FRCP -> 2018 | R21: 2019 | S21: 2020 | T21: 2021 | U21: 2022 | W21: =PRCP -> 2008 | X21: 2009 | Y21: 2010 | Z21: 2011 | AA21: 2012 | AB21: % | AC21: =CRCP_y1 -> 2013 | AD21: =CRCP_y2 -> 2014 | AE21: =CRCP_y3 -> 2015 | AF21: =CRCP_y4 -> 2016 | AG21: =CRCP_y5 -> 2017 | AH21: % | AL21: =PRCP -> 2008 | AM21: 2009 | AN21: 2010 | AO21: 2011 | AP21: 2012 | AQ21: =CRCP_y1 -> 2013 | AR21: =CRCP_y2 -> 2014 | AS21: =CRCP_y3 -> 2015
D22: BENALLA | E22: BENALLA | F22: Length of mains replaced (metres) | G22: [C-I-C] | H22: [C-I-C] | I22: [C-I-C] | J22: [C-I-C] | K22: [C-I-C] | L22: [C-I-C] | M22: [C-I-C] | N22: [C-I-C] | O22: [C-I-C] | P22: [C-I-C] | Q22: [C-I-C] | R22: [C-I-C] | S22: [C-I-C] | T22: [C-I-C] | U22: [C-I-C] | W22: [C-I-C] | X22: [C-I-C] | Y22: [C-I-C] | Z22: [C-I-C] | AA22: [C-I-C] | AB22: [C-I-C] | AC22: [C-I-C] | AD22: [C-I-C] | AE22: [C-I-C] | AF22: [C-I-C] | AG22: [C-I-C] | AH22: [C-I-C]
F23: Low pressure - high pressure | G23: [C-I-C] | H23: [C-I-C] | I23: [C-I-C] | J23: [C-I-C] | K23: [C-I-C] | L23: [C-I-C] | M23: [C-I-C] | N23: [C-I-C] | O23: [C-I-C] | P23: [C-I-C] | Q23: [C-I-C] | R23: [C-I-C] | S23: [C-I-C] | T23: [C-I-C] | U23: [C-I-C] | W23: [C-I-C] | X23: [C-I-C] | Y23: [C-I-C] | Z23: [C-I-C] | AA23: [C-I-C] | AB23: [C-I-C] | AC23: [C-I-C] | AD23: [C-I-C] | AE23: [C-I-C] | AF23: [C-I-C] | AG23: [C-I-C] | AH23: [C-I-C]
F24: Low pressure - medium pressure | G24: [C-I-C] | H24: [C-I-C] | I24: [C-I-C] | J24: [C-I-C] | K24: [C-I-C] | L24: [C-I-C] | M24: [C-I-C] | N24: [C-I-C] | O24: [C-I-C] | P24: [C-I-C] | Q24: [C-I-C] | R24: [C-I-C] | S24: [C-I-C] | T24: [C-I-C] | U24: [C-I-C] | W24: [C-I-C] | X24: [C-I-C] | Y24: [C-I-C] | Z24: [C-I-C] | AA24: [C-I-C] | AB24: [C-I-C] | AC24: [C-I-C] | AD24: [C-I-C] | AE24: [C-I-C] | AF24: [C-I-C] | AG24: [C-I-C] | AH24: [C-I-C]
F25: Low pressure - low pressure | G25: [C-I-C] | H25: [C-I-C] | I25: [C-I-C] | J25: [C-I-C] | K25: [C-I-C] | L25: [C-I-C] | M25: [C-I-C] | N25: [C-I-C] | O25: [C-I-C] | P25: [C-I-C] | Q25: [C-I-C] | R25: [C-I-C] | S25: [C-I-C] | T25: [C-I-C] | U25: [C-I-C] | W25: [C-I-C] | X25: [C-I-C] | Y25: [C-I-C] | Z25: [C-I-C] | AA25: [C-I-C] | AB25: [C-I-C] | AC25: [C-I-C] | AD25: [C-I-C] | AE25: [C-I-C] | AF25: [C-I-C] | AG25: [C-I-C] | AH25: [C-I-C]
F26: Medium pressure - medium pressure | G26: [C-I-C] | H26: [C-I-C] | I26: [C-I-C] | J26: [C-I-C] | K26: [C-I-C] | L26: [C-I-C] | M26: [C-I-C] | N26: [C-I-C] | O26: [C-I-C] | P26: [C-I-C] | Q26: [C-I-C] | R26: [C-I-C] | S26: [C-I-C] | T26: [C-I-C] | U26: [C-I-C] | W26: [C-I-C] | X26: [C-I-C] | Y26: [C-I-C] | Z26: [C-I-C] | AA26: [C-I-C] | AB26: [C-I-C] | AC26: [C-I-C] | AD26: [C-I-C] | AE26: [C-I-C] | AF26: [C-I-C] | AG26: [C-I-C] | AH26: [C-I-C]
F27: Medium pressure - high pressure | G27: [C-I-C] | H27: [C-I-C] | I27: [C-I-C] | J27: [C-I-C] | K27: [C-I-C] | L27: [C-I-C] | M27: [C-I-C] | N27: [C-I-C] | O27: [C-I-C] | P27: [C-I-C] | Q27: [C-I-C] | R27: [C-I-C] | S27: [C-I-C] | T27: [C-I-C] | U27: [C-I-C] | W27: [C-I-C] | X27: [C-I-C] | Y27: [C-I-C] | Z27: [C-I-C] | AA27: [C-I-C] | AB27: [C-I-C] | AC27: [C-I-C] | AD27: [C-I-C] | AE27: [C-I-C] | AF27: [C-I-C] | AG27: [C-I-C] | AH27: [C-I-C] | AQ27: =SUM(AQ22:AQ26) -> 0 | AR27: =SUM(AR22:AR26) -> 0 | AS27: =SUM(AS22:AS26) -> 0
F28: Total volume | G28: [C-I-C] | H28: [C-I-C] | I28: [C-I-C] | J28: [C-I-C] | K28: [C-I-C] | L28: [C-I-C] | M28: [C-I-C] | N28: [C-I-C] | O28: [C-I-C] | P28: [C-I-C] | Q28: [C-I-C] | R28: [C-I-C] | S28: [C-I-C] | T28: [C-I-C] | U28: [C-I-C] | W28: [C-I-C] | X28: [C-I-C] | Y28: [C-I-C] | Z28: [C-I-C] | AA28: [C-I-C] | AB28: [C-I-C] | AC28: [C-I-C] | AD28: [C-I-C] | AE28: [C-I-C] | AF28: [C-I-C] | AG28: [C-I-C] | AH28: [C-I-C]
F29: Direct expenditure | L29: 0 | M29: 0 | N29: 0 | O29: 0 | P29: 0 | Q29: 0 | R29: 0 | S29: 0 | T29: 0 | U29: 0
D30: =D22&F30 -> BENALLADirect contractor expenditure | F30: Direct contractor expenditure | L30: 572624.7492 | M30: 1679396.838 | N30: 1031730.708 | O30: 1097975.768 | P30: 0 | Q30: 0 | R30: 0 | S30: 0 | T30: 0 | U30: 0 | AC30: 484634.7817 | AD30: 1570047.031 | AE30: 1090359.415 | AF30: 225004.5896 | AG30: 0
D31: =D22&F31 -> BENALLADirect internal labour expenditure | F31: Direct internal labour expenditure | L31: 23287.52133 | M31: 98765.21371 | N31: 47693.60972 | O31: 77813.40878 | P31: 0 | Q31: 0 | R31: 0 | S31: 0 | T31: 0 | U31: 0 | AC31: 28422.10957 | AD31: 92351.72571 | AE31: 64263.02572 | AF31: 13327.24318 | AG31: 0
D32: =D22&F32 -> BENALLAOther internal direct expenditure | F32: Other internal direct expenditure | L32: 48393.72951 | M32: 180809.9478 | N32: 99498.68183 | O32: 101213.5999 | P32: 0 | Q32: 0 | R32: 0 | S32: 0 | T32: 0 | U32: 0 | AC32: 128243.0823 | AD32: 412165.3682 | AE32: 283404.7598 | AF32: 58249.89221 | AG32: 0
F33: Total direct expenditure | L33: 644306 | M33: 1958972 | N33: 1178923 | O33: 1277002.777 | P33: 0 | Q33: 0 | R33: 0 | S33: 0 | T33: 0 | U33: 0 | W33: =SUM(W30:W32) -> 0 | X33: 0 | Y33: 0 | Z33: 0 | AA33: =SUM(AA30:AA32) -> 0 | AB33: =SUM(G33:K33)/SUM(W33:AA33)-1 ->  | AC33: =SUM(AC30:AC32) -> 641299.9736 | AD33: =SUM(AD30:AD32) -> 2074564.125 | AE33: =SUM(AE30:AE32) -> 1438027.2 | AF33: =SUM(AF30:AF32) -> 296581.725 | AG33: =SUM(AG30:AG32) -> 0 | AH33: =SUM(L33:P33)/SUM(AC33:AG33)-1 -> 0.1367788883 | AQ33: =SUM(AQ30:AQ32) -> 0 | AR33: =SUM(AR30:AR32) -> 0 | AS33: =SUM(AS30:AS32) -> 0
D34: =D22&"Overheads" -> BENALLAOverheads | F34: Total overhead expenditure | L34: 52328.8743 | M34: 167848.6536 | N34: 84867.19605 | O34: 108124.4041 | P34: 0 | Q34: 0 | R34: 0 | S34: 0 | T34: 0 | U34: 0 | AB34: =SUM(G34:K34)/SUM(W34:AA34)-1 ->  | AC34: 78492.52783 | AD34: 64782.19368 | AE34: 67398.42731 | AF34: 49316.93677 | AG34: 50804.00948 | AH34: =SUM(L34:P34)/SUM(AC34:AG34)-1 -> 0.3293982564
F35: Related party margin expenditure | L35: 19082.27975 | M35: 55994.24177 | N35: 40190.6516 | O35: 48932.52026 | P35: 0 | Q35: 0 | R35: 0 | S35: 0 | T35: 0 | U35: 0
F36: Total gross expenditure | G36: =SUM(G34:G35) -> 0 | H36: 0 | I36: 0 | J36: 0 | K36: 0 | L36: 715717.154 | M36: 2182814.895 | N36: 1303980.848 | O36: 1434059.701 | P36: 0 | Q36: 0 | R36: 0 | S36: 0 | T36: 0 | U36: 0 | W36: =SUM(W34:W35) -> 0 | X36: =SUM(X34:X35) -> 0 | Y36: =SUM(Y34:Y35) -> 0 | Z36: =SUM(Z34:Z35) -> 0 | AA36: =SUM(AA34:AA35) -> 0 | AB36: =SUM(G36:K36)/SUM(W36:AA36)-1 ->  | AC36: =SUM(AC33:AC35) -> 719792.5014 | AD36: =SUM(AD33:AD35) -> 2139346.319 | AE36: 1505425.628 | AF36: 345898.6618 | AG36: 50804.00948 | AH36: =SUM(L36:P36)/SUM(AC36:AG36)-1 -> 0.1838387676 | AL36: =SUM(AL34:AL35) -> 0 | AM36: 0 | AN36: 0 | AO36: 0 | AP36: 0 | AQ36: 0 | AR36: 0 | AS36: 0
F37: Less customer contributions | L37: 0 | M37: 0 | N37: 0 | O37: 0 | P37: 0 | Q37: 0 | R37: 0 | S37: 0 | T37: 0 | U37: 0
F38: Total net expenditure | G38: =G36-G37 -> 0 | H38: =H36-H37 -> 0 | I38: 0 | J38: 0 | K38: 0 | L38: 715717.154 | M38: 2182814.895 | N38: 1303980.848 | O38: 1434059.701 | P38: 0 | Q38: 0 | R38: 0 | S38: 0 | T38: 0 | U38: 0 | W38: =W36-W37 -> 0 | X38: 0 | Y38: 0 | Z38: 0 | AA38: 0 | AB38: =SUM(G38:K38)/SUM(W38:AA38)-1 ->  | AC38: =AC36-AC37 -> 719792.5014 | AD38: =AD36-AD37 -> 2139346.319 | AE38: =AE36-AE37 -> 1505425.628 | AF38: =AF36-AF37 -> 345898.6618 | AG38: =AG36-AG37 -> 50804.00948 | AH38: =SUM(L38:P38)/SUM(AC38:AG38)-1 -> 0.1838387676 | AL38: =AL36-AL37 -> 0 | AM38: =AM36-AM37 -> 0 | AN38: 0 | AO38: 0 | AP38: 0 | AQ38: 0 | AR38: 0 | AS38: =#REF!-#REF! -> 
D39: MORNINGTON | E39: MORNINGTON | F39: Length of mains replaced (metres) | G39: [C-I-C] | H39: [C-I-C] | I39: [C-I-C] | J39: [C-I-C] | K39: [C-I-C] | L39: [C-I-C] | M39: [C-I-C] | N39: [C-I-C] | O39: [C-I-C] | P39: [C-I-C] | Q39: [C-I-C] | R39: [C-I-C] | S39: [C-I-C] | T39: [C-I-C] | U39: [C-I-C] | W39: [C-I-C] | X39: [C-I-C] | Y39: [C-I-C] | Z39: [C-I-C] | AA39: [C-I-C] | AB39: [C-I-C] | AC39: [C-I-C] | AD39: [C-I-C] | AE39: [C-I-C] | AF39: [C-I-C] | AG39: [C-I-C] | AH39: [C-I-C]
F40: Low pressure - high pressure | G40: [C-I-C] | H40: [C-I-C] | I40: [C-I-C] | J40: [C-I-C] | K40: [C-I-C] | L40: [C-I-C] | M40: [C-I-C] | N40: [C-I-C] | O40: [C-I-C] | P40: [C-I-C] | Q40: [C-I-C] | R40: [C-I-C] | S40: [C-I-C] | T40: [C-I-C] | U40: [C-I-C] | W40: [C-I-C] | X40: [C-I-C] | Y40: [C-I-C] | Z40: [C-I-C] | AA40: [C-I-C] | AB40: [C-I-C] | AC40: [C-I-C] | AD40: [C-I-C] | AE40: [C-I-C] | AF40: [C-I-C] | AG40: [C-I-C] | AH40: [C-I-C]
F41: Low pressure - medium pressure | G41: [C-I-C] | H41: [C-I-C] | I41: [C-I-C] | J41: [C-I-C] | K41: [C-I-C] | L41: [C-I-C] | M41: [C-I-C] | N41: [C-I-C] | O41: [C-I-C] | P41: [C-I-C] | Q41: [C-I-C] | R41: [C-I-C] | S41: [C-I-C] | T41: [C-I-C] | U41: [C-I-C] | W41: [C-I-C] | X41: [C-I-C] | Y41: [C-I-C] | Z41: [C-I-C] | AA41: [C-I-C] | AB41: [C-I-C] | AC41: [C-I-C] | AD41: [C-I-C] | AE41: [C-I-C] | AF41: [C-I-C] | AG41: [C-I-C] | AH41: [C-I-C]
F42: Low pressure - low pressure | G42: [C-I-C] | H42: [C-I-C] | I42: [C-I-C] | J42: [C-I-C] | K42: [C-I-C] | L42: [C-I-C] | M42: [C-I-C] | N42: [C-I-C] | O42: [C-I-C] | P42: [C-I-C] | Q42: [C-I-C] | R42: [C-I-C] | S42: [C-I-C] | T42: [C-I-C] | U42: [C-I-C] | W42: [C-I-C] | X42: [C-I-C] | Y42: [C-I-C] | Z42: [C-I-C] | AA42: [C-I-C] | AB42: [C-I-C] | AC42: [C-I-C] | AD42: [C-I-C] | AE42: [C-I-C] | AF42: [C-I-C] | AG42: [C-I-C] | AH42: [C-I-C]
F43: Medium pressure - medium pressure | G43: [C-I-C] | H43: [C-I-C] | I43: [C-I-C] | J43: [C-I-C] | K43: [C-I-C] | L43: [C-I-C] | M43: [C-I-C] | N43: [C-I-C] | O43: [C-I-C] | P43: [C-I-C] | Q43: [C-I-C] | R43: [C-I-C] | S43: [C-I-C] | T43: [C-I-C] | U43: [C-I-C] | W43: [C-I-C] | X43: [C-I-C] | Y43: [C-I-C] | Z43: [C-I-C] | AA43: [C-I-C] | AB43: [C-I-C] | AC43: [C-I-C] | AD43: [C-I-C] | AE43: [C-I-C] | AF43: [C-I-C] | AG43: [C-I-C] | AH43: [C-I-C]
F44: Medium pressure - high pressure | G44: [C-I-C] | H44: [C-I-C] | I44: [C-I-C] | J44: [C-I-C] | K44: [C-I-C] | L44: [C-I-C] | M44: [C-I-C] | N44: [C-I-C] | O44: [C-I-C] | P44: [C-I-C] | Q44: [C-I-C] | R44: [C-I-C] | S44: [C-I-C] | T44: [C-I-C] | U44: [C-I-C] | W44: [C-I-C] | X44: [C-I-C] | Y44: [C-I-C] | Z44: [C-I-C] | AA44: [C-I-C] | AB44: [C-I-C] | AC44: [C-I-C] | AD44: [C-I-C] | AE44: [C-I-C] | AF44: [C-I-C] | AG44: [C-I-C] | AH44: [C-I-C] | AQ44: =SUM(AQ39:AQ43) -> 0 | AR44: =SUM(AR39:AR43) -> 0 | AS44: =SUM(AS39:AS43) -> 0
F45: Total volume | G45: [C-I-C] | H45: [C-I-C] | I45: [C-I-C] | J45: [C-I-C] | K45: [C-I-C] | L45: [C-I-C] | M45: [C-I-C] | N45: [C-I-C] | O45: [C-I-C] | P45: [C-I-C] | Q45: [C-I-C] | R45: [C-I-C] | S45: [C-I-C] | T45: [C-I-C] | U45: [C-I-C] | W45: [C-I-C] | X45: [C-I-C] | Y45: [C-I-C] | Z45: [C-I-C] | AA45: [C-I-C] | AB45: [C-I-C] | AC45: [C-I-C] | AD45: [C-I-C] | AE45: [C-I-C] | AF45: [C-I-C] | AG45: [C-I-C] | AH45: [C-I-C]
F46: Direct expenditure | L46: 0 | M46: 0 | N46: 0 | O46: 0 | P46: 0 | Q46: 0 | R46: 0 | S46: 0 | T46: 0 | U46: 0
D47: =D39&F47 -> MORNINGTONDirect contractor expenditure | F47: Direct contractor expenditure | L47: 0 | M47: 0 | N47: 1262692.455 | O47: 0 | P47: 0 | Q47: 0 | R47: 0 | S47: 0 | T47: 0 | U47: 0 | AC47: 0 | AD47: 211157.4479 | AE47: 185455.6531 | AF47: 0 | AG47: 0
D48: =D39&F48 -> MORNINGTONDirect internal labour expenditure | F48: Direct internal labour expenditure | L48: 0 | M48: 0 | N48: 58370.23231 | O48: 0 | P48: 0 | Q48: 0 | R48: 0 | S48: 0 | T48: 0 | U48: 0 | AC48: 0 | AD48: 12420.4908 | AE48: 10930.28706 | AF48: 0 | AG48: 0
D49: =D39&F49 -> MORNINGTONOther internal direct expenditure | F49: Other internal direct expenditure | L49: 0 | M49: 0 | N49: 121772.313 | O49: 0 | P49: 0 | Q49: 0 | R49: 0 | S49: 0 | T49: 0 | U49: 0 | AC49: 0 | AD49: 55432.59885 | AE49: 48203.38513 | AF49: 0 | AG49: 0
F50: Total direct expenditure | L50: 0 | M50: 0 | N50: 1442835 | O50: 0 | P50: 0 | Q50: 0 | R50: 0 | S50: 0 | T50: 0 | U50: 0 | W50: =SUM(W47:W49) -> 0 | X50: 0 | Y50: 0 | Z50: 0 | AA50: =SUM(AA47:AA49) -> 0 | AB50: =SUM(G50:K50)/SUM(W50:AA50)-1 ->  | AC50: =SUM(AC47:AC49) -> 0 | AD50: =SUM(AD47:AD49) -> 279010.5375 | AE50: =SUM(AE47:AE49) -> 244589.3253 | AF50: =SUM(AF47:AF49) -> 0 | AG50: =SUM(AG47:AG49) -> 0 | AH50: =SUM(L50:P50)/SUM(AC50:AG50)-1 -> 1.755606146 | AQ50: =SUM(AQ47:AQ49) -> 0 | AR50: =SUM(AR47:AR49) -> 0 | AS50: =SUM(AS47:AS49) -> 0
D51: =D39&"Overheads" -> MORNINGTONOverheads | F51: Total overhead expenditure | L51: 0 | M51: 0 | N51: 103865.444 | O51: 0 | P51: 0 | Q51: 0 | R51: 0 | S51: 0 | T51: 0 | U51: 0 | AB51: =SUM(G51:K51)/SUM(W51:AA51)-1 ->  | AC51: 9222.299782 | AD51: 7611.435472 | AE51: 7918.82385 | AF51: 5794.380532 | AG51: 5969.100735 | AH51: =SUM(L51:P51)/SUM(AC51:AG51)-1 -> 1.844378605
F52: Related party margin expenditure | L52: 0 | M52: 0 | N52: 49187.67281 | O52: 0 | P52: 0 | Q52: 0 | R52: 0 | S52: 0 | T52: 0 | U52: 0
F53: Total gross expenditure | G53: =SUM(G51:G52) -> 0 | H53: 0 | I53: 0 | J53: 0 | K53: 0 | L53: 0 | M53: 0 | N53: 1595888.117 | O53: 0 | P53: 0 | Q53: 0 | R53: 0 | S53: 0 | T53: 0 | U53: 0 | W53: =SUM(W51:W52) -> 0 | X53: =SUM(X51:X52) -> 0 | Y53: =SUM(Y51:Y52) -> 0 | Z53: =SUM(Z51:Z52) -> 0 | AA53: =SUM(AA51:AA52) -> 0 | AB53: =SUM(G53:K53)/SUM(W53:AA53)-1 ->  | AC53: =SUM(AC50:AC52) -> 9222.299782 | AD53: =SUM(AD50:AD52) -> 286621.973 | AE53: =SUM(AE50:AE52) -> 252508.1491 | AF53: =SUM(AF50:AF52) -> 5794.380532 | AG53: =SUM(AG50:AG52) -> 5969.100735 | AH53: =SUM(L53:P53)/SUM(AC53:AG53)-1 -> 1.849210508 | AL53: =SUM(AL51:AL52) -> 0 | AM53: 0 | AN53: 0 | AO53: 0 | AP53: 0 | AQ53: 0 | AR53: 0 | AS53: 0
F54: Less customer contributions | L54: 0 | M54: 0 | N54: 0 | O54: 0 | P54: 0 | Q54: 0 | R54: 0 | S54: 0 | T54: 0 | U54: 0
F55: Total net expenditure | G55: =G53-G54 -> 0 | H55: =H53-H54 -> 0 | I55: 0 | J55: 0 | K55: 0 | L55: 0 | M55: 0 | N55: 1595888.117 | O55: 0 | P55: 0 | Q55: 0 | R55: 0 | S55: 0 | T55: 0 | U55: 0 | W55: =W53-W54 -> 0 | X55: 0 | Y55: 0 | Z55: 0 | AA55: 0 | AB55: =SUM(G55:K55)/SUM(W55:AA55)-1 ->  | AC55: =AC53-AC54 -> 9222.299782 | AD55: =AD53-AD54 -> 286621.973 | AE55: =AE53-AE54 -> 252508.1491 | AF55: =AF53-AF54 -> 5794.380532 | AG55: =AG53-AG54 -> 5969.100735 | AH55: =SUM(L55:P55)/SUM(AC55:AG55)-1 -> 1.849210508 | AL55: =AL53-AL54 -> 0 | AM55: =AM53-AM54 -> 0 | AN55: 0 | AO55: 0 | AP55: 0 | AQ55: 0 | AR55: 0 | AS55: =#REF!-#REF! -> 
D56: SHEPPARTON | E56: SHEPPARTON | F56: Length of mains replaced (metres) | G56: [C-I-C] | H56: [C-I-C] | I56: [C-I-C] | J56: [C-I-C] | K56: [C-I-C] | L56: [C-I-C] | M56: [C-I-C] | N56: [C-I-C] | O56: [C-I-C] | P56: [C-I-C] | Q56: [C-I-C] | R56: [C-I-C] | S56: [C-I-C] | T56: [C-I-C] | U56: [C-I-C] | W56: [C-I-C] | X56: [C-I-C] | Y56: [C-I-C] | Z56: [C-I-C] | AA56: [C-I-C] | AB56: [C-I-C] | AC56: [C-I-C] | AD56: [C-I-C] | AE56: [C-I-C] | AF56: [C-I-C] | AG56: [C-I-C] | AH56: [C-I-C] | AL56: =#REF!-#REF! ->  | AM56: =#REF!-#REF! ->  | AN56: =#REF!-#REF! ->  | AO56: =#REF!-#REF! ->  | AP56: =#REF!-#REF! ->  | AQ56: =#REF!-#REF! ->  | AR56: =#REF!-#REF! ->  | AS56: =#REF!-#REF! -> 
F57: Low pressure - high pressure | G57: [C-I-C] | H57: [C-I-C] | I57: [C-I-C] | J57: [C-I-C] | K57: [C-I-C] | L57: [C-I-C] | M57: [C-I-C] | N57: [C-I-C] | O57: [C-I-C] | P57: [C-I-C] | Q57: [C-I-C] | R57: [C-I-C] | S57: [C-I-C] | T57: [C-I-C] | U57: [C-I-C] | W57: [C-I-C] | X57: [C-I-C] | Y57: [C-I-C] | Z57: [C-I-C] | AA57: [C-I-C] | AB57: [C-I-C] | AC57: [C-I-C] | AD57: [C-I-C] | AE57: [C-I-C] | AF57: [C-I-C] | AG57: [C-I-C] | AH57: [C-I-C]
F58: Low pressure - medium pressure | G58: [C-I-C] | H58: [C-I-C] | I58: [C-I-C] | J58: [C-I-C] | K58: [C-I-C] | L58: [C-I-C] | M58: [C-I-C] | N58: [C-I-C] | O58: [C-I-C] | P58: [C-I-C] | Q58: [C-I-C] | R58: [C-I-C] | S58: [C-I-C] | T58: [C-I-C] | U58: [C-I-C] | W58: [C-I-C] | X58: [C-I-C] | Y58: [C-I-C] | Z58: [C-I-C] | AA58: [C-I-C] | AB58: [C-I-C] | AC58: [C-I-C] | AD58: [C-I-C] | AE58: [C-I-C] | AF58: [C-I-C] | AG58: [C-I-C] | AH58: [C-I-C]
F59: Low pressure - low pressure | G59: [C-I-C] | H59: [C-I-C] | I59: [C-I-C] | J59: [C-I-C] | K59: [C-I-C] | L59: [C-I-C] | M59: [C-I-C] | N59: [C-I-C] | O59: [C-I-C] | P59: [C-I-C] | Q59: [C-I-C] | R59: [C-I-C] | S59: [C-I-C] | T59: [C-I-C] | U59: [C-I-C] | W59: [C-I-C] | X59: [C-I-C] | Y59: [C-I-C] | Z59: [C-I-C] | AA59: [C-I-C] | AB59: [C-I-C] | AC59: [C-I-C] | AD59: [C-I-C] | AE59: [C-I-C] | AF59: [C-I-C] | AG59: [C-I-C] | AH59: [C-I-C]
F60: Medium pressure - medium pressure | G60: [C-I-C] | H60: [C-I-C] | I60: [C-I-C] | J60: [C-I-C] | K60: [C-I-C] | L60: [C-I-C] | M60: [C-I-C] | N60: [C-I-C] | O60: [C-I-C] | P60: [C-I-C] | Q60: [C-I-C] | R60: [C-I-C] | S60: [C-I-C] | T60: [C-I-C] | U60: [C-I-C] | W60: [C-I-C] | X60: [C-I-C] | Y60: [C-I-C] | Z60: [C-I-C] | AA60: [C-I-C] | AB60: [C-I-C] | AC60: [C-I-C] | AD60: [C-I-C] | AE60: [C-I-C] | AF60: [C-I-C] | AG60: [C-I-C] | AH60: [C-I-C]
F61: Medium pressure - high pressure | G61: [C-I-C] | H61: [C-I-C] | I61: [C-I-C] | J61: [C-I-C] | K61: [C-I-C] | L61: [C-I-C] | M61: [C-I-C] | N61: [C-I-C] | O61: [C-I-C] | P61: [C-I-C] | Q61: [C-I-C] | R61: [C-I-C] | S61: [C-I-C] | T61: [C-I-C] | U61: [C-I-C] | W61: [C-I-C] | X61: [C-I-C] | Y61: [C-I-C] | Z61: [C-I-C] | AA61: [C-I-C] | AB61: [C-I-C] | AC61: [C-I-C] | AD61: [C-I-C] | AE61: [C-I-C] | AF61: [C-I-C] | AG61: [C-I-C] | AH61: [C-I-C]
F62: Total volume | G62: [C-I-C] | H62: [C-I-C] | I62: [C-I-C] | J62: [C-I-C] | K62: [C-I-C] | L62: [C-I-C] | M62: [C-I-C] | N62: [C-I-C] | O62: [C-I-C] | P62: [C-I-C] | Q62: [C-I-C] | R62: [C-I-C] | S62: [C-I-C] | T62: [C-I-C] | U62: [C-I-C] | W62: [C-I-C] | X62: [C-I-C] | Y62: [C-I-C] | Z62: [C-I-C] | AA62: [C-I-C] | AB62: [C-I-C] | AC62: [C-I-C] | AD62: [C-I-C] | AE62: [C-I-C] | AF62: [C-I-C] | AG62: [C-I-C] | AH62: [C-I-C] | AQ62: =SUM(AQ59:AQ61) -> 0 | AR62: =SUM(AR59:AR61) -> 0 | AS62: =SUM(AS59:AS61) -> 0
F63: Direct expenditure | L63: 0 | M63: 0 | N63: 0 | O63: 0 | P63: 0 | Q63: 0 | R63: 0 | S63: 0 | T63: 0 | U63: 0
D64: =D56&F64 -> SHEPPARTONDirect contractor expenditure | F64: Direct contractor expenditure | L64: 629821.8123 | M64: 0 | N64: 0 | O64: 0 | P64: 0 | Q64: 0 | R64: 0 | S64: 0 | T64: 0 | U64: 0 | AC64: 591007.9663 | AD64: 0 | AE64: 0 | AF64: 0 | AG64: 0
D65: =D56&F65 -> SHEPPARTONDirect internal labour expenditure | F65: Direct internal labour expenditure | L65: 25613.61329 | M65: 0 | N65: 0 | O65: 0 | P65: 0 | Q65: 0 | R65: 0 | S65: 0 | T65: 0 | U65: 0 | AC65: 34660.51924 | AD65: 0 | AE65: 0 | AF65: 0 | AG65: 0 | AL65: =SUM(AL63:AL64) -> 0 | AM65: =SUM(AM63:AM64) -> 0 | AN65: 0 | AO65: 0 | AP65: 0 | AQ65: 0 | AR65: 0 | AS65: 0
D66: =D56&F66 -> SHEPPARTONOther internal direct expenditure | F66: Other internal direct expenditure | L66: 53227.57438 | M66: 0 | N66: 0 | O66: 0 | P66: 0 | Q66: 0 | R66: 0 | S66: 0 | T66: 0 | U66: 0 | AC66: 156391.3407 | AD66: 0 | AE66: 0 | AF66: 0 | AG66: 0
F67: Total direct expenditure | L67: 708663 | M67: 0 | N67: 0 | O67: 0 | P67: 0 | Q67: 0 | R67: 0 | S67: 0 | T67: 0 | U67: 0 | W67: =SUM(W64:W66) -> 0 | X67: 0 | Y67: 0 | Z67: 0 | AA67: =SUM(AA64:AA66) -> 0 | AB67: =SUM(G67:K67)/SUM(W67:AA67)-1 ->  | AC67: =SUM(AC64:AC66) -> 782059.8262 | AD67: =SUM(AD64:AD66) -> 0 | AE67: =SUM(AE64:AE66) -> 0 | AF67: =SUM(AF64:AF66) -> 0 | AG67: =SUM(AG64:AG66) -> 0 | AH67: =SUM(L67:P67)/SUM(AC67:AG67)-1 -> -0.09385065405 | AL67: =AL65-AL66 -> 0 | AM67: 0 | AN67: 0 | AO67: 0 | AP67: 0 | AQ67: 0 | AR67: 0 | AS67: 0
D68: =D56&"Overheads" -> SHEPPARTONOverheads | F68: Total overhead expenditure | L68: 57555.78413 | M68: 0 | N68: 0 | O68: 0 | P68: 0 | Q68: 0 | R68: 0 | S68: 0 | T68: 0 | U68: 0 | AB68: =SUM(G68:K68)/SUM(W68:AA68)-1 ->  | AC68: 13916.86335 | AD68: 11485.99697 | AE68: 11949.8598 | AF68: 8743.979697 | AG68: 9007.640307 | AH68: =SUM(L68:P68)/SUM(AC68:AG68)-1 -> 0.04448731263
F69: Related party margin expenditure | L69: 20988.32793 | M69: 0 | N69: 0 | O69: 0 | P69: 0 | Q69: 0 | R69: 0 | S69: 0 | T69: 0 | U69: 0 | AQ69: =SUM(#REF!,AQ59) ->  | AR69: =SUM(#REF!,AR59) ->  | AS69: =SUM(#REF!,AS59) -> 
F70: Total gross expenditure | G70: =SUM(G68:G69) -> 0 | H70: 0 | I70: 0 | J70: 0 | K70: 0 | L70: 787207.1121 | M70: 0 | N70: 0 | O70: 0 | P70: 0 | Q70: 0 | R70: 0 | S70: 0 | T70: 0 | U70: 0 | W70: =SUM(W68:W69) -> 0 | X70: =SUM(X68:X69) -> 0 | Y70: =SUM(Y68:Y69) -> 0 | Z70: =SUM(Z68:Z69) -> 0 | AA70: =SUM(AA68:AA69) -> 0 | AB70: =SUM(G70:K70)/SUM(W70:AA70)-1 ->  | AC70: =SUM(AC67:AC69) -> 795976.6895 | AD70: =SUM(AD67:AD69) -> 11485.99697 | AE70: =SUM(AE67:AE69) -> 11949.8598 | AF70: =SUM(AF67:AF69) -> 8743.979697 | AG70: =SUM(AG67:AG69) -> 9007.640307 | AH70: =SUM(L70:P70)/SUM(AC70:AG70)-1 -> -0.0596741431 | AQ70: =SUM(#REF!,AQ60) ->  | AR70: =SUM(#REF!,AR60) ->  | AS70: =SUM(#REF!,AS60) -> 
F71: Less customer contributions | L71: 0 | M71: 0 | N71: 0 | O71: 0 | P71: 0 | Q71: 0 | R71: 0 | S71: 0 | T71: 0 | U71: 0 | AQ71: =SUM(#REF!,AQ61) ->  | AR71: =SUM(#REF!,AR61) ->  | AS71: =SUM(#REF!,AS61) -> 
F72: Total net expenditure | G72: =G70-G71 -> 0 | H72: =H70-H71 -> 0 | I72: 0 | J72: 0 | K72: 0 | L72: 787207.1121 | M72: 0 | N72: 0 | O72: 0 | P72: 0 | Q72: 0 | R72: 0 | S72: 0 | T72: 0 | U72: 0 | W72: =W70-W71 -> 0 | X72: 0 | Y72: 0 | Z72: 0 | AA72: 0 | AB72: =SUM(G72:K72)/SUM(W72:AA72)-1 ->  | AC72: =AC70-AC71 -> 795976.6895 | AD72: =AD70-AD71 -> 11485.99697 | AE72: =AE70-AE71 -> 11949.8598 | AF72: =AF70-AF71 -> 8743.979697 | AG72: =AG70-AG71 -> 9007.640307 | AH72: =SUM(L72:P72)/SUM(AC72:AG72)-1 -> -0.0596741431 | AQ72: =SUM(#REF!,AQ62) ->  | AR72: =SUM(#REF!,AR62) ->  | AS72: =SUM(#REF!,AS62) -> 
D73: WANGARATTA | E73: WANGARATTA | F73: Length of mains replaced (metres) | G73: [C-I-C] | H73: [C-I-C] | I73: [C-I-C] | J73: [C-I-C] | K73: [C-I-C] | L73: [C-I-C] | M73: [C-I-C] | N73: [C-I-C] | O73: [C-I-C] | P73: [C-I-C] | Q73: [C-I-C] | R73: [C-I-C] | S73: [C-I-C] | T73: [C-I-C] | U73: [C-I-C] | W73: [C-I-C] | X73: [C-I-C] | Y73: [C-I-C] | Z73: [C-I-C] | AA73: [C-I-C] | AB73: [C-I-C] | AC73: [C-I-C] | AD73: [C-I-C] | AE73: [C-I-C] | AF73: [C-I-C] | AG73: [C-I-C] | AH73: [C-I-C] | AL73: =SUM(#REF!,AL63) ->  | AM73: =SUM(#REF!,AM63) ->  | AN73: =SUM(#REF!,AN63) ->  | AO73: =SUM(#REF!,AO63) ->  | AP73: =SUM(#REF!,AP63) ->  | AQ73: =SUM(#REF!,AQ63) ->  | AR73: =SUM(#REF!,AR63) ->  | AS73: =SUM(#REF!,AS63) -> 
F74: Low pressure - high pressure | G74: [C-I-C] | H74: [C-I-C] | I74: [C-I-C] | J74: [C-I-C] | K74: [C-I-C] | L74: [C-I-C] | M74: [C-I-C] | N74: [C-I-C] | O74: [C-I-C] | P74: [C-I-C] | Q74: [C-I-C] | R74: [C-I-C] | S74: [C-I-C] | T74: [C-I-C] | U74: [C-I-C] | W74: [C-I-C] | X74: [C-I-C] | Y74: [C-I-C] | Z74: [C-I-C] | AA74: [C-I-C] | AB74: [C-I-C] | AC74: [C-I-C] | AD74: [C-I-C] | AE74: [C-I-C] | AF74: [C-I-C] | AG74: [C-I-C] | AH74: [C-I-C] | AL74: =SUM(#REF!,AL64) ->  | AM74: =SUM(#REF!,AM64) ->  | AN74: =SUM(#REF!,AN64) ->  | AO74: =SUM(#REF!,AO64) ->  | AP74: =SUM(#REF!,AP64) ->  | AQ74: =SUM(#REF!,AQ64) ->  | AR74: =SUM(#REF!,AR64) ->  | AS74: =SUM(#REF!,AS64) -> 
F75: Low pressure - medium pressure | G75: [C-I-C] | H75: [C-I-C] | I75: [C-I-C] | J75: [C-I-C] | K75: [C-I-C] | L75: [C-I-C] | M75: [C-I-C] | N75: [C-I-C] | O75: [C-I-C] | P75: [C-I-C] | Q75: [C-I-C] | R75: [C-I-C] | S75: [C-I-C] | T75: [C-I-C] | U75: [C-I-C] | W75: [C-I-C] | X75: [C-I-C] | Y75: [C-I-C] | Z75: [C-I-C] | AA75: [C-I-C] | AB75: [C-I-C] | AC75: [C-I-C] | AD75: [C-I-C] | AE75: [C-I-C] | AF75: [C-I-C] | AG75: [C-I-C] | AH75: [C-I-C] | AL75: =SUM(#REF!,AL65) ->  | AM75: =SUM(#REF!,AM65) ->  | AN75: =SUM(#REF!,AN65) ->  | AO75: =SUM(#REF!,AO65) ->  | AP75: =SUM(#REF!,AP65) ->  | AQ75: =SUM(#REF!,AQ65) ->  | AR75: =SUM(#REF!,AR65) ->  | AS75: =SUM(#REF!,AS65) -> 
F76: Low pressure - low pressure | G76: [C-I-C] | H76: [C-I-C] | I76: [C-I-C] | J76: [C-I-C] | K76: [C-I-C] | L76: [C-I-C] | M76: [C-I-C] | N76: [C-I-C] | O76: [C-I-C] | P76: [C-I-C] | Q76: [C-I-C] | R76: [C-I-C] | S76: [C-I-C] | T76: [C-I-C] | U76: [C-I-C] | W76: [C-I-C] | X76: [C-I-C] | Y76: [C-I-C] | Z76: [C-I-C] | AA76: [C-I-C] | AB76: [C-I-C] | AC76: [C-I-C] | AD76: [C-I-C] | AE76: [C-I-C] | AF76: [C-I-C] | AG76: [C-I-C] | AH76: [C-I-C] | AL76: =SUMIF($F$872:$AH$876,"Less customer contributions",AL56:AL64) -> 0 | AM76: =SUMIF($F$872:$AH$876,"Less customer contributions",AM56:AM64) -> 0 | AN76: =SUM(#REF!,AN66) ->  | AO76: =SUM(#REF!,AO66) ->  | AP76: =SUM(#REF!,AP66) ->  | AQ76: =SUM(#REF!,AQ66) ->  | AR76: =SUM(#REF!,AR66) ->  | AS76: =SUM(#REF!,AS66) -> 
F77: Medium pressure - medium pressure | G77: [C-I-C] | H77: [C-I-C] | I77: [C-I-C] | J77: [C-I-C] | K77: [C-I-C] | L77: [C-I-C] | M77: [C-I-C] | N77: [C-I-C] | O77: [C-I-C] | P77: [C-I-C] | Q77: [C-I-C] | R77: [C-I-C] | S77: [C-I-C] | T77: [C-I-C] | U77: [C-I-C] | W77: [C-I-C] | X77: [C-I-C] | Y77: [C-I-C] | Z77: [C-I-C] | AA77: [C-I-C] | AB77: [C-I-C] | AC77: [C-I-C] | AD77: [C-I-C] | AE77: [C-I-C] | AF77: [C-I-C] | AG77: [C-I-C] | AH77: [C-I-C] | AL77: =AL75-AL76 -> 
F78: Medium pressure - high pressure | G78: [C-I-C] | H78: [C-I-C] | I78: [C-I-C] | J78: [C-I-C] | K78: [C-I-C] | L78: [C-I-C] | M78: [C-I-C] | N78: [C-I-C] | O78: [C-I-C] | P78: [C-I-C] | Q78: [C-I-C] | R78: [C-I-C] | S78: [C-I-C] | T78: [C-I-C] | U78: [C-I-C] | W78: [C-I-C] | X78: [C-I-C] | Y78: [C-I-C] | Z78: [C-I-C] | AA78: [C-I-C] | AB78: [C-I-C] | AC78: [C-I-C] | AD78: [C-I-C] | AE78: [C-I-C] | AF78: [C-I-C] | AG78: [C-I-C] | AH78: [C-I-C]
F79: Total volume | G79: [C-I-C] | H79: [C-I-C] | I79: [C-I-C] | J79: [C-I-C] | K79: [C-I-C] | L79: [C-I-C] | M79: [C-I-C] | N79: [C-I-C] | O79: [C-I-C] | P79: [C-I-C] | Q79: [C-I-C] | R79: [C-I-C] | S79: [C-I-C] | T79: [C-I-C] | U79: [C-I-C] | W79: [C-I-C] | X79: [C-I-C] | Y79: [C-I-C] | Z79: [C-I-C] | AA79: [C-I-C] | AB79: [C-I-C] | AC79: [C-I-C] | AD79: [C-I-C] | AE79: [C-I-C] | AF79: [C-I-C] | AG79: [C-I-C] | AH79: [C-I-C]
F80: Direct expenditure | L80: 0 | M80: 0 | N80: 0 | O80: 0 | P80: 0 | Q80: 0 | R80: 0 | S80: 0 | T80: 0 | U80: 0
D81: =D73&F81 -> WANGARATTADirect contractor expenditure | F81: Direct contractor expenditure | L81: 1371845.213 | M81: 0 | N81: 0 | O81: 0 | P81: 0 | Q81: 0 | R81: 0 | S81: 0 | T81: 0 | U81: 0 | AC81: 1442993.557 | AD81: 0 | AE81: 0 | AF81: 0 | AG81: 0 | AQ81: =SUM(#REF!,AQ72) ->  | AR81: =SUM(#REF!,AR72) ->  | AS81: =SUM(#REF!,AS72) -> 
D82: =D73&F82 -> WANGARATTADirect internal labour expenditure | F82: Direct internal labour expenditure | L82: 55790.24432 | M82: 0 | N82: 0 | O82: 0 | P82: 0 | Q82: 0 | R82: 0 | S82: 0 | T82: 0 | U82: 0 | AC82: 84626.44971 | AD82: 0 | AE82: 0 | AF82: 0 | AG82: 0 | AL82: =SUM(#REF!,AL73) ->  | AM82: =SUM(#REF!,AM73) ->  | AN82: =SUM(#REF!,AN73) ->  | AO82: =SUM(#REF!,AO73) ->  | AP82: =SUM(#REF!,AP73) ->  | AQ82: =SUM(#REF!,AQ73) ->  | AR82: =SUM(#REF!,AR73) ->  | AS82: =SUM(#REF!,AS73) -> 
D83: =D73&F83 -> WANGARATTAOther internal direct expenditure | F83: Other internal direct expenditure | L83: 115937.5425 | M83: 0 | N83: 0 | O83: 0 | P83: 0 | Q83: 0 | R83: 0 | S83: 0 | T83: 0 | U83: 0 | AC83: 381842.056 | AD83: 0 | AE83: 0 | AF83: 0 | AG83: 0 | AL83: =SUMIF($F$872:$AH$876,"Related party margin",AL56:AL80) -> 0 | AM83: 0 | AN83: 0 | AO83: 0 | AP83: 0 | AQ83: 0 | AR83: 0 | AS83: =SUMIF($F$872:$AH$876,"Related party margin",AR56:AR80) -> 0
F84: Total direct expenditure | L84: 1543573 | M84: 0 | N84: 0 | O84: 0 | P84: 0 | Q84: 0 | R84: 0 | S84: 0 | T84: 0 | U84: 0 | W84: =SUM(W81:W83) -> 0 | X84: 0 | Y84: 0 | Z84: 0 | AA84: =SUM(AA81:AA83) -> 0 | AB84: =SUM(G84:K84)/SUM(W84:AA84)-1 ->  | AC84: =SUM(AC81:AC83) -> 1909462.062 | AD84: =SUM(AD81:AD83) -> 0 | AE84: =SUM(AE81:AE83) -> 0 | AF84: =SUM(AF81:AF83) -> 0 | AG84: =SUM(AG81:AG83) -> 0 | AH84: =SUM(L84:P84)/SUM(AC84:AG84)-1 -> -0.1916189222 | AL84: =SUM(#REF!,AL75) ->  | AM84: =SUM(#REF!,AM75) ->  | AN84: =SUM(#REF!,AN75) ->  | AO84: =SUM(#REF!,AO75) ->  | AP84: =SUM(#REF!,AP75) ->  | AQ84: =SUM(#REF!,AQ75) ->  | AR84: =SUM(#REF!,AR75) ->  | AS84: =SUM(#REF!,AS75) -> 
D85: =D73&"Overheads" -> WANGARATTAOverheads | F85: Total overhead expenditure | L85: 125365.0245 | M85: 0 | N85: 0 | O85: 0 | P85: 0 | Q85: 0 | R85: 0 | S85: 0 | T85: 0 | U85: 0 | AB85: =SUM(G85:K85)/SUM(W85:AA85)-1 ->  | AC85: 33979.1429 | AD85: 28043.98682 | AE85: 29176.54528 | AF85: 21349.13078 | AG85: 21992.8794 | AH85: =SUM(L85:P85)/SUM(AC85:AG85)-1 -> -0.06820682119 | AL85: =SUMIF($F$872:$AH$876,"Less customer contributions",AL56:AL80) -> 0 | AM85: 0 | AN85: 0 | AO85: 0 | AP85: 0 | AQ85: 0 | AR85: 0 | AS85: =SUMIF($F$872:$AH$876,"Less customer contributions",AR56:AR80) -> 0
F86: Related party margin expenditure | L86: 45715.68758 | M86: 0 | N86: 0 | O86: 0 | P86: 0 | Q86: 0 | R86: 0 | S86: 0 | T86: 0 | U86: 0 | AL86: =AL84-AL85 -> 
F87: Total gross expenditure | G87: =SUM(G85:G86) -> 0 | H87: 0 | I87: 0 | J87: 0 | K87: 0 | L87: 1714653.712 | M87: 0 | N87: 0 | O87: 0 | P87: 0 | Q87: 0 | R87: 0 | S87: 0 | T87: 0 | U87: 0 | W87: =SUM(W85:W86) -> 0 | X87: =SUM(X85:X86) -> 0 | Y87: =SUM(Y85:Y86) -> 0 | Z87: =SUM(Z85:Z86) -> 0 | AA87: =SUM(AA85:AA86) -> 0 | AB87: =SUM(G87:K87)/SUM(W87:AA87)-1 ->  | AC87: =SUM(AC84:AC86) -> 1943441.205 | AD87: =SUM(AD84:AD86) -> 28043.98682 | AE87: =SUM(AE84:AE86) -> 29176.54528 | AF87: =SUM(AF84:AF86) -> 21349.13078 | AG87: =SUM(AG84:AG86) -> 21992.8794 | AH87: =SUM(L87:P87)/SUM(AC87:AG87)-1 -> -0.1611298589
F88: Less customer contributions | L88: 0 | M88: 0 | N88: 0 | O88: 0 | P88: 0 | Q88: 0 | R88: 0 | S88: 0 | T88: 0 | U88: 0
F89: Total net expenditure | G89: =G87-G88 -> 0 | H89: =H87-H88 -> 0 | I89: 0 | J89: 0 | K89: 0 | L89: 1714653.712 | M89: 0 | N89: 0 | O89: 0 | P89: 0 | Q89: 0 | R89: 0 | S89: 0 | T89: 0 | U89: 0 | W89: =W87-W88 -> 0 | X89: 0 | Y89: 0 | Z89: 0 | AA89: 0 | AB89: =SUM(G89:K89)/SUM(W89:AA89)-1 ->  | AC89: =AC87-AC88 -> 1943441.205 | AD89: =AD87-AD88 -> 28043.98682 | AE89: =AE87-AE88 -> 29176.54528 | AF89: =AF87-AF88 -> 21349.13078 | AG89: =AG87-AG88 -> 21992.8794 | AH89: =SUM(L89:P89)/SUM(AC89:AG89)-1 -> -0.1611298589
D90: WARRAGUL | E90: WARRAGUL | F90: Length of mains replaced (metres) | G90: [C-I-C] | H90: [C-I-C] | I90: [C-I-C] | J90: [C-I-C] | K90: [C-I-C] | L90: [C-I-C] | M90: [C-I-C] | N90: [C-I-C] | O90: [C-I-C] | P90: [C-I-C] | Q90: [C-I-C] | R90: [C-I-C] | S90: [C-I-C] | T90: [C-I-C] | U90: [C-I-C] | W90: [C-I-C] | X90: [C-I-C] | Y90: [C-I-C] | Z90: [C-I-C] | AA90: [C-I-C] | AB90: [C-I-C] | AC90: [C-I-C] | AD90: [C-I-C] | AE90: [C-I-C] | AF90: [C-I-C] | AG90: [C-I-C] | AH90: [C-I-C]
F91: Low pressure - high pressure | G91: [C-I-C] | H91: [C-I-C] | I91: [C-I-C] | J91: [C-I-C] | K91: [C-I-C] | L91: [C-I-C] | M91: [C-I-C] | N91: [C-I-C] | O91: [C-I-C] | P91: [C-I-C] | Q91: [C-I-C] | R91: [C-I-C] | S91: [C-I-C] | T91: [C-I-C] | U91: [C-I-C] | W91: [C-I-C] | X91: [C-I-C] | Y91: [C-I-C] | Z91: [C-I-C] | AA91: [C-I-C] | AB91: [C-I-C] | AC91: [C-I-C] | AD91: [C-I-C] | AE91: [C-I-C] | AF91: [C-I-C] | AG91: [C-I-C] | AH91: [C-I-C]
F92: Low pressure - medium pressure | G92: [C-I-C] | H92: [C-I-C] | I92: [C-I-C] | J92: [C-I-C] | K92: [C-I-C] | L92: [C-I-C] | M92: [C-I-C] | N92: [C-I-C] | O92: [C-I-C] | P92: [C-I-C] | Q92: [C-I-C] | R92: [C-I-C] | S92: [C-I-C] | T92: [C-I-C] | U92: [C-I-C] | W92: [C-I-C] | X92: [C-I-C] | Y92: [C-I-C] | Z92: [C-I-C] | AA92: [C-I-C] | AB92: [C-I-C] | AC92: [C-I-C] | AD92: [C-I-C] | AE92: [C-I-C] | AF92: [C-I-C] | AG92: [C-I-C] | AH92: [C-I-C]
F93: Low pressure - low pressure | G93: [C-I-C] | H93: [C-I-C] | I93: [C-I-C] | J93: [C-I-C] | K93: [C-I-C] | L93: [C-I-C] | M93: [C-I-C] | N93: [C-I-C] | O93: [C-I-C] | P93: [C-I-C] | Q93: [C-I-C] | R93: [C-I-C] | S93: [C-I-C] | T93: [C-I-C] | U93: [C-I-C] | W93: [C-I-C] | X93: [C-I-C] | Y93: [C-I-C] | Z93: [C-I-C] | AA93: [C-I-C] | AB93: [C-I-C] | AC93: [C-I-C] | AD93: [C-I-C] | AE93: [C-I-C] | AF93: [C-I-C] | AG93: [C-I-C] | AH93: [C-I-C]
F94: Medium pressure - medium pressure | G94: [C-I-C] | H94: [C-I-C] | I94: [C-I-C] | J94: [C-I-C] | K94: [C-I-C] | L94: [C-I-C] | M94: [C-I-C] | N94: [C-I-C] | O94: [C-I-C] | P94: [C-I-C] | Q94: [C-I-C] | R94: [C-I-C] | S94: [C-I-C] | T94: [C-I-C] | U94: [C-I-C] | W94: [C-I-C] | X94: [C-I-C] | Y94: [C-I-C] | Z94: [C-I-C] | AA94: [C-I-C] | AB94: [C-I-C] | AC94: [C-I-C] | AD94: [C-I-C] | AE94: [C-I-C] | AF94: [C-I-C] | AG94: [C-I-C] | AH94: [C-I-C]
F95: Medium pressure - high pressure | G95: [C-I-C] | H95: [C-I-C] | I95: [C-I-C] | J95: [C-I-C] | K95: [C-I-C] | L95: [C-I-C] | M95: [C-I-C] | N95: [C-I-C] | O95: [C-I-C] | P95: [C-I-C] | Q95: [C-I-C] | R95: [C-I-C] | S95: [C-I-C] | T95: [C-I-C] | U95: [C-I-C] | W95: [C-I-C] | X95: [C-I-C] | Y95: [C-I-C] | Z95: [C-I-C] | AA95: [C-I-C] | AB95: [C-I-C] | AC95: [C-I-C] | AD95: [C-I-C] | AE95: [C-I-C] | AF95: [C-I-C] | AG95: [C-I-C] | AH95: [C-I-C]
F96: Total volume | G96: [C-I-C] | H96: [C-I-C] | I96: [C-I-C] | J96: [C-I-C] | K96: [C-I-C] | L96: [C-I-C] | M96: [C-I-C] | N96: [C-I-C] | O96: [C-I-C] | P96: [C-I-C] | Q96: [C-I-C] | R96: [C-I-C] | S96: [C-I-C] | T96: [C-I-C] | U96: [C-I-C] | W96: [C-I-C] | X96: [C-I-C] | Y96: [C-I-C] | Z96: [C-I-C] | AA96: [C-I-C] | AB96: [C-I-C] | AC96: [C-I-C] | AD96: [C-I-C] | AE96: [C-I-C] | AF96: [C-I-C] | AG96: [C-I-C] | AH96: [C-I-C]
F97: Direct expenditure | L97: 0 | M97: 0 | N97: 0 | O97: 0 | P97: 0 | Q97: 0 | R97: 0 | S97: 0 | T97: 0 | U97: 0
D98: =D90&F98 -> WARRAGULDirect contractor expenditure | F98: Direct contractor expenditure | L98: 1049407.068 | M98: 241201.3533 | N98: 0 | O98: 0 | P98: 0 | Q98: 0 | R98: 0 | S98: 0 | T98: 0 | U98: 0 | AC98: 902358.6447 | AD98: 344175.8839 | AE98: 0 | AF98: 0 | AG98: 0
D99: =D90&F99 -> WARRAGULDirect internal labour expenditure | F99: Direct internal labour expenditure | L99: 42677.31968 | M99: 14185.03516 | N99: 0 | O99: 0 | P99: 0 | Q99: 0 | R99: 0 | S99: 0 | T99: 0 | U99: 0 | AC99: 52920.13129 | AD99: 20244.76732 | AE99: 0 | AF99: 0 | AG99: 0
D100: =D90&F100 -> WARRAGULOther internal direct expenditure | F100: Other internal direct expenditure | L100: 88687.61239 | M100: 25968.61154 | N100: 0 | O100: 0 | P100: 0 | Q100: 0 | R100: 0 | S100: 0 | T100: 0 | U100: 0 | AC100: 238780.3317 | AD100: 90352.31244 | AE100: 0 | AF100: 0 | AG100: 0
F101: Total direct expenditure | L101: 1180772 | M101: 281355 | N101: 0 | O101: 0 | P101: 0 | Q101: 0 | R101: 0 | S101: 0 | T101: 0 | U101: 0 | W101: =SUM(W98:W100) -> 0 | X101: 0 | Y101: 0 | Z101: 0 | AA101: =SUM(AA98:AA100) -> 0 | AB101: =SUM(G101:K101)/SUM(W101:AA101)-1 ->  | AC101: =SUM(AC98:AC100) -> 1194059.108 | AD101: =SUM(AD98:AD100) -> 454772.9636 | AE101: =SUM(AE98:AE100) -> 0 | AF101: =SUM(AF98:AF100) -> 0 | AG101: =SUM(AG98:AG100) -> 0 | AH101: =SUM(L101:P101)/SUM(AC101:AG101)-1 -> -0.1132347403
D102: =D90&"Overheads" -> WARRAGULOverheads | F102: Total overhead expenditure | L102: 95899.26147 | M102: 24107.06122 | N102: 0 | O102: 0 | P102: 0 | Q102: 0 | R102: 0 | S102: 0 | T102: 0 | U102: 0 | AB102: =SUM(G102:K102)/SUM(W102:AA102)-1 ->  | AC102: 29288.66785 | AD102: 24172.7997 | AE102: 25149.01998 | AF102: 18402.10043 | AG102: 18956.9861 | AH102: =SUM(L102:P102)/SUM(AC102:AG102)-1 -> 0.0348086872
F103: Related party margin expenditure | L103: 34970.68416 | M103: 8042.105703 | N103: 0 | O103: 0 | P103: 0 | Q103: 0 | R103: 0 | S103: 0 | T103: 0 | U103: 0
F104: Total gross expenditure | G104: =SUM(G102:G103) -> 0 | H104: 0 | I104: 0 | J104: 0 | K104: 0 | L104: 1311641.946 | M104: 313504.1669 | N104: 0 | O104: 0 | P104: 0 | Q104: 0 | R104: 0 | S104: 0 | T104: 0 | U104: 0 | W104: =SUM(W102:W103) -> 0 | X104: =SUM(X102:X103) -> 0 | Y104: =SUM(Y102:Y103) -> 0 | Z104: =SUM(Z102:Z103) -> 0 | AA104: =SUM(AA102:AA103) -> 0 | AB104: =SUM(G104:K104)/SUM(W104:AA104)-1 ->  | AC104: =SUM(AC101:AC103) -> 1223347.776 | AD104: =SUM(AD101:AD103) -> 478945.7633 | AE104: =SUM(AE101:AE103) -> 25149.01998 | AF104: =SUM(AF101:AF103) -> 18402.10043 | AG104: =SUM(AG101:AG103) -> 18956.9861 | AH104: =SUM(L104:P104)/SUM(AC104:AG104)-1 -> -0.07913384102
F105: Less customer contributions | L105: 0 | M105: 0 | N105: 0 | O105: 0 | P105: 0 | Q105: 0 | R105: 0 | S105: 0 | T105: 0 | U105: 0
F106: Total net expenditure | G106: =G104-G105 -> 0 | H106: =H104-H105 -> 0 | I106: 0 | J106: 0 | K106: 0 | L106: 1311641.946 | M106: 313504.1669 | N106: 0 | O106: 0 | P106: 0 | Q106: 0 | R106: 0 | S106: 0 | T106: 0 | U106: 0 | W106: =W104-W105 -> 0 | X106: 0 | Y106: 0 | Z106: 0 | AA106: 0 | AB106: =SUM(G106:K106)/SUM(W106:AA106)-1 ->  | AC106: =AC104-AC105 -> 1223347.776 | AD106: =AD104-AD105 -> 478945.7633 | AE106: =AE104-AE105 -> 25149.01998 | AF106: =AF104-AF105 -> 18402.10043 | AG106: =AG104-AG105 -> 18956.9861 | AH106: =SUM(L106:P106)/SUM(AC106:AG106)-1 -> -0.07913384102
D107: BELLFIELD | E107: BELLFIELD | F107: Length of mains replaced (metres) | G107: [C-I-C] | H107: [C-I-C] | I107: [C-I-C] | J107: [C-I-C] | K107: [C-I-C] | L107: [C-I-C] | M107: [C-I-C] | N107: [C-I-C] | O107: [C-I-C] | P107: [C-I-C] | Q107: [C-I-C] | R107: [C-I-C] | S107: [C-I-C] | T107: [C-I-C] | U107: [C-I-C] | W107: [C-I-C] | X107: [C-I-C] | Y107: [C-I-C] | Z107: [C-I-C] | AA107: [C-I-C] | AB107: [C-I-C] | AC107: [C-I-C] | AD107: [C-I-C] | AE107: [C-I-C] | AF107: [C-I-C] | AG107: [C-I-C] | AH107: [C-I-C]
F108: Low pressure - high pressure | G108: [C-I-C] | H108: [C-I-C] | I108: [C-I-C] | J108: [C-I-C] | K108: [C-I-C] | L108: [C-I-C] | M108: [C-I-C] | N108: [C-I-C] | O108: [C-I-C] | P108: [C-I-C] | Q108: [C-I-C] | R108: [C-I-C] | S108: [C-I-C] | T108: [C-I-C] | U108: [C-I-C] | W108: [C-I-C] | X108: [C-I-C] | Y108: [C-I-C] | Z108: [C-I-C] | AA108: [C-I-C] | AB108: [C-I-C] | AC108: [C-I-C] | AD108: [C-I-C] | AE108: [C-I-C] | AF108: [C-I-C] | AG108: [C-I-C] | AH108: [C-I-C]
F109: Low pressure - medium pressure | G109: [C-I-C] | H109: [C-I-C] | I109: [C-I-C] | J109: [C-I-C] | K109: [C-I-C] | L109: [C-I-C] | M109: [C-I-C] | N109: [C-I-C] | O109: [C-I-C] | P109: [C-I-C] | Q109: [C-I-C] | R109: [C-I-C] | S109: [C-I-C] | T109: [C-I-C] | U109: [C-I-C] | W109: [C-I-C] | X109: [C-I-C] | Y109: [C-I-C] | Z109: [C-I-C] | AA109: [C-I-C] | AB109: [C-I-C] | AC109: [C-I-C] | AD109: [C-I-C] | AE109: [C-I-C] | AF109: [C-I-C] | AG109: [C-I-C] | AH109: [C-I-C]
F110: Low pressure - low pressure | G110: [C-I-C] | H110: [C-I-C] | I110: [C-I-C] | J110: [C-I-C] | K110: [C-I-C] | L110: [C-I-C] | M110: [C-I-C] | N110: [C-I-C] | O110: [C-I-C] | P110: [C-I-C] | Q110: [C-I-C] | R110: [C-I-C] | S110: [C-I-C] | T110: [C-I-C] | U110: [C-I-C] | W110: [C-I-C] | X110: [C-I-C] | Y110: [C-I-C] | Z110: [C-I-C] | AA110: [C-I-C] | AB110: [C-I-C] | AC110: [C-I-C] | AD110: [C-I-C] | AE110: [C-I-C] | AF110: [C-I-C] | AG110: [C-I-C] | AH110: [C-I-C]
F111: Medium pressure - medium pressure | G111: [C-I-C] | H111: [C-I-C] | I111: [C-I-C] | J111: [C-I-C] | K111: [C-I-C] | L111: [C-I-C] | M111: [C-I-C] | N111: [C-I-C] | O111: [C-I-C] | P111: [C-I-C] | Q111: [C-I-C] | R111: [C-I-C] | S111: [C-I-C] | T111: [C-I-C] | U111: [C-I-C] | W111: [C-I-C] | X111: [C-I-C] | Y111: [C-I-C] | Z111: [C-I-C] | AA111: [C-I-C] | AB111: [C-I-C] | AC111: [C-I-C] | AD111: [C-I-C] | AE111: [C-I-C] | AF111: [C-I-C] | AG111: [C-I-C] | AH111: [C-I-C]
F112: Medium pressure - high pressure | G112: [C-I-C] | H112: [C-I-C] | I112: [C-I-C] | J112: [C-I-C] | K112: [C-I-C] | L112: [C-I-C] | M112: [C-I-C] | N112: [C-I-C] | O112: [C-I-C] | P112: [C-I-C] | Q112: [C-I-C] | R112: [C-I-C] | S112: [C-I-C] | T112: [C-I-C] | U112: [C-I-C] | W112: [C-I-C] | X112: [C-I-C] | Y112: [C-I-C] | Z112: [C-I-C] | AA112: [C-I-C] | AB112: [C-I-C] | AC112: [C-I-C] | AD112: [C-I-C] | AE112: [C-I-C] | AF112: [C-I-C] | AG112: [C-I-C] | AH112: [C-I-C]
F113: Total volume | G113: [C-I-C] | H113: [C-I-C] | I113: [C-I-C] | J113: [C-I-C] | K113: [C-I-C] | L113: [C-I-C] | M113: [C-I-C] | N113: [C-I-C] | O113: [C-I-C] | P113: [C-I-C] | Q113: [C-I-C] | R113: [C-I-C] | S113: [C-I-C] | T113: [C-I-C] | U113: [C-I-C] | W113: [C-I-C] | X113: [C-I-C] | Y113: [C-I-C] | Z113: [C-I-C] | AA113: [C-I-C] | AB113: [C-I-C] | AC113: [C-I-C] | AD113: [C-I-C] | AE113: [C-I-C] | AF113: [C-I-C] | AG113: [C-I-C] | AH113: [C-I-C]
F114: Direct expenditure | L114: 0 | M114: 0 | N114: 0 | O114: 0 | P114: 0 | Q114: 0 | R114: 0 | S114: 0 | T114: 0 | U114: 0
D115: =D107&F115 -> BELLFIELDDirect contractor expenditure | F115: Direct contractor expenditure | L115: 0 | M115: 0 | N115: 0 | O115: 0 | P115: 0 | Q115: 0 | R115: 0 | S115: 0 | T115: 0 | U115: 0 | AC115: 0 | AD115: 0 | AE115: 728575.78 | AF115: 640611.4084 | AG115: 0
D116: =D107&F116 -> BELLFIELDDirect internal labour expenditure | F116: Direct internal labour expenditure | L116: 0 | M116: 0 | N116: 0 | O116: 0 | P116: 0 | Q116: 0 | R116: 0 | S116: 0 | T116: 0 | U116: 0 | AC116: 0 | AD116: 0 | AE116: 42940.41346 | AF116: 37944.04388 | AG116: 0
D117: =D107&F117 -> BELLFIELDOther internal direct expenditure | F117: Other internal direct expenditure | L117: 0 | M117: 0 | N117: 0 | O117: 0 | P117: 0 | Q117: 0 | R117: 0 | S117: 0 | T117: 0 | U117: 0 | AC117: 0 | AD117: 0 | AE117: 189370.4416 | AF117: 165843.4859 | AG117: 0
F118: Total direct expenditure | L118: 0 | M118: 0 | N118: 0 | O118: 0 | P118: 0 | Q118: 0 | R118: 0 | S118: 0 | T118: 0 | U118: 0 | W118: =SUM(W115:W117) -> 0 | X118: 0 | Y118: 0 | Z118: 0 | AA118: =SUM(AA115:AA117) -> 0 | AB118: =SUM(G118:K118)/SUM(W118:AA118)-1 ->  | AC118: =SUM(AC115:AC117) -> 0 | AD118: =SUM(AD115:AD117) -> 0 | AE118: =SUM(AE115:AE117) -> 960886.635 | AF118: =SUM(AF115:AF117) -> 844398.9382 | AG118: =SUM(AG115:AG117) -> 0 | AH118: =SUM(L118:P118)/SUM(AC118:AG118)-1 -> -1
D119: =D107&"Overheads" -> BELLFIELDOverheads | F119: Total overhead expenditure | L119: 0 | M119: 0 | N119: 0 | O119: 0 | P119: 0 | Q119: 0 | R119: 0 | S119: 0 | T119: 0 | U119: 0 | AB119: =SUM(G119:K119)/SUM(W119:AA119)-1 ->  | AC119: 31609.57421 | AD119: 26088.31203 | AE119: 27141.89042 | AF119: 19860.3283 | AG119: 20459.18449 | AH119: =SUM(L119:P119)/SUM(AC119:AG119)-1 -> -1
F120: Related party margin expenditure | L120: 0 | M120: 0 | N120: 0 | O120: 0 | P120: 0 | Q120: 0 | R120: 0 | S120: 0 | T120: 0 | U120: 0
F121: Total gross expenditure | G121: =SUM(G119:G120) -> 0 | H121: 0 | I121: 0 | J121: 0 | K121: 0 | L121: 0 | M121: 0 | N121: 0 | O121: 0 | P121: 0 | Q121: 0 | R121: 0 | S121: 0 | T121: 0 | U121: 0 | W121: =SUM(W119:W120) -> 0 | X121: =SUM(X119:X120) -> 0 | Y121: =SUM(Y119:Y120) -> 0 | Z121: =SUM(Z119:Z120) -> 0 | AA121: =SUM(AA119:AA120) -> 0 | AB121: =SUM(G121:K121)/SUM(W121:AA121)-1 ->  | AC121: =SUM(AC118:AC120) -> 31609.57421 | AD121: =SUM(AD118:AD120) -> 26088.31203 | AE121: =SUM(AE118:AE120) -> 988028.5254 | AF121: =SUM(AF118:AF120) -> 864259.2665 | AG121: =SUM(AG118:AG120) -> 20459.18449 | AH121: =SUM(L121:P121)/SUM(AC121:AG121)-1 -> -1
F122: Less customer contributions | L122: 0 | M122: 0 | N122: 0 | O122: 0 | P122: 0 | Q122: 0 | R122: 0 | S122: 0 | T122: 0 | U122: 0
F123: Total net expenditure | G123: =G121-G122 -> 0 | H123: =H121-H122 -> 0 | I123: 0 | J123: 0 | K123: 0 | L123: 0 | M123: 0 | N123: 0 | O123: 0 | P123: 0 | Q123: 0 | R123: 0 | S123: 0 | T123: 0 | U123: 0 | W123: =W121-W122 -> 0 | X123: 0 | Y123: 0 | Z123: 0 | AA123: 0 | AB123: =SUM(G123:K123)/SUM(W123:AA123)-1 ->  | AC123: =AC121-AC122 -> 31609.57421 | AD123: =AD121-AD122 -> 26088.31203 | AE123: =AE121-AE122 -> 988028.5254 | AF123: =AF121-AF122 -> 864259.2665 | AG123: =AG121-AG122 -> 20459.18449 | AH123: =SUM(L123:P123)/SUM(AC123:AG123)-1 -> -1
D124: RESERVOIR | E124: RESERVOIR | F124: Length of mains replaced (metres) | G124: [C-I-C] | H124: [C-I-C] | I124: [C-I-C] | J124: [C-I-C] | K124: [C-I-C] | L124: [C-I-C] | M124: [C-I-C] | N124: [C-I-C] | O124: [C-I-C] | P124: [C-I-C] | Q124: [C-I-C] | R124: [C-I-C] | S124: [C-I-C] | T124: [C-I-C] | U124: [C-I-C] | W124: [C-I-C] | X124: [C-I-C] | Y124: [C-I-C] | Z124: [C-I-C] | AA124: [C-I-C] | AB124: [C-I-C] | AC124: [C-I-C] | AD124: [C-I-C] | AE124: [C-I-C] | AF124: [C-I-C] | AG124: [C-I-C] | AH124: [C-I-C]
F125: Low pressure - high pressure | G125: [C-I-C] | H125: [C-I-C] | I125: [C-I-C] | J125: [C-I-C] | K125: [C-I-C] | L125: [C-I-C] | M125: [C-I-C] | N125: [C-I-C] | O125: [C-I-C] | P125: [C-I-C] | Q125: [C-I-C] | R125: [C-I-C] | S125: [C-I-C] | T125: [C-I-C] | U125: [C-I-C] | W125: [C-I-C] | X125: [C-I-C] | Y125: [C-I-C] | Z125: [C-I-C] | AA125: [C-I-C] | AB125: [C-I-C] | AC125: [C-I-C] | AD125: [C-I-C] | AE125: [C-I-C] | AF125: [C-I-C] | AG125: [C-I-C] | AH125: [C-I-C]
F126: Low pressure - medium pressure | G126: [C-I-C] | H126: [C-I-C] | I126: [C-I-C] | J126: [C-I-C] | K126: [C-I-C] | L126: [C-I-C] | M126: [C-I-C] | N126: [C-I-C] | O126: [C-I-C] | P126: [C-I-C] | Q126: [C-I-C] | R126: [C-I-C] | S126: [C-I-C] | T126: [C-I-C] | U126: [C-I-C] | W126: [C-I-C] | X126: [C-I-C] | Y126: [C-I-C] | Z126: [C-I-C] | AA126: [C-I-C] | AB126: [C-I-C] | AC126: [C-I-C] | AD126: [C-I-C] | AE126: [C-I-C] | AF126: [C-I-C] | AG126: [C-I-C] | AH126: [C-I-C]
F127: Low pressure - low pressure | G127: [C-I-C] | H127: [C-I-C] | I127: [C-I-C] | J127: [C-I-C] | K127: [C-I-C] | L127: [C-I-C] | M127: [C-I-C] | N127: [C-I-C] | O127: [C-I-C] | P127: [C-I-C] | Q127: [C-I-C] | R127: [C-I-C] | S127: [C-I-C] | T127: [C-I-C] | U127: [C-I-C] | W127: [C-I-C] | X127: [C-I-C] | Y127: [C-I-C] | Z127: [C-I-C] | AA127: [C-I-C] | AB127: [C-I-C] | AC127: [C-I-C] | AD127: [C-I-C] | AE127: [C-I-C] | AF127: [C-I-C] | AG127: [C-I-C] | AH127: [C-I-C]
F128: Medium pressure - medium pressure | G128: [C-I-C] | H128: [C-I-C] | I128: [C-I-C] | J128: [C-I-C] | K128: [C-I-C] | L128: [C-I-C] | M128: [C-I-C] | N128: [C-I-C] | O128: [C-I-C] | P128: [C-I-C] | Q128: [C-I-C] | R128: [C-I-C] | S128: [C-I-C] | T128: [C-I-C] | U128: [C-I-C] | W128: [C-I-C] | X128: [C-I-C] | Y128: [C-I-C] | Z128: [C-I-C] | AA128: [C-I-C] | AB128: [C-I-C] | AC128: [C-I-C] | AD128: [C-I-C] | AE128: [C-I-C] | AF128: [C-I-C] | AG128: [C-I-C] | AH128: [C-I-C]
F129: Medium pressure - high pressure | G129: [C-I-C] | H129: [C-I-C] | I129: [C-I-C] | J129: [C-I-C] | K129: [C-I-C] | L129: [C-I-C] | M129: [C-I-C] | N129: [C-I-C] | O129: [C-I-C] | P129: [C-I-C] | Q129: [C-I-C] | R129: [C-I-C] | S129: [C-I-C] | T129: [C-I-C] | U129: [C-I-C] | W129: [C-I-C] | X129: [C-I-C] | Y129: [C-I-C] | Z129: [C-I-C] | AA129: [C-I-C] | AB129: [C-I-C] | AC129: [C-I-C] | AD129: [C-I-C] | AE129: [C-I-C] | AF129: [C-I-C] | AG129: [C-I-C] | AH129: [C-I-C]
F130: Total volume | G130: [C-I-C] | H130: [C-I-C] | I130: [C-I-C] | J130: [C-I-C] | K130: [C-I-C] | L130: [C-I-C] | M130: [C-I-C] | N130: [C-I-C] | O130: [C-I-C] | P130: [C-I-C] | Q130: [C-I-C] | R130: [C-I-C] | S130: [C-I-C] | T130: [C-I-C] | U130: [C-I-C] | W130: [C-I-C] | X130: [C-I-C] | Y130: [C-I-C] | Z130: [C-I-C] | AA130: [C-I-C] | AB130: [C-I-C] | AC130: [C-I-C] | AD130: [C-I-C] | AE130: [C-I-C] | AF130: [C-I-C] | AG130: [C-I-C] | AH130: [C-I-C]
F131: Direct expenditure | L131: 0 | M131: 0 | N131: 0 | O131: 0 | P131: 0 | Q131: 0 | R131: 0 | S131: 0 | T131: 0 | U131: 0
D132: =D124&F132 -> RESERVOIRDirect contractor expenditure | F132: Direct contractor expenditure | L132: 0 | M132: 0 | N132: 0 | O132: 0 | P132: 0 | Q132: 0 | R132: 0 | S132: 0 | T132: 0 | U132: 0 | AC132: 831193.0435 | AD132: 398635.0963 | AE132: 0 | AF132: 0 | AG132: 0
D133: =D124&F133 -> RESERVOIRDirect internal labour expenditure | F133: Direct internal labour expenditure | L133: 0 | M133: 0 | N133: 0 | O133: 0 | P133: 0 | Q133: 0 | R133: 0 | S133: 0 | T133: 0 | U133: 0 | AC133: 48746.52141 | AD133: 23448.11228 | AE133: 0 | AF133: 0 | AG133: 0
D134: =D124&F134 -> RESERVOIROther internal direct expenditure | F134: Other internal direct expenditure | L134: 0 | M134: 0 | N134: 0 | O134: 0 | P134: 0 | Q134: 0 | R134: 0 | S134: 0 | T134: 0 | U134: 0 | AC134: 219948.6333 | AD134: 104648.8277 | AE134: 0 | AF134: 0 | AG134: 0
F135: Total direct expenditure | L135: 0 | M135: 0 | N135: 0 | O135: 0 | P135: 0 | Q135: 0 | R135: 0 | S135: 0 | T135: 0 | U135: 0 | W135: =SUM(W132:W134) -> 0 | X135: 0 | Y135: 0 | Z135: 0 | AA135: =SUM(AA132:AA134) -> 0 | AB135: =SUM(G135:K135)/SUM(W135:AA135)-1 ->  | AC135: =SUM(AC132:AC134) -> 1099888.198 | AD135: =SUM(AD132:AD134) -> 526732.0362 | AE135: =SUM(AE132:AE134) -> 0 | AF135: =SUM(AF132:AF134) -> 0 | AG135: =SUM(AG132:AG134) -> 0 | AH135: =SUM(L135:P135)/SUM(AC135:AG135)-1 -> -1
D136: =D124&"Overheads" -> RESERVOIROverheads | F136: Total overhead expenditure | L136: 0 | M136: 0 | N136: 0 | O136: 0 | P136: 0 | Q136: 0 | R136: 0 | S136: 0 | T136: 0 | U136: 0 | AB136: =SUM(G136:K136)/SUM(W136:AA136)-1 ->  | AC136: 28885.09356 | AD136: 23839.71796 | AE136: 24802.48671 | AF136: 18148.53429 | AG136: 18695.77408 | AH136: =SUM(L136:P136)/SUM(AC136:AG136)-1 -> -1
F137: Related party margin expenditure | L137: 0 | M137: 0 | N137: 0 | O137: 0 | P137: 0 | Q137: 0 | R137: 0 | S137: 0 | T137: 0 | U137: 0
F138: Total gross expenditure | G138: =SUM(G136:G137) -> 0 | H138: 0 | I138: 0 | J138: 0 | K138: 0 | L138: 0 | M138: 0 | N138: 0 | O138: 0 | P138: 0 | Q138: 0 | R138: 0 | S138: 0 | T138: 0 | U138: 0 | W138: =SUM(W136:W137) -> 0 | X138: =SUM(X136:X137) -> 0 | Y138: =SUM(Y136:Y137) -> 0 | Z138: =SUM(Z136:Z137) -> 0 | AA138: =SUM(AA136:AA137) -> 0 | AB138: =SUM(G138:K138)/SUM(W138:AA138)-1 ->  | AC138: =SUM(AC135:AC137) -> 1128773.292 | AD138: =SUM(AD135:AD137) -> 550571.7542 | AE138: =SUM(AE135:AE137) -> 24802.48671 | AF138: =SUM(AF135:AF137) -> 18148.53429 | AG138: =SUM(AG135:AG137) -> 18695.77408 | AH138: =SUM(L138:P138)/SUM(AC138:AG138)-1 -> -1
F139: Less customer contributions | L139: 0 | M139: 0 | N139: 0 | O139: 0 | P139: 0 | Q139: 0 | R139: 0 | S139: 0 | T139: 0 | U139: 0
F140: Total net expenditure | G140: =G138-G139 -> 0 | H140: =H138-H139 -> 0 | I140: 0 | J140: 0 | K140: 0 | L140: 0 | M140: 0 | N140: 0 | O140: 0 | P140: 0 | Q140: 0 | R140: 0 | S140: 0 | T140: 0 | U140: 0 | W140: =W138-W139 -> 0 | X140: 0 | Y140: 0 | Z140: 0 | AA140: 0 | AB140: =SUM(G140:K140)/SUM(W140:AA140)-1 ->  | AC140: =AC138-AC139 -> 1128773.292 | AD140: =AD138-AD139 -> 550571.7542 | AE140: =AE138-AE139 -> 24802.48671 | AF140: =AF138-AF139 -> 18148.53429 | AG140: =AG138-AG139 -> 18695.77408 | AH140: =SUM(L140:P140)/SUM(AC140:AG140)-1 -> -1
D141: EAGLEMONT | E141: EAGLEMONT | F141: Length of mains replaced (metres) | G141: [C-I-C] | H141: [C-I-C] | I141: [C-I-C] | J141: [C-I-C] | K141: [C-I-C] | L141: [C-I-C] | M141: [C-I-C] | N141: [C-I-C] | O141: [C-I-C] | P141: [C-I-C] | Q141: [C-I-C] | R141: [C-I-C] | S141: [C-I-C] | T141: [C-I-C] | U141: [C-I-C] | W141: [C-I-C] | X141: [C-I-C] | Y141: [C-I-C] | Z141: [C-I-C] | AA141: [C-I-C] | AB141: [C-I-C] | AC141: [C-I-C] | AD141: [C-I-C] | AE141: [C-I-C] | AF141: [C-I-C] | AG141: [C-I-C] | AH141: [C-I-C]
F142: Low pressure - high pressure | G142: [C-I-C] | H142: [C-I-C] | I142: [C-I-C] | J142: [C-I-C] | K142: [C-I-C] | L142: [C-I-C] | M142: [C-I-C] | N142: [C-I-C] | O142: [C-I-C] | P142: [C-I-C] | Q142: [C-I-C] | R142: [C-I-C] | S142: [C-I-C] | T142: [C-I-C] | U142: [C-I-C] | W142: [C-I-C] | X142: [C-I-C] | Y142: [C-I-C] | Z142: [C-I-C] | AA142: [C-I-C] | AB142: [C-I-C] | AC142: [C-I-C] | AD142: [C-I-C] | AE142: [C-I-C] | AF142: [C-I-C] | AG142: [C-I-C] | AH142: [C-I-C]
F143: Low pressure - medium pressure | G143: [C-I-C] | H143: [C-I-C] | I143: [C-I-C] | J143: [C-I-C] | K143: [C-I-C] | L143: [C-I-C] | M143: [C-I-C] | N143: [C-I-C] | O143: [C-I-C] | P143: [C-I-C] | Q143: [C-I-C] | R143: [C-I-C] | S143: [C-I-C] | T143: [C-I-C] | U143: [C-I-C] | W143: [C-I-C] | X143: [C-I-C] | Y143: [C-I-C] | Z143: [C-I-C] | AA143: [C-I-C] | AB143: [C-I-C] | AC143: [C-I-C] | AD143: [C-I-C] | AE143: [C-I-C] | AF143: [C-I-C] | AG143: [C-I-C] | AH143: [C-I-C]
F144: Low pressure - low pressure | G144: [C-I-C] | H144: [C-I-C] | I144: [C-I-C] | J144: [C-I-C] | K144: [C-I-C] | L144: [C-I-C] | M144: [C-I-C] | N144: [C-I-C] | O144: [C-I-C] | P144: [C-I-C] | Q144: [C-I-C] | R144: [C-I-C] | S144: [C-I-C] | T144: [C-I-C] | U144: [C-I-C] | W144: [C-I-C] | X144: [C-I-C] | Y144: [C-I-C] | Z144: [C-I-C] | AA144: [C-I-C] | AB144: [C-I-C] | AC144: [C-I-C] | AD144: [C-I-C] | AE144: [C-I-C] | AF144: [C-I-C] | AG144: [C-I-C] | AH144: [C-I-C]
F145: Medium pressure - medium pressure | G145: [C-I-C] | H145: [C-I-C] | I145: [C-I-C] | J145: [C-I-C] | K145: [C-I-C] | L145: [C-I-C] | M145: [C-I-C] | N145: [C-I-C] | O145: [C-I-C] | P145: [C-I-C] | Q145: [C-I-C] | R145: [C-I-C] | S145: [C-I-C] | T145: [C-I-C] | U145: [C-I-C] | W145: [C-I-C] | X145: [C-I-C] | Y145: [C-I-C] | Z145: [C-I-C] | AA145: [C-I-C] | AB145: [C-I-C] | AC145: [C-I-C] | AD145: [C-I-C] | AE145: [C-I-C] | AF145: [C-I-C] | AG145: [C-I-C] | AH145: [C-I-C]
F146: Medium pressure - high pressure | G146: [C-I-C] | H146: [C-I-C] | I146: [C-I-C] | J146: [C-I-C] | K146: [C-I-C] | L146: [C-I-C] | M146: [C-I-C] | N146: [C-I-C] | O146: [C-I-C] | P146: [C-I-C] | Q146: [C-I-C] | R146: [C-I-C] | S146: [C-I-C] | T146: [C-I-C] | U146: [C-I-C] | W146: [C-I-C] | X146: [C-I-C] | Y146: [C-I-C] | Z146: [C-I-C] | AA146: [C-I-C] | AB146: [C-I-C] | AC146: [C-I-C] | AD146: [C-I-C] | AE146: [C-I-C] | AF146: [C-I-C] | AG146: [C-I-C] | AH146: [C-I-C]
F147: Total volume | G147: [C-I-C] | H147: [C-I-C] | I147: [C-I-C] | J147: [C-I-C] | K147: [C-I-C] | L147: [C-I-C] | M147: [C-I-C] | N147: [C-I-C] | O147: [C-I-C] | P147: [C-I-C] | Q147: [C-I-C] | R147: [C-I-C] | S147: [C-I-C] | T147: [C-I-C] | U147: [C-I-C] | W147: [C-I-C] | X147: [C-I-C] | Y147: [C-I-C] | Z147: [C-I-C] | AA147: [C-I-C] | AB147: [C-I-C] | AC147: [C-I-C] | AD147: [C-I-C] | AE147: [C-I-C] | AF147: [C-I-C] | AG147: [C-I-C] | AH147: [C-I-C]
F148: Direct expenditure | L148: 0 | M148: 0 | N148: 0 | O148: 0 | P148: 0 | Q148: 0 | R148: 0 | S148: 0 | T148: 0 | U148: 0
D149: =D141&F149 -> EAGLEMONTDirect contractor expenditure | F149: Direct contractor expenditure | L149: 0 | M149: 0 | N149: 0 | O149: 0 | P149: 0 | Q149: 0 | R149: 0 | S149: 0 | T149: 0 | U149: 0 | AC149: 933099.3559 | AD149: 0 | AE149: 1531151.31 | AF149: 1552889.901 | AG149: 494176.4439
D150: =D141&F150 -> EAGLEMONTDirect internal labour expenditure | F150: Direct internal labour expenditure | L150: 0 | M150: 0 | N150: 0 | O150: 0 | P150: 0 | Q150: 0 | R150: 0 | S150: 0 | T150: 0 | U150: 0 | AC150: 54722.96487 | AD150: 0 | AE150: 90242.18496 | AF150: 91979.19637 | AG150: 29328.57583
D151: =D141&F151 -> EAGLEMONTOther internal direct expenditure | F151: Other internal direct expenditure | L151: 0 | M151: 0 | N151: 0 | O151: 0 | P151: 0 | Q151: 0 | R151: 0 | S151: 0 | T151: 0 | U151: 0 | AC151: 246914.8769 | AD151: 0 | AE151: 397974.7991 | AF151: 402016.9966 | AG151: 126792.8088
F152: Total direct expenditure | L152: 0 | M152: 0 | N152: 0 | O152: 0 | P152: 0 | Q152: 0 | R152: 0 | S152: 0 | T152: 0 | U152: 0 | W152: =SUM(W149:W151) -> 0 | X152: 0 | Y152: 0 | Z152: 0 | AA152: =SUM(AA149:AA151) -> 0 | AB152: =SUM(G152:K152)/SUM(W152:AA152)-1 ->  | AC152: =SUM(AC149:AC151) -> 1234737.198 | AD152: =SUM(AD149:AD151) -> 0 | AE152: =SUM(AE149:AE151) -> 2019368.294 | AF152: =SUM(AF149:AF151) -> 2046886.094 | AG152: =SUM(AG149:AG151) -> 650297.8286 | AH152: =SUM(L152:P152)/SUM(AC152:AG152)-1 -> -1
D153: =D141&"Overheads" -> EAGLEMONTOverheads | F153: Total overhead expenditure | L153: 0 | M153: 0 | N153: 0 | O153: 0 | P153: 0 | Q153: 0 | R153: 0 | S153: 0 | T153: 0 | U153: 0 | AB153: =SUM(G153:K153)/SUM(W153:AA153)-1 ->  | AC153: 104444.4994 | AD153: 86201.11975 | AE153: 89682.35827 | AF153: 65622.58748 | AG153: 67601.33081 | AH153: =SUM(L153:P153)/SUM(AC153:AG153)-1 -> -1
F154: Related party margin expenditure | L154: 0 | M154: 0 | N154: 0 | O154: 0 | P154: 0 | Q154: 0 | R154: 0 | S154: 0 | T154: 0 | U154: 0
F155: Total gross expenditure | G155: =SUM(G153:G154) -> 0 | H155: 0 | I155: 0 | J155: 0 | K155: 0 | L155: 0 | M155: 0 | N155: 0 | O155: 0 | P155: 0 | Q155: 0 | R155: 0 | S155: 0 | T155: 0 | U155: 0 | W155: =SUM(W153:W154) -> 0 | X155: =SUM(X153:X154) -> 0 | Y155: =SUM(Y153:Y154) -> 0 | Z155: =SUM(Z153:Z154) -> 0 | AA155: =SUM(AA153:AA154) -> 0 | AB155: =SUM(G155:K155)/SUM(W155:AA155)-1 ->  | AC155: =SUM(AC152:AC154) -> 1339181.697 | AD155: =SUM(AD152:AD154) -> 86201.11975 | AE155: =SUM(AE152:AE154) -> 2109050.652 | AF155: =SUM(AF152:AF154) -> 2112508.681 | AG155: =SUM(AG152:AG154) -> 717899.1594 | AH155: =SUM(L155:P155)/SUM(AC155:AG155)-1 -> -1
F156: Less customer contributions | L156: 0 | M156: 0 | N156: 0 | O156: 0 | P156: 0 | Q156: 0 | R156: 0 | S156: 0 | T156: 0 | U156: 0
F157: Total net expenditure | G157: =G155-G156 -> 0 | H157: =H155-H156 -> 0 | I157: 0 | J157: 0 | K157: 0 | L157: 0 | M157: 0 | N157: 0 | O157: 0 | P157: 0 | Q157: 0 | R157: 0 | S157: 0 | T157: 0 | U157: 0 | W157: =W155-W156 -> 0 | X157: 0 | Y157: 0 | Z157: 0 | AA157: 0 | AB157: =SUM(G157:K157)/SUM(W157:AA157)-1 ->  | AC157: =AC155-AC156 -> 1339181.697 | AD157: =AD155-AD156 -> 86201.11975 | AE157: =AE155-AE156 -> 2109050.652 | AF157: =AF155-AF156 -> 2112508.681 | AG157: =AG155-AG156 -> 717899.1594 | AH157: =SUM(L157:P157)/SUM(AC157:AG157)-1 -> -1
D158: HEIDELBERG | E158: HEIDELBERG | F158: Length of mains replaced (metres) | G158: [C-I-C] | H158: [C-I-C] | I158: [C-I-C] | J158: [C-I-C] | K158: [C-I-C] | L158: [C-I-C] | M158: [C-I-C] | N158: [C-I-C] | O158: [C-I-C] | P158: [C-I-C] | Q158: [C-I-C] | R158: [C-I-C] | S158: [C-I-C] | T158: [C-I-C] | U158: [C-I-C] | W158: [C-I-C] | X158: [C-I-C] | Y158: [C-I-C] | Z158: [C-I-C] | AA158: [C-I-C] | AB158: [C-I-C] | AC158: [C-I-C] | AD158: [C-I-C] | AE158: [C-I-C] | AF158: [C-I-C] | AG158: [C-I-C] | AH158: [C-I-C]
F159: Low pressure - high pressure | G159: [C-I-C] | H159: [C-I-C] | I159: [C-I-C] | J159: [C-I-C] | K159: [C-I-C] | L159: [C-I-C] | M159: [C-I-C] | N159: [C-I-C] | O159: [C-I-C] | P159: [C-I-C] | Q159: [C-I-C] | R159: [C-I-C] | S159: [C-I-C] | T159: [C-I-C] | U159: [C-I-C] | W159: [C-I-C] | X159: [C-I-C] | Y159: [C-I-C] | Z159: [C-I-C] | AA159: [C-I-C] | AB159: [C-I-C] | AC159: [C-I-C] | AD159: [C-I-C] | AE159: [C-I-C] | AF159: [C-I-C] | AG159: [C-I-C] | AH159: [C-I-C]
F160: Low pressure - medium pressure | G160: [C-I-C] | H160: [C-I-C] | I160: [C-I-C] | J160: [C-I-C] | K160: [C-I-C] | L160: [C-I-C] | M160: [C-I-C] | N160: [C-I-C] | O160: [C-I-C] | P160: [C-I-C] | Q160: [C-I-C] | R160: [C-I-C] | S160: [C-I-C] | T160: [C-I-C] | U160: [C-I-C] | W160: [C-I-C] | X160: [C-I-C] | Y160: [C-I-C] | Z160: [C-I-C] | AA160: [C-I-C] | AB160: [C-I-C] | AC160: [C-I-C] | AD160: [C-I-C] | AE160: [C-I-C] | AF160: [C-I-C] | AG160: [C-I-C] | AH160: [C-I-C]
F161: Low pressure - low pressure | G161: [C-I-C] | H161: [C-I-C] | I161: [C-I-C] | J161: [C-I-C] | K161: [C-I-C] | L161: [C-I-C] | M161: [C-I-C] | N161: [C-I-C] | O161: [C-I-C] | P161: [C-I-C] | Q161: [C-I-C] | R161: [C-I-C] | S161: [C-I-C] | T161: [C-I-C] | U161: [C-I-C] | W161: [C-I-C] | X161: [C-I-C] | Y161: [C-I-C] | Z161: [C-I-C] | AA161: [C-I-C] | AB161: [C-I-C] | AC161: [C-I-C] | AD161: [C-I-C] | AE161: [C-I-C] | AF161: [C-I-C] | AG161: [C-I-C] | AH161: [C-I-C]
F162: Medium pressure - medium pressure | G162: [C-I-C] | H162: [C-I-C] | I162: [C-I-C] | J162: [C-I-C] | K162: [C-I-C] | L162: [C-I-C] | M162: [C-I-C] | N162: [C-I-C] | O162: [C-I-C] | P162: [C-I-C] | Q162: [C-I-C] | R162: [C-I-C] | S162: [C-I-C] | T162: [C-I-C] | U162: [C-I-C] | W162: [C-I-C] | X162: [C-I-C] | Y162: [C-I-C] | Z162: [C-I-C] | AA162: [C-I-C] | AB162: [C-I-C] | AC162: [C-I-C] | AD162: [C-I-C] | AE162: [C-I-C] | AF162: [C-I-C] | AG162: [C-I-C] | AH162: [C-I-C]
F163: Medium pressure - high pressure | G163: [C-I-C] | H163: [C-I-C] | I163: [C-I-C] | J163: [C-I-C] | K163: [C-I-C] | L163: [C-I-C] | M163: [C-I-C] | N163: [C-I-C] | O163: [C-I-C] | P163: [C-I-C] | Q163: [C-I-C] | R163: [C-I-C] | S163: [C-I-C] | T163: [C-I-C] | U163: [C-I-C] | W163: [C-I-C] | X163: [C-I-C] | Y163: [C-I-C] | Z163: [C-I-C] | AA163: [C-I-C] | AB163: [C-I-C] | AC163: [C-I-C] | AD163: [C-I-C] | AE163: [C-I-C] | AF163: [C-I-C] | AG163: [C-I-C] | AH163: [C-I-C]
F164: Total volume | G164: [C-I-C] | H164: [C-I-C] | I164: [C-I-C] | J164: [C-I-C] | K164: [C-I-C] | L164: [C-I-C] | M164: [C-I-C] | N164: [C-I-C] | O164: [C-I-C] | P164: [C-I-C] | Q164: [C-I-C] | R164: [C-I-C] | S164: [C-I-C] | T164: [C-I-C] | U164: [C-I-C] | W164: [C-I-C] | X164: [C-I-C] | Y164: [C-I-C] | Z164: [C-I-C] | AA164: [C-I-C] | AB164: [C-I-C] | AC164: [C-I-C] | AD164: [C-I-C] | AE164: [C-I-C] | AF164: [C-I-C] | AG164: [C-I-C] | AH164: [C-I-C]
F165: Direct expenditure | L165: 0 | M165: 0 | N165: 0 | O165: 0 | P165: 0 | Q165: 0 | R165: 0 | S165: 0 | T165: 0 | U165: 0
D166: =D158&F166 -> HEIDELBERGDirect contractor expenditure | F166: Direct contractor expenditure | L166: 0 | M166: 0 | N166: 0 | O166: 0 | P166: 0 | Q166: 0 | R166: 0 | S166: 0 | T166: 0 | U166: 0 | AC166: 1682164.134 | AD166: 1124912.794 | AE166: 366037.916 | AF166: 0 | AG166: 0
D167: =D158&F167 -> HEIDELBERGDirect internal labour expenditure | F167: Direct internal labour expenditure | L167: 0 | M167: 0 | N167: 0 | O167: 0 | P167: 0 | Q167: 0 | R167: 0 | S167: 0 | T167: 0 | U167: 0 | AC167: 98652.95504 | AD167: 66168.48777 | AE167: 21573.34884 | AF167: 0 | AG167: 0
D168: =D158&F168 -> HEIDELBERGOther internal direct expenditure | F168: Other internal direct expenditure | L168: 0 | M168: 0 | N168: 0 | O168: 0 | P168: 0 | Q168: 0 | R168: 0 | S168: 0 | T168: 0 | U168: 0 | AC168: 445130.8936 | AD168: 295309.6861 | AE168: 95140.08522 | AF168: 0 | AG168: 0
F169: Total direct expenditure | L169: 0 | M169: 0 | N169: 0 | O169: 0 | P169: 0 | Q169: 0 | R169: 0 | S169: 0 | T169: 0 | U169: 0 | W169: =SUM(W166:W168) -> 0 | X169: 0 | Y169: 0 | Z169: 0 | AA169: =SUM(AA166:AA168) -> 0 | AB169: =SUM(G169:K169)/SUM(W169:AA169)-1 ->  | AC169: =SUM(AC166:AC168) -> 2225947.982 | AD169: =SUM(AD166:AD168) -> 1486390.968 | AE169: =SUM(AE166:AE168) -> 482751.3501 | AF169: =SUM(AF166:AF168) -> 0 | AG169: =SUM(AG166:AG168) -> 0 | AH169: =SUM(L169:P169)/SUM(AC169:AG169)-1 -> -1
D170: =D158&"Overheads" -> HEIDELBERGOverheads | F170: Total overhead expenditure | L170: 0 | M170: 0 | N170: 0 | O170: 0 | P170: 0 | Q170: 0 | R170: 0 | S170: 0 | T170: 0 | U170: 0 | AB170: =SUM(G170:K170)/SUM(W170:AA170)-1 ->  | AC170: 74356.17521 | AD170: 61368.3401 | AE170: 63846.70501 | AF170: 46718.06212 | AG170: 48126.76996 | AH170: =SUM(L170:P170)/SUM(AC170:AG170)-1 -> -1
F171: Related party margin expenditure | L171: 0 | M171: 0 | N171: 0 | O171: 0 | P171: 0 | Q171: 0 | R171: 0 | S171: 0 | T171: 0 | U171: 0
F172: Total gross expenditure | G172: =SUM(G170:G171) -> 0 | H172: 0 | I172: 0 | J172: 0 | K172: 0 | L172: 0 | M172: 0 | N172: 0 | O172: 0 | P172: 0 | Q172: 0 | R172: 0 | S172: 0 | T172: 0 | U172: 0 | W172: =SUM(W170:W171) -> 0 | X172: =SUM(X170:X171) -> 0 | Y172: =SUM(Y170:Y171) -> 0 | Z172: =SUM(Z170:Z171) -> 0 | AA172: =SUM(AA170:AA171) -> 0 | AB172: =SUM(G172:K172)/SUM(W172:AA172)-1 ->  | AC172: =SUM(AC169:AC171) -> 2300304.158 | AD172: =SUM(AD169:AD171) -> 1547759.308 | AE172: =SUM(AE169:AE171) -> 546598.0551 | AF172: =SUM(AF169:AF171) -> 46718.06212 | AG172: =SUM(AG169:AG171) -> 48126.76996 | AH172: =SUM(L172:P172)/SUM(AC172:AG172)-1 -> -1
F173: Less customer contributions | L173: 0 | M173: 0 | N173: 0 | O173: 0 | P173: 0 | Q173: 0 | R173: 0 | S173: 0 | T173: 0 | U173: 0
F174: Total net expenditure | G174: =G172-G173 -> 0 | H174: =H172-H173 -> 0 | I174: 0 | J174: 0 | K174: 0 | L174: 0 | M174: 0 | N174: 0 | O174: 0 | P174: 0 | Q174: 0 | R174: 0 | S174: 0 | T174: 0 | U174: 0 | W174: =W172-W173 -> 0 | X174: 0 | Y174: 0 | Z174: 0 | AA174: 0 | AB174: =SUM(G174:K174)/SUM(W174:AA174)-1 ->  | AC174: =AC172-AC173 -> 2300304.158 | AD174: =AD172-AD173 -> 1547759.308 | AE174: =AE172-AE173 -> 546598.0551 | AF174: =AF172-AF173 -> 46718.06212 | AG174: =AG172-AG173 -> 48126.76996 | AH174: =SUM(L174:P174)/SUM(AC174:AG174)-1 -> -1
D175: HEIDELBERG HEIGHTS | E175: HEIDELBERG HEIGHTS | F175: Length of mains replaced (metres) | G175: [C-I-C] | H175: [C-I-C] | I175: [C-I-C] | J175: [C-I-C] | K175: [C-I-C] | L175: [C-I-C] | M175: [C-I-C] | N175: [C-I-C] | O175: [C-I-C] | P175: [C-I-C] | Q175: [C-I-C] | R175: [C-I-C] | S175: [C-I-C] | T175: [C-I-C] | U175: [C-I-C] | W175: [C-I-C] | X175: [C-I-C] | Y175: [C-I-C] | Z175: [C-I-C] | AA175: [C-I-C] | AB175: [C-I-C] | AC175: [C-I-C] | AD175: [C-I-C] | AE175: [C-I-C] | AF175: [C-I-C] | AG175: [C-I-C] | AH175: [C-I-C]
F176: Low pressure - high pressure | G176: [C-I-C] | H176: [C-I-C] | I176: [C-I-C] | J176: [C-I-C] | K176: [C-I-C] | L176: [C-I-C] | M176: [C-I-C] | N176: [C-I-C] | O176: [C-I-C] | P176: [C-I-C] | Q176: [C-I-C] | R176: [C-I-C] | S176: [C-I-C] | T176: [C-I-C] | U176: [C-I-C] | W176: [C-I-C] | X176: [C-I-C] | Y176: [C-I-C] | Z176: [C-I-C] | AA176: [C-I-C] | AB176: [C-I-C] | AC176: [C-I-C] | AD176: [C-I-C] | AE176: [C-I-C] | AF176: [C-I-C] | AG176: [C-I-C] | AH176: [C-I-C]
F177: Low pressure - medium pressure | G177: [C-I-C] | H177: [C-I-C] | I177: [C-I-C] | J177: [C-I-C] | K177: [C-I-C] | L177: [C-I-C] | M177: [C-I-C] | N177: [C-I-C] | O177: [C-I-C] | P177: [C-I-C] | Q177: [C-I-C] | R177: [C-I-C] | S177: [C-I-C] | T177: [C-I-C] | U177: [C-I-C] | W177: [C-I-C] | X177: [C-I-C] | Y177: [C-I-C] | Z177: [C-I-C] | AA177: [C-I-C] | AB177: [C-I-C] | AC177: [C-I-C] | AD177: [C-I-C] | AE177: [C-I-C] | AF177: [C-I-C] | AG177: [C-I-C] | AH177: [C-I-C]
F178: Low pressure - low pressure | G178: [C-I-C] | H178: [C-I-C] | I178: [C-I-C] | J178: [C-I-C] | K178: [C-I-C] | L178: [C-I-C] | M178: [C-I-C] | N178: [C-I-C] | O178: [C-I-C] | P178: [C-I-C] | Q178: [C-I-C] | R178: [C-I-C] | S178: [C-I-C] | T178: [C-I-C] | U178: [C-I-C] | W178: [C-I-C] | X178: [C-I-C] | Y178: [C-I-C] | Z178: [C-I-C] | AA178: [C-I-C] | AB178: [C-I-C] | AC178: [C-I-C] | AD178: [C-I-C] | AE178: [C-I-C] | AF178: [C-I-C] | AG178: [C-I-C] | AH178: [C-I-C]
F179: Medium pressure - medium pressure | G179: [C-I-C] | H179: [C-I-C] | I179: [C-I-C] | J179: [C-I-C] | K179: [C-I-C] | L179: [C-I-C] | M179: [C-I-C] | N179: [C-I-C] | O179: [C-I-C] | P179: [C-I-C] | Q179: [C-I-C] | R179: [C-I-C] | S179: [C-I-C] | T179: [C-I-C] | U179: [C-I-C] | W179: [C-I-C] | X179: [C-I-C] | Y179: [C-I-C] | Z179: [C-I-C] | AA179: [C-I-C] | AB179: [C-I-C] | AC179: [C-I-C] | AD179: [C-I-C] | AE179: [C-I-C] | AF179: [C-I-C] | AG179: [C-I-C] | AH179: [C-I-C]
F180: Medium pressure - high pressure | G180: [C-I-C] | H180: [C-I-C] | I180: [C-I-C] | J180: [C-I-C] | K180: [C-I-C] | L180: [C-I-C] | M180: [C-I-C] | N180: [C-I-C] | O180: [C-I-C] | P180: [C-I-C] | Q180: [C-I-C] | R180: [C-I-C] | S180: [C-I-C] | T180: [C-I-C] | U180: [C-I-C] | W180: [C-I-C] | X180: [C-I-C] | Y180: [C-I-C] | Z180: [C-I-C] | AA180: [C-I-C] | AB180: [C-I-C] | AC180: [C-I-C] | AD180: [C-I-C] | AE180: [C-I-C] | AF180: [C-I-C] | AG180: [C-I-C] | AH180: [C-I-C]
F181: Total volume | G181: [C-I-C] | H181: [C-I-C] | I181: [C-I-C] | J181: [C-I-C] | K181: [C-I-C] | L181: [C-I-C] | M181: [C-I-C] | N181: [C-I-C] | O181: [C-I-C] | P181: [C-I-C] | Q181: [C-I-C] | R181: [C-I-C] | S181: [C-I-C] | T181: [C-I-C] | U181: [C-I-C] | W181: [C-I-C] | X181: [C-I-C] | Y181: [C-I-C] | Z181: [C-I-C] | AA181: [C-I-C] | AB181: [C-I-C] | AC181: [C-I-C] | AD181: [C-I-C] | AE181: [C-I-C] | AF181: [C-I-C] | AG181: [C-I-C] | AH181: [C-I-C]
F182: Direct expenditure | L182: 0 | M182: 0 | N182: 0 | O182: 0 | P182: 0 | Q182: 0 | R182: 0 | S182: 0 | T182: 0 | U182: 0
D183: =D175&F183 -> HEIDELBERG HEIGHTSDirect contractor expenditure | F183: Direct contractor expenditure | L183: 0 | M183: 0 | N183: 0 | O183: 0 | P183: 0 | Q183: 0 | R183: 0 | S183: 0 | T183: 0 | U183: 0 | AC183: 1713474.907 | AD183: 0 | AE183: 0 | AF183: 0 | AG183: 0
D184: =D175&F184 -> HEIDELBERG HEIGHTSDirect internal labour expenditure | F184: Direct internal labour expenditure | L184: 0 | M184: 0 | N184: 0 | O184: 0 | P184: 0 | Q184: 0 | R184: 0 | S184: 0 | T184: 0 | U184: 0 | AC184: 100489.2208 | AD184: 0 | AE184: 0 | AF184: 0 | AG184: 0
D185: =D175&F185 -> HEIDELBERG HEIGHTSOther internal direct expenditure | F185: Other internal direct expenditure | L185: 0 | M185: 0 | N185: 0 | O185: 0 | P185: 0 | Q185: 0 | R185: 0 | S185: 0 | T185: 0 | U185: 0 | AC185: 453416.2876 | AD185: 0 | AE185: 0 | AF185: 0 | AG185: 0
F186: Total direct expenditure | L186: 0 | M186: 0 | N186: 0 | O186: 0 | P186: 0 | Q186: 0 | R186: 0 | S186: 0 | T186: 0 | U186: 0 | W186: =SUM(W183:W185) -> 0 | X186: 0 | Y186: 0 | Z186: 0 | AA186: =SUM(AA183:AA185) -> 0 | AB186: =SUM(G186:K186)/SUM(W186:AA186)-1 ->  | AC186: =SUM(AC183:AC185) -> 2267380.416 | AD186: =SUM(AD183:AD185) -> 0 | AE186: =SUM(AE183:AE185) -> 0 | AF186: =SUM(AF183:AF185) -> 0 | AG186: =SUM(AG183:AG185) -> 0 | AH186: =SUM(L186:P186)/SUM(AC186:AG186)-1 -> -1
D187: =D175&"Overheads" -> HEIDELBERG HEIGHTSOverheads | F187: Total overhead expenditure | L187: 0 | M187: 0 | N187: 0 | O187: 0 | P187: 0 | Q187: 0 | R187: 0 | S187: 0 | T187: 0 | U187: 0 | AB187: =SUM(G187:K187)/SUM(W187:AA187)-1 ->  | AC187: 40348.34977 | AD187: 33300.68073 | AE187: 34645.53116 | AF187: 25350.91007 | AG187: 26115.32589 | AH187: =SUM(L187:P187)/SUM(AC187:AG187)-1 -> -1
F188: Related party margin expenditure | L188: 0 | M188: 0 | N188: 0 | O188: 0 | P188: 0 | Q188: 0 | R188: 0 | S188: 0 | T188: 0 | U188: 0
F189: Total gross expenditure | G189: =SUM(G187:G188) -> 0 | H189: 0 | I189: 0 | J189: 0 | K189: 0 | L189: 0 | M189: 0 | N189: 0 | O189: 0 | P189: 0 | Q189: 0 | R189: 0 | S189: 0 | T189: 0 | U189: 0 | W189: =SUM(W187:W188) -> 0 | X189: =SUM(X187:X188) -> 0 | Y189: =SUM(Y187:Y188) -> 0 | Z189: =SUM(Z187:Z188) -> 0 | AA189: =SUM(AA187:AA188) -> 0 | AB189: =SUM(G189:K189)/SUM(W189:AA189)-1 ->  | AC189: =SUM(AC186:AC188) -> 2307728.766 | AD189: =SUM(AD186:AD188) -> 33300.68073 | AE189: =SUM(AE186:AE188) -> 34645.53116 | AF189: =SUM(AF186:AF188) -> 25350.91007 | AG189: =SUM(AG186:AG188) -> 26115.32589 | AH189: =SUM(L189:P189)/SUM(AC189:AG189)-1 -> -1
F190: Less customer contributions | L190: 0 | M190: 0 | N190: 0 | O190: 0 | P190: 0 | Q190: 0 | R190: 0 | S190: 0 | T190: 0 | U190: 0
F191: Total net expenditure | G191: =G189-G190 -> 0 | H191: =H189-H190 -> 0 | I191: 0 | J191: 0 | K191: 0 | L191: 0 | M191: 0 | N191: 0 | O191: 0 | P191: 0 | Q191: 0 | R191: 0 | S191: 0 | T191: 0 | U191: 0 | W191: =W189-W190 -> 0 | X191: 0 | Y191: 0 | Z191: 0 | AA191: 0 | AB191: =SUM(G191:K191)/SUM(W191:AA191)-1 ->  | AC191: =AC189-AC190 -> 2307728.766 | AD191: =AD189-AD190 -> 33300.68073 | AE191: =AE189-AE190 -> 34645.53116 | AF191: =AF189-AF190 -> 25350.91007 | AG191: =AG189-AG190 -> 26115.32589 | AH191: =SUM(L191:P191)/SUM(AC191:AG191)-1 -> -1
D192: PRESTON | E192: PRESTON | F192: Length of mains replaced (metres) | G192: [C-I-C] | H192: [C-I-C] | I192: [C-I-C] | J192: [C-I-C] | K192: [C-I-C] | L192: [C-I-C] | M192: [C-I-C] | N192: [C-I-C] | O192: [C-I-C] | P192: [C-I-C] | Q192: [C-I-C] | R192: [C-I-C] | S192: [C-I-C] | T192: [C-I-C] | U192: [C-I-C] | W192: [C-I-C] | X192: [C-I-C] | Y192: [C-I-C] | Z192: [C-I-C] | AA192: [C-I-C] | AB192: [C-I-C] | AC192: [C-I-C] | AD192: [C-I-C] | AE192: [C-I-C] | AF192: [C-I-C] | AG192: [C-I-C] | AH192: [C-I-C]
F193: Low pressure - high pressure | G193: [C-I-C] | H193: [C-I-C] | I193: [C-I-C] | J193: [C-I-C] | K193: [C-I-C] | L193: [C-I-C] | M193: [C-I-C] | N193: [C-I-C] | O193: [C-I-C] | P193: [C-I-C] | Q193: [C-I-C] | R193: [C-I-C] | S193: [C-I-C] | T193: [C-I-C] | U193: [C-I-C] | W193: [C-I-C] | X193: [C-I-C] | Y193: [C-I-C] | Z193: [C-I-C] | AA193: [C-I-C] | AB193: [C-I-C] | AC193: [C-I-C] | AD193: [C-I-C] | AE193: [C-I-C] | AF193: [C-I-C] | AG193: [C-I-C] | AH193: [C-I-C]
F194: Low pressure - medium pressure | G194: [C-I-C] | H194: [C-I-C] | I194: [C-I-C] | J194: [C-I-C] | K194: [C-I-C] | L194: [C-I-C] | M194: [C-I-C] | N194: [C-I-C] | O194: [C-I-C] | P194: [C-I-C] | Q194: [C-I-C] | R194: [C-I-C] | S194: [C-I-C] | T194: [C-I-C] | U194: [C-I-C] | W194: [C-I-C] | X194: [C-I-C] | Y194: [C-I-C] | Z194: [C-I-C] | AA194: [C-I-C] | AB194: [C-I-C] | AC194: [C-I-C] | AD194: [C-I-C] | AE194: [C-I-C] | AF194: [C-I-C] | AG194: [C-I-C] | AH194: [C-I-C]
F195: Low pressure - low pressure | G195: [C-I-C] | H195: [C-I-C] | I195: [C-I-C] | J195: [C-I-C] | K195: [C-I-C] | L195: [C-I-C] | M195: [C-I-C] | N195: [C-I-C] | O195: [C-I-C] | P195: [C-I-C] | Q195: [C-I-C] | R195: [C-I-C] | S195: [C-I-C] | T195: [C-I-C] | U195: [C-I-C] | W195: [C-I-C] | X195: [C-I-C] | Y195: [C-I-C] | Z195: [C-I-C] | AA195: [C-I-C] | AB195: [C-I-C] | AC195: [C-I-C] | AD195: [C-I-C] | AE195: [C-I-C] | AF195: [C-I-C] | AG195: [C-I-C] | AH195: [C-I-C]
F196: Medium pressure - medium pressure | G196: [C-I-C] | H196: [C-I-C] | I196: [C-I-C] | J196: [C-I-C] | K196: [C-I-C] | L196: [C-I-C] | M196: [C-I-C] | N196: [C-I-C] | O196: [C-I-C] | P196: [C-I-C] | Q196: [C-I-C] | R196: [C-I-C] | S196: [C-I-C] | T196: [C-I-C] | U196: [C-I-C] | W196: [C-I-C] | X196: [C-I-C] | Y196: [C-I-C] | Z196: [C-I-C] | AA196: [C-I-C] | AB196: [C-I-C] | AC196: [C-I-C] | AD196: [C-I-C] | AE196: [C-I-C] | AF196: [C-I-C] | AG196: [C-I-C] | AH196: [C-I-C]
F197: Medium pressure - high pressure | G197: [C-I-C] | H197: [C-I-C] | I197: [C-I-C] | J197: [C-I-C] | K197: [C-I-C] | L197: [C-I-C] | M197: [C-I-C] | N197: [C-I-C] | O197: [C-I-C] | P197: [C-I-C] | Q197: [C-I-C] | R197: [C-I-C] | S197: [C-I-C] | T197: [C-I-C] | U197: [C-I-C] | W197: [C-I-C] | X197: [C-I-C] | Y197: [C-I-C] | Z197: [C-I-C] | AA197: [C-I-C] | AB197: [C-I-C] | AC197: [C-I-C] | AD197: [C-I-C] | AE197: [C-I-C] | AF197: [C-I-C] | AG197: [C-I-C] | AH197: [C-I-C]
F198: Total volume | G198: [C-I-C] | H198: [C-I-C] | I198: [C-I-C] | J198: [C-I-C] | K198: [C-I-C] | L198: [C-I-C] | M198: [C-I-C] | N198: [C-I-C] | O198: [C-I-C] | P198: [C-I-C] | Q198: [C-I-C] | R198: [C-I-C] | S198: [C-I-C] | T198: [C-I-C] | U198: [C-I-C] | W198: [C-I-C] | X198: [C-I-C] | Y198: [C-I-C] | Z198: [C-I-C] | AA198: [C-I-C] | AB198: [C-I-C] | AC198: [C-I-C] | AD198: [C-I-C] | AE198: [C-I-C] | AF198: [C-I-C] | AG198: [C-I-C] | AH198: [C-I-C]
F199: Direct expenditure | L199: 0 | M199: 0 | N199: 0 | O199: 0 | P199: 0 | Q199: 0 | R199: 0 | S199: 0 | T199: 0 | U199: 0
D200: =D192&F200 -> PRESTONDirect contractor expenditure | F200: Direct contractor expenditure | L200: 8213804.711 | M200: 5579767.302 | N200: 2956741.274 | O200: 1085992.667 | P200: 0 | Q200: 194442.9895 | R200: 194442.9895 | S200: 194442.9895 | T200: 194442.9895 | U200: 0 | AC200: 6253166.728 | AD200: 6451738.627 | AE200: 2303718.323 | AF200: 0 | AG200: 0
D201: =D192&F201 -> PRESTONDirect internal labour expenditure | F201: Direct internal labour expenditure | L201: 334039.2686 | M201: 328145.7351 | N201: 136680.6893 | O201: 76964.16788 | P201: 0 | Q201: 9618.118971 | R201: 9618.118971 | S201: 9618.118971 | T201: 9618.118971 | U201: 0 | AC201: 366726.0309 | AD201: 379497.6737 | AE201: 135775.3304 | AF201: 0 | AG201: 0
D202: =D192&F202 -> PRESTONOther internal direct expenditure | F202: Other internal direct expenditure | L202: 694166.0207 | M202: 600737.9625 | N202: 285144.037 | O202: 100108.9737 | P202: 0 | Q202: 23448.11084 | R202: 23448.11084 | S202: 23448.11084 | T202: 23448.11084 | U202: 0 | AC202: 1654700.417 | AD202: 1693696.541 | AE202: 598779.3831 | AF202: 0 | AG202: 0
F203: Total direct expenditure | L203: 9242010 | M203: 6508651 | N203: 3378566 | O203: 1263065.809 | P203: 0 | Q203: 227509.2193 | R203: 227509.2193 | S203: 227509.2193 | T203: 227509.2193 | U203: 0 | W203: =SUM(W200:W202) -> 0 | X203: 0 | Y203: 0 | Z203: 0 | AA203: =SUM(AA200:AA202) -> 0 | AB203: =SUM(G203:K203)/SUM(W203:AA203)-1 ->  | AC203: =SUM(AC200:AC202) -> 8274593.176 | AD203: =SUM(AD200:AD202) -> 8524932.842 | AE203: =SUM(AE200:AE202) -> 3038273.036 | AF203: =SUM(AF200:AF202) -> 0 | AG203: =SUM(AG200:AG202) -> 0 | AH203: =SUM(L203:P203)/SUM(AC203:AG203)-1 -> 0.0279513747
D204: =D192&"Overheads" -> PRESTONOverheads | F204: Total overhead expenditure | L204: 750612.255 | M204: 557674.2838 | N204: 243213.0199 | O204: 106944.3548 | P204: 0 | Q204: 18935.22905 | R204: 16660.53648 | S204: 17124.9891 | T204: 20279.96109 | U204: 0 | AB204: =SUM(G204:K204)/SUM(W204:AA204)-1 ->  | AC204: 351249.075 | AD204: 289896.2008 | AE204: 301603.68 | AF204: 220690.1587 | AG204: 227344.7146 | AH204: =SUM(L204:P204)/SUM(AC204:AG204)-1 -> 0.1924526866
... 725 more rows

Sheet 7. Telemetry
E1: =IF(dms_DataQuality="backcast",INDEX(dms_Worksheet_List,MATCH(dms_Model,dms_Model_List))&" BACKCAST",INDEX(dms_Worksheet_List,MATCH(dms_Model,dms_Model_List))) -> REGULATORY REPORTING STATEMENT
E2: =INDEX(dms_TradingNameFull_List,MATCH(dms_TradingName,dms_TradingName_List)) -> Australian Gas Networks Limited (reporting data for Victoria)
E3: =IF(SUM(dms_SingleYear_Model)>0,CRY,CONCATENATE(FRCP_y1," to ",dms_MultiYear_FinalYear_Result)) -> 2018 to 2022
E4: 7. TELEMETRY CAPITAL EXPENDITURE
A6: HPM | B6: HP mains | E6: Instructions
A7: HPS | B7: HP services | E7: This template asks for information relating to telemetry capital expenditure
A8: MPM | B8: MP mains | E8: =CONCATENATE("As set out in cl.6.1 of the ", dms_TradingName, " RIN, for tables 7.1 to 7.2, where the requested data is captured in the ", dms_TradingName, " capex model it is not required to be reentered in the RIN template tables. If the requested data has not been provided in the ", dms_TradingName, " RIN please enter into the tables. This may require the insertion of new lines in each table.") -> As set out in cl.6.1 of the AGN (Victoria) RIN, for tables 7.1 to 7.2, where the requested data is captured in the AGN (Victoria) capex model it is not required to be reentered in the RIN template tables. If the requested data has not been provided in the AGN (Victoria) RIN please enter into the tables. This may require the insertion of new lines in each table.
A9: MPS | B9: MP services | E9: Reported expenditure is to be entered EXCLUSIVE of any profit margins or management fees paid pursuant to arrangements or contracts with any related parties. Include any related party margins or management fees in the separate 'Related party margin' line item.
A10: CM | B10: Contract meters | E10: =CONCATENATE("Subject to cl.6.1 of the ", dms_TradingName, " RIN, where linked/adjustable overhead expenditure and related party margin expenditure is not provided in the ", dms_TradingName, " capex model, overhead expenditure and related party margin expenditure should be linked to allocations derived in tabs '14. Overheads' and '15. Related party transactions'.") -> Subject to cl.6.1 of the AGN (Victoria) RIN, where linked/adjustable overhead expenditure and related party margin expenditure is not provided in the AGN (Victoria) capex model, overhead expenditure and related party margin expenditure should be linked to allocations derived in tabs '14. Overheads' and '15. Related party transactions'.
A11: TM | B11: Tariff meters | E11: Capital expenditure amounts entered should be GROSS of customer contributions. There is a separate line item for customer contributions from which net capital expenditure is derived.
A12: ERC | B12: Equity raising expenditure
E14: Table 7 - TELEMETRY CAPITAL EXPENDITURE | AA14: REAL $ CONVERSION OF HISTORICAL DATA
E15: Table 7.1 - Telemetry expenditure (actual / forecast)
G16: Previous access arrangement period | L16: Current access arrangement period | Q16: Variance | R16: Next access arrangement period | W16: Supporting documentation (business case, costing spreadsheet, contracts) | AA16: Previous access arrangement period | AF16: Current access arrangement period
G17: $0's, nominal | O17: $0's, real June 2016 | R17: =CONCATENATE("$0's, real ",dms_DollarReal) -> $0's, real December 2017 | AA17: =CONCATENATE("$0's, real ",dms_DollarReal) -> $0's, real December 2017
A18: Internal identification code | B18: Asset category | C18: Percent allocation | G18: Actual | O18: Forecast | Q18: Actual vs Approved | R18: Forecast | AA18: Actual
G19: =PRCP -> 2008 | H19: 2009 | I19: 2010 | J19: 2011 | K19: 2012 | L19: =CRCP_y1 -> 2013 | M19: =CRCP_y2 -> 2014 | N19: =CRCP_y3 -> 2015 | O19: =CRCP_y4 -> 2016 | P19: =CRCP_y5 -> 2017 | Q19: % | R19: =FRCP -> 2018 | S19: 2019 | T19: 2020 | U19: 2021 | V19: 2022 | AA19: =PRCP -> 2008 | AB19: 2009 | AC19: 2010 | AD19: 2011 | AE19: 2012 | AF19: =CRCP_y1 -> 2013 | AG19: =CRCP_y2 -> 2014 | AH19: =CRCP_y3 -> 2015
E20: < insert sub-category >
E21: Unspecified Projects | F21: Direct expenditure | L21: 0 | M21: 0 | N21: 0 | O21: 0 | P21: 0 | Q21: 0 | R21: 0 | S21: 0 | T21: 0 | U21: 0 | V21: 0
F22: Direct internal labour expenditure | L22: 57164.87 | M22: 3740.5 | N22: 6285.53 | O22: 0 | P22: 0 | Q22: 0 | R22: 0 | S22: 0 | T22: 0 | U22: 0 | V22: 0
F23: Direct contractor expenditure | L23: 61342.59 | M23: 81624.08 | N23: 116585.92 | O23: 0 | P23: 0 | Q23: 0 | R23: 0 | S23: 0 | T23: 0 | U23: 0 | V23: 0
F24: Other internal direct expenditure | L24: 17236.1 | M24: 269996.58 | N24: 249202.73 | O24: 0 | P24: 0 | Q24: 0 | R24: 0 | S24: 0 | T24: 0 | U24: 0 | V24: 0
F25: Total direct expenditure | L25: 135743.56 | M25: 355361.16 | N25: 372074.18 | O25: 374128.4519 | P25: 469444.5561 | Q25: 0 | R25: 0 | S25: 0 | T25: 0 | U25: 0 | V25: 0 | AF25: =SUM(AF22:AF24) -> 0 | AG25: 0 | AH25: 0
F26: Total overhead expenditure | L26: 10598.35558 | M26: 29118.41029 | N26: 26472.74244 | O26: 31677.62566 | P26: 36125.90146 | Q26: 0 | R26: 0 | S26: 0 | T26: 0 | U26: 0 | V26: 0 | AF26: 0 | AG26: 0 | AH26: 0
F27: Related party margin expenditure | L27: 4085.395908 | M27: 10229.26243 | N27: 10708.58197 | O27: 14335.95007 | P27: 16035.97081 | Q27: 0 | R27: 0 | S27: 0 | T27: 0 | U27: 0 | V27: 0 | AF27: 0 | AG27: 0 | AH27: 0
F28: Total gross expenditure | G28: =SUM(G25:G27) -> 0 | H28: 0 | I28: 0 | J28: 0 | K28: 0 | L28: =SUM(L25:L27) -> 150427.3115 | M28: =SUM(M25:M27) -> 394708.8327 | N28: 409255.5044 | O28: 420142.0276 | P28: 521606.4284 | Q28: 0 | R28: 0 | S28: 0 | T28: 0 | U28: 0 | V28: 0 | AA28: =SUM(AA26:AA27) -> 0 | AB28: 0 | AC28: 0 | AD28: 0 | AE28: 0 | AF28: 0 | AG28: 0 | AH28: 0
F29: Less customer contributions | L29: 0 | M29: 0 | N29: 0 | O29: 0 | P29: 0 | Q29: 0 | R29: 0 | S29: 0 | T29: 0 | U29: 0 | V29: 0
F30: Total net expenditure | G30: =G28-G29 -> 0 | H30: =H28-H29 -> 0 | I30: =I28-I29 -> 0 | J30: =J28-J29 -> 0 | K30: =K28-K29 -> 0 | L30: =L28-L29 -> 150427.3115 | M30: =M28-M29 -> 394708.8327 | N30: =N28-N29 -> 409255.5044 | O30: =O28-O29 -> 420142.0276 | P30: =P28-P29 -> 521606.4284 | Q30: =Q29-Q28 -> 0 | R30: 0 | S30: =S28-S29 -> 0 | T30: =T28-T29 -> 0 | U30: =U28-U29 -> 0 | V30: =V28-V29 -> 0 | AA30: =AA28-AA29 -> 0 | AB30: 0 | AC30: 0 | AD30: 0 | AE30: 0 | AF30: 0 | AG30: 0 | AH30: 0
E31: SCADA END OF LIFE REPLACEMENT | F31: Direct expenditure | L31: 0 | M31: 0 | N31: 0 | O31: 0 | P31: 0 | Q31: 0 | R31: 0 | S31: 0 | T31: 0 | U31: 0 | V31: 0
F32: Direct internal labour expenditure | L32: 0 | M32: 0 | N32: 0 | O32: 0 | P32: 0 | Q32: 0 | R32: 0 | S32: 0 | T32: 0 | U32: 0 | V32: 0
F33: Direct contractor expenditure | L33: 0 | M33: 0 | N33: 0 | O33: 0 | P33: 0 | Q33: 0 | R33: 0 | S33: 0 | T33: 0 | U33: 0 | V33: 0
F34: Other internal direct expenditure | L34: 0 | M34: 0 | N34: 0 | O34: 0 | P34: 0 | Q34: 0 | R34: 0 | S34: 0 | T34: 0 | U34: 0 | V34: 0
F35: Total direct expenditure | L35: 0 | M35: 0 | N35: 0 | O35: 0 | P35: 0 | Q35: 0 | R35: 101432.6457 | S35: 101432.6457 | T35: 101432.6457 | U35: 101432.6457 | V35: 0 | AF35: =SUM(AF32:AF34) -> 0 | AG35: 0 | AH35: 0
F36: Total overhead expenditure | L36: 0 | M36: 0 | N36: 0 | O36: 0 | P36: 0 | Q36: 0 | R36: 8442.077136 | S36: 7427.928846 | T36: 7635.00027 | U36: 9041.612088 | V36: 0 | AF36: 0 | AG36: 0 | AH36: 0
F37: Related party margin expenditure | L37: 0 | M37: 0 | N37: 0 | O37: 0 | P37: 0 | Q37: 0 | R37: 3315.632758 | S37: 2784.941565 | T37: 2885.407766 | U37: 3602.625737 | V37: 0 | AF37: 0 | AG37: 0 | AH37: 0
F38: Total gross expenditure | G38: =SUM(G35:G37) -> 0 | H38: =SUM(H35:H37) -> 0 | I38: =SUM(I35:I37) -> 0 | J38: =SUM(J35:J37) -> 0 | K38: =SUM(K35:K37) -> 0 | L38: =SUM(L35:L37) -> 0 | M38: =SUM(M35:M37) -> 0 | N38: =SUM(N35:N37) -> 0 | O38: =SUM(O35:O37) -> 0 | P38: =SUM(P35:P37) -> 0 | Q38: =SUM(Q35:Q37) -> 0 | R38: =SUM(R35:R37) -> 113190.3556 | S38: =SUM(S35:S37) -> 111645.5161 | T38: =SUM(T35:T37) -> 111953.0537 | U38: =SUM(U35:U37) -> 114076.8835 | V38: =SUM(V35:V37) -> 0 | AA38: =SUM(AA36:AA37) -> 0 | AB38: 0 | AC38: 0 | AD38: 0 | AE38: 0 | AF38: 0 | AG38: 0 | AH38: 0
F39: Less customer contributions | L39: 0 | M39: 0 | N39: 0 | O39: 0 | P39: 0 | Q39: 0 | R39: 0 | S39: 0 | T39: 0 | U39: 0 | V39: 0
F40: Total net expenditure | G40: =G38-G39 -> 0 | H40: =H38-H39 -> 0 | I40: =I38-I39 -> 0 | J40: =J38-J39 -> 0 | K40: =K38-K39 -> 0 | L40: =L38-L39 -> 0 | M40: =M38-M39 -> 0 | N40: =N38-N39 -> 0 | O40: =O38-O39 -> 0 | P40: =P38-P39 -> 0 | Q40: =Q39-Q38 -> 0 | R40: =R38-R39 -> 113190.3556 | S40: =S38-S39 -> 111645.5161 | T40: =T38-T39 -> 111953.0537 | U40: =U38-U39 -> 114076.8835 | V40: =V38-V39 -> 0 | AA40: =AA38-AA39 -> 0 | AB40: 0 | AC40: 0 | AD40: 0 | AE40: 0 | AF40: 0 | AG40: 0 | AH40: 0
E41: SCADA REGIONAL TOWNS & FRINGE POINTS | F41: Direct expenditure | L41: 0 | M41: 0 | N41: 0 | O41: 0 | P41: 0 | Q41: 0 | R41: 0 | S41: 0 | T41: 0 | U41: 0 | V41: 0
F42: Direct internal labour expenditure | L42: 0 | M42: 0 | N42: 0 | O42: 0 | P42: 0 | Q42: 0 | R42: 0 | S42: 0 | T42: 0 | U42: 0 | V42: 0
F43: Direct contractor expenditure | L43: 0 | M43: 0 | N43: 0 | O43: 0 | P43: 0 | Q43: 0 | R43: 0 | S43: 0 | T43: 0 | U43: 0 | V43: 0
F44: Other internal direct expenditure | L44: 0 | M44: 0 | N44: 0 | O44: 0 | P44: 0 | Q44: 0 | R44: 0 | S44: 0 | T44: 0 | U44: 0 | V44: 0
F45: Total direct expenditure | L45: 0 | M45: 0 | N45: 0 | O45: 0 | P45: 0 | Q45: 0 | R45: 150568.862 | S45: 138743.5485 | T45: 138743.5485 | U45: 63815.91578 | V45: 141699.8769 | AF45: =SUM(AF42:AF44) -> 0 | AG45: 0 | AH45: 0
F46: Total overhead expenditure | L46: 0 | M46: 0 | N46: 0 | O46: 0 | P46: 0 | Q46: 0 | R46: 12531.60596 | S46: 10160.21222 | T46: 10443.45263 | U46: 5688.491625 | V46: 17614.58634 | AF46: 0 | AG46: 0 | AH46: 0
F47: Related party margin expenditure | L47: 0 | M47: 0 | N47: 0 | O47: 0 | P47: 0 | Q47: 0 | R47: 4921.798577 | S47: 3809.352232 | T47: 3946.773838 | U47: 2266.576594 | V47: 7599.730194 | AF47: 0 | AG47: 0 | AH47: 0
F48: Total gross expenditure | G48: =SUM(G45:G47) -> 0 | H48: =SUM(H45:H47) -> 0 | I48: =SUM(I45:I47) -> 0 | J48: =SUM(J45:J47) -> 0 | K48: =SUM(K45:K47) -> 0 | L48: =SUM(L45:L47) -> 0 | M48: =SUM(M45:M47) -> 0 | N48: =SUM(N45:N47) -> 0 | O48: =SUM(O45:O47) -> 0 | P48: =SUM(P45:P47) -> 0 | Q48: =SUM(Q45:Q47) -> 0 | R48: =SUM(R45:R47) -> 168022.2665 | S48: =SUM(S45:S47) -> 152713.113 | T48: =SUM(T45:T47) -> 153133.775 | U48: =SUM(U45:U47) -> 71770.98399 | V48: =SUM(V45:V47) -> 166914.1934 | AA48: =SUM(AA46:AA47) -> 0 | AB48: 0 | AC48: 0 | AD48: 0 | AE48: 0 | AF48: 0 | AG48: 0 | AH48: 0
F49: Less customer contributions | L49: 0 | M49: 0 | N49: 0 | O49: 0 | P49: 0 | Q49: 0 | R49: 0 | S49: 0 | T49: 0 | U49: 0 | V49: 0
F50: Total net expenditure | G50: =G48-G49 -> 0 | H50: =H48-H49 -> 0 | I50: =I48-I49 -> 0 | J50: =J48-J49 -> 0 | K50: =K48-K49 -> 0 | L50: =L48-L49 -> 0 | M50: =M48-M49 -> 0 | N50: =N48-N49 -> 0 | O50: =O48-O49 -> 0 | P50: =P48-P49 -> 0 | Q50: =Q49-Q48 -> 0 | R50: =R48-R49 -> 168022.2665 | S50: =S48-S49 -> 152713.113 | T50: =T48-T49 -> 153133.775 | U50: =U48-U49 -> 71770.98399 | V50: =V48-V49 -> 166914.1934 | AA50: =AA48-AA49 -> 0 | AB50: 0 | AC50: 0 | AD50: 0 | AE50: 0 | AF50: 0 | AG50: 0 | AH50: 0
E51: SCADA HEATER OUTLET TEMPERATURE MONITORING | F51: Direct expenditure | L51: 0 | M51: 0 | N51: 0 | O51: 0 | P51: 0 | Q51: 0 | R51: 0 | S51: 0 | T51: 0 | U51: 0 | V51: 0
F52: Direct internal labour expenditure | L52: 0 | M52: 0 | N52: 0 | O52: 0 | P52: 0 | Q52: 0 | R52: 0 | S52: 0 | T52: 0 | U52: 0 | V52: 0
F53: Direct contractor expenditure | L53: 0 | M53: 0 | N53: 0 | O53: 0 | P53: 0 | Q53: 0 | R53: 0 | S53: 0 | T53: 0 | U53: 0 | V53: 0
F54: Other internal direct expenditure | L54: 0 | M54: 0 | N54: 0 | O54: 0 | P54: 0 | Q54: 0 | R54: 0 | S54: 0 | T54: 0 | U54: 0 | V54: 0
F55: Total direct expenditure | L55: 0 | M55: 0 | N55: 0 | O55: 0 | P55: 0 | Q55: 0 | R55: 19935.84743 | S55: 19935.84743 | T55: 13291.24457 | U55: 0 | V55: 0 | AF55: =SUM(AF52:AF54) -> 0 | AG55: 0 | AH55: 0
F56: Total overhead expenditure | L56: 0 | M56: 0 | N56: 0 | O56: 0 | P56: 0 | Q56: 0 | R56: 1659.228749 | S56: 1459.905292 | T56: 1000.453603 | U56: 0 | V56: 0 | AF56: 0 | AG56: 0 | AH56: 0
F57: Related party margin expenditure | L57: 0 | M57: 0 | N57: 0 | O57: 0 | P57: 0 | Q57: 0 | R57: 651.6634595 | S57: 547.3599724 | T57: 378.0899141 | U57: 0 | V57: 0 | AF57: 0 | AG57: 0 | AH57: 0
F58: Total gross expenditure | G58: =SUM(G55:G57) -> 0 | H58: =SUM(H55:H57) -> 0 | I58: =SUM(I55:I57) -> 0 | J58: =SUM(J55:J57) -> 0 | K58: =SUM(K55:K57) -> 0 | L58: =SUM(L55:L57) -> 0 | M58: =SUM(M55:M57) -> 0 | N58: =SUM(N55:N57) -> 0 | O58: =SUM(O55:O57) -> 0 | P58: =SUM(P55:P57) -> 0 | Q58: =SUM(Q55:Q57) -> 0 | R58: =SUM(R55:R57) -> 22246.73963 | S58: =SUM(S55:S57) -> 21943.11269 | T58: =SUM(T55:T57) -> 14669.78808 | U58: =SUM(U55:U57) -> 0 | V58: =SUM(V55:V57) -> 0 | AA58: =SUM(AA56:AA57) -> 0 | AB58: 0 | AC58: 0 | AD58: 0 | AE58: 0 | AF58: 0 | AG58: 0 | AH58: 0
F59: Less customer contributions | L59: 0 | M59: 0 | N59: 0 | O59: 0 | P59: 0 | Q59: 0 | R59: 0 | S59: 0 | T59: 0 | U59: 0 | V59: 0
F60: Total net expenditure | G60: =G58-G59 -> 0 | H60: =H58-H59 -> 0 | I60: =I58-I59 -> 0 | J60: =J58-J59 -> 0 | K60: =K58-K59 -> 0 | L60: =L58-L59 -> 0 | M60: =M58-M59 -> 0 | N60: =N58-N59 -> 0 | O60: =O58-O59 -> 0 | P60: =P58-P59 -> 0 | Q60: =Q59-Q58 -> 0 | R60: =R58-R59 -> 22246.73963 | S60: =S58-S59 -> 21943.11269 | T60: =T58-T59 -> 14669.78808 | U60: =U58-U59 -> 0 | V60: =V58-V59 -> 0 | AA60: =AA58-AA59 -> 0 | AB60: 0 | AC60: 0 | AD60: 0 | AE60: 0 | AF60: 0 | AG60: 0 | AH60: 0
E62: TOTALS | F62: Total direct expenditure | G62: =G25+G35+G45+G55 -> 0 | H62: =H25+H35+H45+H55 -> 0 | I62: 0 | J62: 0 | K62: 0 | L62: =L25+L35+L45+L55 -> 135743.56 | M62: =M25+M35+M45+M55 -> 355361.16 | N62: 372074.18 | O62: =O25+O35+O45+O55 -> 374128.4519 | P62: 469444.5561 | Q62: 0 | R62: =R25+R35+R45+R55 -> 271937.3551 | S62: =S25+S35+S45+S55 -> 260112.0416 | T62: 253467.4388 | U62: 165248.5615 | V62: 141699.8769 | AA62: =SUM(#REF!,#REF!) ->  | AB62: =SUM(#REF!,#REF!) ->  | AC62: =SUM(#REF!,#REF!) ->  | AD62: =SUM(#REF!,#REF!) ->  | AE62: =SUM(#REF!,#REF!) ->  | AF62: =SUM(#REF!,#REF!) ->  | AG62: =SUM(#REF!,#REF!) ->  | AH62: =SUM(#REF!,#REF!) -> 
F63: Total overhead expenditure | G63: =G26+G36+G46+G56 -> 0 | H63: 0 | I63: 0 | J63: 0 | K63: 0 | L63: =L26+L36+L46+L56 -> 10598.35558 | M63: =M26+M36+M46+M56 -> 29118.41029 | N63: 26472.74244 | O63: 31677.62566 | P63: 36125.90146 | Q63: 0 | R63: =R26+R36+R46+R56 -> 22632.91184 | S63: =S26+S36+S46+S56 -> 19048.04636 | T63: =T26+T36+T46+T56 -> 19078.9065 | U63: 14730.10371 | V63: 17614.58634 | AA63: =SUM(#REF!,#REF!) ->  | AB63: =SUM(#REF!,#REF!) ->  | AC63: =SUM(#REF!,#REF!) ->  | AD63: =SUM(#REF!,#REF!) ->  | AE63: =SUM(#REF!,#REF!) ->  | AF63: =SUM(#REF!,#REF!) ->  | AG63: =SUM(#REF!,#REF!) ->  | AH63: =SUM(#REF!,#REF!) -> 
F64: Related party margin expenditure | G64: =G27+G37+G47+G57 -> 0 | H64: 0 | I64: 0 | J64: 0 | K64: 0 | L64: =L27+L37+L47+L57 -> 4085.395908 | M64: 10229.26243 | N64: =N27+N37+N47+N57 -> 10708.58197 | O64: 14335.95007 | P64: 16035.97081 | Q64: 0 | R64: =R27+R37+R47+R57 -> 8889.094794 | S64: 7141.653769 | T64: =T27+T37+T47+T57 -> 7210.271518 | U64: =U27+U37+U47+U57 -> 5869.202331 | V64: 7599.730194 | AA64: =SUM(#REF!,#REF!) ->  | AB64: =SUM(#REF!,#REF!) ->  | AC64: =SUM(#REF!,#REF!) ->  | AD64: =SUM(#REF!,#REF!) ->  | AE64: =SUM(#REF!,#REF!) ->  | AF64: =SUM(#REF!,#REF!) ->  | AG64: =SUM(#REF!,#REF!) ->  | AH64: =SUM(#REF!,#REF!) -> 
F65: Total gross expenditure | G65: =SUM(G62:G64) -> 0 | H65: =SUM(H62:H64) -> 0 | I65: 0 | J65: 0 | K65: 0 | L65: =SUM(L62:L64) -> 150427.3115 | M65: =SUM(M62:M64) -> 394708.8327 | N65: =SUM(N62:N64) -> 409255.5044 | O65: =SUM(O62:O64) -> 420142.0276 | P65: =SUM(P62:P64) -> 521606.4284 | Q65: 0 | R65: =SUM(R62:R64) -> 303459.3617 | S65: =SUM(S62:S64) -> 286301.7418 | T65: =SUM(T62:T64) -> 279756.6168 | U65: 185847.8675 | V65: 166914.1934 | AA65: =SUM(#REF!,#REF!) ->  | AB65: =SUM(#REF!,#REF!) ->  | AC65: =SUM(#REF!,#REF!) ->  | AD65: =SUM(#REF!,#REF!) ->  | AE65: =SUM(#REF!,#REF!) ->  | AF65: =SUM(#REF!,#REF!) ->  | AG65: =SUM(#REF!,#REF!) ->  | AH65: =SUM(#REF!,#REF!) -> 
F66: Less customer contributions | G66: 0 | H66: 0 | I66: 0 | J66: 0 | K66: 0 | L66: 0 | M66: 0 | N66: 0 | O66: 0 | P66: 0 | Q66: 0 | R66: 0 | S66: 0 | T66: 0 | U66: 0 | V66: 0 | AA66: =SUM(#REF!,#REF!) ->  | AB66: =SUM(#REF!,#REF!) ->  | AC66: =SUM(#REF!,#REF!) ->  | AD66: =SUM(#REF!,#REF!) ->  | AE66: =SUM(#REF!,#REF!) ->  | AF66: =SUM(#REF!,#REF!) ->  | AG66: =SUM(#REF!,#REF!) ->  | AH66: =SUM(#REF!,#REF!) -> 
F67: Total net expenditure | G67: =SUM(G65:G66) -> 0 | H67: =SUM(H65:H66) -> 0 | I67: 0 | J67: 0 | K67: 0 | L67: =SUM(L65:L66) -> 150427.3115 | M67: =SUM(M65:M66) -> 394708.8327 | N67: =SUM(N65:N66) -> 409255.5044 | O67: =SUM(O65:O66) -> 420142.0276 | P67: =SUM(P65:P66) -> 521606.4284 | Q67: 0 | R67: =SUM(R65:R66) -> 303459.3617 | S67: =SUM(S65:S66) -> 286301.7418 | T67: 279756.6168 | U67: 185847.8675 | V67: 166914.1934 | AA67: =SUM(#REF!,#REF!) ->  | AB67: =SUM(#REF!,#REF!) ->  | AC67: =SUM(#REF!,#REF!) ->  | AD67: =SUM(#REF!,#REF!) ->  | AE67: =SUM(#REF!,#REF!) ->  | AF67: =SUM(#REF!,#REF!) ->  | AG67: =SUM(#REF!,#REF!) ->  | AH67: =SUM(#REF!,#REF!) -> 
E68: Source(s) of data: | L68: 2013-2015 AER Annual Reporting Templates | O68: Forecast data sourced from APA Data and capex model submitted as Attachment 8.8 to the AAI.
E70: Table 7.2 - Telemetry expenditure (approved)
G71: Previous access arrangement period | L71: Current access arrangement period
G72: =CONCATENATE("$0's, real ",dms_DollarReal) -> $0's, real December 2017
G73: Approved
G74: =PRCP -> 2008 | H74: 2009 | I74: 2010 | J74: 2011 | K74: 2012 | L74: =CRCP_y1 -> 2013 | M74: =CRCP_y2 -> 2014 | N74: =CRCP_y3 -> 2015 | O74: =CRCP_y4 -> 2016 | P74: =CRCP_y5 -> 2017
E75: < insert sub-category >
E76: Telemetry Expenditure | F76: Direct expenditure
F77: Direct internal labour expenditure
F78: Direct contractor expenditure
F79: Other internal direct expenditure
F80: Total direct expenditure | L80: 207174.1821 | M80: 228080.2276 | N80: 228439.102 | O80: 228641.4536 | P80: 227822.1366
F81: Total overhead expenditure | G81: 0 | H81: 0 | I81: 0 | J81: 0 | K81: 0 | L81: 31298.03061 | M81: 27545.24495 | N81: 29620.02979 | O81: 33062.83955 | P81: 36913.44345
F82: Related party margin expenditure
F83: Total gross expenditure | G83: =SUM(G80:G82) -> 0 | H83: 0 | I83: 0 | J83: 0 | K83: 0 | L83: =SUM(L80:L82) -> 238472.2127 | M83: 255625.4725 | N83: 258059.1318 | O83: 261704.2932 | P83: 264735.58
F84: Less customer contributions | L84: 0 | M84: 0 | N84: 0 | O84: 0 | P84: 0
F85: Total net expenditure | G85: =G83-G84 -> 0 | H85: 0 | I85: 0 | J85: 0 | K85: 0 | L85: 238472.2127 | M85: =M83-M84 -> 255625.4725 | N85: =N83-N84 -> 258059.1318 | O85: =O83-O84 -> 261704.2932 | P85: =P83-P84 -> 264735.58
E86: TOTALS | F86: =CONCATENATE("Total direct expenditure - ",E75) -> Total direct expenditure - < insert sub-category > | G86: =G80 -> 0 | H86: 0 | I86: 0 | J86: 0 | K86: 0 | L86: =L80 -> 207174.1821 | M86: 228080.2276 | N86: 228439.102 | O86: 228641.4536 | P86: 227822.1366
F87: =CONCATENATE("Total overhead expenditure - ",E75) -> Total overhead expenditure - < insert sub-category > | G87: =G81 -> 0 | H87: 0 | I87: 0 | J87: 0 | K87: 0 | L87: 31298.03061 | M87: 27545.24495 | N87: 29620.02979 | O87: 33062.83955 | P87: 36913.44345
F88: =CONCATENATE("Related party margin expenditure - ",E75) -> Related party margin expenditure - < insert sub-category > | G88: =G82 -> 0 | H88: 0 | I88: 0 | J88: 0 | K88: 0 | L88: 0 | M88: 0 | N88: 0 | O88: 0 | P88: 0
F89: =CONCATENATE("Total gross expenditure - ",E75) -> Total gross expenditure - < insert sub-category > | G89: =G83 -> 0 | H89: 0 | I89: 0 | J89: 0 | K89: 0 | L89: 238472.2127 | M89: 255625.4725 | N89: 258059.1318 | O89: 261704.2932 | P89: 264735.58
F90: Less customer contributions | G90: =G84 -> 0 | H90: 0 | I90: 0 | J90: 0 | K90: 0 | L90: 0 | M90: 0 | N90: 0 | O90: 0 | P90: 0
F91: =CONCATENATE("Total net expenditure - ",E75) -> Total net expenditure - < insert sub-category > | G91: =G85 -> 0 | H91: 0 | I91: 0 | J91: 0 | K91: 0 | L91: 238472.2127 | M91: 255625.4725 | N91: 258059.1318 | O91: 261704.2932 | P91: 264735.58
E92: Source(s) of data: | G92: Review of Gas Access Arrangements 2008 - 2012 - Variations to the Access Arrangements of Envestra (Victoria) and Envestra (Albury): ESC Appeal Panel Decisions E1 and E2 of 2008 - 25 March 2009 | L92: Envestra final submission capex file 2013 - 2017 'Attachment E - Capital Expenditure Model'
K95: check | L95: 0 | M95: 0 | N95: 0 | O95: 0 | P95: 0
G107: Convert $1 July 2006 to $31 December 2017 | L107: Conversion $2011 to $2017
G108: 1.294674556 | H108: 1.294674556 | I108: 1.294674556 | J108: 1.294674556 | K108: 1.294674556 | L108: 2010-09-01 | M108: 96.5
L109: 2016-09-01 | M109: ='4. Connections market expansn'!Z335 -> 110.1
M110: =M109/M108 -> 1.140932642

Sheet 8. Meter replacement
B1: =IF(dms_DataQuality="backcast",INDEX(dms_Worksheet_List,MATCH(dms_Model,dms_Model_List))&" BACKCAST",INDEX(dms_Worksheet_List,MATCH(dms_Model,dms_Model_List))) -> REGULATORY REPORTING STATEMENT
B2: =INDEX(dms_TradingNameFull_List,MATCH(dms_TradingName,dms_TradingName_List)) -> Australian Gas Networks Limited (reporting data for Victoria)
B3: =IF(SUM(dms_SingleYear_Model)>0,CRY,CONCATENATE(FRCP_y1," to ",dms_MultiYear_FinalYear_Result)) -> 2018 to 2022 | F3: =CONCATENATE(LEFT(FRCP_y1,4),"-",LEFT(FRCP_y5,2),RIGHT(FRCP_y5,2)) -> 2018-2022
B4: 8. METER REPLACEMENT CAPITAL EXPENDITURE
B7: Instructions
B8: This template asks for information relating to meter replacement
B9: Record data on the meters removed from service as part of the service provider's meter replacement program in Table 8.1. The data should be INCLUSIVE of meters removed through providing ancillary services.
B10: Record data on the cost and volume of meters refurbished and procured for the service provider's meter replacement program in Table 8.6. These data are to be exclusive of meters procured for new connections.
B11: Record Other internal expenditure attributable to the service provider's meter replacement program in tables 8.8.
B12: =CONCATENATE("As set out in cl.6.1 of the ", dms_TradingName, " RIN, for tables 8.2 to 8.8, where the requested data is captured in the ", dms_TradingName, " capex model it is not required to be reentered in the RIN template tables. If the requested data has not been provided in the ",dms_TradingName," RIN please enter into the tables. This may require the insertion of new lines in each table.") -> As set out in cl.6.1 of the AGN (Victoria) RIN, for tables 8.2 to 8.8, where the requested data is captured in the AGN (Victoria) capex model it is not required to be reentered in the RIN template tables. If the requested data has not been provided in the AGN (Victoria) RIN please enter into the tables. This may require the insertion of new lines in each table.
B13: Reported expenditure is to be entered EXCLUSIVE of any profit margins or management fees paid directly or indirectly to related party contractors (which is not an actual incurred cost of the related party contractor). Include any related party margins or management fees in the separate 'Related party margin' line item.
B14: =CONCATENATE("Subject to cl.6.1 of the ", dms_TradingName, " RIN, where linked/adjustable overhead expenditure and related party margin expenditure is not provided in the ", dms_TradingName, " capex model, overhead expenditure and related party margin expenditure should be linked to allocations derived in tabs '14. Overheads' and '15. Related party transactions'.") -> Subject to cl.6.1 of the AGN (Victoria) RIN, where linked/adjustable overhead expenditure and related party margin expenditure is not provided in the AGN (Victoria) capex model, overhead expenditure and related party margin expenditure should be linked to allocations derived in tabs '14. Overheads' and '15. Related party transactions'.
B15: Capital expenditure amounts entered should be GROSS of customer contributions. There is a separate line item for customer contributions from which net capital expenditure is derived.
B18: Table 8 - METER REPLACEMENT CAPITAL EXPENDITURE (Includes Albury)
B19: Table 8.1 - Number of meters removed (actual/forecast)
D20: Previous access arrangement period | I20: Current access arrangement period | N20: Next access arrangement period
D21: 0's
D22: Actual | L22: Forecast
D23: =PRCP -> 2008 | E23: 2009 | F23: 2010 | G23: 2011 | H23: 2012 | I23: =CRCP_y1 -> 2013 | J23: =CRCP_y2 -> 2014 | K23: =CRCP_y3 -> 2015 | L23: =CRCP_y4 -> 2016 | M23: =CRCP_y5 -> 2017 | N23: =FRCP -> 2018 | O23: 2019 | P23: 2020 | Q23: 2021 | R23: 2022
B24: 602 | C24: Refurbishable meters | D24: [C-I-C] | E24: [C-I-C] | F24: [C-I-C] | G24: [C-I-C] | H24: [C-I-C] | I24: [C-I-C] | J24: [C-I-C] | K24: [C-I-C] | L24: [C-I-C] | M24: [C-I-C] | N24: [C-I-C] | O24: [C-I-C] | P24: [C-I-C] | Q24: [C-I-C] | R24: [C-I-C]
C25: Meters decommissioned | D25: [C-I-C] | E25: [C-I-C] | F25: [C-I-C] | G25: [C-I-C] | H25: [C-I-C] | I25: [C-I-C] | J25: [C-I-C] | K25: [C-I-C] | L25: [C-I-C] | M25: [C-I-C] | N25: [C-I-C] | O25: [C-I-C] | P25: [C-I-C] | Q25: [C-I-C] | R25: [C-I-C]
C26: Total meters removed | D26: [C-I-C] | E26: [C-I-C] | F26: [C-I-C] | G26: [C-I-C] | H26: [C-I-C] | I26: [C-I-C] | J26: [C-I-C] | K26: [C-I-C] | L26: [C-I-C] | M26: [C-I-C] | N26: [C-I-C] | O26: [C-I-C] | P26: [C-I-C] | Q26: [C-I-C] | R26: [C-I-C]
B27: 610 | C27: Refurbishable meters | D27: [C-I-C] | E27: [C-I-C] | F27: [C-I-C] | G27: [C-I-C] | H27: [C-I-C] | I27: [C-I-C] | J27: [C-I-C] | K27: [C-I-C] | L27: [C-I-C] | M27: [C-I-C] | N27: [C-I-C] | O27: [C-I-C] | P27: [C-I-C] | Q27: [C-I-C] | R27: [C-I-C]
C28: Meters decommissioned | D28: [C-I-C] | E28: [C-I-C] | F28: [C-I-C] | G28: [C-I-C] | H28: [C-I-C] | I28: [C-I-C] | J28: [C-I-C] | K28: [C-I-C] | L28: [C-I-C] | M28: [C-I-C] | N28: [C-I-C] | O28: [C-I-C] | P28: [C-I-C] | Q28: [C-I-C] | R28: [C-I-C]
C29: Total meters removed | D29: [C-I-C] | E29: [C-I-C] | F29: [C-I-C] | G29: [C-I-C] | H29: [C-I-C] | I29: [C-I-C] | J29: [C-I-C] | K29: [C-I-C] | L29: [C-I-C] | M29: [C-I-C] | N29: [C-I-C] | O29: [C-I-C] | P29: [C-I-C] | Q29: [C-I-C] | R29: [C-I-C]
B30: DS5 | C30: Refurbishable meters | D30: [C-I-C] | E30: [C-I-C] | F30: [C-I-C] | G30: [C-I-C] | H30: [C-I-C] | I30: [C-I-C] | J30: [C-I-C] | K30: [C-I-C] | L30: [C-I-C] | M30: [C-I-C] | N30: [C-I-C] | O30: [C-I-C] | P30: [C-I-C] | Q30: [C-I-C] | R30: [C-I-C]
C31: Meters decommissioned | D31: [C-I-C] | E31: [C-I-C] | F31: [C-I-C] | G31: [C-I-C] | H31: [C-I-C] | I31: [C-I-C] | J31: [C-I-C] | K31: [C-I-C] | L31: [C-I-C] | M31: [C-I-C] | N31: [C-I-C] | O31: [C-I-C] | P31: [C-I-C] | Q31: [C-I-C] | R31: [C-I-C]
C32: Total meters removed | D32: [C-I-C] | E32: [C-I-C] | F32: [C-I-C] | G32: [C-I-C] | H32: [C-I-C] | I32: [C-I-C] | J32: [C-I-C] | K32: [C-I-C] | L32: [C-I-C] | M32: [C-I-C] | N32: [C-I-C] | O32: [C-I-C] | P32: [C-I-C] | Q32: [C-I-C] | R32: [C-I-C]
B33: MR8 | C33: Refurbishable meters | D33: [C-I-C] | E33: [C-I-C] | F33: [C-I-C] | G33: [C-I-C] | H33: [C-I-C] | I33: [C-I-C] | J33: [C-I-C] | K33: [C-I-C] | L33: [C-I-C] | M33: [C-I-C] | N33: [C-I-C] | O33: [C-I-C] | P33: [C-I-C] | Q33: [C-I-C] | R33: [C-I-C]
C34: Meters decommissioned | D34: [C-I-C] | E34: [C-I-C] | F34: [C-I-C] | G34: [C-I-C] | H34: [C-I-C] | I34: [C-I-C] | J34: [C-I-C] | K34: [C-I-C] | L34: [C-I-C] | M34: [C-I-C] | N34: [C-I-C] | O34: [C-I-C] | P34: [C-I-C] | Q34: [C-I-C] | R34: [C-I-C]
C35: Total meters removed | D35: [C-I-C] | E35: [C-I-C] | F35: [C-I-C] | G35: [C-I-C] | H35: [C-I-C] | I35: [C-I-C] | J35: [C-I-C] | K35: [C-I-C] | L35: [C-I-C] | M35: [C-I-C] | N35: [C-I-C] | O35: [C-I-C] | P35: [C-I-C] | Q35: [C-I-C] | R35: [C-I-C]
B36: U8 | C36: Refurbishable meters | D36: [C-I-C] | E36: [C-I-C] | F36: [C-I-C] | G36: [C-I-C] | H36: [C-I-C] | I36: [C-I-C] | J36: [C-I-C] | K36: [C-I-C] | L36: [C-I-C] | M36: [C-I-C] | N36: [C-I-C] | O36: [C-I-C] | P36: [C-I-C] | Q36: [C-I-C] | R36: [C-I-C]
C37: Meters decommissioned | D37: [C-I-C] | E37: [C-I-C] | F37: [C-I-C] | G37: [C-I-C] | H37: [C-I-C] | I37: [C-I-C] | J37: [C-I-C] | K37: [C-I-C] | L37: [C-I-C] | M37: [C-I-C] | N37: [C-I-C] | O37: [C-I-C] | P37: [C-I-C] | Q37: [C-I-C] | R37: [C-I-C]
C38: Total meters removed | D38: [C-I-C] | E38: [C-I-C] | F38: [C-I-C] | G38: [C-I-C] | H38: [C-I-C] | I38: [C-I-C] | J38: [C-I-C] | K38: [C-I-C] | L38: [C-I-C] | M38: [C-I-C] | N38: [C-I-C] | O38: [C-I-C] | P38: [C-I-C] | Q38: [C-I-C] | R38: [C-I-C]
B39: U6 | C39: Refurbishable meters | D39: [C-I-C] | E39: [C-I-C] | F39: [C-I-C] | G39: [C-I-C] | H39: [C-I-C] | I39: [C-I-C] | J39: [C-I-C] | K39: [C-I-C] | L39: [C-I-C] | M39: [C-I-C] | N39: [C-I-C] | O39: [C-I-C] | P39: [C-I-C] | Q39: [C-I-C] | R39: [C-I-C]
C40: Meters decommissioned | D40: [C-I-C] | E40: [C-I-C] | F40: [C-I-C] | G40: [C-I-C] | H40: [C-I-C] | I40: [C-I-C] | J40: [C-I-C] | K40: [C-I-C] | L40: [C-I-C] | M40: [C-I-C] | N40: [C-I-C] | O40: [C-I-C] | P40: [C-I-C] | Q40: [C-I-C] | R40: [C-I-C]
C41: Total meters removed | D41: [C-I-C] | E41: [C-I-C] | F41: [C-I-C] | G41: [C-I-C] | H41: [C-I-C] | I41: [C-I-C] | J41: [C-I-C] | K41: [C-I-C] | L41: [C-I-C] | M41: [C-I-C] | N41: [C-I-C] | O41: [C-I-C] | P41: [C-I-C] | Q41: [C-I-C] | R41: [C-I-C]
B42: G6 | C42: Refurbishable meters | D42: [C-I-C] | E42: [C-I-C] | F42: [C-I-C] | G42: [C-I-C] | H42: [C-I-C] | I42: [C-I-C] | J42: [C-I-C] | K42: [C-I-C] | L42: [C-I-C] | M42: [C-I-C] | N42: [C-I-C] | O42: [C-I-C] | P42: [C-I-C] | Q42: [C-I-C] | R42: [C-I-C]
C43: Meters decommissioned | D43: [C-I-C] | E43: [C-I-C] | F43: [C-I-C] | G43: [C-I-C] | H43: [C-I-C] | I43: [C-I-C] | J43: [C-I-C] | K43: [C-I-C] | L43: [C-I-C] | M43: [C-I-C] | N43: [C-I-C] | O43: [C-I-C] | P43: [C-I-C] | Q43: [C-I-C] | R43: [C-I-C]
C44: Total meters removed | D44: [C-I-C] | E44: [C-I-C] | F44: [C-I-C] | G44: [C-I-C] | H44: [C-I-C] | I44: [C-I-C] | J44: [C-I-C] | K44: [C-I-C] | L44: [C-I-C] | M44: [C-I-C] | N44: [C-I-C] | O44: [C-I-C] | P44: [C-I-C] | Q44: [C-I-C] | R44: [C-I-C]
B45: U10 | C45: Refurbishable meters | D45: [C-I-C] | E45: [C-I-C] | F45: [C-I-C] | G45: [C-I-C] | H45: [C-I-C] | I45: [C-I-C] | J45: [C-I-C] | K45: [C-I-C] | L45: [C-I-C] | M45: [C-I-C] | N45: [C-I-C] | O45: [C-I-C] | P45: [C-I-C] | Q45: [C-I-C] | R45: [C-I-C]
C46: Meters decommissioned | D46: [C-I-C] | E46: [C-I-C] | F46: [C-I-C] | G46: [C-I-C] | H46: [C-I-C] | I46: [C-I-C] | J46: [C-I-C] | K46: [C-I-C] | L46: [C-I-C] | M46: [C-I-C] | N46: [C-I-C] | O46: [C-I-C] | P46: [C-I-C] | Q46: [C-I-C] | R46: [C-I-C]
C47: Total meters removed | D47: [C-I-C] | E47: [C-I-C] | F47: [C-I-C] | G47: [C-I-C] | H47: [C-I-C] | I47: [C-I-C] | J47: [C-I-C] | K47: [C-I-C] | L47: [C-I-C] | M47: [C-I-C] | N47: [C-I-C] | O47: [C-I-C] | P47: [C-I-C] | Q47: [C-I-C] | R47: [C-I-C]
B48: UGI08 | C48: Refurbishable meters | D48: [C-I-C] | E48: [C-I-C] | F48: [C-I-C] | G48: [C-I-C] | H48: [C-I-C] | I48: [C-I-C] | J48: [C-I-C] | K48: [C-I-C] | L48: [C-I-C] | M48: [C-I-C] | N48: [C-I-C] | O48: [C-I-C] | P48: [C-I-C] | Q48: [C-I-C] | R48: [C-I-C]
C49: Meters decommissioned | D49: [C-I-C] | E49: [C-I-C] | F49: [C-I-C] | G49: [C-I-C] | H49: [C-I-C] | I49: [C-I-C] | J49: [C-I-C] | K49: [C-I-C] | L49: [C-I-C] | M49: [C-I-C] | N49: [C-I-C] | O49: [C-I-C] | P49: [C-I-C] | Q49: [C-I-C] | R49: [C-I-C]
C50: Total meters removed | D50: [C-I-C] | E50: [C-I-C] | F50: [C-I-C] | G50: [C-I-C] | H50: [C-I-C] | I50: [C-I-C] | J50: [C-I-C] | K50: [C-I-C] | L50: [C-I-C] | M50: [C-I-C] | N50: [C-I-C] | O50: [C-I-C] | P50: [C-I-C] | Q50: [C-I-C] | R50: [C-I-C]
B51: 750 | C51: Refurbishable meters | D51: [C-I-C] | E51: [C-I-C] | F51: [C-I-C] | G51: [C-I-C] | H51: [C-I-C] | I51: [C-I-C] | J51: [C-I-C] | K51: [C-I-C] | L51: [C-I-C] | M51: [C-I-C] | N51: [C-I-C] | O51: [C-I-C] | P51: [C-I-C] | Q51: [C-I-C] | R51: [C-I-C]
C52: Meters decommissioned | D52: [C-I-C] | E52: [C-I-C] | F52: [C-I-C] | G52: [C-I-C] | H52: [C-I-C] | I52: [C-I-C] | J52: [C-I-C] | K52: [C-I-C] | L52: [C-I-C] | M52: [C-I-C] | N52: [C-I-C] | O52: [C-I-C] | P52: [C-I-C] | Q52: [C-I-C] | R52: [C-I-C]
C53: Total meters removed | D53: [C-I-C] | E53: [C-I-C] | F53: [C-I-C] | G53: [C-I-C] | H53: [C-I-C] | I53: [C-I-C] | J53: [C-I-C] | K53: [C-I-C] | L53: [C-I-C] | M53: [C-I-C] | N53: [C-I-C] | O53: [C-I-C] | P53: [C-I-C] | Q53: [C-I-C] | R53: [C-I-C]
B54: 1010 | C54: Refurbishable meters | D54: [C-I-C] | E54: [C-I-C] | F54: [C-I-C] | G54: [C-I-C] | H54: [C-I-C] | I54: [C-I-C] | J54: [C-I-C] | K54: [C-I-C] | L54: [C-I-C] | M54: [C-I-C] | N54: [C-I-C] | O54: [C-I-C] | P54: [C-I-C] | Q54: [C-I-C] | R54: [C-I-C]
C55: Meters decommissioned | D55: [C-I-C] | E55: [C-I-C] | F55: [C-I-C] | G55: [C-I-C] | H55: [C-I-C] | I55: [C-I-C] | J55: [C-I-C] | K55: [C-I-C] | L55: [C-I-C] | M55: [C-I-C] | N55: [C-I-C] | O55: [C-I-C] | P55: [C-I-C] | Q55: [C-I-C] | R55: [C-I-C]
C56: Total meters removed | D56: [C-I-C] | E56: [C-I-C] | F56: [C-I-C] | G56: [C-I-C] | H56: [C-I-C] | I56: [C-I-C] | J56: [C-I-C] | K56: [C-I-C] | L56: [C-I-C] | M56: [C-I-C] | N56: [C-I-C] | O56: [C-I-C] | P56: [C-I-C] | Q56: [C-I-C] | R56: [C-I-C]
B57: MR12 | C57: Refurbishable meters | D57: [C-I-C] | E57: [C-I-C] | F57: [C-I-C] | G57: [C-I-C] | H57: [C-I-C] | I57: [C-I-C] | J57: [C-I-C] | K57: [C-I-C] | L57: [C-I-C] | M57: [C-I-C] | N57: [C-I-C] | O57: [C-I-C] | P57: [C-I-C] | Q57: [C-I-C] | R57: [C-I-C]
C58: Meters decommissioned | D58: [C-I-C] | E58: [C-I-C] | F58: [C-I-C] | G58: [C-I-C] | H58: [C-I-C] | I58: [C-I-C] | J58: [C-I-C] | K58: [C-I-C] | L58: [C-I-C] | M58: [C-I-C] | N58: [C-I-C] | O58: [C-I-C] | P58: [C-I-C] | Q58: [C-I-C] | R58: [C-I-C]
C59: Total meters removed | D59: [C-I-C] | E59: [C-I-C] | F59: [C-I-C] | G59: [C-I-C] | H59: [C-I-C] | I59: [C-I-C] | J59: [C-I-C] | K59: [C-I-C] | L59: [C-I-C] | M59: [C-I-C] | N59: [C-I-C] | O59: [C-I-C] | P59: [C-I-C] | Q59: [C-I-C] | R59: [C-I-C]
B60: Gallus | C60: Refurbishable meters | D60: [C-I-C] | E60: [C-I-C] | F60: [C-I-C] | G60: [C-I-C] | H60: [C-I-C] | I60: [C-I-C] | J60: [C-I-C] | K60: [C-I-C] | L60: [C-I-C] | M60: [C-I-C] | N60: [C-I-C] | O60: [C-I-C] | P60: [C-I-C] | Q60: [C-I-C] | R60: [C-I-C]
C61: Meters decommissioned | D61: [C-I-C] | E61: [C-I-C] | F61: [C-I-C] | G61: [C-I-C] | H61: [C-I-C] | I61: [C-I-C] | J61: [C-I-C] | K61: [C-I-C] | L61: [C-I-C] | M61: [C-I-C] | N61: [C-I-C] | O61: [C-I-C] | P61: [C-I-C] | Q61: [C-I-C] | R61: [C-I-C]
C62: Total meters removed | D62: [C-I-C] | E62: [C-I-C] | F62: [C-I-C] | G62: [C-I-C] | H62: [C-I-C] | I62: [C-I-C] | J62: [C-I-C] | K62: [C-I-C] | L62: [C-I-C] | M62: [C-I-C] | N62: [C-I-C] | O62: [C-I-C] | P62: [C-I-C] | Q62: [C-I-C] | R62: [C-I-C]
B63: Total meters removed | D63: [C-I-C] | E63: [C-I-C] | F63: [C-I-C] | G63: [C-I-C] | H63: [C-I-C] | I63: [C-I-C] | J63: [C-I-C] | K63: [C-I-C] | L63: [C-I-C] | M63: [C-I-C] | N63: [C-I-C] | O63: [C-I-C] | P63: [C-I-C] | Q63: [C-I-C] | R63: [C-I-C]
B64: Source(s) of data: | D64: 2013-2016 represents what was returned repaired or refurbished from EDMI in the year and booked back into our meter inventory and not necessarily what was used to replace the meters in the field for that year. I&C are assumed to be 90% refurbishable. 2017-2022 is based on the scheduled Meter Change program (and excludes defective meters replaced not included in the sceduled meter change program of approx 4000 pa)
V66: REAL $ CONVERSION OF HISTORICAL DATA
B67: Table 8.2 - Meter replacement expenditure (actual/forecast)
D68: Previous access arrangement period | I68: Current access arrangement period | N68: Next access arrangement period | V68: Previous access arrangement period | AA68: Current access arrangement period
D69: $0's, nominal | L69: =CONCATENATE("$0's, real ",dms_DollarReal) -> $0's, real December 2017 | V69: =CONCATENATE("$0's, real ",dms_DollarReal) -> $0's, real December 2017
D70: Actual | L70: Forecast | V70: Actual
D71: =PRCP -> 2008 | E71: 2009 | F71: 2010 | G71: 2011 | H71: 2012 | I71: =CRCP_y1 -> 2013 | J71: =CRCP_y2 -> 2014 | K71: =CRCP_y3 -> 2015 | L71: =CRCP_y4 -> 2016 | M71: =CRCP_y5 -> 2017 | N71: =FRCP -> 2018 | O71: 2019 | P71: 2020 | Q71: 2021 | R71: 2022 | V71: =PRCP -> 2008 | W71: 2009 | X71: 2010 | Y71: 2011 | Z71: 2012 | AA71: =CRCP_y1 -> 2013 | AB71: =CRCP_y2 -> 2014 | AC71: =CRCP_y3 -> 2015
B72: Volume | D72: [C-I-C] | E72: [C-I-C] | F72: [C-I-C] | G72: [C-I-C] | H72: [C-I-C] | I72: [C-I-C] | J72: [C-I-C] | K72: [C-I-C] | L72: [C-I-C] | M72: [C-I-C] | N72: [C-I-C] | O72: [C-I-C] | P72: [C-I-C] | Q72: [C-I-C] | R72: [C-I-C]
B73: Direct internal labour expenditure | I73: 241887.91 | J73: 268993.5 | K73: 209767.45 | L73: 581672.7292 | M73: 602381.8547 | N73: 533127.1693 | O73: 533127.1693 | P73: 533127.1693 | Q73: 419236.6421 | R73: 419236.6421
B74: Direct contractor expenditure | I74: 948939.43 | J74: 941276.85 | K74: 1187673.74 | L74: 2541716.395 | M74: 2848337.083 | N74: 2480815.771 | O74: 2480815.771 | P74: 2480815.771 | Q74: 1480129.431 | R74: 1480129.431
B75: Other internal direct expenditure | I75: 2175648.98 | J75: 2631123.62 | K75: 2489606.61 | L75: 4264099.518 | M75: 4594783.621 | N75: 4281336.604 | O75: 4281336.604 | P75: 4281336.604 | Q75: 2998719.343 | R75: 2998719.343
B76: Total direct expenditure | D76: =SUM(D73:D75) -> 0 | E76: 0 | F76: 0 | G76: 0 | H76: 0 | I76: =SUM(I73:I75) -> 3366476.32 | J76: =SUM(J73:J75) -> 3841393.97 | K76: 3887047.8 | L76: 7387488.641 | M76: 8045502.559 | N76: 7295279.544 | O76: 7295279.544 | P76: 7295279.544 | Q76: 4898085.415 | R76: 4898085.415 | V76: =SUM(V73:V75) -> 0 | W76: 0 | X76: 0 | Y76: 0 | Z76: 0 | AA76: 0 | AB76: 0 | AC76: 0
B77: Total overhead expenditure | I77: 293827.9602 | J77: 323950.012 | K77: 288019.6867 | L77: 625502.0129 | M77: 619138.1471 | N77: 607174.4677 | O77: 534234.4864 | P77: 549127.5606 | Q77: 436610.7972 | R77: 608876.6647
B78: Related party margin expenditure | I78: 102183.9305 | J78: 110820.9642 | K78: 112180.1471 | L78: 283075.6864 | M78: 274829.9933 | N78: 238468.273 | O78: 200299.6875 | P78: 207525.458 | Q78: 173967.35 | R78: 262696.9652
B79: Total gross expenditure | D79: =SUM(D76:D78) -> 0 | E79: =SUM(E76:E78) -> 0 | F79: 0 | G79: 0 | H79: 0 | I79: =SUM(I76:I78) -> 3762488.211 | J79: 4276164.946 | K79: 4287247.634 | L79: =SUM(L76:L78) -> 8296066.341 | M79: 8939470.699 | N79: =SUM(N76:N78) -> 8140922.285 | O79: 8029813.718 | P79: 8051932.563 | Q79: =SUM(Q76:Q78) -> 5508663.563 | R79: 5769659.045 | V79: =SUM(V76:V78) -> 0 | W79: =SUM(W76:W78) -> 0 | X79: 0 | Y79: 0 | Z79: 0 | AA79: 0 | AB79: 0 | AC79: 0
B80: Less contributions
B81: Total net expenditure | D81: =D79-D80 -> 0 | E81: 0 | F81: 0 | G81: 0 | H81: 0 | I81: =I79-I80 -> 3762488.211 | J81: =J79-J80 -> 4276164.946 | K81: 4287247.634 | L81: 8296066.341 | M81: 8939470.699 | N81: =N79-N80 -> 8140922.285 | O81: =O79-O80 -> 8029813.718 | P81: =P79-P80 -> 8051932.563 | Q81: =Q79-Q80 -> 5508663.563 | R81: =R79-R80 -> 5769659.045 | V81: =V79-V80 -> 0 | W81: 0 | X81: 0 | Y81: 0 | Z81: 0 | AA81: 0 | AB81: 0 | AC81: 0
B82: Source(s) of data: | I82: 2013-2015 AER Annual Reporting Templates - Template 2 Capex - SCADA | L82: Forecast data sourced from APA Data and capex model submitted as Attachment 8.8 to the AAI.
B84: Table 8.3 - Replacement meter installation expenditure (actual/forecast)
D85: Previous access arrangement period | I85: Current access arrangement period | N85: Next access arrangement period | V85: Previous access arrangement period | AA85: Current access arrangement period
D86: $0's, nominal | L86: =CONCATENATE("$0's, real ",dms_DollarReal) -> $0's, real December 2017 | V86: =CONCATENATE("$0's, real ",dms_DollarReal) -> $0's, real December 2017
D87: Actual | L87: Forecast | V87: Actual
D88: =PRCP -> 2008 | E88: 2009 | F88: 2010 | G88: 2011 | H88: 2012 | I88: =CRCP_y1 -> 2013 | J88: =CRCP_y2 -> 2014 | K88: =CRCP_y3 -> 2015 | L88: =CRCP_y4 -> 2016 | M88: =CRCP_y5 -> 2017 | N88: =FRCP -> 2018 | O88: 2019 | P88: 2020 | Q88: 2021 | R88: 2022 | V88: =PRCP -> 2008 | W88: 2009 | X88: 2010 | Y88: 2011 | Z88: 2012 | AA88: =CRCP_y1 -> 2013 | AB88: =CRCP_y2 -> 2014 | AC88: =CRCP_y3 -> 2015
B89: Table 8.3.1 - Residential meter replacement installation expenditure
B90: Volume of meter replacements | D90: [C-I-C] | E90: [C-I-C] | F90: [C-I-C] | G90: [C-I-C] | H90: [C-I-C] | I90: [C-I-C] | J90: [C-I-C] | K90: [C-I-C] | L90: [C-I-C] | M90: [C-I-C] | N90: [C-I-C] | O90: [C-I-C] | P90: [C-I-C] | Q90: [C-I-C] | R90: [C-I-C]
B91: Direct internal labour expenditure | I91: 153412.24 | J91: 171632.35 | K91: 116740.45 | L91: 178926.3539 | M91: 216590.9671 | N91: 233433.4188 | O91: 233433.4188 | P91: 233433.4188 | Q91: 119542.8916 | R91: 119542.8916
B92: Contractor expenditure | I92: 866992.02 | J92: 857072.75 | K92: 1055326.03 | L92: 1572116.336 | M92: 1903052.234 | N92: 2051036.547 | O92: 2051036.547 | P92: 2051036.547 | Q92: 1050350.207 | R92: 1050350.207
B93: Other expenditure | I93: 1853707.76 | J93: 2115342.93 | K93: 1855129.02 | L93: 2015040.546 | M93: 2439213.514 | N93: 2628890.565 | O93: 2628890.565 | P93: 2628890.565 | Q93: 1346273.304 | R93: 1346273.304
B94: Total direct expenditure | D94: =D91+D92+D93 -> 0 | E94: 0 | F94: 0 | G94: 0 | H94: 0 | I94: =I91+I92+I93 -> 2874112.02 | J94: =J91+J92+J93 -> 3144048.03 | K94: 3027195.5 | L94: 3766083.235 | M94: 4558856.715 | N94: =N91+N92+N93 -> 4913360.531 | O94: =O91+O92+O93 -> 4913360.531 | P94: 4913360.531 | Q94: 2516166.402 | R94: 2516166.402 | V94: =V91+V92+V93 -> 0 | W94: =W91+W92+W93 -> 0 | X94: 0 | Y94: 0 | Z94: 0 | AA94: 0 | AB94: 0 | AC94: 0
B95: Total overhead expenditure | I95: 249437.335 | J95: 266295.1611 | K95: 222428.1631 | L95: 318875.9752 | M95: 350824.834 | N95: 408931.1515 | O95: 359806.1765 | P95: 369836.6411 | Q95: 224288.7425 | R95: 312782.4194
B96: Related party margin expenditure | I96: 87199.45823 | J96: 90733.80789 | K96: 87314.33967 | L96: 144309.7443 | M96: 155728.0669 | N96: 160608.047 | O96: 134901.5583 | P96: 139768.1046 | Q96: 89367.73536 | R96: 134948.4996
B97: Total gross expenditure | D97: 2533000 | E97: 1902000 | F97: 2583000 | G97: 2914000 | H97: 2849970 | I97: =I94+I95+I96 -> 3210748.813 | J97: =J94+J95+J96 -> 3501076.999 | K97: 3336938.003 | L97: 4229268.955 | M97: =M94+M95+M96 -> 5065409.616 | N97: =N94+N95+N96 -> 5482899.729 | O97: =O94+O95+O96 -> 5408068.266 | P97: =P94+P95+P96 -> 5422965.277 | Q97: 2829822.88 | R97: =R94+R95+R96 -> 2963897.321 | V97: =V94+V95+V96 -> 0 | W97: =W94+W95+W96 -> 0 | X97: 0 | Y97: 0 | Z97: 0 | AA97: 0 | AB97: 0 | AC97: 0
B98: Less contributions
B99: Total net expenditure | D99: =D97-D98 -> 2533000 | E99: =E97-E98 -> 1902000 | F99: 2583000 | G99: 2914000 | H99: 2849970 | I99: 3210748.813 | J99: =J97-J98 -> 3501076.999 | K99: 3336938.003 | L99: 4229268.955 | M99: 5065409.616 | N99: 5482899.729 | O99: 5408068.266 | P99: 5422965.277 | Q99: =Q97-Q98 -> 2829822.88 | R99: 2963897.321 | V99: =V97-V98 -> 0 | W99: =W97-W98 -> 0 | X99: 0 | Y99: 0 | Z99: 0 | AA99: 0 | AB99: 0 | AC99: 0
B100: Table 8.3.2 - Industrial and commercial meter replacement installation expenditure
B101: Volume of meter replacements | D101: [C-I-C] | E101: [C-I-C] | F101: [C-I-C] | G101: [C-I-C] | H101: [C-I-C] | I101: [C-I-C] | J101: [C-I-C] | K101: [C-I-C] | L101: [C-I-C] | M101: [C-I-C] | N101: [C-I-C] | O101: [C-I-C] | P101: [C-I-C] | Q101: [C-I-C] | R101: [C-I-C]
B102: Direct internal labour expenditure | I102: 88475.67 | J102: 97361.15 | K102: 93027 | L102: 353312.7279 | M102: 336357.2402 | N102: 299693.7505 | O102: 299693.7505 | P102: 299693.7505 | Q102: 299693.7505 | R102: 299693.7505
B103: Contractor expenditure | I103: 81947.41 | J103: 84204.1 | K103: 132347.71 | L103: 506672.1272 | M103: 482356.9176 | N103: 429779.2241 | O103: 429779.2241 | P103: 429779.2241 | Q103: 429779.2241 | R103: 429779.2241
B104: Other expenditure | I104: 321941.22 | J104: 515780.69 | K104: 634477.59 | L104: 1948089.397 | M104: 1854600.532 | N104: 1652446.039 | O104: 1652446.039 | P104: 1652446.039 | Q104: 1652446.039 | R104: 1652446.039
B105: Total direct expenditure | D105: =D102+D103+D104 -> 0 | E105: =E102+E103+E104 -> 0 | F105: 0 | G105: 0 | H105: 0 | I105: 492364.3 | J105: =J102+J103+J104 -> 697345.94 | K105: 859852.3 | L105: 2808074.252 | M105: 2673314.69 | N105: 2381919.014 | O105: 2381919.014 | P105: 2381919.014 | Q105: 2381919.014 | R105: 2381919.014 | V105: =V102+V103+V104 -> 0 | W105: =W102+W103+W104 -> 0 | X105: 0 | Y105: 0 | Z105: 0 | AA105: 0 | AB105: 0 | AC105: 0
B106: Total overhead expenditure | I106: 44390.62521 | J106: 57654.85087 | K106: 65591.52362 | L106: 237760.9202 | M106: 205723.7683 | N106: 198243.3161 | O106: 174428.3099 | P106: 179290.9195 | Q106: 212322.0547 | R106: 296094.2453
B107: Related party margin expenditure | I107: 14984.47227 | J107: 20087.1563 | K107: 24865.80747 | L107: 107600.5101 | M107: 91318.97641 | N107: 77860.22593 | O107: 65398.12919 | P107: 67757.3534 | Q107: 84599.61468 | R107: 127748.4656
B108: Total gross expenditure | D108: 870000 | E108: 587747 | F108: 555000 | G108: 656000 | H108: 624750 | I108: =I105+I106+I107 -> 551739.3975 | J108: =J105+J106+J107 -> 775087.9472 | K108: 950309.6311 | L108: 3153435.683 | M108: 2970357.435 | N108: 2658022.556 | O108: 2621745.453 | P108: 2628967.287 | Q108: 2678840.683 | R108: 2805761.725 | V108: =V105+V106+V107 -> 0 | W108: =W105+W106+W107 -> 0 | X108: 0 | Y108: 0 | Z108: 0 | AA108: 0 | AB108: 0 | AC108: 0
B109: Less contributions
B110: Total net expenditure | D110: =D108-D109 -> 870000 | E110: =E108-E109 -> 587747 | F110: 555000 | G110: 656000 | H110: 624750 | I110: =I108-I109 -> 551739.3975 | J110: =J108-J109 -> 775087.9472 | K110: 950309.6311 | L110: 3153435.683 | M110: 2970357.435 | N110: 2658022.556 | O110: 2621745.453 | P110: 2628967.287 | Q110: 2678840.683 | R110: 2805761.725 | V110: =V108-V109 -> 0 | W110: =W108-W109 -> 0 | X110: 0 | Y110: 0 | Z110: 0 | AA110: 0 | AB110: 0 | AC110: 0
B111: Table 8.3.3 - Complex Industrial and commercial meter replacement installation expenditure
B112: Volume of meter replacements | D112: [C-I-C] | E112: [C-I-C] | F112: [C-I-C] | G112: [C-I-C] | H112: [C-I-C] | I112: [C-I-C] | J112: [C-I-C] | K112: [C-I-C] | L112: [C-I-C] | M112: [C-I-C] | N112: [C-I-C] | O112: [C-I-C] | P112: [C-I-C] | Q112: [C-I-C] | R112: [C-I-C]
B113: Direct internal labour expenditure | L113: 49433.64742 | M113: 49433.64742
B114: Contractor expenditure | L114: 462927.9315 | M114: 462927.9315
B115: Other expenditure | L115: 300969.5748 | M115: 300969.5748
B116: Total direct expenditure | D116: =D113+D114+D115 -> 0 | E116: =E113+E114+E115 -> 0 | F116: 0 | G116: 0 | H116: 0 | I116: 0 | J116: =J113+J114+J115 -> 0 | K116: 0 | L116: 813331.1538 | M116: 813331.1538 | N116: 0 | O116: 0 | P116: 0 | Q116: 0 | R116: 0 | V116: =V113+V114+V115 -> 0 | W116: =W113+W114+W115 -> 0 | X116: 0 | Y116: 0 | Z116: 0 | AA116: 0 | AB116: 0 | AC116: 0
B117: Total overhead expenditure | L117: 68865.11757 | M117: 62589.54489
B118: Related party margin expenditure | L118: 31165.43197 | M118: 27782.95003
B119: Total gross expenditure | D119: =D116+D117+D118 -> 0 | E119: 0 | F119: 0 | G119: 0 | H119: 0 | I119: 0 | J119: 0 | K119: 0 | L119: 913361.7033 | M119: 903703.6487 | N119: 0 | O119: 0 | P119: 0 | Q119: 0 | R119: 0 | V119: =V116+V117+V118 -> 0 | W119: =W116+W117+W118 -> 0 | X119: 0 | Y119: 0 | Z119: 0 | AA119: 0 | AB119: 0 | AC119: 0
B120: Less contributions
B121: Total net expenditure | D121: =D119-D120 -> 0 | E121: =E119-E120 -> 0 | F121: 0 | G121: 0 | H121: 0 | I121: 0 | J121: =J119-J120 -> 0 | K121: 0 | L121: 913361.7033 | M121: 903703.6487 | N121: 0 | O121: 0 | P121: 0 | Q121: 0 | R121: 0 | V121: =V119-V120 -> 0 | W121: =W119-W120 -> 0 | X121: 0 | Y121: 0 | Z121: 0 | AA121: 0 | AB121: 0 | AC121: 0
B122: Table 8.3.4 - Total meter replacement installation expenditure
B123: Volume of meter replacements | D123: [C-I-C] | E123: [C-I-C] | F123: [C-I-C] | G123: [C-I-C] | H123: [C-I-C] | I123: [C-I-C] | J123: [C-I-C] | K123: [C-I-C] | L123: [C-I-C] | M123: [C-I-C] | N123: [C-I-C] | O123: [C-I-C] | P123: [C-I-C] | Q123: [C-I-C] | R123: [C-I-C] | V123: =V90+V101+V112 -> 0 | W123: 0 | X123: 0 | Y123: 0 | Z123: 0 | AA123: 0 | AB123: 0 | AC123: 0
B124: Direct internal labour expenditure | D124: =D91+D102+D113 -> 0 | E124: 0 | F124: 0 | G124: 0 | H124: 0 | I124: =I91+I102+I113 -> 241887.91 | J124: =J91+J102+J113 -> 268993.5 | K124: 209767.45 | L124: 581672.7292 | M124: 602381.8547 | N124: 533127.1693 | O124: 533127.1693 | P124: 533127.1693 | Q124: 419236.6421 | R124: 419236.6421 | V124: =V91+V102+V113 -> 0 | W124: 0 | X124: 0 | Y124: 0 | Z124: 0 | AA124: 0 | AB124: 0 | AC124: 0
B125: Contractor expenditure | D125: =D92+D103+D114 -> 0 | E125: 0 | F125: 0 | G125: 0 | H125: 0 | I125: 948939.43 | J125: =J92+J103+J114 -> 941276.85 | K125: 1187673.74 | L125: 2541716.395 | M125: 2848337.083 | N125: 2480815.771 | O125: 2480815.771 | P125: 2480815.771 | Q125: 1480129.431 | R125: 1480129.431 | V125: =V92+V103+V114 -> 0 | W125: 0 | X125: 0 | Y125: 0 | Z125: 0 | AA125: 0 | AB125: 0 | AC125: 0
B126: Other expenditure | D126: =D93+D104+D115 -> 0 | E126: 0 | F126: 0 | G126: 0 | H126: 0 | I126: 2175648.98 | J126: =J93+J104+J115 -> 2631123.62 | K126: 2489606.61 | L126: 4264099.518 | M126: 4594783.621 | N126: 4281336.604 | O126: 4281336.604 | P126: 4281336.604 | Q126: 2998719.343 | R126: 2998719.343 | V126: =V93+V104+V115 -> 0 | W126: 0 | X126: 0 | Y126: 0 | Z126: 0 | AA126: 0 | AB126: 0 | AC126: 0
B127: Total direct expenditure | D127: =D94+D105+D116 -> 0 | E127: 0 | F127: 0 | G127: 0 | H127: 0 | I127: =I94+I105+I116 -> 3366476.32 | J127: =J94+J105+J116 -> 3841393.97 | K127: 3887047.8 | L127: 7387488.641 | M127: 8045502.559 | N127: 7295279.544 | O127: 7295279.544 | P127: 7295279.544 | Q127: 4898085.415 | R127: 4898085.415 | V127: =V94+V105+V116 -> 0 | W127: 0 | X127: 0 | Y127: 0 | Z127: 0 | AA127: 0 | AB127: 0 | AC127: 0
B128: Total overhead expenditure | D128: =D95+D106+D117 -> 0 | E128: 0 | F128: 0 | G128: 0 | H128: 0 | I128: 293827.9602 | J128: =J95+J106+J117 -> 323950.012 | K128: 288019.6867 | L128: 625502.0129 | M128: 619138.1471 | N128: 607174.4677 | O128: 534234.4864 | P128: 549127.5606 | Q128: 436610.7972 | R128: 608876.6647 | V128: =V95+V106+V117 -> 0 | W128: 0 | X128: 0 | Y128: 0 | Z128: 0 | AA128: 0 | AB128: 0 | AC128: 0
B129: Related party margin expenditure | D129: =D96+D107+D118 -> 0 | E129: 0 | F129: 0 | G129: 0 | H129: 0 | I129: 102183.9305 | J129: =J96+J107+J118 -> 110820.9642 | K129: 112180.1471 | L129: 283075.6864 | M129: 274829.9933 | N129: 238468.273 | O129: 200299.6875 | P129: 207525.458 | Q129: 173967.35 | R129: 262696.9652 | V129: =V96+V107+V118 -> 0 | W129: 0 | X129: 0 | Y129: 0 | Z129: 0 | AA129: 0 | AB129: 0 | AC129: 0
B130: Total gross expenditure | D130: =D97+D108+D119 -> 3403000 | E130: 2489747 | F130: 3138000 | G130: 3570000 | H130: =H97+H108+H119 -> 3474720 | I130: =I97+I108+I119 -> 3762488.211 | J130: =J97+J108+J119 -> 4276164.946 | K130: 4287247.634 | L130: 8296066.341 | M130: 8939470.699 | N130: 8140922.285 | O130: 8029813.718 | P130: 8051932.563 | Q130: 5508663.563 | R130: 5769659.045 | V130: =V97+V108+V119 -> 0 | W130: 0 | X130: 0 | Y130: 0 | Z130: 0 | AA130: 0 | AB130: 0 | AC130: 0
B131: Less contributions | D131: =D98+D109+D120 -> 0 | E131: 0 | F131: 0 | G131: 0 | H131: 0 | I131: 0 | J131: =J98+J109+J120 -> 0 | K131: 0 | L131: 0 | M131: 0 | N131: 0 | O131: 0 | P131: 0 | Q131: 0 | R131: 0 | V131: =V98+V109+V120 -> 0 | W131: 0 | X131: 0 | Y131: 0 | Z131: 0 | AA131: 0 | AB131: 0 | AC131: 0
B132: Total net expenditure | D132: =D99+D110+D121 -> 3403000 | E132: 2489747 | F132: 3138000 | G132: 3570000 | H132: 3474720 | I132: 3762488.211 | J132: =J99+J110+J121 -> 4276164.946 | K132: 4287247.634 | L132: 8296066.341 | M132: 8939470.699 | N132: 8140922.285 | O132: 8029813.718 | P132: 8051932.563 | Q132: 5508663.563 | R132: 5769659.045 | V132: =V99+V110+V121 -> 0 | W132: 0 | X132: 0 | Y132: 0 | Z132: 0 | AA132: 0 | AB132: 0 | AC132: 0
B133: Source(s) of data: | D133: 2008-2012 ESC Regulatory Accounting Statements - Statement 4b "Residential meter replacements and Commercial/industrial meter replacements" - Total Cost and Quantity | I133: 2013-2015 AER Annual Reporting Templates - Template 2.3 Meters | L133: Forecast data sourced from APA Data and capex model submitted as Attachment 8.8 to the AAI.
B135: Table 8.4 - Meter replacement expenditure by category / project (approved)
D136: Previous access arrangement period | I136: Current access arrangement period
D137: =CONCATENATE("$0's, real ",dms_DollarReal) -> $0's, real December 2017
D138: Approved
D139: =PRCP -> 2008 | E139: 2009 | F139: 2010 | G139: 2011 | H139: 2012 | I139: =CRCP_y1 -> 2013 | J139: =CRCP_y2 -> 2014 | K139: =CRCP_y3 -> 2015 | L139: =CRCP_y4 -> 2016 | M139: =CRCP_y5 -> 2017
B140: Residential Meter Replacement Expenditure | C140: Direct internal labour expenditure
C141: Direct contractor expenditure
C142: Other internal direct expenditure
C143: Total direct expenditure | D143: =3.73*1000000*D581 -> 4829136.095 | E143: =4.34*1000000*E581 -> 5618887.574 | F143: =4.22*1000000*F581 -> 5463526.627 | G143: =2.66*1000000*G581 -> 3443834.32 | H143: =2.37*1000000*H581 -> 3068378.698 | I143: 2751892.012 | J143: 5500712.82 | K143: 3651384.708 | L143: 8946998.919 | M143: 2850925.038
C144: Total overhead expenditure | I144: 415731.3403 | J144: 664320.9876 | K144: 473448.3846 | L144: 1293786.341 | M144: 461928.1592
C145: Related party margin expenditure
C146: Total gross expenditure | D146: =D143+D144+D145 -> 4829136.095 | E146: =E143+E144+E145 -> 5618887.574 | F146: 5463526.627 | G146: 3443834.32 | H146: 3068378.698 | I146: 3167623.352 | J146: 6165033.807 | K146: 4124833.092 | L146: 10240785.26 | M146: 3312853.197
C147: Less contributions
C148: Total net expenditure | D148: =D146-D147 -> 4829136.095 | E148: =E146-E147 -> 5618887.574 | F148: 5463526.627 | G148: 3443834.32 | H148: 3068378.698 | I148: 3167623.352 | J148: =J146-J147 -> 6165033.807 | K148: =K146-K147 -> 4124833.092 | L148: =L146-L147 -> 10240785.26 | M148: =M146-M147 -> 3312853.197
B149: Commercial Meter Replacement Expenditure | C149: Direct internal labour expenditure
C150: Direct contractor expenditure
C151: Other internal direct expenditure
C152: Total direct expenditure | D152: =1.16*1000000*D581 -> 1501822.485 | E152: =0.98*1000000*E581 -> 1268781.065 | F152: =0.94*1000000*F581 -> 1216994.083 | G152: =1*1000000*G581 -> 1294674.556 | H152: =1.1*1000000*H581 -> 1424142.012 | I152: 1042396.225 | J152: 1420394.168 | K152: 1959906.328 | L152: 1682190.575 | M152: 1557877.349
C153: Total overhead expenditure | I153: 157475.9394 | J153: 171540.9779 | K153: 254126.738 | L153: 243254.2139 | M153: 252418.919
C154: Related party margin expenditure
C155: Total gross expenditure | D155: =D152+D153+D154 -> 1501822.485 | E155: 1268781.065 | F155: 1216994.083 | G155: 1294674.556 | H155: 1424142.012 | I155: 1199872.164 | J155: 1591935.146 | K155: 2214033.066 | L155: 1925444.789 | M155: 1810296.268
C156: Less contributions
C157: Total net expenditure | D157: =D155-D156 -> 1501822.485 | E157: 1268781.065 | F157: 1216994.083 | G157: 1294674.556 | H157: 1424142.012 | I157: 1199872.164 | J157: 1591935.146 | K157: 2214033.066 | L157: 1925444.789 | M157: 1810296.268
B158: TOTALS | C158: Direct internal labour expenditure | D158: =SUMIF($D$140:$M$157,"Direct internal labour expenditure",D$140:D$157) -> 0 | E158: 0 | F158: 0 | G158: 0 | H158: 0 | I158: 0 | J158: 0 | K158: 0 | L158: 0 | M158: 0
C159: Direct contractor expenditure | D159: =SUMIF($D$140:$M$157,"Direct contractor expenditure",D$140:D$157) -> 0 | E159: 0 | F159: 0 | G159: 0 | H159: 0 | I159: 0 | J159: 0 | K159: 0 | L159: 0 | M159: 0
C160: Other internal direct expenditure | D160: =SUMIF($D$140:$M$157,"Other internal direct expenditure",D$140:D$157) -> 0 | E160: 0 | F160: 0 | G160: 0 | H160: 0 | I160: 0 | J160: 0 | K160: 0 | L160: 0 | M160: 0
